Workbook

Sheet intellix QTÉ + 2019 (hidden)
A1: POL | C1: FAMILLE BR N°: | G1: RECHERCHE | L1: =SUBTOTAL(9,Tableau4[MONTANT HT 2 QTÉ-SOMME]) -> 10585210.09
A2: BR N°: | B2: N: | C2: CODE | D2: Column2 | E2: Colonne3 | F2: DÉSIGNATION | G2: N° Lot | H2: QTÉ + 2019 | I2: PU. HT | J2: MONTANT HT | K2: QTÉ-SOMME | L2: MONTANT HT 2 QTÉ-SOMME | M2: Column1 | N2: SOMME | O2: C1 | P2: C2 | Q2: C3 | R2: C4 | S2: C5 | T2: C6 | U2: C7 | V2: C8 | W2: C9 | X2: C10 | Y2: C11 | Z2: C12 | AA2: C13 | AB2: C14 | AC2: C15 | AD2: C16 | AE2: C17 | AF2: C18 | AG2: C19 | AH2: C20 | AI2: C21 | AJ2: C22 | AK2: C23 | AL2: C24 | AM2: C25 | AN2: C26 | AO2: C27 | AP2: C28 | AQ2: C29 | AR2: C30 | AS2: C31 | AT2: C32 | AU2: C33 | AV2: C34 | AW2: C35 | AX2: C36 | AY2: C37 | AZ2: C38 | BA2: C39 | BB2: C40 | BC2: C41 | BD2: C42 | BE2: C43 | BF2: C44 | BG2: C45 | BH2: C46 | BI2: C47 | BJ2: C48 | BK2: C49 | BL2: C50 | BM2: C51 | BN2: C52 | BO2: C53 | BP2: C54 | BQ2: C55 | BR2: C56 | BS2: C57 | BT2: C58 | BU2: C59 | BV2: C60 | BW2: C61 | BX2: C62 | BY2: C63 | BZ2: C64 | CA2: C65 | CB2: C66 | CC2: C67 | CD2: C68 | CE2: C69 | CF2: C70 | CG2: C71 | CH2: C72 | CI2: C73 | CJ2: C74 | CK2: C75 | CL2: C76 | CM2: C77 | CN2: C78 | CO2: C79 | CP2: C80 | CQ2: C81 | CR2: C82 | CS2: C83 | CT2: C84 | CU2: C85 | CV2: C86 | CW2: C87 | CX2: C88 | CY2: C89 | CZ2: C90 | DA2: C91 | DB2: C92 | DC2: C93 | DD2: C94 | DE2: C95 | DF2: C96 | DG2: C97 | DH2: C98 | DI2: C99 | DJ2: C100 | DK2: C101
A3: RI20-002665 | B3: 54 | C3: AMPPA14A050 | D3: =IF(RIGHT(LEFT(Tableau4[[#This Row],[CODE]],5),3)="PAC",$C$176,IF(RIGHT(LEFT(Tableau4[[#This Row],[CODE]],5),3)="PEX",$C$177,IF(OR(RIGHT(LEFT(Tableau4[[#This Row],[CODE]],5),3)="PPA",(RIGHT(LEFT(Tableau4[[#This Row],[CODE]],5),3)="PMX")),$C$179,$C$178))) -> PRINCIP ACTIF | E3: =Tableau4[[#This Row],[CODE]]&Tableau4[[#This Row],[DÉSIGNATION]]&Tableau4[[#This Row],[N° Lot]] -> AMPPA14A050ACARBOSECAC039A | F3: ACARBOSE | G3: CAC039A | H3: 120.69 | I3: 68827.42 | J3: 8306781.32 | K3: =Tableau4[[#This Row],[QTÉ + 2019]]-Tableau4[[#This Row],[SOMME]] -> 120.69 | L3: =Tableau4[[#This Row],[QTÉ-SOMME]]*Tableau4[[#This Row],[PU. HT]] -> 8306781.32 | M3: =IF(Tableau4[[#This Row],[QTÉ-SOMME]]>0,"Reste","Modifié") -> Reste | N3: =SUM(O3:NB3) -> 0
A4: RI19-002664 | B4: 27 | C4: KMPEX001001 | D4: =IF(RIGHT(LEFT(Tableau4[[#This Row],[CODE]],5),3)="PAC",$C$176,IF(RIGHT(LEFT(Tableau4[[#This Row],[CODE]],5),3)="PEX",$C$177,IF(OR(RIGHT(LEFT(Tableau4[[#This Row],[CODE]],5),3)="PPA",(RIGHT(LEFT(Tableau4[[#This Row],[CODE]],5),3)="PMX")),$C$179,$C$178))) -> EXCIPIENTS | E4: =Tableau4[[#This Row],[CODE]]&Tableau4[[#This Row],[DÉSIGNATION]]&Tableau4[[#This Row],[N° Lot]] -> KMPEX001001ACESULFAME POTASSIUM201906182 | F4: ACESULFAME POTASSIUM | G4: 201906182 | H4: 44.34 | I4: 3900.58 | J4: 172951.7172 | K4: =Tableau4[[#This Row],[QTÉ + 2019]]-Tableau4[[#This Row],[SOMME]] -> 26.34 | L4: =Tableau4[[#This Row],[QTÉ-SOMME]]*Tableau4[[#This Row],[PU. HT]] -> 102741.2772 | M4: =IF(Tableau4[[#This Row],[QTÉ-SOMME]]>0,"Reste","Modifié") -> Reste | N4: =SUM(O4:NB4) -> 18 | O4: 18
A5: RI19-002664 | B5: 28 | C5: KMPEX001003 | D5: =IF(RIGHT(LEFT(Tableau4[[#This Row],[CODE]],5),3)="PAC",$C$176,IF(RIGHT(LEFT(Tableau4[[#This Row],[CODE]],5),3)="PEX",$C$177,IF(OR(RIGHT(LEFT(Tableau4[[#This Row],[CODE]],5),3)="PPA",(RIGHT(LEFT(Tableau4[[#This Row],[CODE]],5),3)="PMX")),$C$179,$C$178))) -> EXCIPIENTS | E5: =Tableau4[[#This Row],[CODE]]&Tableau4[[#This Row],[DÉSIGNATION]]&Tableau4[[#This Row],[N° Lot]] -> KMPEX001003ACIDE CITRIQUE ANHYDR POUDREUJ804 | F5: ACIDE CITRIQUE ANHYDR POUDRE | G5: UJ804 | H5: 134.5 | I5: 210 | J5: 28245 | K5: =Tableau4[[#This Row],[QTÉ + 2019]]-Tableau4[[#This Row],[SOMME]] -> 0 | L5: =Tableau4[[#This Row],[QTÉ-SOMME]]*Tableau4[[#This Row],[PU. HT]] -> 0 | M5: =IF(Tableau4[[#This Row],[QTÉ-SOMME]]>0,"Reste","Modifié") -> Modifié | N5: 134.5
A6: RI19-002664 | B6: 1 | C6: AMPAC001003 | D6: =IF(RIGHT(LEFT(Tableau4[[#This Row],[CODE]],5),3)="PAC",$C$176,IF(RIGHT(LEFT(Tableau4[[#This Row],[CODE]],5),3)="PEX",$C$177,IF(OR(RIGHT(LEFT(Tableau4[[#This Row],[CODE]],5),3)="PPA",(RIGHT(LEFT(Tableau4[[#This Row],[CODE]],5),3)="PMX")),$C$179,$C$178))) -> ARTICLE COND | E6: =Tableau4[[#This Row],[CODE]]&Tableau4[[#This Row],[DÉSIGNATION]]&Tableau4[[#This Row],[N° Lot]] -> AMPAC001003ALU 20 DM ANTAG7126-1 | F6: ALU 20 DM ANTAG | G6: 7126-1 | H6: 408872.35 | I6: 32.73 | J6: 13382392.02 | K6: =Tableau4[[#This Row],[QTÉ + 2019]]-Tableau4[[#This Row],[SOMME]] -> 296412.35 | L6: =Tableau4[[#This Row],[QTÉ-SOMME]]*Tableau4[[#This Row],[PU. HT]] -> 9701576.216 | M6: =IF(Tableau4[[#This Row],[QTÉ-SOMME]]>0,"Reste","Modifié") -> Reste | N6: =SUM(O6:NB6) -> 112460 | O6: 112460
A7: RI19-002664 | B7: 2 | C7: AMPAC001075 | D7: =IF(RIGHT(LEFT(Tableau4[[#This Row],[CODE]],5),3)="PAC",$C$176,IF(RIGHT(LEFT(Tableau4[[#This Row],[CODE]],5),3)="PEX",$C$177,IF(OR(RIGHT(LEFT(Tableau4[[#This Row],[CODE]],5),3)="PPA",(RIGHT(LEFT(Tableau4[[#This Row],[CODE]],5),3)="PMX")),$C$179,$C$178))) -> ARTICLE COND | E7: =Tableau4[[#This Row],[CODE]]&Tableau4[[#This Row],[DÉSIGNATION]]&Tableau4[[#This Row],[N° Lot]] -> AMPAC001075ALU 20 DM ANTIUM 20 mg8023 | F7: ALU 20 DM ANTIUM 20 mg | G7: 8023 | H7: 4697.62 | I7: 41.29 | J7: 193964.7298 | K7: =Tableau4[[#This Row],[QTÉ + 2019]]-Tableau4[[#This Row],[SOMME]] -> 0 | L7: =Tableau4[[#This Row],[QTÉ-SOMME]]*Tableau4[[#This Row],[PU. HT]] -> 0 | M7: =IF(Tableau4[[#This Row],[QTÉ-SOMME]]>0,"Reste","Modifié") -> Modifié | N7: 4697.62
A8: RI19-002664 | B8: 3 | C8: BMPAC001047 | D8: =IF(RIGHT(LEFT(Tableau4[[#This Row],[CODE]],5),3)="PAC",$C$176,IF(RIGHT(LEFT(Tableau4[[#This Row],[CODE]],5),3)="PEX",$C$177,IF(OR(RIGHT(LEFT(Tableau4[[#This Row],[CODE]],5),3)="PPA",(RIGHT(LEFT(Tableau4[[#This Row],[CODE]],5),3)="PMX")),$C$179,$C$178))) -> ARTICLE COND | E8: =Tableau4[[#This Row],[CODE]]&Tableau4[[#This Row],[DÉSIGNATION]]&Tableau4[[#This Row],[N° Lot]] -> BMPAC001047ALU 20 DM BIOCLAV 500 MG/62,5 MG AD.6724 | F8: ALU 20 DM BIOCLAV 500 MG/62,5 MG AD. | G8: 6724 | H8: 3213.7 | I8: 45.88 | J8: 147444.556 | K8: =Tableau4[[#This Row],[QTÉ + 2019]]-Tableau4[[#This Row],[SOMME]] -> 0 | L8: =Tableau4[[#This Row],[QTÉ-SOMME]]*Tableau4[[#This Row],[PU. HT]] -> 0 | M8: =IF(Tableau4[[#This Row],[QTÉ-SOMME]]>0,"Reste","Modifié") -> Modifié | N8: 3213.7
A9: RI19-002664 | B9: 4 | C9: BMPAC001005 | D9: =IF(RIGHT(LEFT(Tableau4[[#This Row],[CODE]],5),3)="PAC",$C$176,IF(RIGHT(LEFT(Tableau4[[#This Row],[CODE]],5),3)="PEX",$C$177,IF(OR(RIGHT(LEFT(Tableau4[[#This Row],[CODE]],5),3)="PPA",(RIGHT(LEFT(Tableau4[[#This Row],[CODE]],5),3)="PMX")),$C$179,$C$178))) -> ARTICLE COND | E9: =Tableau4[[#This Row],[CODE]]&Tableau4[[#This Row],[DÉSIGNATION]]&Tableau4[[#This Row],[N° Lot]] -> BMPAC001005ALU 20 DM BIOPAMOX 500MG7131 | F9: ALU 20 DM BIOPAMOX 500MG | G9: 7131 | H9: 2650.6 | I9: 43.76 | J9: 115990.256 | K9: =Tableau4[[#This Row],[QTÉ + 2019]]-Tableau4[[#This Row],[SOMME]] -> 0 | L9: =Tableau4[[#This Row],[QTÉ-SOMME]]*Tableau4[[#This Row],[PU. HT]] -> 0 | M9: =IF(Tableau4[[#This Row],[QTÉ-SOMME]]>0,"Reste","Modifié") -> Modifié | N9: 2650.6
A10: RI19-002664 | B10: 5 | C10: AMPAC001033 | D10: =IF(RIGHT(LEFT(Tableau4[[#This Row],[CODE]],5),3)="PAC",$C$176,IF(RIGHT(LEFT(Tableau4[[#This Row],[CODE]],5),3)="PEX",$C$177,IF(OR(RIGHT(LEFT(Tableau4[[#This Row],[CODE]],5),3)="PPA",(RIGHT(LEFT(Tableau4[[#This Row],[CODE]],5),3)="PMX")),$C$179,$C$178))) -> ARTICLE COND | E10: =Tableau4[[#This Row],[CODE]]&Tableau4[[#This Row],[DÉSIGNATION]]&Tableau4[[#This Row],[N° Lot]] -> AMPAC001033ALU 20 DM BUTAFEN 200 MG GELULES46071 | F10: ALU 20 DM BUTAFEN 200 MG GELULES | G10: 46071 | H10: 3271.97 | I10: 33.47 | J10: 109512.8359 | K10: =Tableau4[[#This Row],[QTÉ + 2019]]-Tableau4[[#This Row],[SOMME]] -> 3271.97 | L10: =Tableau4[[#This Row],[QTÉ-SOMME]]*Tableau4[[#This Row],[PU. HT]] -> 109512.8359 | M10: =IF(Tableau4[[#This Row],[QTÉ-SOMME]]>0,"Reste","Modifié") -> Reste | N10: =SUM(O10:NB10) -> 0
A11: RI19-002664 | B11: 6 | C11: AMPAC001041 | D11: =IF(RIGHT(LEFT(Tableau4[[#This Row],[CODE]],5),3)="PAC",$C$176,IF(RIGHT(LEFT(Tableau4[[#This Row],[CODE]],5),3)="PEX",$C$177,IF(OR(RIGHT(LEFT(Tableau4[[#This Row],[CODE]],5),3)="PPA",(RIGHT(LEFT(Tableau4[[#This Row],[CODE]],5),3)="PMX")),$C$179,$C$178))) -> ARTICLE COND | E11: =Tableau4[[#This Row],[CODE]]&Tableau4[[#This Row],[DÉSIGNATION]]&Tableau4[[#This Row],[N° Lot]] -> AMPAC001041ALU 20 DM BUTAFEN 600 MG COMP125 | F11: ALU 20 DM BUTAFEN 600 MG COMP | G11: 125 | H11: 5649.95 | I11: 30.04 | J11: 169724.498 | K11: =Tableau4[[#This Row],[QTÉ + 2019]]-Tableau4[[#This Row],[SOMME]] -> 5649.95 | L11: =Tableau4[[#This Row],[QTÉ-SOMME]]*Tableau4[[#This Row],[PU. HT]] -> 169724.498 | M11: =IF(Tableau4[[#This Row],[QTÉ-SOMME]]>0,"Reste","Modifié") -> Reste | N11: =SUM(O11:NB11) -> 0
A12: RI19-002664 | B12: 7 | C12: AMPAC001063 | D12: =IF(RIGHT(LEFT(Tableau4[[#This Row],[CODE]],5),3)="PAC",$C$176,IF(RIGHT(LEFT(Tableau4[[#This Row],[CODE]],5),3)="PEX",$C$177,IF(OR(RIGHT(LEFT(Tableau4[[#This Row],[CODE]],5),3)="PPA",(RIGHT(LEFT(Tableau4[[#This Row],[CODE]],5),3)="PMX")),$C$179,$C$178))) -> ARTICLE COND | E12: =Tableau4[[#This Row],[CODE]]&Tableau4[[#This Row],[DÉSIGNATION]]&Tableau4[[#This Row],[N° Lot]] -> AMPAC001063ALU 20 DM CIPROTEK 500 mg3695 25/05 | F12: ALU 20 DM CIPROTEK 500 mg | G12: 3695 25/05 | H12: 514.64 | I12: 40.21 | J12: 20693.6744 | K12: =Tableau4[[#This Row],[QTÉ + 2019]]-Tableau4[[#This Row],[SOMME]] -> 0 | L12: =Tableau4[[#This Row],[QTÉ-SOMME]]*Tableau4[[#This Row],[PU. HT]] -> 0 | M12: =IF(Tableau4[[#This Row],[QTÉ-SOMME]]>0,"Reste","Modifié") -> Modifié | N12: 514.64
A13: RI19-002664 | B13: 8 | C13: AMPAC001048 | D13: =IF(RIGHT(LEFT(Tableau4[[#This Row],[CODE]],5),3)="PAC",$C$176,IF(RIGHT(LEFT(Tableau4[[#This Row],[CODE]],5),3)="PEX",$C$177,IF(OR(RIGHT(LEFT(Tableau4[[#This Row],[CODE]],5),3)="PPA",(RIGHT(LEFT(Tableau4[[#This Row],[CODE]],5),3)="PMX")),$C$179,$C$178))) -> ARTICLE COND | E13: =Tableau4[[#This Row],[CODE]]&Tableau4[[#This Row],[DÉSIGNATION]]&Tableau4[[#This Row],[N° Lot]] -> AMPAC001048ALU 20 DM DIAGLINIDE 0.5 MG28/01/2016 | F13: ALU 20 DM DIAGLINIDE 0.5 MG | G13: 28/01/2016 | H13: 10897.81 | I13: 47.15 | J13: 513831.7415 | K13: =Tableau4[[#This Row],[QTÉ + 2019]]-Tableau4[[#This Row],[SOMME]] -> 0 | L13: =Tableau4[[#This Row],[QTÉ-SOMME]]*Tableau4[[#This Row],[PU. HT]] -> 0 | M13: =IF(Tableau4[[#This Row],[QTÉ-SOMME]]>0,"Reste","Modifié") -> Modifié | N13: 10897.81
A14: RI19-002664 | B14: 9 | C14: AMPAC001049 | D14: =IF(RIGHT(LEFT(Tableau4[[#This Row],[CODE]],5),3)="PAC",$C$176,IF(RIGHT(LEFT(Tableau4[[#This Row],[CODE]],5),3)="PEX",$C$177,IF(OR(RIGHT(LEFT(Tableau4[[#This Row],[CODE]],5),3)="PPA",(RIGHT(LEFT(Tableau4[[#This Row],[CODE]],5),3)="PMX")),$C$179,$C$178))) -> ARTICLE COND | E14: =Tableau4[[#This Row],[CODE]]&Tableau4[[#This Row],[DÉSIGNATION]]&Tableau4[[#This Row],[N° Lot]] -> AMPAC001049ALU 20 DM DIAGLINIDE 1 MGREBUT M12/2019 | F14: ALU 20 DM DIAGLINIDE 1 MG | G14: REBUT M12/2019 | H14: 7256.58 | I14: 36.68 | J14: 266171.3544 | K14: =Tableau4[[#This Row],[QTÉ + 2019]]-Tableau4[[#This Row],[SOMME]] -> 0 | L14: =Tableau4[[#This Row],[QTÉ-SOMME]]*Tableau4[[#This Row],[PU. HT]] -> 0 | M14: =IF(Tableau4[[#This Row],[QTÉ-SOMME]]>0,"Reste","Modifié") -> Modifié | N14: 7256.58
A15: RI19-002664 | B15: 10 | C15: AMPAC001050 | D15: =IF(RIGHT(LEFT(Tableau4[[#This Row],[CODE]],5),3)="PAC",$C$176,IF(RIGHT(LEFT(Tableau4[[#This Row],[CODE]],5),3)="PEX",$C$177,IF(OR(RIGHT(LEFT(Tableau4[[#This Row],[CODE]],5),3)="PPA",(RIGHT(LEFT(Tableau4[[#This Row],[CODE]],5),3)="PMX")),$C$179,$C$178))) -> ARTICLE COND | E15: =Tableau4[[#This Row],[CODE]]&Tableau4[[#This Row],[DÉSIGNATION]]&Tableau4[[#This Row],[N° Lot]] -> AMPAC001050ALU 20 DM DIAGLINIDE 2 MG4620 | F15: ALU 20 DM DIAGLINIDE 2 MG | G15: 4620 | H15: 28938.12 | I15: 36.68 | J15: 1061450.242 | K15: =Tableau4[[#This Row],[QTÉ + 2019]]-Tableau4[[#This Row],[SOMME]] -> 0 | L15: =Tableau4[[#This Row],[QTÉ-SOMME]]*Tableau4[[#This Row],[PU. HT]] -> 0 | M15: =IF(Tableau4[[#This Row],[QTÉ-SOMME]]>0,"Reste","Modifié") -> Modifié | N15: 28938.12
A16: RI20-002665 | B16: 1 | C16: AMPAC001011 | D16: =IF(RIGHT(LEFT(Tableau4[[#This Row],[CODE]],5),3)="PAC",$C$176,IF(RIGHT(LEFT(Tableau4[[#This Row],[CODE]],5),3)="PEX",$C$177,IF(OR(RIGHT(LEFT(Tableau4[[#This Row],[CODE]],5),3)="PPA",(RIGHT(LEFT(Tableau4[[#This Row],[CODE]],5),3)="PMX")),$C$179,$C$178))) -> ARTICLE COND | E16: =Tableau4[[#This Row],[CODE]]&Tableau4[[#This Row],[DÉSIGNATION]]&Tableau4[[#This Row],[N° Lot]] -> AMPAC001011ALU 20 DM FLOVENAC 50 MG (GELULES)7129 | F16: ALU 20 DM FLOVENAC 50 MG (GELULES) | G16: 7129 | H16: 9052.25 | I16: 43.82 | J16: 396669.595 | K16: =Tableau4[[#This Row],[QTÉ + 2019]]-Tableau4[[#This Row],[SOMME]] -> 0 | L16: =Tableau4[[#This Row],[QTÉ-SOMME]]*Tableau4[[#This Row],[PU. HT]] -> 0 | M16: =IF(Tableau4[[#This Row],[QTÉ-SOMME]]>0,"Reste","Modifié") -> Modifié | N16: =SUM(O16:NB16) -> 9052.25 | O16: 9052.25
A17: RI20-002665 | B17: 2 | C17: AMPAC001012 | D17: =IF(RIGHT(LEFT(Tableau4[[#This Row],[CODE]],5),3)="PAC",$C$176,IF(RIGHT(LEFT(Tableau4[[#This Row],[CODE]],5),3)="PEX",$C$177,IF(OR(RIGHT(LEFT(Tableau4[[#This Row],[CODE]],5),3)="PPA",(RIGHT(LEFT(Tableau4[[#This Row],[CODE]],5),3)="PMX")),$C$179,$C$178))) -> ARTICLE COND | E17: =Tableau4[[#This Row],[CODE]]&Tableau4[[#This Row],[DÉSIGNATION]]&Tableau4[[#This Row],[N° Lot]] -> AMPAC001012ALU 20 DM FLOVENAC LP 756802 | F17: ALU 20 DM FLOVENAC LP 75 | G17: 6802 | H17: 44935.26 | I17: 36.84 | J17: 1655414.978 | K17: =Tableau4[[#This Row],[QTÉ + 2019]]-Tableau4[[#This Row],[SOMME]] -> 30935.26 | L17: =Tableau4[[#This Row],[QTÉ-SOMME]]*Tableau4[[#This Row],[PU. HT]] -> 1139654.978 | M17: =IF(Tableau4[[#This Row],[QTÉ-SOMME]]>0,"Reste","Modifié") -> Reste | N17: =SUM(O17:NB17) -> 14000 | O17: 7000 | P17: 7000
A18: RI20-002665 | B18: 3 | C18: AMPAC001015 | D18: =IF(RIGHT(LEFT(Tableau4[[#This Row],[CODE]],5),3)="PAC",$C$176,IF(RIGHT(LEFT(Tableau4[[#This Row],[CODE]],5),3)="PEX",$C$177,IF(OR(RIGHT(LEFT(Tableau4[[#This Row],[CODE]],5),3)="PPA",(RIGHT(LEFT(Tableau4[[#This Row],[CODE]],5),3)="PMX")),$C$179,$C$178))) -> ARTICLE COND | E18: =Tableau4[[#This Row],[CODE]]&Tableau4[[#This Row],[DÉSIGNATION]]&Tableau4[[#This Row],[N° Lot]] -> AMPAC001015ALU 20 DM FORMENTIN 850 mg.2734 | F18: ALU 20 DM FORMENTIN 850 mg. | G18: 2734 | H18: 14853.81 | I18: 32.97 | J18: 489730.1157 | K18: =Tableau4[[#This Row],[QTÉ + 2019]]-Tableau4[[#This Row],[SOMME]] -> 14853.81 | L18: =Tableau4[[#This Row],[QTÉ-SOMME]]*Tableau4[[#This Row],[PU. HT]] -> 489730.1157 | M18: =IF(Tableau4[[#This Row],[QTÉ-SOMME]]>0,"Reste","Modifié") -> Reste | N18: =SUM(O18:NB18) -> 0
A19: RI20-002665 | B19: 4 | C19: AMPAC001022 | D19: =IF(RIGHT(LEFT(Tableau4[[#This Row],[CODE]],5),3)="PAC",$C$176,IF(RIGHT(LEFT(Tableau4[[#This Row],[CODE]],5),3)="PEX",$C$177,IF(OR(RIGHT(LEFT(Tableau4[[#This Row],[CODE]],5),3)="PPA",(RIGHT(LEFT(Tableau4[[#This Row],[CODE]],5),3)="PMX")),$C$179,$C$178))) -> ARTICLE COND | E19: =Tableau4[[#This Row],[CODE]]&Tableau4[[#This Row],[DÉSIGNATION]]&Tableau4[[#This Row],[N° Lot]] -> AMPAC001022ALU 20 DM NICARDIPINE5015 | F19: ALU 20 DM NICARDIPINE | G19: 5015 | H19: 11406.05 | I19: 36.64 | J19: 417917.672 | K19: =Tableau4[[#This Row],[QTÉ + 2019]]-Tableau4[[#This Row],[SOMME]] -> 0 | L19: =Tableau4[[#This Row],[QTÉ-SOMME]]*Tableau4[[#This Row],[PU. HT]] -> 0 | M19: =IF(Tableau4[[#This Row],[QTÉ-SOMME]]>0,"Reste","Modifié") -> Modifié | N19: 11406.05
A20: RI20-002665 | B20: 5 | C20: AMPAC001025 | D20: =IF(RIGHT(LEFT(Tableau4[[#This Row],[CODE]],5),3)="PAC",$C$176,IF(RIGHT(LEFT(Tableau4[[#This Row],[CODE]],5),3)="PEX",$C$177,IF(OR(RIGHT(LEFT(Tableau4[[#This Row],[CODE]],5),3)="PPA",(RIGHT(LEFT(Tableau4[[#This Row],[CODE]],5),3)="PMX")),$C$179,$C$178))) -> ARTICLE COND | E20: =Tableau4[[#This Row],[CODE]]&Tableau4[[#This Row],[DÉSIGNATION]]&Tableau4[[#This Row],[N° Lot]] -> AMPAC001025ALU 20 DM OROGYL4137 | F20: ALU 20 DM OROGYL | G20: 4137 | H20: 1585.38 | I20: 44.44 | J20: 70454.2872 | K20: =Tableau4[[#This Row],[QTÉ + 2019]]-Tableau4[[#This Row],[SOMME]] -> 0 | L20: =Tableau4[[#This Row],[QTÉ-SOMME]]*Tableau4[[#This Row],[PU. HT]] -> 0 | M20: =IF(Tableau4[[#This Row],[QTÉ-SOMME]]>0,"Reste","Modifié") -> Modifié | N20: 1585.38
A21: RI20-002665 | B21: 6 | C21: AMPAC001027 | D21: =IF(RIGHT(LEFT(Tableau4[[#This Row],[CODE]],5),3)="PAC",$C$176,IF(RIGHT(LEFT(Tableau4[[#This Row],[CODE]],5),3)="PEX",$C$177,IF(OR(RIGHT(LEFT(Tableau4[[#This Row],[CODE]],5),3)="PPA",(RIGHT(LEFT(Tableau4[[#This Row],[CODE]],5),3)="PMX")),$C$179,$C$178))) -> ARTICLE COND | E21: =Tableau4[[#This Row],[CODE]]&Tableau4[[#This Row],[DÉSIGNATION]]&Tableau4[[#This Row],[N° Lot]] -> AMPAC001027ALU 20 DM RANICARE 150 mg49229 | F21: ALU 20 DM RANICARE 150 mg | G21: 49229 | H21: 4378.25 | I21: 44.76 | J21: 195970.47 | K21: =Tableau4[[#This Row],[QTÉ + 2019]]-Tableau4[[#This Row],[SOMME]] -> 4378.25 | L21: =Tableau4[[#This Row],[QTÉ-SOMME]]*Tableau4[[#This Row],[PU. HT]] -> 195970.47 | M21: =IF(Tableau4[[#This Row],[QTÉ-SOMME]]>0,"Reste","Modifié") -> Reste | N21: =SUM(O21:NB21) -> 0
A22: RI20-002665 | B22: 7 | C22: AMPAC001029 | D22: =IF(RIGHT(LEFT(Tableau4[[#This Row],[CODE]],5),3)="PAC",$C$176,IF(RIGHT(LEFT(Tableau4[[#This Row],[CODE]],5),3)="PEX",$C$177,IF(OR(RIGHT(LEFT(Tableau4[[#This Row],[CODE]],5),3)="PPA",(RIGHT(LEFT(Tableau4[[#This Row],[CODE]],5),3)="PMX")),$C$179,$C$178))) -> ARTICLE COND | E22: =Tableau4[[#This Row],[CODE]]&Tableau4[[#This Row],[DÉSIGNATION]]&Tableau4[[#This Row],[N° Lot]] -> AMPAC001029ALU 20 DM SPIRACARE 1.5 M4140 | F22: ALU 20 DM SPIRACARE 1.5 M | G22: 4140 | H22: 5351.85 | I22: 44.44 | J22: 237836.214 | K22: =Tableau4[[#This Row],[QTÉ + 2019]]-Tableau4[[#This Row],[SOMME]] -> 5351.85 | L22: =Tableau4[[#This Row],[QTÉ-SOMME]]*Tableau4[[#This Row],[PU. HT]] -> 237836.214 | M22: =IF(Tableau4[[#This Row],[QTÉ-SOMME]]>0,"Reste","Modifié") -> Reste | N22: =SUM(O22:NB22) -> 0
A23: RI20-002665 | B23: 8 | C23: AMPAC001030 | D23: =IF(RIGHT(LEFT(Tableau4[[#This Row],[CODE]],5),3)="PAC",$C$176,IF(RIGHT(LEFT(Tableau4[[#This Row],[CODE]],5),3)="PEX",$C$177,IF(OR(RIGHT(LEFT(Tableau4[[#This Row],[CODE]],5),3)="PPA",(RIGHT(LEFT(Tableau4[[#This Row],[CODE]],5),3)="PMX")),$C$179,$C$178))) -> ARTICLE COND | E23: =Tableau4[[#This Row],[CODE]]&Tableau4[[#This Row],[DÉSIGNATION]]&Tableau4[[#This Row],[N° Lot]] -> AMPAC001030ALU 20 DM SPIRACARE 3 M902 | F23: ALU 20 DM SPIRACARE 3 M | G23: 902 | H23: 3793.67 | I23: 37.65 | J23: 142831.6755 | K23: =Tableau4[[#This Row],[QTÉ + 2019]]-Tableau4[[#This Row],[SOMME]] -> 3793.67 | L23: =Tableau4[[#This Row],[QTÉ-SOMME]]*Tableau4[[#This Row],[PU. HT]] -> 142831.6755 | M23: =IF(Tableau4[[#This Row],[QTÉ-SOMME]]>0,"Reste","Modifié") -> Reste | N23: =SUM(O23:NB23) -> 0
A24: RI20-002665 | B24: 9 | C24: AMPAC001042 | D24: =IF(RIGHT(LEFT(Tableau4[[#This Row],[CODE]],5),3)="PAC",$C$176,IF(RIGHT(LEFT(Tableau4[[#This Row],[CODE]],5),3)="PEX",$C$177,IF(OR(RIGHT(LEFT(Tableau4[[#This Row],[CODE]],5),3)="PPA",(RIGHT(LEFT(Tableau4[[#This Row],[CODE]],5),3)="PMX")),$C$179,$C$178))) -> ARTICLE COND | E24: =Tableau4[[#This Row],[CODE]]&Tableau4[[#This Row],[DÉSIGNATION]]&Tableau4[[#This Row],[N° Lot]] -> AMPAC001042ALU 20 DM TRIMEBUTINE BIOCARE 100 mg5868 | F24: ALU 20 DM TRIMEBUTINE BIOCARE 100 mg | G24: 5868 | H24: 5002.97 | I24: 36.45 | J24: 182358.2565 | K24: =Tableau4[[#This Row],[QTÉ + 2019]]-Tableau4[[#This Row],[SOMME]] -> 0 | L24: =Tableau4[[#This Row],[QTÉ-SOMME]]*Tableau4[[#This Row],[PU. HT]] -> 0 | M24: =IF(Tableau4[[#This Row],[QTÉ-SOMME]]>0,"Reste","Modifié") -> Modifié | N24: 5002.97
A25: RI20-002665 | B25: 10 | C25: AMPAC001051 | D25: =IF(RIGHT(LEFT(Tableau4[[#This Row],[CODE]],5),3)="PAC",$C$176,IF(RIGHT(LEFT(Tableau4[[#This Row],[CODE]],5),3)="PEX",$C$177,IF(OR(RIGHT(LEFT(Tableau4[[#This Row],[CODE]],5),3)="PPA",(RIGHT(LEFT(Tableau4[[#This Row],[CODE]],5),3)="PMX")),$C$179,$C$178))) -> ARTICLE COND | E25: =Tableau4[[#This Row],[CODE]]&Tableau4[[#This Row],[DÉSIGNATION]]&Tableau4[[#This Row],[N° Lot]] -> AMPAC001051ALU 20 DM TRIMEBUTINE BIOCARE 200 mg5415 | F25: ALU 20 DM TRIMEBUTINE BIOCARE 200 mg | G25: 5415 | H25: 5151.14 | I25: 36.5 | J25: 188016.61 | K25: =Tableau4[[#This Row],[QTÉ + 2019]]-Tableau4[[#This Row],[SOMME]] -> 0 | L25: =Tableau4[[#This Row],[QTÉ-SOMME]]*Tableau4[[#This Row],[PU. HT]] -> 0 | M25: =IF(Tableau4[[#This Row],[QTÉ-SOMME]]>0,"Reste","Modifié") -> Modifié | N25: 5151.14
A26: RI20-002665 | B26: 11 | C26: AMPAC001032 | D26: =IF(RIGHT(LEFT(Tableau4[[#This Row],[CODE]],5),3)="PAC",$C$176,IF(RIGHT(LEFT(Tableau4[[#This Row],[CODE]],5),3)="PEX",$C$177,IF(OR(RIGHT(LEFT(Tableau4[[#This Row],[CODE]],5),3)="PPA",(RIGHT(LEFT(Tableau4[[#This Row],[CODE]],5),3)="PMX")),$C$179,$C$178))) -> ARTICLE COND | E26: =Tableau4[[#This Row],[CODE]]&Tableau4[[#This Row],[DÉSIGNATION]]&Tableau4[[#This Row],[N° Lot]] -> AMPAC001032ALU 20 DM TROIS B4493 | F26: ALU 20 DM TROIS B | G26: 4493 | H26: 7777.1 | I26: 43.81 | J26: 340714.751 | K26: =Tableau4[[#This Row],[QTÉ + 2019]]-Tableau4[[#This Row],[SOMME]] -> 7777.1 | L26: =Tableau4[[#This Row],[QTÉ-SOMME]]*Tableau4[[#This Row],[PU. HT]] -> 340714.751 | M26: =IF(Tableau4[[#This Row],[QTÉ-SOMME]]>0,"Reste","Modifié") -> Reste | N26: =SUM(O26:NB26) -> 0
A27: RI20-002665 | B27: 12 | C27: AMPAC001074 | D27: =IF(RIGHT(LEFT(Tableau4[[#This Row],[CODE]],5),3)="PAC",$C$176,IF(RIGHT(LEFT(Tableau4[[#This Row],[CODE]],5),3)="PEX",$C$177,IF(OR(RIGHT(LEFT(Tableau4[[#This Row],[CODE]],5),3)="PPA",(RIGHT(LEFT(Tableau4[[#This Row],[CODE]],5),3)="PMX")),$C$179,$C$178))) -> ARTICLE COND | E27: =Tableau4[[#This Row],[CODE]]&Tableau4[[#This Row],[DÉSIGNATION]]&Tableau4[[#This Row],[N° Lot]] -> AMPAC001074ALU 20 DM UDINE 5 mg3781 | F27: ALU 20 DM UDINE 5 mg | G27: 3781 | H27: 1125.6 | I27: 37.86 | J27: 42615.216 | K27: =Tableau4[[#This Row],[QTÉ + 2019]]-Tableau4[[#This Row],[SOMME]] -> 0 | L27: =Tableau4[[#This Row],[QTÉ-SOMME]]*Tableau4[[#This Row],[PU. HT]] -> 0 | M27: =IF(Tableau4[[#This Row],[QTÉ-SOMME]]>0,"Reste","Modifié") -> Modifié | N27: 1125.6
A28: RI20-002665 | B28: 13 | C28: AMPAC001061 | D28: =IF(RIGHT(LEFT(Tableau4[[#This Row],[CODE]],5),3)="PAC",$C$176,IF(RIGHT(LEFT(Tableau4[[#This Row],[CODE]],5),3)="PEX",$C$177,IF(OR(RIGHT(LEFT(Tableau4[[#This Row],[CODE]],5),3)="PPA",(RIGHT(LEFT(Tableau4[[#This Row],[CODE]],5),3)="PMX")),$C$179,$C$178))) -> ARTICLE COND | E28: =Tableau4[[#This Row],[CODE]]&Tableau4[[#This Row],[DÉSIGNATION]]&Tableau4[[#This Row],[N° Lot]] -> AMPAC001061ALU 20 DM XYCARE 5 mg "COMP".5738 | F28: ALU 20 DM XYCARE 5 mg "COMP". | G28: 5738 | H28: 41273.8 | I28: 36.47 | J28: 1505255.486 | K28: =Tableau4[[#This Row],[QTÉ + 2019]]-Tableau4[[#This Row],[SOMME]] -> 34773.8 | L28: =Tableau4[[#This Row],[QTÉ-SOMME]]*Tableau4[[#This Row],[PU. HT]] -> 1268200.486 | M28: =IF(Tableau4[[#This Row],[QTÉ-SOMME]]>0,"Reste","Modifié") -> Reste | N28: =SUM(O28:NB28) -> 6500 | O28: 6500
A29: RI20-002675 | B29: 1 | C29: AMPAC009007 | D29: =IF(RIGHT(LEFT(Tableau4[[#This Row],[CODE]],5),3)="PAC",$C$176,IF(RIGHT(LEFT(Tableau4[[#This Row],[CODE]],5),3)="PEX",$C$177,IF(OR(RIGHT(LEFT(Tableau4[[#This Row],[CODE]],5),3)="PPA",(RIGHT(LEFT(Tableau4[[#This Row],[CODE]],5),3)="PMX")),$C$179,$C$178))) -> ARTICLE COND | E29: =Tableau4[[#This Row],[CODE]]&Tableau4[[#This Row],[DÉSIGNATION]]&Tableau4[[#This Row],[N° Lot]] -> AMPAC009007ALUMINIUM NEUTRE5025-1 | F29: ALUMINIUM NEUTRE | G29: 5025-1 | H29: 377797.34 | I29: 107.28 | J29: 40530098.64 | K29: =Tableau4[[#This Row],[QTÉ + 2019]]-Tableau4[[#This Row],[SOMME]] -> 0 | L29: =Tableau4[[#This Row],[QTÉ-SOMME]]*Tableau4[[#This Row],[PU. HT]] -> 0 | M29: =IF(Tableau4[[#This Row],[QTÉ-SOMME]]>0,"Reste","Modifié") -> Modifié | N29: =SUM(O29:NB29) -> 377797.34 | O29: 318539.66 | P29: 1127 | Q29: 8500 | R29: 8600 | S29: 1600 | T29: 8500 | U29: 1600 | V29: 1600 | W29: 20930.68 | X29: 6800
A30: RI19-002664 | B30: 29 | C30: KMPEX001004 | D30: =IF(RIGHT(LEFT(Tableau4[[#This Row],[CODE]],5),3)="PAC",$C$176,IF(RIGHT(LEFT(Tableau4[[#This Row],[CODE]],5),3)="PEX",$C$177,IF(OR(RIGHT(LEFT(Tableau4[[#This Row],[CODE]],5),3)="PPA",(RIGHT(LEFT(Tableau4[[#This Row],[CODE]],5),3)="PMX")),$C$179,$C$178))) -> EXCIPIENTS | E30: =Tableau4[[#This Row],[CODE]]&Tableau4[[#This Row],[DÉSIGNATION]]&Tableau4[[#This Row],[N° Lot]] -> KMPEX001004AMIDON DE BLE TBE1653-1 | F30: AMIDON DE BLE TB | G30: E1653-1 | H30: 327.05 | I30: 790.1 | J30: 258402.205 | K30: =Tableau4[[#This Row],[QTÉ + 2019]]-Tableau4[[#This Row],[SOMME]] -> 152 | L30: =Tableau4[[#This Row],[QTÉ-SOMME]]*Tableau4[[#This Row],[PU. HT]] -> 120095.2 | M30: =IF(Tableau4[[#This Row],[QTÉ-SOMME]]>0,"Reste","Modifié") -> Reste | N30: =SUM(O30:NB30) -> 175.05 | O30: 25 | P30: 25.05 | Q30: 75 | R30: 50
A31: RI19-002664 | B31: 30 | C31: KMPEX001005 | D31: =IF(RIGHT(LEFT(Tableau4[[#This Row],[CODE]],5),3)="PAC",$C$176,IF(RIGHT(LEFT(Tableau4[[#This Row],[CODE]],5),3)="PEX",$C$177,IF(OR(RIGHT(LEFT(Tableau4[[#This Row],[CODE]],5),3)="PPA",(RIGHT(LEFT(Tableau4[[#This Row],[CODE]],5),3)="PMX")),$C$179,$C$178))) -> EXCIPIENTS | E31: =Tableau4[[#This Row],[CODE]]&Tableau4[[#This Row],[DÉSIGNATION]]&Tableau4[[#This Row],[N° Lot]] -> KMPEX001005AMIDON DE MAÏS Be1779 | F31: AMIDON DE MAÏS B | G31: e1779 | H31: 441.88 | I31: 525.57 | J31: 232238.8716 | K31: =Tableau4[[#This Row],[QTÉ + 2019]]-Tableau4[[#This Row],[SOMME]] -> 0 | L31: =Tableau4[[#This Row],[QTÉ-SOMME]]*Tableau4[[#This Row],[PU. HT]] -> 0 | M31: =IF(Tableau4[[#This Row],[QTÉ-SOMME]]>0,"Reste","Modifié") -> Modifié | N31: 441.88
A32: RI19-002664 | B32: 31 | C32: KMPEX001006 | D32: =IF(RIGHT(LEFT(Tableau4[[#This Row],[CODE]],5),3)="PAC",$C$176,IF(RIGHT(LEFT(Tableau4[[#This Row],[CODE]],5),3)="PEX",$C$177,IF(OR(RIGHT(LEFT(Tableau4[[#This Row],[CODE]],5),3)="PPA",(RIGHT(LEFT(Tableau4[[#This Row],[CODE]],5),3)="PMX")),$C$179,$C$178))) -> EXCIPIENTS | E32: =Tableau4[[#This Row],[CODE]]&Tableau4[[#This Row],[DÉSIGNATION]]&Tableau4[[#This Row],[N° Lot]] -> KMPEX001006AMIDON PREGELATINISEE8676 | F32: AMIDON PREGELATINISE | G32: E8676 | H32: 0.81 | I32: 450 | J32: 364.5 | K32: =Tableau4[[#This Row],[QTÉ + 2019]]-Tableau4[[#This Row],[SOMME]] -> 0 | L32: =Tableau4[[#This Row],[QTÉ-SOMME]]*Tableau4[[#This Row],[PU. HT]] -> 0 | M32: =IF(Tableau4[[#This Row],[QTÉ-SOMME]]>0,"Reste","Modifié") -> Modifié | N32: 0.81
A33: RI20-002665 | B33: 55 | C33: BMPPA13G004 | D33: =IF(RIGHT(LEFT(Tableau4[[#This Row],[CODE]],5),3)="PAC",$C$176,IF(RIGHT(LEFT(Tableau4[[#This Row],[CODE]],5),3)="PEX",$C$177,IF(OR(RIGHT(LEFT(Tableau4[[#This Row],[CODE]],5),3)="PPA",(RIGHT(LEFT(Tableau4[[#This Row],[CODE]],5),3)="PMX")),$C$179,$C$178))) -> PRINCIP ACTIF | E33: =Tableau4[[#This Row],[CODE]]&Tableau4[[#This Row],[DÉSIGNATION]]&Tableau4[[#This Row],[N° Lot]] -> BMPPA13G004AMOXICILLINE T/H COMPACTED171214028 | F33: AMOXICILLINE T/H COMPACTED | G33: 171214028 | H33: 560.21 | I33: 4717.93 | J33: 2643031.565 | K33: =Tableau4[[#This Row],[QTÉ + 2019]]-Tableau4[[#This Row],[SOMME]] -> 0 | L33: =Tableau4[[#This Row],[QTÉ-SOMME]]*Tableau4[[#This Row],[PU. HT]] -> 0 | M33: =IF(Tableau4[[#This Row],[QTÉ-SOMME]]>0,"Reste","Modifié") -> Modifié | N33: =SUM(O33:NB33) -> 560.21 | O33: 560.21
A34: RI20-002669 | B34: 3 | C34: BMPPA13G005 | D34: =IF(RIGHT(LEFT(Tableau4[[#This Row],[CODE]],5),3)="PAC",$C$176,IF(RIGHT(LEFT(Tableau4[[#This Row],[CODE]],5),3)="PEX",$C$177,IF(OR(RIGHT(LEFT(Tableau4[[#This Row],[CODE]],5),3)="PPA",(RIGHT(LEFT(Tableau4[[#This Row],[CODE]],5),3)="PMX")),$C$179,$C$178))) -> PRINCIP ACTIF | E34: =Tableau4[[#This Row],[CODE]]&Tableau4[[#This Row],[DÉSIGNATION]]&Tableau4[[#This Row],[N° Lot]] -> BMPPA13G005AMOXICILLINE T/H POWDER181215020 | F34: AMOXICILLINE T/H POWDER | G34: 181215020 | H34: 16290.76 | I34: 4956.69 | J34: 24783450 | K34: =Tableau4[[#This Row],[QTÉ + 2019]]-Tableau4[[#This Row],[SOMME]] -> 5190.76 | L34: =Tableau4[[#This Row],[QTÉ-SOMME]]*Tableau4[[#This Row],[PU. HT]] -> 25728988.18 | M34: =IF(Tableau4[[#This Row],[QTÉ-SOMME]]>0,"Reste","Modifié") -> Reste | N34: =SUM(O34:NB34) -> 11100 | O34: 4450 | P34: 550 | Q34: 500 | R34: 400 | S34: 600 | T34: 600 | U34: 400 | V34: 400 | W34: 150 | X34: 400 | Y34: 500 | Z34: 400 | AA34: 300 | AB34: 200 | AC34: 250 | AD34: 400 | AE34: 250 | AF34: 150 | AG34: 200
A35: RI20-002668 | B35: 1 | C35: KMPEX002001 | D35: =IF(RIGHT(LEFT(Tableau4[[#This Row],[CODE]],5),3)="PAC",$C$176,IF(RIGHT(LEFT(Tableau4[[#This Row],[CODE]],5),3)="PEX",$C$177,IF(OR(RIGHT(LEFT(Tableau4[[#This Row],[CODE]],5),3)="PPA",(RIGHT(LEFT(Tableau4[[#This Row],[CODE]],5),3)="PMX")),$C$179,$C$178))) -> EXCIPIENTS | E35: =Tableau4[[#This Row],[CODE]]&Tableau4[[#This Row],[DÉSIGNATION]]&Tableau4[[#This Row],[N° Lot]] -> KMPEX002001AROME ANTILLAIS POUDREN009402520 | F35: AROME ANTILLAIS POUDRE | G35: N009402520 | H35: 338.16 | I35: 7402.33 | J35: 2503171.913 | K35: =Tableau4[[#This Row],[QTÉ + 2019]]-Tableau4[[#This Row],[SOMME]] -> 0 | L35: =Tableau4[[#This Row],[QTÉ-SOMME]]*Tableau4[[#This Row],[PU. HT]] -> 0 | M35: =IF(Tableau4[[#This Row],[QTÉ-SOMME]]>0,"Reste","Modifié") -> Modifié | N35: 338.16
A36: RI20-002666 | B36: 12 | C36: KMPEX002002 | D36: =IF(RIGHT(LEFT(Tableau4[[#This Row],[CODE]],5),3)="PAC",$C$176,IF(RIGHT(LEFT(Tableau4[[#This Row],[CODE]],5),3)="PEX",$C$177,IF(OR(RIGHT(LEFT(Tableau4[[#This Row],[CODE]],5),3)="PPA",(RIGHT(LEFT(Tableau4[[#This Row],[CODE]],5),3)="PMX")),$C$179,$C$178))) -> EXCIPIENTS | E36: =Tableau4[[#This Row],[CODE]]&Tableau4[[#This Row],[DÉSIGNATION]]&Tableau4[[#This Row],[N° Lot]] -> KMPEX002002AROME CITRON PECHE FRAISE POUDRE9451358 | F36: AROME CITRON PECHE FRAISE POUDRE | G36: 9451358 | H36: 214.31 | I36: 6121.96 | J36: 1311997.248 | K36: =Tableau4[[#This Row],[QTÉ + 2019]]-Tableau4[[#This Row],[SOMME]] -> 214.31 | L36: =Tableau4[[#This Row],[QTÉ-SOMME]]*Tableau4[[#This Row],[PU. HT]] -> 1311997.248 | M36: =IF(Tableau4[[#This Row],[QTÉ-SOMME]]>0,"Reste","Modifié") -> Reste | N36: =SUM(O36:NB36) -> 0
A37: RI20-002666 | B37: 13 | C37: KMPEX002003 | D37: =IF(RIGHT(LEFT(Tableau4[[#This Row],[CODE]],5),3)="PAC",$C$176,IF(RIGHT(LEFT(Tableau4[[#This Row],[CODE]],5),3)="PEX",$C$177,IF(OR(RIGHT(LEFT(Tableau4[[#This Row],[CODE]],5),3)="PPA",(RIGHT(LEFT(Tableau4[[#This Row],[CODE]],5),3)="PMX")),$C$179,$C$178))) -> EXCIPIENTS | E37: =Tableau4[[#This Row],[CODE]]&Tableau4[[#This Row],[DÉSIGNATION]]&Tableau4[[#This Row],[N° Lot]] -> KMPEX002003AROME MELANGE TROPICAL PERMASEALDU00643109 | F37: AROME MELANGE TROPICAL PERMASEAL | G37: DU00643109 | H37: 517.95 | I37: 7855.76 | J37: 4068890.892 | K37: =Tableau4[[#This Row],[QTÉ + 2019]]-Tableau4[[#This Row],[SOMME]] -> 377.95 | L37: =Tableau4[[#This Row],[QTÉ-SOMME]]*Tableau4[[#This Row],[PU. HT]] -> 2969084.492 | M37: =IF(Tableau4[[#This Row],[QTÉ-SOMME]]>0,"Reste","Modifié") -> Reste | N37: =SUM(O37:NB37) -> 140 | O37: 50 | P37: 50 | Q37: 40
A38: RI20-002666 | B38: 14 | C38: KMPEX002050 | D38: =IF(RIGHT(LEFT(Tableau4[[#This Row],[CODE]],5),3)="PAC",$C$176,IF(RIGHT(LEFT(Tableau4[[#This Row],[CODE]],5),3)="PEX",$C$177,IF(OR(RIGHT(LEFT(Tableau4[[#This Row],[CODE]],5),3)="PPA",(RIGHT(LEFT(Tableau4[[#This Row],[CODE]],5),3)="PMX")),$C$179,$C$178))) -> EXCIPIENTS | E38: =Tableau4[[#This Row],[CODE]]&Tableau4[[#This Row],[DÉSIGNATION]]&Tableau4[[#This Row],[N° Lot]] -> KMPEX002050AROME ORANGE SN6802620007759814 | F38: AROME ORANGE SN680262 | G38: 0007759814 | H38: 809.59 | I38: 7164.73 | J38: 5800493.761 | K38: =Tableau4[[#This Row],[QTÉ + 2019]]-Tableau4[[#This Row],[SOMME]] -> 0 | L38: =Tableau4[[#This Row],[QTÉ-SOMME]]*Tableau4[[#This Row],[PU. HT]] -> 0 | M38: =IF(Tableau4[[#This Row],[QTÉ-SOMME]]>0,"Reste","Modifié") -> Modifié | N38: =SUM(O38:NB38) -> 809.59 | O38: 400 | P38: 40 | Q38: 20 | R38: 20 | S38: 180 | T38: 20 | U38: 20 | V38: 40 | W38: 25 | X38: 44.59
A39: RI20-002666 | B39: 1 | C39: BMPAC002002 | D39: =IF(RIGHT(LEFT(Tableau4[[#This Row],[CODE]],5),3)="PAC",$C$176,IF(RIGHT(LEFT(Tableau4[[#This Row],[CODE]],5),3)="PEX",$C$177,IF(OR(RIGHT(LEFT(Tableau4[[#This Row],[CODE]],5),3)="PPA",(RIGHT(LEFT(Tableau4[[#This Row],[CODE]],5),3)="PMX")),$C$179,$C$178))) -> ARTICLE COND | E39: =Tableau4[[#This Row],[CODE]]&Tableau4[[#This Row],[DÉSIGNATION]]&Tableau4[[#This Row],[N° Lot]] -> BMPAC002002CAPSULE ALUMINIUM UT 288N3724 | F39: CAPSULE ALUMINIUM UT 28 | G39: 8N3724 | H39: 2680892 | I39: 2.25 | J39: 6032007 | K39: =Tableau4[[#This Row],[QTÉ + 2019]]-Tableau4[[#This Row],[SOMME]] -> 2328892 | L39: =Tableau4[[#This Row],[QTÉ-SOMME]]*Tableau4[[#This Row],[PU. HT]] -> 5240007 | M39: =IF(Tableau4[[#This Row],[QTÉ-SOMME]]>0,"Reste","Modifié") -> Reste | N39: =SUM(O39:NB39) -> 352000 | O39: 275000 | P39: 38500 | Q39: 38500
A40: RI19-002664 | B40: 35 | C40: KMPEX001008 | D40: =IF(RIGHT(LEFT(Tableau4[[#This Row],[CODE]],5),3)="PAC",$C$176,IF(RIGHT(LEFT(Tableau4[[#This Row],[CODE]],5),3)="PEX",$C$177,IF(OR(RIGHT(LEFT(Tableau4[[#This Row],[CODE]],5),3)="PPA",(RIGHT(LEFT(Tableau4[[#This Row],[CODE]],5),3)="PMX")),$C$179,$C$178))) -> EXCIPIENTS | E40: =Tableau4[[#This Row],[CODE]]&Tableau4[[#This Row],[DÉSIGNATION]]&Tableau4[[#This Row],[N° Lot]] -> KMPEX001008CELLULOSE MICROCRISTALLINE PH102D104190268 | F40: CELLULOSE MICROCRISTALLINE PH102 | G40: D104190268 | H40: 196.76 | I40: 1092 | J40: 214861.92 | K40: =Tableau4[[#This Row],[QTÉ + 2019]]-Tableau4[[#This Row],[SOMME]] -> 0 | L40: =Tableau4[[#This Row],[QTÉ-SOMME]]*Tableau4[[#This Row],[PU. HT]] -> 0 | M40: =IF(Tableau4[[#This Row],[QTÉ-SOMME]]>0,"Reste","Modifié") -> Modifié | N40: 196.76
A41: RI20-002665 | B41: 56 | C41: AMPMX13K002 | D41: =IF(RIGHT(LEFT(Tableau4[[#This Row],[CODE]],5),3)="PAC",$C$176,IF(RIGHT(LEFT(Tableau4[[#This Row],[CODE]],5),3)="PEX",$C$177,IF(OR(RIGHT(LEFT(Tableau4[[#This Row],[CODE]],5),3)="PPA",(RIGHT(LEFT(Tableau4[[#This Row],[CODE]],5),3)="PMX")),$C$179,$C$178))) -> PRINCIP ACTIF | E41: =Tableau4[[#This Row],[CODE]]&Tableau4[[#This Row],[DÉSIGNATION]]&Tableau4[[#This Row],[N° Lot]] -> AMPMX13K002CIPROFLOXACIN GRANULES 500 mgSVAA01 | F41: CIPROFLOXACIN GRANULES 500 mg | G41: SVAA01 | H41: 181.81 | I41: 35074.69 | J41: 6376929.389 | K41: =Tableau4[[#This Row],[QTÉ + 2019]]-Tableau4[[#This Row],[SOMME]] -> 0 | L41: =Tableau4[[#This Row],[QTÉ-SOMME]]*Tableau4[[#This Row],[PU. HT]] -> 0 | M41: =IF(Tableau4[[#This Row],[QTÉ-SOMME]]>0,"Reste","Modifié") -> Modifié | N41: 181.81
A42: RI20-002666 | B42: 15 | C42: KMPEX001010 | D42: =IF(RIGHT(LEFT(Tableau4[[#This Row],[CODE]],5),3)="PAC",$C$176,IF(RIGHT(LEFT(Tableau4[[#This Row],[CODE]],5),3)="PEX",$C$177,IF(OR(RIGHT(LEFT(Tableau4[[#This Row],[CODE]],5),3)="PPA",(RIGHT(LEFT(Tableau4[[#This Row],[CODE]],5),3)="PMX")),$C$179,$C$178))) -> EXCIPIENTS | E42: =Tableau4[[#This Row],[CODE]]&Tableau4[[#This Row],[DÉSIGNATION]]&Tableau4[[#This Row],[N° Lot]] -> KMPEX001010CITRATE DE SODIUM TRISODIQUE DIHYDRATEuj821-1 | F42: CITRATE DE SODIUM TRISODIQUE DIHYDRATE | G42: uj821-1 | H42: 30.1 | I42: 1991.7 | J42: 59950.17 | K42: =Tableau4[[#This Row],[QTÉ + 2019]]-Tableau4[[#This Row],[SOMME]] -> 30.1 | L42: =Tableau4[[#This Row],[QTÉ-SOMME]]*Tableau4[[#This Row],[PU. HT]] -> 59950.17 | M42: =IF(Tableau4[[#This Row],[QTÉ-SOMME]]>0,"Reste","Modifié") -> Reste | N42: =SUM(O42:NB42) -> 0
A43: RI19-002664 | B43: 36 | C43: KMPEX003003 | D43: =IF(RIGHT(LEFT(Tableau4[[#This Row],[CODE]],5),3)="PAC",$C$176,IF(RIGHT(LEFT(Tableau4[[#This Row],[CODE]],5),3)="PEX",$C$177,IF(OR(RIGHT(LEFT(Tableau4[[#This Row],[CODE]],5),3)="PPA",(RIGHT(LEFT(Tableau4[[#This Row],[CODE]],5),3)="PMX")),$C$179,$C$178))) -> EXCIPIENTS | E43: =Tableau4[[#This Row],[CODE]]&Tableau4[[#This Row],[DÉSIGNATION]]&Tableau4[[#This Row],[N° Lot]] -> KMPEX003003COLORANT JAUNE QUINOLINE LAKE165560674-1 | F43: COLORANT JAUNE QUINOLINE LAKE | G43: 165560674-1 | H43: 0.43 | I43: 15357.22 | J43: 6603.6046 | K43: =Tableau4[[#This Row],[QTÉ + 2019]]-Tableau4[[#This Row],[SOMME]] -> 0 | L43: =Tableau4[[#This Row],[QTÉ-SOMME]]*Tableau4[[#This Row],[PU. HT]] -> 0 | M43: =IF(Tableau4[[#This Row],[QTÉ-SOMME]]>0,"Reste","Modifié") -> Modifié | N43: 0.43
A44: RI19-002664 | B44: 37 | C44: KMPEX001011 | D44: =IF(RIGHT(LEFT(Tableau4[[#This Row],[CODE]],5),3)="PAC",$C$176,IF(RIGHT(LEFT(Tableau4[[#This Row],[CODE]],5),3)="PEX",$C$177,IF(OR(RIGHT(LEFT(Tableau4[[#This Row],[CODE]],5),3)="PPA",(RIGHT(LEFT(Tableau4[[#This Row],[CODE]],5),3)="PMX")),$C$179,$C$178))) -> EXCIPIENTS | E44: =Tableau4[[#This Row],[CODE]]&Tableau4[[#This Row],[DÉSIGNATION]]&Tableau4[[#This Row],[N° Lot]] -> KMPEX001011CROSCARMELLOSE SODIQUE32010181068 | F44: CROSCARMELLOSE SODIQUE | G44: 32010181068 | H44: 235.18 | I44: 3019.6 | J44: 710149.528 | K44: =Tableau4[[#This Row],[QTÉ + 2019]]-Tableau4[[#This Row],[SOMME]] -> 0 | L44: =Tableau4[[#This Row],[QTÉ-SOMME]]*Tableau4[[#This Row],[PU. HT]] -> 0 | M44: =IF(Tableau4[[#This Row],[QTÉ-SOMME]]>0,"Reste","Modifié") -> Modifié | N44: 235.18
A45: RI20-002665 | B45: 57 | C45: AMPPA01A049 | D45: =IF(RIGHT(LEFT(Tableau4[[#This Row],[CODE]],5),3)="PAC",$C$176,IF(RIGHT(LEFT(Tableau4[[#This Row],[CODE]],5),3)="PEX",$C$177,IF(OR(RIGHT(LEFT(Tableau4[[#This Row],[CODE]],5),3)="PPA",(RIGHT(LEFT(Tableau4[[#This Row],[CODE]],5),3)="PMX")),$C$179,$C$178))) -> PRINCIP ACTIF | E45: =Tableau4[[#This Row],[CODE]]&Tableau4[[#This Row],[DÉSIGNATION]]&Tableau4[[#This Row],[N° Lot]] -> AMPPA01A049DESLORATADINEDCS8091 | F45: DESLORATADINE | G45: DCS8091 | H45: 1.92 | I45: 241786.24 | J45: 464229.5808 | K45: =Tableau4[[#This Row],[QTÉ + 2019]]-Tableau4[[#This Row],[SOMME]] -> 1.92 | L45: =Tableau4[[#This Row],[QTÉ-SOMME]]*Tableau4[[#This Row],[PU. HT]] -> 464229.5808 | M45: =IF(Tableau4[[#This Row],[QTÉ-SOMME]]>0,"Reste","Modifié") -> Reste | N45: =SUM(O45:NB45) -> 0
A46: RI20-002665 | B46: 58 | C46: AMPMX04B004 | D46: =IF(RIGHT(LEFT(Tableau4[[#This Row],[CODE]],5),3)="PAC",$C$176,IF(RIGHT(LEFT(Tableau4[[#This Row],[CODE]],5),3)="PEX",$C$177,IF(OR(RIGHT(LEFT(Tableau4[[#This Row],[CODE]],5),3)="PPA",(RIGHT(LEFT(Tableau4[[#This Row],[CODE]],5),3)="PMX")),$C$179,$C$178))) -> PRINCIP ACTIF | E46: =Tableau4[[#This Row],[CODE]]&Tableau4[[#This Row],[DÉSIGNATION]]&Tableau4[[#This Row],[N° Lot]] -> AMPMX04B004DICLOFENAC SODIUM EC PELLETS 50MGFG38H902 | F46: DICLOFENAC SODIUM EC PELLETS 50MG | G46: FG38H902 | H46: 1300.44 | I46: 5596.16 | J46: 4405297.152 | K46: =Tableau4[[#This Row],[QTÉ + 2019]]-Tableau4[[#This Row],[SOMME]] -> 1300.44 | L46: =Tableau4[[#This Row],[QTÉ-SOMME]]*Tableau4[[#This Row],[PU. HT]] -> 7277470.31 | M46: =IF(Tableau4[[#This Row],[QTÉ-SOMME]]>0,"Reste","Modifié") -> Reste | N46: 0
A47: RI20-002674 | B47: 1 | C47: AMPMX04B005 | D47: =IF(RIGHT(LEFT(Tableau4[[#This Row],[CODE]],5),3)="PAC",$C$176,IF(RIGHT(LEFT(Tableau4[[#This Row],[CODE]],5),3)="PEX",$C$177,IF(OR(RIGHT(LEFT(Tableau4[[#This Row],[CODE]],5),3)="PPA",(RIGHT(LEFT(Tableau4[[#This Row],[CODE]],5),3)="PMX")),$C$179,$C$178))) -> PRINCIP ACTIF | E47: =Tableau4[[#This Row],[CODE]]&Tableau4[[#This Row],[DÉSIGNATION]]&Tableau4[[#This Row],[N° Lot]] -> AMPMX04B005DICLOFENAC SODIUM SR PELLETS 75 MGF011B902 | F47: DICLOFENAC SODIUM SR PELLETS 75 MG | G47: F011B902 | H47: 8663.15 | I47: 5925.97 | J47: 36213661.93 | K47: =Tableau4[[#This Row],[QTÉ + 2019]]-Tableau4[[#This Row],[SOMME]] -> 6663.15 | L47: =Tableau4[[#This Row],[QTÉ-SOMME]]*Tableau4[[#This Row],[PU. HT]] -> 39485627.01 | M47: =IF(Tableau4[[#This Row],[QTÉ-SOMME]]>0,"Reste","Modifié") -> Reste | N47: 2000 | O47: 500 | P47: 500 | Q47: 500 | R47: 500
A48: RI20-002669 | B48: 1 | C48: BMPAC009008 | D48: =IF(RIGHT(LEFT(Tableau4[[#This Row],[CODE]],5),3)="PAC",$C$176,IF(RIGHT(LEFT(Tableau4[[#This Row],[CODE]],5),3)="PEX",$C$177,IF(OR(RIGHT(LEFT(Tableau4[[#This Row],[CODE]],5),3)="PPA",(RIGHT(LEFT(Tableau4[[#This Row],[CODE]],5),3)="PMX")),$C$179,$C$178))) -> ARTICLE COND | E48: =Tableau4[[#This Row],[CODE]]&Tableau4[[#This Row],[DÉSIGNATION]]&Tableau4[[#This Row],[N° Lot]] -> BMPAC009008EMBALLAGE BIOCLAVE 1 G/125 MG AD.6133 | F48: EMBALLAGE BIOCLAVE 1 G/125 MG AD. | G48: 6133 | H48: 900044.55 | I48: 42.65 | J48: 38386900.06 | K48: =Tableau4[[#This Row],[QTÉ + 2019]]-Tableau4[[#This Row],[SOMME]] -> 387604 | L48: =Tableau4[[#This Row],[QTÉ-SOMME]]*Tableau4[[#This Row],[PU. HT]] -> 16531310.6 | M48: =IF(Tableau4[[#This Row],[QTÉ-SOMME]]>0,"Reste","Modifié") -> Reste | N48: 512440.55 | O48: 108000 | P48: 196000.55 | Q48: 24000 | R48: 24600 | S48: 12360 | T48: 12360 | U48: 12360 | V48: 12360 | W48: 12600 | X48: 12600 | Y48: 24000 | Z48: 25200 | AA48: 12000 | AB48: 12000 | AC48: 12000
A49: RI20-002669 | B49: 2 | C49: BMPAC009009 | D49: =IF(RIGHT(LEFT(Tableau4[[#This Row],[CODE]],5),3)="PAC",$C$176,IF(RIGHT(LEFT(Tableau4[[#This Row],[CODE]],5),3)="PEX",$C$177,IF(OR(RIGHT(LEFT(Tableau4[[#This Row],[CODE]],5),3)="PPA",(RIGHT(LEFT(Tableau4[[#This Row],[CODE]],5),3)="PMX")),$C$179,$C$178))) -> ARTICLE COND | E49: =Tableau4[[#This Row],[CODE]]&Tableau4[[#This Row],[DÉSIGNATION]]&Tableau4[[#This Row],[N° Lot]] -> BMPAC009009EMBALLAGE BIOCLAVE 500 MG/62,5 MG ENF.5882 | F49: EMBALLAGE BIOCLAVE 500 MG/62,5 MG ENF. | G49: 5882 | H49: 778155.07 | I49: 42.34 | J49: 32947085.66 | K49: =Tableau4[[#This Row],[QTÉ + 2019]]-Tableau4[[#This Row],[SOMME]] -> 631115.07 | L49: =Tableau4[[#This Row],[QTÉ-SOMME]]*Tableau4[[#This Row],[PU. HT]] -> 26721412.06 | M49: =IF(Tableau4[[#This Row],[QTÉ-SOMME]]>0,"Reste","Modifié") -> Reste | N49: 147040 | O49: 85000 | P49: 24720 | Q49: 24720 | R49: 12600
A50: RI20-002667 | B50: 3 | C50: AMPAC009019 | D50: =IF(RIGHT(LEFT(Tableau4[[#This Row],[CODE]],5),3)="PAC",$C$176,IF(RIGHT(LEFT(Tableau4[[#This Row],[CODE]],5),3)="PEX",$C$177,IF(OR(RIGHT(LEFT(Tableau4[[#This Row],[CODE]],5),3)="PPA",(RIGHT(LEFT(Tableau4[[#This Row],[CODE]],5),3)="PMX")),$C$179,$C$178))) -> ARTICLE COND | E50: =Tableau4[[#This Row],[CODE]]&Tableau4[[#This Row],[DÉSIGNATION]]&Tableau4[[#This Row],[N° Lot]] -> AMPAC009019EMBALLAGE PARACETAMOL 500 MG LAIZE 960 MM5880 | F50: EMBALLAGE PARACETAMOL 500 MG LAIZE 960 MM | G50: 5880 | H50: 49831.55 | I50: 143.36 | J50: 7143851.008 | K50: =Tableau4[[#This Row],[QTÉ + 2019]]-Tableau4[[#This Row],[SOMME]] -> 44231.55 | L50: =Tableau4[[#This Row],[QTÉ-SOMME]]*Tableau4[[#This Row],[PU. HT]] -> 6341035.008 | M50: =IF(Tableau4[[#This Row],[QTÉ-SOMME]]>0,"Reste","Modifié") -> Reste | N50: 5600 | O50: 3300 | P50: 2300
A51: RI20-002665 | B51: 35 | C51: AMPAC009014 | D51: =IF(RIGHT(LEFT(Tableau4[[#This Row],[CODE]],5),3)="PAC",$C$176,IF(RIGHT(LEFT(Tableau4[[#This Row],[CODE]],5),3)="PEX",$C$177,IF(OR(RIGHT(LEFT(Tableau4[[#This Row],[CODE]],5),3)="PPA",(RIGHT(LEFT(Tableau4[[#This Row],[CODE]],5),3)="PMX")),$C$179,$C$178))) -> ARTICLE COND | E51: =Tableau4[[#This Row],[CODE]]&Tableau4[[#This Row],[DÉSIGNATION]]&Tableau4[[#This Row],[N° Lot]] -> AMPAC009014EMBALLAGE URICARE 3 g4142 | F51: EMBALLAGE URICARE 3 g | G51: 4142 | H51: 2227.59 | I51: 45.79 | J51: 102001.3461 | K51: =Tableau4[[#This Row],[QTÉ + 2019]]-Tableau4[[#This Row],[SOMME]] -> 0 | L51: =Tableau4[[#This Row],[QTÉ-SOMME]]*Tableau4[[#This Row],[PU. HT]] -> 0 | M51: =IF(Tableau4[[#This Row],[QTÉ-SOMME]]>0,"Reste","Modifié") -> Modifié | N51: 2227.59
A52: RI19-002664 | B52: 33 | C52: KMPEX001062 | D52: =IF(RIGHT(LEFT(Tableau4[[#This Row],[CODE]],5),3)="PAC",$C$176,IF(RIGHT(LEFT(Tableau4[[#This Row],[CODE]],5),3)="PEX",$C$177,IF(OR(RIGHT(LEFT(Tableau4[[#This Row],[CODE]],5),3)="PPA",(RIGHT(LEFT(Tableau4[[#This Row],[CODE]],5),3)="PMX")),$C$179,$C$178))) -> EXCIPIENTS | E52: =Tableau4[[#This Row],[CODE]]&Tableau4[[#This Row],[DÉSIGNATION]]&Tableau4[[#This Row],[N° Lot]] -> KMPEX001062EMCOMPRESS PREMIUM19C/039-P2 | F52: EMCOMPRESS PREMIUM | G52: 19C/039-P2 | H52: 17.29 | I52: 1628.7 | J52: 28160.223 | K52: =Tableau4[[#This Row],[QTÉ + 2019]]-Tableau4[[#This Row],[SOMME]] -> 0 | L52: =Tableau4[[#This Row],[QTÉ-SOMME]]*Tableau4[[#This Row],[PU. HT]] -> 0 | M52: =IF(Tableau4[[#This Row],[QTÉ-SOMME]]>0,"Reste","Modifié") -> Modifié | N52: 17.29
A53: RI19-002664 | B53: 34 | C53: KMPEX001070 | D53: =IF(RIGHT(LEFT(Tableau4[[#This Row],[CODE]],5),3)="PAC",$C$176,IF(RIGHT(LEFT(Tableau4[[#This Row],[CODE]],5),3)="PEX",$C$177,IF(OR(RIGHT(LEFT(Tableau4[[#This Row],[CODE]],5),3)="PPA",(RIGHT(LEFT(Tableau4[[#This Row],[CODE]],5),3)="PMX")),$C$179,$C$178))) -> EXCIPIENTS | E53: =Tableau4[[#This Row],[CODE]]&Tableau4[[#This Row],[DÉSIGNATION]]&Tableau4[[#This Row],[N° Lot]] -> KMPEX001070ETHYLCELLULOSE43976 | F53: ETHYLCELLULOSE | G53: 43976 | H53: 0.72 | I53: 13393.6 | J53: 9643.392 | K53: =Tableau4[[#This Row],[QTÉ + 2019]]-Tableau4[[#This Row],[SOMME]] -> 0.72 | L53: =Tableau4[[#This Row],[QTÉ-SOMME]]*Tableau4[[#This Row],[PU. HT]] -> 9643.392 | M53: =IF(Tableau4[[#This Row],[QTÉ-SOMME]]>0,"Reste","Modifié") -> Reste | N53: =SUM(O53:NB53) -> 0
A54: RI20-002666 | B54: 3 | C54: BMPAC004010 | D54: =IF(RIGHT(LEFT(Tableau4[[#This Row],[CODE]],5),3)="PAC",$C$176,IF(RIGHT(LEFT(Tableau4[[#This Row],[CODE]],5),3)="PEX",$C$177,IF(OR(RIGHT(LEFT(Tableau4[[#This Row],[CODE]],5),3)="PPA",(RIGHT(LEFT(Tableau4[[#This Row],[CODE]],5),3)="PMX")),$C$179,$C$178))) -> ARTICLE COND | E54: =Tableau4[[#This Row],[CODE]]&Tableau4[[#This Row],[DÉSIGNATION]]&Tableau4[[#This Row],[N° Lot]] -> BMPAC004010ETIQUETTES SIROP AMPINAX398000 | F54: ETIQUETTES SIROP AMPINAX | G54: 398000 | H54: 50460 | I54: 0.59 | J54: 29771.4 | K54: =Tableau4[[#This Row],[QTÉ + 2019]]-Tableau4[[#This Row],[SOMME]] -> 50460 | L54: =Tableau4[[#This Row],[QTÉ-SOMME]]*Tableau4[[#This Row],[PU. HT]] -> 29771.4 | M54: =IF(Tableau4[[#This Row],[QTÉ-SOMME]]>0,"Reste","Modifié") -> Reste | N54: 0
A55: RI20-002666 | B55: 4 | C55: BMPAC004015 | D55: =IF(RIGHT(LEFT(Tableau4[[#This Row],[CODE]],5),3)="PAC",$C$176,IF(RIGHT(LEFT(Tableau4[[#This Row],[CODE]],5),3)="PEX",$C$177,IF(OR(RIGHT(LEFT(Tableau4[[#This Row],[CODE]],5),3)="PPA",(RIGHT(LEFT(Tableau4[[#This Row],[CODE]],5),3)="PMX")),$C$179,$C$178))) -> ARTICLE COND | E55: =Tableau4[[#This Row],[CODE]]&Tableau4[[#This Row],[DÉSIGNATION]]&Tableau4[[#This Row],[N° Lot]] -> BMPAC004015ETIQUETTES SIROP BIOCLAVE 100 MG/12,5 MG/1 ML.alp 04/02/2019 | F55: ETIQUETTES SIROP BIOCLAVE 100 MG/12,5 MG/1 ML. | G55: alp 04/02/2019 | H55: 1117206 | I55: 0.79 | J55: 882592.74 | K55: =Tableau4[[#This Row],[QTÉ + 2019]]-Tableau4[[#This Row],[SOMME]] -> 822206 | L55: =Tableau4[[#This Row],[QTÉ-SOMME]]*Tableau4[[#This Row],[PU. HT]] -> 649542.74 | M55: =IF(Tableau4[[#This Row],[QTÉ-SOMME]]>0,"Reste","Modifié") -> Reste | N55: 295000 | O55: 187000 | P55: 36000 | Q55: 36000 | R55: 36000
A56: RI20-002666 | B56: 6 | C56: BMPAC004011 | D56: =IF(RIGHT(LEFT(Tableau4[[#This Row],[CODE]],5),3)="PAC",$C$176,IF(RIGHT(LEFT(Tableau4[[#This Row],[CODE]],5),3)="PEX",$C$177,IF(OR(RIGHT(LEFT(Tableau4[[#This Row],[CODE]],5),3)="PPA",(RIGHT(LEFT(Tableau4[[#This Row],[CODE]],5),3)="PMX")),$C$179,$C$178))) -> ARTICLE COND | E56: =Tableau4[[#This Row],[CODE]]&Tableau4[[#This Row],[DÉSIGNATION]]&Tableau4[[#This Row],[N° Lot]] -> BMPAC004011ETIQUETTES SIROP BIOPAMOXalp 04/02/2019 | F56: ETIQUETTES SIROP BIOPAMOX | G56: alp 04/02/2019 | H56: 361977 | I56: 0.79 | J56: 285961.83 | K56: =Tableau4[[#This Row],[QTÉ + 2019]]-Tableau4[[#This Row],[SOMME]] -> 361977 | L56: =Tableau4[[#This Row],[QTÉ-SOMME]]*Tableau4[[#This Row],[PU. HT]] -> 285961.83 | M56: =IF(Tableau4[[#This Row],[QTÉ-SOMME]]>0,"Reste","Modifié") -> Reste | N56: 0
A57: RI20-002666 | B57: 5 | C57: BMPAC004014 | D57: =IF(RIGHT(LEFT(Tableau4[[#This Row],[CODE]],5),3)="PAC",$C$176,IF(RIGHT(LEFT(Tableau4[[#This Row],[CODE]],5),3)="PEX",$C$177,IF(OR(RIGHT(LEFT(Tableau4[[#This Row],[CODE]],5),3)="PPA",(RIGHT(LEFT(Tableau4[[#This Row],[CODE]],5),3)="PMX")),$C$179,$C$178))) -> ARTICLE COND | E57: =Tableau4[[#This Row],[CODE]]&Tableau4[[#This Row],[DÉSIGNATION]]&Tableau4[[#This Row],[N° Lot]] -> BMPAC004014ETIQUETTES SIROP BIOPAMOX 500 MG/5 ML.alp 04/02/2019 | F57: ETIQUETTES SIROP BIOPAMOX 500 MG/5 ML. | G57: alp 04/02/2019 | H57: 960404 | I57: 0.79 | J57: 758719.16 | K57: =Tableau4[[#This Row],[QTÉ + 2019]]-Tableau4[[#This Row],[SOMME]] -> 960404 | L57: =Tableau4[[#This Row],[QTÉ-SOMME]]*Tableau4[[#This Row],[PU. HT]] -> 758719.16 | M57: =IF(Tableau4[[#This Row],[QTÉ-SOMME]]>0,"Reste","Modifié") -> Reste | N57: 0
A58: RI20-002666 | B58: 7 | C58: BMPAC005010 | D58: =IF(RIGHT(LEFT(Tableau4[[#This Row],[CODE]],5),3)="PAC",$C$176,IF(RIGHT(LEFT(Tableau4[[#This Row],[CODE]],5),3)="PEX",$C$177,IF(OR(RIGHT(LEFT(Tableau4[[#This Row],[CODE]],5),3)="PPA",(RIGHT(LEFT(Tableau4[[#This Row],[CODE]],5),3)="PMX")),$C$179,$C$178))) -> ARTICLE COND | E58: =Tableau4[[#This Row],[CODE]]&Tableau4[[#This Row],[DÉSIGNATION]]&Tableau4[[#This Row],[N° Lot]] -> BMPAC005010ETUIS AMPINAX SIROPSIPA 474/18 | F58: ETUIS AMPINAX SIROP | G58: SIPA 474/18 | H58: 49395.44 | I58: 4.74 | J58: 234134.3856 | K58: =Tableau4[[#This Row],[QTÉ + 2019]]-Tableau4[[#This Row],[SOMME]] -> 0 | L58: =Tableau4[[#This Row],[QTÉ-SOMME]]*Tableau4[[#This Row],[PU. HT]] -> 0 | M58: =IF(Tableau4[[#This Row],[QTÉ-SOMME]]>0,"Reste","Modifié") -> Modifié | N58: 49395.44 | O58: 24000 | P58: 25395.44
A59: RI19-002664 | B59: 11 | C59: AMPAC005011 | D59: =IF(RIGHT(LEFT(Tableau4[[#This Row],[CODE]],5),3)="PAC",$C$176,IF(RIGHT(LEFT(Tableau4[[#This Row],[CODE]],5),3)="PEX",$C$177,IF(OR(RIGHT(LEFT(Tableau4[[#This Row],[CODE]],5),3)="PPA",(RIGHT(LEFT(Tableau4[[#This Row],[CODE]],5),3)="PMX")),$C$179,$C$178))) -> ARTICLE COND | E59: =Tableau4[[#This Row],[CODE]]&Tableau4[[#This Row],[DÉSIGNATION]]&Tableau4[[#This Row],[N° Lot]] -> AMPAC005011ETUIS ANTAG 20 mg "BT 14 GEL"1902584 | F59: ETUIS ANTAG 20 mg "BT 14 GEL" | G59: 1902584 | H59: 2962372 | I59: 2.74 | J59: 8116899.28 | K59: =Tableau4[[#This Row],[QTÉ + 2019]]-Tableau4[[#This Row],[SOMME]] -> 2047172 | L59: =Tableau4[[#This Row],[QTÉ-SOMME]]*Tableau4[[#This Row],[PU. HT]] -> 5609251.28 | M59: =IF(Tableau4[[#This Row],[QTÉ-SOMME]]>0,"Reste","Modifié") -> Reste | N59: 915200 | O59: 915200
A60: RI19-002664 | B60: 12 | C60: AMPAC005137 | D60: =IF(RIGHT(LEFT(Tableau4[[#This Row],[CODE]],5),3)="PAC",$C$176,IF(RIGHT(LEFT(Tableau4[[#This Row],[CODE]],5),3)="PEX",$C$177,IF(OR(RIGHT(LEFT(Tableau4[[#This Row],[CODE]],5),3)="PPA",(RIGHT(LEFT(Tableau4[[#This Row],[CODE]],5),3)="PMX")),$C$179,$C$178))) -> ARTICLE COND | E60: =Tableau4[[#This Row],[CODE]]&Tableau4[[#This Row],[DÉSIGNATION]]&Tableau4[[#This Row],[N° Lot]] -> AMPAC005137ETUIS ANTAG 20 mg "BT 28 GEL"1902246 | F60: ETUIS ANTAG 20 mg "BT 28 GEL" | G60: 1902246 | H60: 1032017 | I60: 3.88 | J60: 4004225.96 | K60: =Tableau4[[#This Row],[QTÉ + 2019]]-Tableau4[[#This Row],[SOMME]] -> 658117 | L60: =Tableau4[[#This Row],[QTÉ-SOMME]]*Tableau4[[#This Row],[PU. HT]] -> 2553493.96 | M60: =IF(Tableau4[[#This Row],[QTÉ-SOMME]]>0,"Reste","Modifié") -> Reste | N60: 373900 | O60: 373900
A61: RI19-002664 | B61: 13 | C61: AMPAC005129 | D61: =IF(RIGHT(LEFT(Tableau4[[#This Row],[CODE]],5),3)="PAC",$C$176,IF(RIGHT(LEFT(Tableau4[[#This Row],[CODE]],5),3)="PEX",$C$177,IF(OR(RIGHT(LEFT(Tableau4[[#This Row],[CODE]],5),3)="PPA",(RIGHT(LEFT(Tableau4[[#This Row],[CODE]],5),3)="PMX")),$C$179,$C$178))) -> ARTICLE COND | E61: =Tableau4[[#This Row],[CODE]]&Tableau4[[#This Row],[DÉSIGNATION]]&Tableau4[[#This Row],[N° Lot]] -> AMPAC005129ETUIS ARBOSE 50 mg "BT 30 COMP"1902699 | F61: ETUIS ARBOSE 50 mg "BT 30 COMP" | G61: 1902699 | H61: 42713.99 | I61: 5.48 | J61: 234072.6652 | K61: =Tableau4[[#This Row],[QTÉ + 2019]]-Tableau4[[#This Row],[SOMME]] -> 42713.99 | L61: =Tableau4[[#This Row],[QTÉ-SOMME]]*Tableau4[[#This Row],[PU. HT]] -> 234072.6652 | M61: =IF(Tableau4[[#This Row],[QTÉ-SOMME]]>0,"Reste","Modifié") -> Reste | N61: 0
A62: RI19-002664 | B62: 14 | C62: BMPAC005065 | D62: =IF(RIGHT(LEFT(Tableau4[[#This Row],[CODE]],5),3)="PAC",$C$176,IF(RIGHT(LEFT(Tableau4[[#This Row],[CODE]],5),3)="PEX",$C$177,IF(OR(RIGHT(LEFT(Tableau4[[#This Row],[CODE]],5),3)="PPA",(RIGHT(LEFT(Tableau4[[#This Row],[CODE]],5),3)="PMX")),$C$179,$C$178))) -> ARTICLE COND | E62: =Tableau4[[#This Row],[CODE]]&Tableau4[[#This Row],[DÉSIGNATION]]&Tableau4[[#This Row],[N° Lot]] -> BMPAC005065ETUIS BIOCLAV 1 G/125 MG AD "12 SACH".1902671 | F62: ETUIS BIOCLAV 1 G/125 MG AD "12 SACH". | G62: 1902671 | H62: 1251763 | I62: 3.49 | J62: 4368652.87 | K62: =Tableau4[[#This Row],[QTÉ + 2019]]-Tableau4[[#This Row],[SOMME]] -> 457663 | L62: =Tableau4[[#This Row],[QTÉ-SOMME]]*Tableau4[[#This Row],[PU. HT]] -> 1597243.87 | M62: =IF(Tableau4[[#This Row],[QTÉ-SOMME]]>0,"Reste","Modifié") -> Reste | N62: 794100 | O62: 201600 | P62: 26100 | Q62: 12600 | R62: 13500 | S62: 28800 | T62: 12600 | U62: 25000 | V62: 25000 | W62: 14400 | X62: 14400 | Y62: 3000 | Z62: 12000 | AA62: 13500 | AB62: 14000 | AC62: 14000 | AD62: 28000 | AE62: 69050 | AF62: 14400 | AG62: 3000 | AH62: 12000 | AI62: 13500 | AJ62: 14000 | AK62: 14000 | AL62: 28000 | AM62: 69050 | AN62: 29700 | AO62: 2700 | AP62: 27900 | AQ62: 14000 | AR62: 24300
A63: RI20-002666 | B63: 8 | C63: BMPAC005069 | D63: =IF(RIGHT(LEFT(Tableau4[[#This Row],[CODE]],5),3)="PAC",$C$176,IF(RIGHT(LEFT(Tableau4[[#This Row],[CODE]],5),3)="PEX",$C$177,IF(OR(RIGHT(LEFT(Tableau4[[#This Row],[CODE]],5),3)="PPA",(RIGHT(LEFT(Tableau4[[#This Row],[CODE]],5),3)="PMX")),$C$179,$C$178))) -> ARTICLE COND | E63: =Tableau4[[#This Row],[CODE]]&Tableau4[[#This Row],[DÉSIGNATION]]&Tableau4[[#This Row],[N° Lot]] -> BMPAC005069ETUIS BIOCLAV 100 MG/12,5 MG/1 ML.1902985 | F63: ETUIS BIOCLAV 100 MG/12,5 MG/1 ML. | G63: 1902985 | H63: 1601603 | I63: 5.26 | J63: 8424431.78 | K63: =Tableau4[[#This Row],[QTÉ + 2019]]-Tableau4[[#This Row],[SOMME]] -> 1315933 | L63: =Tableau4[[#This Row],[QTÉ-SOMME]]*Tableau4[[#This Row],[PU. HT]] -> 6921807.58 | M63: =IF(Tableau4[[#This Row],[QTÉ-SOMME]]>0,"Reste","Modifié") -> Reste | N63: 285670 | O63: 180670 | P63: 35000 | Q63: 35000 | R63: 35000
A64: RI19-002664 | B64: 15 | C64: BMPAC005067 | D64: =IF(RIGHT(LEFT(Tableau4[[#This Row],[CODE]],5),3)="PAC",$C$176,IF(RIGHT(LEFT(Tableau4[[#This Row],[CODE]],5),3)="PEX",$C$177,IF(OR(RIGHT(LEFT(Tableau4[[#This Row],[CODE]],5),3)="PPA",(RIGHT(LEFT(Tableau4[[#This Row],[CODE]],5),3)="PMX")),$C$179,$C$178))) -> ARTICLE COND | E64: =Tableau4[[#This Row],[CODE]]&Tableau4[[#This Row],[DÉSIGNATION]]&Tableau4[[#This Row],[N° Lot]] -> BMPAC005067ETUIS BIOCLAV 500 MG/62,5 MG AD "16 COMP".057/19/A/01-1 | F64: ETUIS BIOCLAV 500 MG/62,5 MG AD "16 COMP". | G64: 057/19/A/01-1 | H64: 94740 | I64: 4.56 | J64: 432014.4 | K64: =Tableau4[[#This Row],[QTÉ + 2019]]-Tableau4[[#This Row],[SOMME]] -> 0 | L64: =Tableau4[[#This Row],[QTÉ-SOMME]]*Tableau4[[#This Row],[PU. HT]] -> 0 | M64: =IF(Tableau4[[#This Row],[QTÉ-SOMME]]>0,"Reste","Modifié") -> Modifié | N64: 94740 | O64: 94740
A65: RI20-002666 | B65: 11 | C65: BMPAC005066 | D65: =IF(RIGHT(LEFT(Tableau4[[#This Row],[CODE]],5),3)="PAC",$C$176,IF(RIGHT(LEFT(Tableau4[[#This Row],[CODE]],5),3)="PEX",$C$177,IF(OR(RIGHT(LEFT(Tableau4[[#This Row],[CODE]],5),3)="PPA",(RIGHT(LEFT(Tableau4[[#This Row],[CODE]],5),3)="PMX")),$C$179,$C$178))) -> ARTICLE COND | E65: =Tableau4[[#This Row],[CODE]]&Tableau4[[#This Row],[DÉSIGNATION]]&Tableau4[[#This Row],[N° Lot]] -> BMPAC005066ETUIS BIOCLAV 500 MG/62,5 MG ENF "12 SACH".SIPA1902500 | F65: ETUIS BIOCLAV 500 MG/62,5 MG ENF "12 SACH". | G65: SIPA1902500 | H65: 923936 | I65: 3.49 | J65: 3224536.64 | K65: =Tableau4[[#This Row],[QTÉ + 2019]]-Tableau4[[#This Row],[SOMME]] -> 665186 | L65: =Tableau4[[#This Row],[QTÉ-SOMME]]*Tableau4[[#This Row],[PU. HT]] -> 2321499.14 | M65: =IF(Tableau4[[#This Row],[QTÉ-SOMME]]>0,"Reste","Modifié") -> Reste | N65: 258750 | O65: 126500 | P65: 27900 | Q65: 27900 | R65: 4150 | S65: 24300 | T65: 48000
A66: RI20-002666 | B66: 9 | C66: BMPAC005016 | D66: =IF(RIGHT(LEFT(Tableau4[[#This Row],[CODE]],5),3)="PAC",$C$176,IF(RIGHT(LEFT(Tableau4[[#This Row],[CODE]],5),3)="PEX",$C$177,IF(OR(RIGHT(LEFT(Tableau4[[#This Row],[CODE]],5),3)="PPA",(RIGHT(LEFT(Tableau4[[#This Row],[CODE]],5),3)="PMX")),$C$179,$C$178))) -> ARTICLE COND | E66: =Tableau4[[#This Row],[CODE]]&Tableau4[[#This Row],[DÉSIGNATION]]&Tableau4[[#This Row],[N° Lot]] -> BMPAC005016ETUIS BIOPAMOX 250 MG/5 MLSIPA 3163 NB | F66: ETUIS BIOPAMOX 250 MG/5 ML | G66: SIPA 3163 NB | H66: 371379 | I66: 4.74 | J66: 1760336.46 | K66: =Tableau4[[#This Row],[QTÉ + 2019]]-Tableau4[[#This Row],[SOMME]] -> 371379 | L66: =Tableau4[[#This Row],[QTÉ-SOMME]]*Tableau4[[#This Row],[PU. HT]] -> 1760336.46 | M66: =IF(Tableau4[[#This Row],[QTÉ-SOMME]]>0,"Reste","Modifié") -> Reste | N66: 0
A67: RI19-002664 | B67: 16 | C67: BMPAC005014 | D67: =IF(RIGHT(LEFT(Tableau4[[#This Row],[CODE]],5),3)="PAC",$C$176,IF(RIGHT(LEFT(Tableau4[[#This Row],[CODE]],5),3)="PEX",$C$177,IF(OR(RIGHT(LEFT(Tableau4[[#This Row],[CODE]],5),3)="PPA",(RIGHT(LEFT(Tableau4[[#This Row],[CODE]],5),3)="PMX")),$C$179,$C$178))) -> ARTICLE COND | E67: =Tableau4[[#This Row],[CODE]]&Tableau4[[#This Row],[DÉSIGNATION]]&Tableau4[[#This Row],[N° Lot]] -> BMPAC005014ETUIS BIOPAMOX 500 MG (FABRICATION)sipa 2479 | F67: ETUIS BIOPAMOX 500 MG (FABRICATION) | G67: sipa 2479 | H67: 87321 | I67: 2.19 | J67: 191232.99 | K67: =Tableau4[[#This Row],[QTÉ + 2019]]-Tableau4[[#This Row],[SOMME]] -> 0 | L67: =Tableau4[[#This Row],[QTÉ-SOMME]]*Tableau4[[#This Row],[PU. HT]] -> 0 | M67: =IF(Tableau4[[#This Row],[QTÉ-SOMME]]>0,"Reste","Modifié") -> Modifié | N67: 87321
A68: RI20-002666 | B68: 10 | C68: BMPAC005070 | D68: =IF(RIGHT(LEFT(Tableau4[[#This Row],[CODE]],5),3)="PAC",$C$176,IF(RIGHT(LEFT(Tableau4[[#This Row],[CODE]],5),3)="PEX",$C$177,IF(OR(RIGHT(LEFT(Tableau4[[#This Row],[CODE]],5),3)="PPA",(RIGHT(LEFT(Tableau4[[#This Row],[CODE]],5),3)="PMX")),$C$179,$C$178))) -> ARTICLE COND | E68: =Tableau4[[#This Row],[CODE]]&Tableau4[[#This Row],[DÉSIGNATION]]&Tableau4[[#This Row],[N° Lot]] -> BMPAC005070ETUIS BIOPAMOX 500 MG/5 ML.nb 1902473 | F68: ETUIS BIOPAMOX 500 MG/5 ML. | G68: nb 1902473 | H68: 960404 | I68: 4.74 | J68: 4552314.96 | K68: =Tableau4[[#This Row],[QTÉ + 2019]]-Tableau4[[#This Row],[SOMME]] -> 960404 | L68: =Tableau4[[#This Row],[QTÉ-SOMME]]*Tableau4[[#This Row],[PU. HT]] -> 4552314.96 | M68: =IF(Tableau4[[#This Row],[QTÉ-SOMME]]>0,"Reste","Modifié") -> Reste | N68: =SUM(O68:NB68) -> 0
A69: RI19-002664 | B69: 17 | C69: AMPAC005049 | D69: =IF(RIGHT(LEFT(Tableau4[[#This Row],[CODE]],5),3)="PAC",$C$176,IF(RIGHT(LEFT(Tableau4[[#This Row],[CODE]],5),3)="PEX",$C$177,IF(OR(RIGHT(LEFT(Tableau4[[#This Row],[CODE]],5),3)="PPA",(RIGHT(LEFT(Tableau4[[#This Row],[CODE]],5),3)="PMX")),$C$179,$C$178))) -> ARTICLE COND | E69: =Tableau4[[#This Row],[CODE]]&Tableau4[[#This Row],[DÉSIGNATION]]&Tableau4[[#This Row],[N° Lot]] -> AMPAC005049ETUIS BUTAFEN 200 MG GELULESbou 599/18 | F69: ETUIS BUTAFEN 200 MG GELULES | G69: bou 599/18 | H69: 87642 | I69: 2 | J69: 175284 | K69: =Tableau4[[#This Row],[QTÉ + 2019]]-Tableau4[[#This Row],[SOMME]] -> 87642 | L69: =Tableau4[[#This Row],[QTÉ-SOMME]]*Tableau4[[#This Row],[PU. HT]] -> 175284 | M69: =IF(Tableau4[[#This Row],[QTÉ-SOMME]]>0,"Reste","Modifié") -> Reste | N69: =SUM(O69:NB69) -> 0
A70: RI19-002664 | B70: 18 | C70: AMPAC005050 | D70: =IF(RIGHT(LEFT(Tableau4[[#This Row],[CODE]],5),3)="PAC",$C$176,IF(RIGHT(LEFT(Tableau4[[#This Row],[CODE]],5),3)="PEX",$C$177,IF(OR(RIGHT(LEFT(Tableau4[[#This Row],[CODE]],5),3)="PPA",(RIGHT(LEFT(Tableau4[[#This Row],[CODE]],5),3)="PMX")),$C$179,$C$178))) -> ARTICLE COND | E70: =Tableau4[[#This Row],[CODE]]&Tableau4[[#This Row],[DÉSIGNATION]]&Tableau4[[#This Row],[N° Lot]] -> AMPAC005050ETUIS BUTAFEN 400 MG GELULESBOU 11/02/2019 | F70: ETUIS BUTAFEN 400 MG GELULES | G70: BOU 11/02/2019 | H70: 59344 | I70: 1.89 | J70: 112160.16 | K70: =Tableau4[[#This Row],[QTÉ + 2019]]-Tableau4[[#This Row],[SOMME]] -> 59344 | L70: =Tableau4[[#This Row],[QTÉ-SOMME]]*Tableau4[[#This Row],[PU. HT]] -> 112160.16 | M70: =IF(Tableau4[[#This Row],[QTÉ-SOMME]]>0,"Reste","Modifié") -> Reste | N70: =SUM(O70:NB70) -> 0
A71: RI19-002664 | B71: 19 | C71: AMPAC005058 | D71: =IF(RIGHT(LEFT(Tableau4[[#This Row],[CODE]],5),3)="PAC",$C$176,IF(RIGHT(LEFT(Tableau4[[#This Row],[CODE]],5),3)="PEX",$C$177,IF(OR(RIGHT(LEFT(Tableau4[[#This Row],[CODE]],5),3)="PPA",(RIGHT(LEFT(Tableau4[[#This Row],[CODE]],5),3)="PMX")),$C$179,$C$178))) -> ARTICLE COND | E71: =Tableau4[[#This Row],[CODE]]&Tableau4[[#This Row],[DÉSIGNATION]]&Tableau4[[#This Row],[N° Lot]] -> AMPAC005058ETUIS BUTAFEN 600 MG COMPSIPA 1901485 | F71: ETUIS BUTAFEN 600 MG COMP | G71: SIPA 1901485 | H71: 94644.1 | I71: 4.36 | J71: 412648.276 | K71: =Tableau4[[#This Row],[QTÉ + 2019]]-Tableau4[[#This Row],[SOMME]] -> 0 | L71: =Tableau4[[#This Row],[QTÉ-SOMME]]*Tableau4[[#This Row],[PU. HT]] -> 0 | M71: =IF(Tableau4[[#This Row],[QTÉ-SOMME]]>0,"Reste","Modifié") -> Modifié | N71: 94644.1
A72: RI19-002664 | B72: 20 | C72: AMPAC005132 | D72: =IF(RIGHT(LEFT(Tableau4[[#This Row],[CODE]],5),3)="PAC",$C$176,IF(RIGHT(LEFT(Tableau4[[#This Row],[CODE]],5),3)="PEX",$C$177,IF(OR(RIGHT(LEFT(Tableau4[[#This Row],[CODE]],5),3)="PPA",(RIGHT(LEFT(Tableau4[[#This Row],[CODE]],5),3)="PMX")),$C$179,$C$178))) -> ARTICLE COND | E72: =Tableau4[[#This Row],[CODE]]&Tableau4[[#This Row],[DÉSIGNATION]]&Tableau4[[#This Row],[N° Lot]] -> AMPAC005132ETUIS CABERNEX 0.5 mg "BT 08 COMP"014/18/C/01 | F72: ETUIS CABERNEX 0.5 mg "BT 08 COMP" | G72: 014/18/C/01 | H72: 16716 | I72: 4.32 | J72: 72213.12 | K72: =Tableau4[[#This Row],[QTÉ + 2019]]-Tableau4[[#This Row],[SOMME]] -> 16716 | L72: =Tableau4[[#This Row],[QTÉ-SOMME]]*Tableau4[[#This Row],[PU. HT]] -> 72213.12 | M72: =IF(Tableau4[[#This Row],[QTÉ-SOMME]]>0,"Reste","Modifié") -> Reste | N72: =SUM(O72:NB72) -> 0
A73: RI19-002664 | B73: 21 | C73: AMPAC005112 | D73: =IF(RIGHT(LEFT(Tableau4[[#This Row],[CODE]],5),3)="PAC",$C$176,IF(RIGHT(LEFT(Tableau4[[#This Row],[CODE]],5),3)="PEX",$C$177,IF(OR(RIGHT(LEFT(Tableau4[[#This Row],[CODE]],5),3)="PPA",(RIGHT(LEFT(Tableau4[[#This Row],[CODE]],5),3)="PMX")),$C$179,$C$178))) -> ARTICLE COND | E73: =Tableau4[[#This Row],[CODE]]&Tableau4[[#This Row],[DÉSIGNATION]]&Tableau4[[#This Row],[N° Lot]] -> AMPAC005112ETUIS CIPROTEKE 500 mgSIPA 632-1 | F73: ETUIS CIPROTEKE 500 mg | G73: SIPA 632-1 | H73: 27570 | I73: 2.96 | J73: 81607.2 | K73: =Tableau4[[#This Row],[QTÉ + 2019]]-Tableau4[[#This Row],[SOMME]] -> 0 | L73: =Tableau4[[#This Row],[QTÉ-SOMME]]*Tableau4[[#This Row],[PU. HT]] -> 0 | M73: =IF(Tableau4[[#This Row],[QTÉ-SOMME]]>0,"Reste","Modifié") -> Modifié | N73: 27570
A74: RI19-002664 | B74: 22 | C74: AMPAC005082 | D74: =IF(RIGHT(LEFT(Tableau4[[#This Row],[CODE]],5),3)="PAC",$C$176,IF(RIGHT(LEFT(Tableau4[[#This Row],[CODE]],5),3)="PEX",$C$177,IF(OR(RIGHT(LEFT(Tableau4[[#This Row],[CODE]],5),3)="PPA",(RIGHT(LEFT(Tableau4[[#This Row],[CODE]],5),3)="PMX")),$C$179,$C$178))) -> ARTICLE COND | E74: =Tableau4[[#This Row],[CODE]]&Tableau4[[#This Row],[DÉSIGNATION]]&Tableau4[[#This Row],[N° Lot]] -> AMPAC005082ETUIS DIAGLINIDE 0.5 mgSIPA 2974 | F74: ETUIS DIAGLINIDE 0.5 mg | G74: SIPA 2974 | H74: 226184 | I74: 2.74 | J74: 619744.16 | K74: =Tableau4[[#This Row],[QTÉ + 2019]]-Tableau4[[#This Row],[SOMME]] -> 0 | L74: =Tableau4[[#This Row],[QTÉ-SOMME]]*Tableau4[[#This Row],[PU. HT]] -> 0 | M74: =IF(Tableau4[[#This Row],[QTÉ-SOMME]]>0,"Reste","Modifié") -> Modifié | N74: =SUM(O74:NB74) -> 226184 | O74: 226184
A75: RI19-002664 | B75: 23 | C75: AMPAC005083 | D75: =IF(RIGHT(LEFT(Tableau4[[#This Row],[CODE]],5),3)="PAC",$C$176,IF(RIGHT(LEFT(Tableau4[[#This Row],[CODE]],5),3)="PEX",$C$177,IF(OR(RIGHT(LEFT(Tableau4[[#This Row],[CODE]],5),3)="PPA",(RIGHT(LEFT(Tableau4[[#This Row],[CODE]],5),3)="PMX")),$C$179,$C$178))) -> ARTICLE COND | E75: =Tableau4[[#This Row],[CODE]]&Tableau4[[#This Row],[DÉSIGNATION]]&Tableau4[[#This Row],[N° Lot]] -> AMPAC005083ETUIS DIAGLINIDE 1 mgSIPA1901458-1 | F75: ETUIS DIAGLINIDE 1 mg | G75: SIPA1901458-1 | H75: 114828 | I75: 2.74 | J75: 314628.72 | K75: =Tableau4[[#This Row],[QTÉ + 2019]]-Tableau4[[#This Row],[SOMME]] -> 0 | L75: =Tableau4[[#This Row],[QTÉ-SOMME]]*Tableau4[[#This Row],[PU. HT]] -> 0 | M75: =IF(Tableau4[[#This Row],[QTÉ-SOMME]]>0,"Reste","Modifié") -> Modifié | N75: 114828
A76: RI19-002664 | B76: 24 | C76: AMPAC005084 | D76: =IF(RIGHT(LEFT(Tableau4[[#This Row],[CODE]],5),3)="PAC",$C$176,IF(RIGHT(LEFT(Tableau4[[#This Row],[CODE]],5),3)="PEX",$C$177,IF(OR(RIGHT(LEFT(Tableau4[[#This Row],[CODE]],5),3)="PPA",(RIGHT(LEFT(Tableau4[[#This Row],[CODE]],5),3)="PMX")),$C$179,$C$178))) -> ARTICLE COND | E76: =Tableau4[[#This Row],[CODE]]&Tableau4[[#This Row],[DÉSIGNATION]]&Tableau4[[#This Row],[N° Lot]] -> AMPAC005084ETUIS DIAGLINIDE 2 mgSIPA1901853 | F76: ETUIS DIAGLINIDE 2 mg | G76: SIPA1901853 | H76: 428952 | I76: 2.74 | J76: 1175328.48 | K76: =Tableau4[[#This Row],[QTÉ + 2019]]-Tableau4[[#This Row],[SOMME]] -> 0 | L76: =Tableau4[[#This Row],[QTÉ-SOMME]]*Tableau4[[#This Row],[PU. HT]] -> 0 | M76: =IF(Tableau4[[#This Row],[QTÉ-SOMME]]>0,"Reste","Modifié") -> Modifié | N76: 428952
A77: RI19-002664 | B77: 25 | C77: AMPAC005022 | D77: =IF(RIGHT(LEFT(Tableau4[[#This Row],[CODE]],5),3)="PAC",$C$176,IF(RIGHT(LEFT(Tableau4[[#This Row],[CODE]],5),3)="PEX",$C$177,IF(OR(RIGHT(LEFT(Tableau4[[#This Row],[CODE]],5),3)="PPA",(RIGHT(LEFT(Tableau4[[#This Row],[CODE]],5),3)="PMX")),$C$179,$C$178))) -> ARTICLE COND | E77: =Tableau4[[#This Row],[CODE]]&Tableau4[[#This Row],[DÉSIGNATION]]&Tableau4[[#This Row],[N° Lot]] -> AMPAC005022ETUIS FLOVENAC 50 MG (GELULES)SIPA1901826 | F77: ETUIS FLOVENAC 50 MG (GELULES) | G77: SIPA1901826 | H77: 273414 | I77: 3.66 | J77: 1000695.24 | K77: =Tableau4[[#This Row],[QTÉ + 2019]]-Tableau4[[#This Row],[SOMME]] -> 122214 | L77: =Tableau4[[#This Row],[QTÉ-SOMME]]*Tableau4[[#This Row],[PU. HT]] -> 447303.24 | M77: =IF(Tableau4[[#This Row],[QTÉ-SOMME]]>0,"Reste","Modifié") -> Reste | N77: =SUM(O77:NB77) -> 151200 | O77: 151200
A78: RI19-002664 | B78: 26 | C78: AMPAC005023 | D78: =IF(RIGHT(LEFT(Tableau4[[#This Row],[CODE]],5),3)="PAC",$C$176,IF(RIGHT(LEFT(Tableau4[[#This Row],[CODE]],5),3)="PEX",$C$177,IF(OR(RIGHT(LEFT(Tableau4[[#This Row],[CODE]],5),3)="PPA",(RIGHT(LEFT(Tableau4[[#This Row],[CODE]],5),3)="PMX")),$C$179,$C$178))) -> ARTICLE COND | E78: =Tableau4[[#This Row],[CODE]]&Tableau4[[#This Row],[DÉSIGNATION]]&Tableau4[[#This Row],[N° Lot]] -> AMPAC005023ETUIS FLOVENAC L.P 75 MG FABRICATIONsipa1901511 | F78: ETUIS FLOVENAC L.P 75 MG FABRICATION | G78: sipa1901511 | H78: 757326 | I78: 2.41 | J78: 1825155.66 | K78: =Tableau4[[#This Row],[QTÉ + 2019]]-Tableau4[[#This Row],[SOMME]] -> 487626 | L78: =Tableau4[[#This Row],[QTÉ-SOMME]]*Tableau4[[#This Row],[PU. HT]] -> 1175178.66 | M78: =IF(Tableau4[[#This Row],[QTÉ-SOMME]]>0,"Reste","Modifié") -> Reste | N78: =SUM(O78:NB78) -> 269700 | O78: 100000 | P78: 100000 | Q78: 69700
A79: RI20-002665 | B79: 14 | C79: AMPAC005034 | D79: =IF(RIGHT(LEFT(Tableau4[[#This Row],[CODE]],5),3)="PAC",$C$176,IF(RIGHT(LEFT(Tableau4[[#This Row],[CODE]],5),3)="PEX",$C$177,IF(OR(RIGHT(LEFT(Tableau4[[#This Row],[CODE]],5),3)="PPA",(RIGHT(LEFT(Tableau4[[#This Row],[CODE]],5),3)="PMX")),$C$179,$C$178))) -> ARTICLE COND | E79: =Tableau4[[#This Row],[CODE]]&Tableau4[[#This Row],[DÉSIGNATION]]&Tableau4[[#This Row],[N° Lot]] -> AMPAC005034ETUIS NICARDIPINE BIOCARE L.P 50 MG FABRICATIONSIPA 1901493 | F79: ETUIS NICARDIPINE BIOCARE L.P 50 MG FABRICATION | G79: SIPA 1901493 | H79: 55912 | I79: 5.23 | J79: 292419.76 | K79: =Tableau4[[#This Row],[QTÉ + 2019]]-Tableau4[[#This Row],[SOMME]] -> 0 | L79: =Tableau4[[#This Row],[QTÉ-SOMME]]*Tableau4[[#This Row],[PU. HT]] -> 0 | M79: =IF(Tableau4[[#This Row],[QTÉ-SOMME]]>0,"Reste","Modifié") -> Modifié | N79: 55912
A80: RI20-002665 | B80: 15 | C80: AMPAC005035 | D80: =IF(RIGHT(LEFT(Tableau4[[#This Row],[CODE]],5),3)="PAC",$C$176,IF(RIGHT(LEFT(Tableau4[[#This Row],[CODE]],5),3)="PEX",$C$177,IF(OR(RIGHT(LEFT(Tableau4[[#This Row],[CODE]],5),3)="PPA",(RIGHT(LEFT(Tableau4[[#This Row],[CODE]],5),3)="PMX")),$C$179,$C$178))) -> ARTICLE COND | E80: =Tableau4[[#This Row],[CODE]]&Tableau4[[#This Row],[DÉSIGNATION]]&Tableau4[[#This Row],[N° Lot]] -> AMPAC005035ETUIS OROGYLSIPA244 | F80: ETUIS OROGYL | G80: SIPA244 | H80: 46276 | I80: 2.96 | J80: 136976.96 | K80: =Tableau4[[#This Row],[QTÉ + 2019]]-Tableau4[[#This Row],[SOMME]] -> 0 | L80: =Tableau4[[#This Row],[QTÉ-SOMME]]*Tableau4[[#This Row],[PU. HT]] -> 0 | M80: =IF(Tableau4[[#This Row],[QTÉ-SOMME]]>0,"Reste","Modifié") -> Modifié | N80: =SUM(O80:NB80) -> 46276 | O80: 10000 | P80: 10000 | Q80: 10000 | R80: 16276
A81: RI20-002665 | B81: 16 | C81: AMPAC005039 | D81: =IF(RIGHT(LEFT(Tableau4[[#This Row],[CODE]],5),3)="PAC",$C$176,IF(RIGHT(LEFT(Tableau4[[#This Row],[CODE]],5),3)="PEX",$C$177,IF(OR(RIGHT(LEFT(Tableau4[[#This Row],[CODE]],5),3)="PPA",(RIGHT(LEFT(Tableau4[[#This Row],[CODE]],5),3)="PMX")),$C$179,$C$178))) -> ARTICLE COND | E81: =Tableau4[[#This Row],[CODE]]&Tableau4[[#This Row],[DÉSIGNATION]]&Tableau4[[#This Row],[N° Lot]] -> AMPAC005039ETUIS RANICARE 30 COMP138/19/A/01 | F81: ETUIS RANICARE 30 COMP | G81: 138/19/A/01 | H81: 22999 | I81: 9.14 | J81: 210210.86 | K81: =Tableau4[[#This Row],[QTÉ + 2019]]-Tableau4[[#This Row],[SOMME]] -> 0 | L81: =Tableau4[[#This Row],[QTÉ-SOMME]]*Tableau4[[#This Row],[PU. HT]] -> 0 | M81: =IF(Tableau4[[#This Row],[QTÉ-SOMME]]>0,"Reste","Modifié") -> Modifié | N81: 22999
A82: RI20-002667 | B82: 1 | C82: AMPAC005042 | D82: =IF(RIGHT(LEFT(Tableau4[[#This Row],[CODE]],5),3)="PAC",$C$176,IF(RIGHT(LEFT(Tableau4[[#This Row],[CODE]],5),3)="PEX",$C$177,IF(OR(RIGHT(LEFT(Tableau4[[#This Row],[CODE]],5),3)="PPA",(RIGHT(LEFT(Tableau4[[#This Row],[CODE]],5),3)="PMX")),$C$179,$C$178))) -> ARTICLE COND | E82: =Tableau4[[#This Row],[CODE]]&Tableau4[[#This Row],[DÉSIGNATION]]&Tableau4[[#This Row],[N° Lot]] -> AMPAC005042ETUIS SACHET PARACETAMOL 300 MG1901087 | F82: ETUIS SACHET PARACETAMOL 300 MG | G82: 1901087 | H82: 204582 | I82: 3.49 | J82: 713991.18 | K82: =Tableau4[[#This Row],[QTÉ + 2019]]-Tableau4[[#This Row],[SOMME]] -> 204582 | L82: =Tableau4[[#This Row],[QTÉ-SOMME]]*Tableau4[[#This Row],[PU. HT]] -> 713991.18 | M82: =IF(Tableau4[[#This Row],[QTÉ-SOMME]]>0,"Reste","Modifié") -> Reste | N82: =SUM(O82:NB82) -> 0
A83: RI20-002667 | B83: 2 | C83: AMPAC005043 | D83: =IF(RIGHT(LEFT(Tableau4[[#This Row],[CODE]],5),3)="PAC",$C$176,IF(RIGHT(LEFT(Tableau4[[#This Row],[CODE]],5),3)="PEX",$C$177,IF(OR(RIGHT(LEFT(Tableau4[[#This Row],[CODE]],5),3)="PPA",(RIGHT(LEFT(Tableau4[[#This Row],[CODE]],5),3)="PMX")),$C$179,$C$178))) -> ARTICLE COND | E83: =Tableau4[[#This Row],[CODE]]&Tableau4[[#This Row],[DÉSIGNATION]]&Tableau4[[#This Row],[N° Lot]] -> AMPAC005043ETUIS SACHET PARACETAMOL 500 MGSIPA 1901444 | F83: ETUIS SACHET PARACETAMOL 500 MG | G83: SIPA 1901444 | H83: 450591 | I83: 3.49 | J83: 1572562.59 | K83: =Tableau4[[#This Row],[QTÉ + 2019]]-Tableau4[[#This Row],[SOMME]] -> 386591 | L83: =Tableau4[[#This Row],[QTÉ-SOMME]]*Tableau4[[#This Row],[PU. HT]] -> 1349202.59 | M83: =IF(Tableau4[[#This Row],[QTÉ-SOMME]]>0,"Reste","Modifié") -> Reste | N83: =SUM(O83:NB83) -> 64000 | O83: 64000
A84: RI20-002665 | B84: 17 | C84: AMPAC005045 | D84: =IF(RIGHT(LEFT(Tableau4[[#This Row],[CODE]],5),3)="PAC",$C$176,IF(RIGHT(LEFT(Tableau4[[#This Row],[CODE]],5),3)="PEX",$C$177,IF(OR(RIGHT(LEFT(Tableau4[[#This Row],[CODE]],5),3)="PPA",(RIGHT(LEFT(Tableau4[[#This Row],[CODE]],5),3)="PMX")),$C$179,$C$178))) -> ARTICLE COND | E84: =Tableau4[[#This Row],[CODE]]&Tableau4[[#This Row],[DÉSIGNATION]]&Tableau4[[#This Row],[N° Lot]] -> AMPAC005045ETUIS SPIRACARE 1.5 MSIPA1901501 | F84: ETUIS SPIRACARE 1.5 M | G84: SIPA1901501 | H84: 143353 | I84: 3.7 | J84: 530406.1 | K84: =Tableau4[[#This Row],[QTÉ + 2019]]-Tableau4[[#This Row],[SOMME]] -> 143353 | L84: =Tableau4[[#This Row],[QTÉ-SOMME]]*Tableau4[[#This Row],[PU. HT]] -> 530406.1 | M84: =IF(Tableau4[[#This Row],[QTÉ-SOMME]]>0,"Reste","Modifié") -> Reste | N84: =SUM(O84:NB84) -> 0
A85: RI20-002665 | B85: 18 | C85: AMPAC005046 | D85: =IF(RIGHT(LEFT(Tableau4[[#This Row],[CODE]],5),3)="PAC",$C$176,IF(RIGHT(LEFT(Tableau4[[#This Row],[CODE]],5),3)="PEX",$C$177,IF(OR(RIGHT(LEFT(Tableau4[[#This Row],[CODE]],5),3)="PPA",(RIGHT(LEFT(Tableau4[[#This Row],[CODE]],5),3)="PMX")),$C$179,$C$178))) -> ARTICLE COND | E85: =Tableau4[[#This Row],[CODE]]&Tableau4[[#This Row],[DÉSIGNATION]]&Tableau4[[#This Row],[N° Lot]] -> AMPAC005046ETUIS SPIRACARE 3M1900900 | F85: ETUIS SPIRACARE 3M | G85: 1900900 | H85: 207111.69 | I85: 2.86 | J85: 592339.4334 | K85: =Tableau4[[#This Row],[QTÉ + 2019]]-Tableau4[[#This Row],[SOMME]] -> 202311.69 | L85: =Tableau4[[#This Row],[QTÉ-SOMME]]*Tableau4[[#This Row],[PU. HT]] -> 578611.4334 | M85: =IF(Tableau4[[#This Row],[QTÉ-SOMME]]>0,"Reste","Modifié") -> Reste | N85: =SUM(O85:NB85) -> 4800 | O85: 4800
A86: RI20-002665 | B86: 19 | C86: AMPAC005073 | D86: =IF(RIGHT(LEFT(Tableau4[[#This Row],[CODE]],5),3)="PAC",$C$176,IF(RIGHT(LEFT(Tableau4[[#This Row],[CODE]],5),3)="PEX",$C$177,IF(OR(RIGHT(LEFT(Tableau4[[#This Row],[CODE]],5),3)="PPA",(RIGHT(LEFT(Tableau4[[#This Row],[CODE]],5),3)="PMX")),$C$179,$C$178))) -> ARTICLE COND | E86: =Tableau4[[#This Row],[CODE]]&Tableau4[[#This Row],[DÉSIGNATION]]&Tableau4[[#This Row],[N° Lot]] -> AMPAC005073ETUIS TRIMEBUTINE BIOCARE 100 MG1902646 | F86: ETUIS TRIMEBUTINE BIOCARE 100 MG | G86: 1902646 | H86: 179733.7 | I86: 2.96 | J86: 532011.752 | K86: =Tableau4[[#This Row],[QTÉ + 2019]]-Tableau4[[#This Row],[SOMME]] -> 0 | L86: =Tableau4[[#This Row],[QTÉ-SOMME]]*Tableau4[[#This Row],[PU. HT]] -> 0 | M86: =IF(Tableau4[[#This Row],[QTÉ-SOMME]]>0,"Reste","Modifié") -> Modifié | N86: =SUM(O86:NB86) -> 179733.7 | O86: 77500 | P86: 28620 | Q86: 27200 | R86: 46413.7
A87: RI20-002665 | B87: 20 | C87: AMPAC005085 | D87: =IF(RIGHT(LEFT(Tableau4[[#This Row],[CODE]],5),3)="PAC",$C$176,IF(RIGHT(LEFT(Tableau4[[#This Row],[CODE]],5),3)="PEX",$C$177,IF(OR(RIGHT(LEFT(Tableau4[[#This Row],[CODE]],5),3)="PPA",(RIGHT(LEFT(Tableau4[[#This Row],[CODE]],5),3)="PMX")),$C$179,$C$178))) -> ARTICLE COND | E87: =Tableau4[[#This Row],[CODE]]&Tableau4[[#This Row],[DÉSIGNATION]]&Tableau4[[#This Row],[N° Lot]] -> AMPAC005085ETUIS TRIMEBUTINE BIOCARE 200 mgSIPA 192744 | F87: ETUIS TRIMEBUTINE BIOCARE 200 mg | G87: SIPA 192744 | H87: 169346.56 | I87: 2.41 | J87: 408125.2096 | K87: =Tableau4[[#This Row],[QTÉ + 2019]]-Tableau4[[#This Row],[SOMME]] -> 0 | L87: =Tableau4[[#This Row],[QTÉ-SOMME]]*Tableau4[[#This Row],[PU. HT]] -> 0 | M87: =IF(Tableau4[[#This Row],[QTÉ-SOMME]]>0,"Reste","Modifié") -> Modifié | N87: 169346.56
A88: RI20-002665 | B88: 21 | C88: AMPAC005048 | D88: =IF(RIGHT(LEFT(Tableau4[[#This Row],[CODE]],5),3)="PAC",$C$176,IF(RIGHT(LEFT(Tableau4[[#This Row],[CODE]],5),3)="PEX",$C$177,IF(OR(RIGHT(LEFT(Tableau4[[#This Row],[CODE]],5),3)="PPA",(RIGHT(LEFT(Tableau4[[#This Row],[CODE]],5),3)="PMX")),$C$179,$C$178))) -> ARTICLE COND | E88: =Tableau4[[#This Row],[CODE]]&Tableau4[[#This Row],[DÉSIGNATION]]&Tableau4[[#This Row],[N° Lot]] -> AMPAC005048ETUIS TROIS BSIPA 1900491 | F88: ETUIS TROIS B | G88: SIPA 1900491 | H88: 167701 | I88: 2.41 | J88: 404159.41 | K88: =Tableau4[[#This Row],[QTÉ + 2019]]-Tableau4[[#This Row],[SOMME]] -> 167701 | L88: =Tableau4[[#This Row],[QTÉ-SOMME]]*Tableau4[[#This Row],[PU. HT]] -> 404159.41 | M88: =IF(Tableau4[[#This Row],[QTÉ-SOMME]]>0,"Reste","Modifié") -> Reste | N88: =SUM(O88:NB88) -> 0
A89: RI20-002665 | B89: 22 | C89: AMPAC005134 | D89: =IF(RIGHT(LEFT(Tableau4[[#This Row],[CODE]],5),3)="PAC",$C$176,IF(RIGHT(LEFT(Tableau4[[#This Row],[CODE]],5),3)="PEX",$C$177,IF(OR(RIGHT(LEFT(Tableau4[[#This Row],[CODE]],5),3)="PPA",(RIGHT(LEFT(Tableau4[[#This Row],[CODE]],5),3)="PMX")),$C$179,$C$178))) -> ARTICLE COND | E89: =Tableau4[[#This Row],[CODE]]&Tableau4[[#This Row],[DÉSIGNATION]]&Tableau4[[#This Row],[N° Lot]] -> AMPAC005134ETUIS UDINE 5 mg "BT 15 COMP"018/18/E/01 | F89: ETUIS UDINE 5 mg "BT 15 COMP" | G89: 018/18/E/01 | H89: 28140 | I89: 4.32 | J89: 121564.8 | K89: =Tableau4[[#This Row],[QTÉ + 2019]]-Tableau4[[#This Row],[SOMME]] -> 0 | L89: =Tableau4[[#This Row],[QTÉ-SOMME]]*Tableau4[[#This Row],[PU. HT]] -> 0 | M89: =IF(Tableau4[[#This Row],[QTÉ-SOMME]]>0,"Reste","Modifié") -> Modifié | N89: 28140
A90: RI20-002665 | B90: 23 | C90: AMPAC005086 | D90: =IF(RIGHT(LEFT(Tableau4[[#This Row],[CODE]],5),3)="PAC",$C$176,IF(RIGHT(LEFT(Tableau4[[#This Row],[CODE]],5),3)="PEX",$C$177,IF(OR(RIGHT(LEFT(Tableau4[[#This Row],[CODE]],5),3)="PPA",(RIGHT(LEFT(Tableau4[[#This Row],[CODE]],5),3)="PMX")),$C$179,$C$178))) -> ARTICLE COND | E90: =Tableau4[[#This Row],[CODE]]&Tableau4[[#This Row],[DÉSIGNATION]]&Tableau4[[#This Row],[N° Lot]] -> AMPAC005086ETUIS URICARE 3 g "1 SACH".sipa 1902472 | F90: ETUIS URICARE 3 g "1 SACH". | G90: sipa 1902472 | H90: 21451 | I90: 5.33 | J90: 114333.83 | K90: =Tableau4[[#This Row],[QTÉ + 2019]]-Tableau4[[#This Row],[SOMME]] -> 0 | L90: =Tableau4[[#This Row],[QTÉ-SOMME]]*Tableau4[[#This Row],[PU. HT]] -> 0 | M90: =IF(Tableau4[[#This Row],[QTÉ-SOMME]]>0,"Reste","Modifié") -> Modifié | N90: 21451
A91: RI20-002665 | B91: 24 | C91: AMPAC005101 | D91: =IF(RIGHT(LEFT(Tableau4[[#This Row],[CODE]],5),3)="PAC",$C$176,IF(RIGHT(LEFT(Tableau4[[#This Row],[CODE]],5),3)="PEX",$C$177,IF(OR(RIGHT(LEFT(Tableau4[[#This Row],[CODE]],5),3)="PPA",(RIGHT(LEFT(Tableau4[[#This Row],[CODE]],5),3)="PMX")),$C$179,$C$178))) -> ARTICLE COND | E91: =Tableau4[[#This Row],[CODE]]&Tableau4[[#This Row],[DÉSIGNATION]]&Tableau4[[#This Row],[N° Lot]] -> AMPAC005101ETUIS XYCARE 5 mg "14 COMP"DIW 090/19/A/01 | F91: ETUIS XYCARE 5 mg "14 COMP" | G91: DIW 090/19/A/01 | H91: 274323.04 | I91: 3.58 | J91: 982076.4832 | K91: =Tableau4[[#This Row],[QTÉ + 2019]]-Tableau4[[#This Row],[SOMME]] -> 274323.04 | L91: =Tableau4[[#This Row],[QTÉ-SOMME]]*Tableau4[[#This Row],[PU. HT]] -> 982076.4832 | M91: =IF(Tableau4[[#This Row],[QTÉ-SOMME]]>0,"Reste","Modifié") -> Reste | N91: =SUM(O91:NB91) -> 0
A92: RI20-002665 | B92: 25 | C92: AMPAC005102 | D92: =IF(RIGHT(LEFT(Tableau4[[#This Row],[CODE]],5),3)="PAC",$C$176,IF(RIGHT(LEFT(Tableau4[[#This Row],[CODE]],5),3)="PEX",$C$177,IF(OR(RIGHT(LEFT(Tableau4[[#This Row],[CODE]],5),3)="PPA",(RIGHT(LEFT(Tableau4[[#This Row],[CODE]],5),3)="PMX")),$C$179,$C$178))) -> ARTICLE COND | E92: =Tableau4[[#This Row],[CODE]]&Tableau4[[#This Row],[DÉSIGNATION]]&Tableau4[[#This Row],[N° Lot]] -> AMPAC005102ETUIS XYCARE 5 mg "28 COMP"DIW 089/19/A/01 | F92: ETUIS XYCARE 5 mg "28 COMP" | G92: DIW 089/19/A/01 | H92: 204874.89 | I92: 3.94 | J92: 807207.0666 | K92: =Tableau4[[#This Row],[QTÉ + 2019]]-Tableau4[[#This Row],[SOMME]] -> 134874.89 | L92: =Tableau4[[#This Row],[QTÉ-SOMME]]*Tableau4[[#This Row],[PU. HT]] -> 531407.0666 | M92: =IF(Tableau4[[#This Row],[QTÉ-SOMME]]>0,"Reste","Modifié") -> Reste | N92: =SUM(O92:NB92) -> 70000 | O92: 70000
A93: RI19-002664 | B93: 32 | C93: KMPEX001013 | D93: =IF(RIGHT(LEFT(Tableau4[[#This Row],[CODE]],5),3)="PAC",$C$176,IF(RIGHT(LEFT(Tableau4[[#This Row],[CODE]],5),3)="PEX",$C$177,IF(OR(RIGHT(LEFT(Tableau4[[#This Row],[CODE]],5),3)="PPA",(RIGHT(LEFT(Tableau4[[#This Row],[CODE]],5),3)="PMX")),$C$179,$C$178))) -> EXCIPIENTS | E93: =Tableau4[[#This Row],[CODE]]&Tableau4[[#This Row],[DÉSIGNATION]]&Tableau4[[#This Row],[N° Lot]] -> KMPEX001013EUDRAGIT E12.5A180221513 | F93: EUDRAGIT E12.5 | G93: A180221513 | H93: 40.8 | I93: 8002.38 | J93: 326497.104 | K93: =Tableau4[[#This Row],[QTÉ + 2019]]-Tableau4[[#This Row],[SOMME]] -> 0 | L93: =Tableau4[[#This Row],[QTÉ-SOMME]]*Tableau4[[#This Row],[PU. HT]] -> 0 | M93: =IF(Tableau4[[#This Row],[QTÉ-SOMME]]>0,"Reste","Modifié") -> Modifié | N93: 40.8
A94: RI20-002670 | B94: 1 | C94: BMPAC007001 | D94: =IF(RIGHT(LEFT(Tableau4[[#This Row],[CODE]],5),3)="PAC",$C$176,IF(RIGHT(LEFT(Tableau4[[#This Row],[CODE]],5),3)="PEX",$C$177,IF(OR(RIGHT(LEFT(Tableau4[[#This Row],[CODE]],5),3)="PPA",(RIGHT(LEFT(Tableau4[[#This Row],[CODE]],5),3)="PMX")),$C$179,$C$178))) -> ARTICLE COND | E94: =Tableau4[[#This Row],[CODE]]&Tableau4[[#This Row],[DÉSIGNATION]]&Tableau4[[#This Row],[N° Lot]] -> BMPAC007001FLACON 90 ML ROND VERRE BLANC TYPE III JAUGE A 60MLg.gd 27/02/2019 | F94: FLACON 90 ML ROND VERRE BLANC TYPE III JAUGE A 60ML | G94: g.gd 27/02/2019 | H94: 2673946 | I94: 11.4 | J94: 30482984.4 | K94: =Tableau4[[#This Row],[QTÉ + 2019]]-Tableau4[[#This Row],[SOMME]] -> 2217898 | L94: =Tableau4[[#This Row],[QTÉ-SOMME]]*Tableau4[[#This Row],[PU. HT]] -> 25284037.2 | M94: =IF(Tableau4[[#This Row],[QTÉ-SOMME]]>0,"Reste","Modifié") -> Reste | N94: =SUM(O94:NB94) -> 456048 | O94: 299376 | P94: 80640 | Q94: 38016 | R94: 38016
A95: RI20-002665 | B95: 59 | C95: AMPPA25E026 | D95: =IF(RIGHT(LEFT(Tableau4[[#This Row],[CODE]],5),3)="PAC",$C$176,IF(RIGHT(LEFT(Tableau4[[#This Row],[CODE]],5),3)="PEX",$C$177,IF(OR(RIGHT(LEFT(Tableau4[[#This Row],[CODE]],5),3)="PPA",(RIGHT(LEFT(Tableau4[[#This Row],[CODE]],5),3)="PMX")),$C$179,$C$178))) -> PRINCIP ACTIF | E95: =Tableau4[[#This Row],[CODE]]&Tableau4[[#This Row],[DÉSIGNATION]]&Tableau4[[#This Row],[N° Lot]] -> AMPPA25E026FOSFOMYCIN TROMETAMOLFOS-291906 | F95: FOSFOMYCIN TROMETAMOL | G95: FOS-291906 | H95: 184.15 | I95: 27141.61 | J95: 4998127.482 | K95: =Tableau4[[#This Row],[QTÉ + 2019]]-Tableau4[[#This Row],[SOMME]] -> 0 | L95: =Tableau4[[#This Row],[QTÉ-SOMME]]*Tableau4[[#This Row],[PU. HT]] -> 0 | M95: =IF(Tableau4[[#This Row],[QTÉ-SOMME]]>0,"Reste","Modifié") -> Modifié | N95: 184.15
A96: RI20-002665 | B96: 26 | C96: KMPEX001071 | D96: =IF(RIGHT(LEFT(Tableau4[[#This Row],[CODE]],5),3)="PAC",$C$176,IF(RIGHT(LEFT(Tableau4[[#This Row],[CODE]],5),3)="PEX",$C$177,IF(OR(RIGHT(LEFT(Tableau4[[#This Row],[CODE]],5),3)="PPA",(RIGHT(LEFT(Tableau4[[#This Row],[CODE]],5),3)="PMX")),$C$179,$C$178))) -> EXCIPIENTS | E96: =Tableau4[[#This Row],[CODE]]&Tableau4[[#This Row],[DÉSIGNATION]]&Tableau4[[#This Row],[N° Lot]] -> KMPEX001071GELATINE18010039 | F96: GELATINE | G96: 18010039 | H96: 40.25 | I96: 3188.33 | J96: 128330.2825 | K96: =Tableau4[[#This Row],[QTÉ + 2019]]-Tableau4[[#This Row],[SOMME]] -> 40.25 | L96: =Tableau4[[#This Row],[QTÉ-SOMME]]*Tableau4[[#This Row],[PU. HT]] -> 128330.2825 | M96: =IF(Tableau4[[#This Row],[QTÉ-SOMME]]>0,"Reste","Modifié") -> Reste | N96: =SUM(O96:NB96) -> 0
A97: RI19-002664 | B97: 50 | C97: BMPGL002023 | D97: =IF(RIGHT(LEFT(Tableau4[[#This Row],[CODE]],5),3)="PAC",$C$176,IF(RIGHT(LEFT(Tableau4[[#This Row],[CODE]],5),3)="PEX",$C$177,IF(OR(RIGHT(LEFT(Tableau4[[#This Row],[CODE]],5),3)="PPA",(RIGHT(LEFT(Tableau4[[#This Row],[CODE]],5),3)="PMX")),$C$179,$C$178))) -> CAPSULES | E97: =Tableau4[[#This Row],[CODE]]&Tableau4[[#This Row],[DÉSIGNATION]]&Tableau4[[#This Row],[N° Lot]] -> BMPGL002023GELULES MARRON/JAUNE TAILLE 0 EL (TETE 33.056/CORP : 42.335)CAP :53634161 | F97: GELULES MARRON/JAUNE TAILLE 0 EL (TETE 33.056/CORP : 42.335) | G97: CAP :53634161 | H97: 1074427 | I97: 0.52 | J97: 558702.04 | K97: =Tableau4[[#This Row],[QTÉ + 2019]]-Tableau4[[#This Row],[SOMME]] -> 0 | L97: =Tableau4[[#This Row],[QTÉ-SOMME]]*Tableau4[[#This Row],[PU. HT]] -> 0 | M97: =IF(Tableau4[[#This Row],[QTÉ-SOMME]]>0,"Reste","Modifié") -> Modifié | N97: =SUM(O97:NB97) -> 1074427 | O97: 930000 | P97: 90 | Q97: 144337
A98: RI19-002664 | B98: 51 | C98: AMPGL004283 | D98: =IF(RIGHT(LEFT(Tableau4[[#This Row],[CODE]],5),3)="PAC",$C$176,IF(RIGHT(LEFT(Tableau4[[#This Row],[CODE]],5),3)="PEX",$C$177,IF(OR(RIGHT(LEFT(Tableau4[[#This Row],[CODE]],5),3)="PPA",(RIGHT(LEFT(Tableau4[[#This Row],[CODE]],5),3)="PMX")),$C$179,$C$178))) -> CAPSULES | E98: =Tableau4[[#This Row],[CODE]]&Tableau4[[#This Row],[DÉSIGNATION]]&Tableau4[[#This Row],[N° Lot]] -> AMPGL004283GELULES PINK/ LIGHT GREEN TAILLE 2 (Corps:24.103/Tete:17.421)1150029623 | F98: GELULES PINK/ LIGHT GREEN TAILLE 2 (Corps:24.103/Tete:17.421) | G98: 1150029623 | H98: 3450570 | I98: 0.35 | J98: 1207699.5 | K98: =Tableau4[[#This Row],[QTÉ + 2019]]-Tableau4[[#This Row],[SOMME]] -> 0 | L98: =Tableau4[[#This Row],[QTÉ-SOMME]]*Tableau4[[#This Row],[PU. HT]] -> 0 | M98: =IF(Tableau4[[#This Row],[QTÉ-SOMME]]>0,"Reste","Modifié") -> Modifié | N98: 3450570
A99: RI19-002664 | B99: 52 | C99: AMPGL001078 | D99: =IF(RIGHT(LEFT(Tableau4[[#This Row],[CODE]],5),3)="PAC",$C$176,IF(RIGHT(LEFT(Tableau4[[#This Row],[CODE]],5),3)="PEX",$C$177,IF(OR(RIGHT(LEFT(Tableau4[[#This Row],[CODE]],5),3)="PPA",(RIGHT(LEFT(Tableau4[[#This Row],[CODE]],5),3)="PMX")),$C$179,$C$178))) -> CAPSULES | E99: =Tableau4[[#This Row],[CODE]]&Tableau4[[#This Row],[DÉSIGNATION]]&Tableau4[[#This Row],[N° Lot]] -> AMPGL001078GELULES PINK/PINK TAILLE 0 (TETE L780/CORPS L780)1150028234 | F99: GELULES PINK/PINK TAILLE 0 (TETE L780/CORPS L780) | G99: 1150028234 | H99: 1186880 | I99: 0.37 | J99: 439145.6 | K99: =Tableau4[[#This Row],[QTÉ + 2019]]-Tableau4[[#This Row],[SOMME]] -> 1186880 | L99: =Tableau4[[#This Row],[QTÉ-SOMME]]*Tableau4[[#This Row],[PU. HT]] -> 439145.6 | M99: =IF(Tableau4[[#This Row],[QTÉ-SOMME]]>0,"Reste","Modifié") -> Reste | N99: =SUM(O99:NB99) -> 0
A100: RI20-002675 | B100: 2 | C100: AMPGL004047 | D100: =IF(RIGHT(LEFT(Tableau4[[#This Row],[CODE]],5),3)="PAC",$C$176,IF(RIGHT(LEFT(Tableau4[[#This Row],[CODE]],5),3)="PEX",$C$177,IF(OR(RIGHT(LEFT(Tableau4[[#This Row],[CODE]],5),3)="PPA",(RIGHT(LEFT(Tableau4[[#This Row],[CODE]],5),3)="PMX")),$C$179,$C$178))) -> CAPSULES | E100: =Tableau4[[#This Row],[CODE]]&Tableau4[[#This Row],[DÉSIGNATION]]&Tableau4[[#This Row],[N° Lot]] -> AMPGL004047GELULES TRANS/ROSE TAILLE 2 (TETE 23.014/CORPS 43.000 )1150046875 | F100: GELULES TRANS/ROSE TAILLE 2 (TETE 23.014/CORPS 43.000 ) | G100: 1150046875 | H100: 82308126 | I100: 0.36 | J100: 29630925.36 | K100: =Tableau4[[#This Row],[QTÉ + 2019]]-Tableau4[[#This Row],[SOMME]] -> 82308126 | L100: =Tableau4[[#This Row],[QTÉ-SOMME]]*Tableau4[[#This Row],[PU. HT]] -> 29630925.36 | M100: =IF(Tableau4[[#This Row],[QTÉ-SOMME]]>0,"Reste","Modifié") -> Reste | N100: 0
A101: RI20-002666 | B101: 16 | C101: KMPEX001014 | D101: =IF(RIGHT(LEFT(Tableau4[[#This Row],[CODE]],5),3)="PAC",$C$176,IF(RIGHT(LEFT(Tableau4[[#This Row],[CODE]],5),3)="PEX",$C$177,IF(OR(RIGHT(LEFT(Tableau4[[#This Row],[CODE]],5),3)="PPA",(RIGHT(LEFT(Tableau4[[#This Row],[CODE]],5),3)="PMX")),$C$179,$C$178))) -> EXCIPIENTS | E101: =Tableau4[[#This Row],[CODE]]&Tableau4[[#This Row],[DÉSIGNATION]]&Tableau4[[#This Row],[N° Lot]] -> KMPEX001014GESWEETD000367417 | F101: GESWEET | G101: D000367417 | H101: 398.01 | I101: 13425.23 | J101: 5343375.792 | K101: =Tableau4[[#This Row],[QTÉ + 2019]]-Tableau4[[#This Row],[SOMME]] -> 273 | L101: =Tableau4[[#This Row],[QTÉ-SOMME]]*Tableau4[[#This Row],[PU. HT]] -> 3665087.79 | M101: =IF(Tableau4[[#This Row],[QTÉ-SOMME]]>0,"Reste","Modifié") -> Reste | N101: 125.01 | O101: 50.01 | P101: 50 | X101: 25
A102: RI20-002666 | B102: 2 | C102: BMPAC002010 | D102: =IF(RIGHT(LEFT(Tableau4[[#This Row],[CODE]],5),3)="PAC",$C$176,IF(RIGHT(LEFT(Tableau4[[#This Row],[CODE]],5),3)="PEX",$C$177,IF(OR(RIGHT(LEFT(Tableau4[[#This Row],[CODE]],5),3)="PPA",(RIGHT(LEFT(Tableau4[[#This Row],[CODE]],5),3)="PMX")),$C$179,$C$178))) -> ARTICLE COND | E102: =Tableau4[[#This Row],[CODE]]&Tableau4[[#This Row],[DÉSIGNATION]]&Tableau4[[#This Row],[N° Lot]] -> BMPAC002010GOBELET DOSEUR19/11/2019 | F102: GOBELET DOSEUR | G102: 19/11/2019 | H102: 1382243 | I102: 1.78 | J102: 2460392.54 | K102: =Tableau4[[#This Row],[QTÉ + 2019]]-Tableau4[[#This Row],[SOMME]] -> 1382243 | L102: =Tableau4[[#This Row],[QTÉ-SOMME]]*Tableau4[[#This Row],[PU. HT]] -> 2460392.54 | M102: =IF(Tableau4[[#This Row],[QTÉ-SOMME]]>0,"Reste","Modifié") -> Reste | N102: 0
A103: RI19-002664 | B103: 38 | C103: KMPEX001016 | D103: =IF(RIGHT(LEFT(Tableau4[[#This Row],[CODE]],5),3)="PAC",$C$176,IF(RIGHT(LEFT(Tableau4[[#This Row],[CODE]],5),3)="PEX",$C$177,IF(OR(RIGHT(LEFT(Tableau4[[#This Row],[CODE]],5),3)="PPA",(RIGHT(LEFT(Tableau4[[#This Row],[CODE]],5),3)="PMX")),$C$179,$C$178))) -> EXCIPIENTS | E103: =Tableau4[[#This Row],[CODE]]&Tableau4[[#This Row],[DÉSIGNATION]]&Tableau4[[#This Row],[N° Lot]] -> KMPEX001016GOMME XANTHANE2540361 | F103: GOMME XANTHANE | G103: 2540361 | H103: 368.42 | I103: 3628.88 | J103: 1336951.97 | K103: =Tableau4[[#This Row],[QTÉ + 2019]]-Tableau4[[#This Row],[SOMME]] -> 135 | L103: =Tableau4[[#This Row],[QTÉ-SOMME]]*Tableau4[[#This Row],[PU. HT]] -> 489898.8 | M103: =IF(Tableau4[[#This Row],[QTÉ-SOMME]]>0,"Reste","Modifié") -> Reste | N103: 233.42 | O103: 40 | P103: 20 | Q103: 133 | R103: 40.42
A104: RI20-002665 | B104: 60 | C104: AMPMX04B006 | D104: =IF(RIGHT(LEFT(Tableau4[[#This Row],[CODE]],5),3)="PAC",$C$176,IF(RIGHT(LEFT(Tableau4[[#This Row],[CODE]],5),3)="PEX",$C$177,IF(OR(RIGHT(LEFT(Tableau4[[#This Row],[CODE]],5),3)="PPA",(RIGHT(LEFT(Tableau4[[#This Row],[CODE]],5),3)="PMX")),$C$179,$C$178))) -> PRINCIP ACTIF | E104: =Tableau4[[#This Row],[CODE]]&Tableau4[[#This Row],[DÉSIGNATION]]&Tableau4[[#This Row],[N° Lot]] -> AMPMX04B006IBUPROFEN DC GRANULES 600 MGFC40M810 | F104: IBUPROFEN DC GRANULES 600 MG | G104: FC40M810 | H104: 2799.75 | I104: 7066.14 | J104: 19783425.46 | K104: =Tableau4[[#This Row],[QTÉ + 2019]]-Tableau4[[#This Row],[SOMME]] -> 2799.75 | L104: =Tableau4[[#This Row],[QTÉ-SOMME]]*Tableau4[[#This Row],[PU. HT]] -> 19783425.46 | M104: =IF(Tableau4[[#This Row],[QTÉ-SOMME]]>0,"Reste","Modifié") -> Reste | N104: 0
A105: RI19-002664 | B105: 39 | C105: KMPEX001053 | D105: =IF(RIGHT(LEFT(Tableau4[[#This Row],[CODE]],5),3)="PAC",$C$176,IF(RIGHT(LEFT(Tableau4[[#This Row],[CODE]],5),3)="PEX",$C$177,IF(OR(RIGHT(LEFT(Tableau4[[#This Row],[CODE]],5),3)="PPA",(RIGHT(LEFT(Tableau4[[#This Row],[CODE]],5),3)="PMX")),$C$179,$C$178))) -> EXCIPIENTS | E105: =Tableau4[[#This Row],[CODE]]&Tableau4[[#This Row],[DÉSIGNATION]]&Tableau4[[#This Row],[N° Lot]] -> KMPEX001053LACTOSE ANHYDRE8515082500 | F105: LACTOSE ANHYDRE | G105: 8515082500 | H105: 619.78 | I105: 1825.4 | J105: 1131346.412 | K105: =Tableau4[[#This Row],[QTÉ + 2019]]-Tableau4[[#This Row],[SOMME]] -> 0 | L105: =Tableau4[[#This Row],[QTÉ-SOMME]]*Tableau4[[#This Row],[PU. HT]] -> 0 | M105: =IF(Tableau4[[#This Row],[QTÉ-SOMME]]>0,"Reste","Modifié") -> Modifié | N105: 619.78
A106: RI20-002665 | B106: 27 | C106: KMPEX001018 | D106: =IF(RIGHT(LEFT(Tableau4[[#This Row],[CODE]],5),3)="PAC",$C$176,IF(RIGHT(LEFT(Tableau4[[#This Row],[CODE]],5),3)="PEX",$C$177,IF(OR(RIGHT(LEFT(Tableau4[[#This Row],[CODE]],5),3)="PPA",(RIGHT(LEFT(Tableau4[[#This Row],[CODE]],5),3)="PMX")),$C$179,$C$178))) -> EXCIPIENTS | E106: =Tableau4[[#This Row],[CODE]]&Tableau4[[#This Row],[DÉSIGNATION]]&Tableau4[[#This Row],[N° Lot]] -> KMPEX001018LACTOSE MONOHYDRATE TYPE PHARMA EP 200 MeshL101851419 | F106: LACTOSE MONOHYDRATE TYPE PHARMA EP 200 Mesh | G106: L101851419 | H106: 718.18 | I106: 915.5 | J106: 657493.79 | K106: =Tableau4[[#This Row],[QTÉ + 2019]]-Tableau4[[#This Row],[SOMME]] -> 0 | L106: =Tableau4[[#This Row],[QTÉ-SOMME]]*Tableau4[[#This Row],[PU. HT]] -> 0 | M106: =IF(Tableau4[[#This Row],[QTÉ-SOMME]]>0,"Reste","Modifié") -> Modifié | N106: =SUM(O106:NB106) -> 718.18 | O106: 480.18 | P106: 100 | Q106: 25 | R106: 50 | S106: 63
A107: RI20-002667 | B107: 5 | C107: AMPPA01A030 | D107: =IF(RIGHT(LEFT(Tableau4[[#This Row],[CODE]],5),3)="PAC",$C$176,IF(RIGHT(LEFT(Tableau4[[#This Row],[CODE]],5),3)="PEX",$C$177,IF(OR(RIGHT(LEFT(Tableau4[[#This Row],[CODE]],5),3)="PPA",(RIGHT(LEFT(Tableau4[[#This Row],[CODE]],5),3)="PMX")),$C$179,$C$178))) -> PRINCIP ACTIF | E107: =Tableau4[[#This Row],[CODE]]&Tableau4[[#This Row],[DÉSIGNATION]]&Tableau4[[#This Row],[N° Lot]] -> AMPPA01A030LEVOCETIRIZINE HCLW201808J03 | F107: LEVOCETIRIZINE HCL | G107: W201808J03 | H107: 48.8 | I107: 174399.25 | J107: 8510683.4 | K107: =Tableau4[[#This Row],[QTÉ + 2019]]-Tableau4[[#This Row],[SOMME]] -> 48.8 | L107: =Tableau4[[#This Row],[QTÉ-SOMME]]*Tableau4[[#This Row],[PU. HT]] -> 8510683.4 | M107: =IF(Tableau4[[#This Row],[QTÉ-SOMME]]>0,"Reste","Modifié") -> Reste | N107: =SUM(O107:NB107) -> 0
A108: RI19-002664 | B108: 40 | C108: KMPEX001072 | D108: =IF(RIGHT(LEFT(Tableau4[[#This Row],[CODE]],5),3)="PAC",$C$176,IF(RIGHT(LEFT(Tableau4[[#This Row],[CODE]],5),3)="PEX",$C$177,IF(OR(RIGHT(LEFT(Tableau4[[#This Row],[CODE]],5),3)="PPA",(RIGHT(LEFT(Tableau4[[#This Row],[CODE]],5),3)="PMX")),$C$179,$C$178))) -> EXCIPIENTS | E108: =Tableau4[[#This Row],[CODE]]&Tableau4[[#This Row],[DÉSIGNATION]]&Tableau4[[#This Row],[N° Lot]] -> KMPEX001072MACROGOL 20000 PDEA4006428 | F108: MACROGOL 20000 P | G108: DEA4006428 | H108: 2.13 | I108: 3793.96 | J108: 8081.1348 | K108: =Tableau4[[#This Row],[QTÉ + 2019]]-Tableau4[[#This Row],[SOMME]] -> 2.13 | L108: =Tableau4[[#This Row],[QTÉ-SOMME]]*Tableau4[[#This Row],[PU. HT]] -> 8081.1348 | M108: =IF(Tableau4[[#This Row],[QTÉ-SOMME]]>0,"Reste","Modifié") -> Reste | N108: =SUM(O108:NB108) -> 0
A109: RI20-002668 | B109: 3 | C109: AMPPA22A028 | D109: =IF(RIGHT(LEFT(Tableau4[[#This Row],[CODE]],5),3)="PAC",$C$176,IF(RIGHT(LEFT(Tableau4[[#This Row],[CODE]],5),3)="PEX",$C$177,IF(OR(RIGHT(LEFT(Tableau4[[#This Row],[CODE]],5),3)="PPA",(RIGHT(LEFT(Tableau4[[#This Row],[CODE]],5),3)="PMX")),$C$179,$C$178))) -> PRINCIP ACTIF | E109: =Tableau4[[#This Row],[CODE]]&Tableau4[[#This Row],[DÉSIGNATION]]&Tableau4[[#This Row],[N° Lot]] -> AMPPA22A028MALEATE DE PHENIRAMINESLL/P/1018037 | F109: MALEATE DE PHENIRAMINE | G109: SLL/P/1018037 | H109: 54.62 | I109: 12926.74 | J109: 706058.5388 | K109: =Tableau4[[#This Row],[QTÉ + 2019]]-Tableau4[[#This Row],[SOMME]] -> 0 | L109: =Tableau4[[#This Row],[QTÉ-SOMME]]*Tableau4[[#This Row],[PU. HT]] -> 0 | M109: =IF(Tableau4[[#This Row],[QTÉ-SOMME]]>0,"Reste","Modifié") -> Modifié | N109: 54.62
A110: RI20-002665 | B110: 28 | C110: KMPEX001077 | D110: =IF(RIGHT(LEFT(Tableau4[[#This Row],[CODE]],5),3)="PAC",$C$176,IF(RIGHT(LEFT(Tableau4[[#This Row],[CODE]],5),3)="PEX",$C$177,IF(OR(RIGHT(LEFT(Tableau4[[#This Row],[CODE]],5),3)="PPA",(RIGHT(LEFT(Tableau4[[#This Row],[CODE]],5),3)="PMX")),$C$179,$C$178))) -> EXCIPIENTS | E110: =Tableau4[[#This Row],[CODE]]&Tableau4[[#This Row],[DÉSIGNATION]]&Tableau4[[#This Row],[N° Lot]] -> KMPEX001077MANNITOLEF27G | F110: MANNITOL | G110: EF27G | H110: 181.03 | I110: 2223.26 | J110: 402476.7578 | K110: =Tableau4[[#This Row],[QTÉ + 2019]]-Tableau4[[#This Row],[SOMME]] -> 181.03 | L110: =Tableau4[[#This Row],[QTÉ-SOMME]]*Tableau4[[#This Row],[PU. HT]] -> 402476.7578 | M110: =IF(Tableau4[[#This Row],[QTÉ-SOMME]]>0,"Reste","Modifié") -> Reste | N110: =SUM(O110:NB110) -> 0
A111: RI20-002667 | B111: 6 | C111: AMPPA14A006 | D111: =IF(RIGHT(LEFT(Tableau4[[#This Row],[CODE]],5),3)="PAC",$C$176,IF(RIGHT(LEFT(Tableau4[[#This Row],[CODE]],5),3)="PEX",$C$177,IF(OR(RIGHT(LEFT(Tableau4[[#This Row],[CODE]],5),3)="PPA",(RIGHT(LEFT(Tableau4[[#This Row],[CODE]],5),3)="PMX")),$C$179,$C$178))) -> PRINCIP ACTIF | E111: =Tableau4[[#This Row],[CODE]]&Tableau4[[#This Row],[DÉSIGNATION]]&Tableau4[[#This Row],[N° Lot]] -> AMPPA14A006METFORMINE A-22611611056 | F111: METFORMINE | G111: A-22611611056 | H111: 6797.61 | I111: 1062.15 | J111: 7220081.462 | K111: =Tableau4[[#This Row],[QTÉ + 2019]]-Tableau4[[#This Row],[SOMME]] -> 6797.61 | L111: =Tableau4[[#This Row],[QTÉ-SOMME]]*Tableau4[[#This Row],[PU. HT]] -> 7220081.462 | M111: =IF(Tableau4[[#This Row],[QTÉ-SOMME]]>0,"Reste","Modifié") -> Reste | N111: =SUM(O111:NB111) -> 0
A112: RI20-002668 | B112: 8 | C112: AMPPA13E002 | D112: =IF(RIGHT(LEFT(Tableau4[[#This Row],[CODE]],5),3)="PAC",$C$176,IF(RIGHT(LEFT(Tableau4[[#This Row],[CODE]],5),3)="PEX",$C$177,IF(OR(RIGHT(LEFT(Tableau4[[#This Row],[CODE]],5),3)="PPA",(RIGHT(LEFT(Tableau4[[#This Row],[CODE]],5),3)="PMX")),$C$179,$C$178))) -> PRINCIP ACTIF | E112: =Tableau4[[#This Row],[CODE]]&Tableau4[[#This Row],[DÉSIGNATION]]&Tableau4[[#This Row],[N° Lot]] -> AMPPA13E002METRONIDAZOLE BP2007/USP300121806133 | F112: METRONIDAZOLE BP2007/USP30 | G112: 0121806133 | H112: 283.18 | I112: 3427.55 | J112: 970613.609 | K112: =Tableau4[[#This Row],[QTÉ + 2019]]-Tableau4[[#This Row],[SOMME]] -> 0 | L112: =Tableau4[[#This Row],[QTÉ-SOMME]]*Tableau4[[#This Row],[PU. HT]] -> 0 | M112: =IF(Tableau4[[#This Row],[QTÉ-SOMME]]>0,"Reste","Modifié") -> Modifié | N112: =SUM(O112:NB112) -> 283.18 | O112: 283.18
A113: RI20-002667 | B113: 7 | C113: AMPMX06B001 | D113: =IF(RIGHT(LEFT(Tableau4[[#This Row],[CODE]],5),3)="PAC",$C$176,IF(RIGHT(LEFT(Tableau4[[#This Row],[CODE]],5),3)="PEX",$C$177,IF(OR(RIGHT(LEFT(Tableau4[[#This Row],[CODE]],5),3)="PPA",(RIGHT(LEFT(Tableau4[[#This Row],[CODE]],5),3)="PMX")),$C$179,$C$178))) -> PRINCIP ACTIF | E113: =Tableau4[[#This Row],[CODE]]&Tableau4[[#This Row],[DÉSIGNATION]]&Tableau4[[#This Row],[N° Lot]] -> AMPMX06B001NICARDIPINE 50mg SR PELLETFBZ4H903 | F113: NICARDIPINE 50mg SR PELLET | G113: FBZ4H903 | H113: 26.1 | I113: 12284.2 | J113: 320617.62 | K113: =Tableau4[[#This Row],[QTÉ + 2019]]-Tableau4[[#This Row],[SOMME]] -> 0 | L113: =Tableau4[[#This Row],[QTÉ-SOMME]]*Tableau4[[#This Row],[PU. HT]] -> 0 | M113: =IF(Tableau4[[#This Row],[QTÉ-SOMME]]>0,"Reste","Modifié") -> Modifié | N113: 26.1
A114: RI20-002666 | B114: 23 | C114: BMPAC008003 | D114: =IF(RIGHT(LEFT(Tableau4[[#This Row],[CODE]],5),3)="PAC",$C$176,IF(RIGHT(LEFT(Tableau4[[#This Row],[CODE]],5),3)="PEX",$C$177,IF(OR(RIGHT(LEFT(Tableau4[[#This Row],[CODE]],5),3)="PPA",(RIGHT(LEFT(Tableau4[[#This Row],[CODE]],5),3)="PMX")),$C$179,$C$178))) -> ARTICLE COND | E114: =Tableau4[[#This Row],[CODE]]&Tableau4[[#This Row],[DÉSIGNATION]]&Tableau4[[#This Row],[N° Lot]] -> BMPAC008003NOTICE AMPINAX 250 MP SIROP43289 | F114: NOTICE AMPINAX 250 MP SIROP | G114: 2018-07-08 | H114: 45555 | I114: 0.72 | J114: 32799.6 | K114: =Tableau4[[#This Row],[QTÉ + 2019]]-Tableau4[[#This Row],[SOMME]] -> 0 | L114: =Tableau4[[#This Row],[QTÉ-SOMME]]*Tableau4[[#This Row],[PU. HT]] -> 0 | M114: =IF(Tableau4[[#This Row],[QTÉ-SOMME]]>0,"Reste","Modifié") -> Modifié | N114: =SUM(O114:NB114) -> 45555 | O114: 25000 | P114: 20555
A115: RI19-002664 | B115: 53 | C115: AMPAC008005 | D115: =IF(RIGHT(LEFT(Tableau4[[#This Row],[CODE]],5),3)="PAC",$C$176,IF(RIGHT(LEFT(Tableau4[[#This Row],[CODE]],5),3)="PEX",$C$177,IF(OR(RIGHT(LEFT(Tableau4[[#This Row],[CODE]],5),3)="PPA",(RIGHT(LEFT(Tableau4[[#This Row],[CODE]],5),3)="PMX")),$C$179,$C$178))) -> ARTICLE COND | E115: =Tableau4[[#This Row],[CODE]]&Tableau4[[#This Row],[DÉSIGNATION]]&Tableau4[[#This Row],[N° Lot]] -> AMPAC008005NOTICE ANTAGMISS 30/04/2019 | F115: NOTICE ANTAG | G115: MISS 30/04/2019 | H115: 3440709 | I115: 0.72 | J115: 2477310.48 | K115: =Tableau4[[#This Row],[QTÉ + 2019]]-Tableau4[[#This Row],[SOMME]] -> 0 | L115: =Tableau4[[#This Row],[QTÉ-SOMME]]*Tableau4[[#This Row],[PU. HT]] -> 0 | M115: =IF(Tableau4[[#This Row],[QTÉ-SOMME]]>0,"Reste","Modifié") -> Modifié | N115: =SUM(O115:NB115) -> 3440709 | O115: 975000 | P115: 2465709
A116: RI20-002665 | B116: 36 | C116: AMPAC008070 | D116: =IF(RIGHT(LEFT(Tableau4[[#This Row],[CODE]],5),3)="PAC",$C$176,IF(RIGHT(LEFT(Tableau4[[#This Row],[CODE]],5),3)="PEX",$C$177,IF(OR(RIGHT(LEFT(Tableau4[[#This Row],[CODE]],5),3)="PPA",(RIGHT(LEFT(Tableau4[[#This Row],[CODE]],5),3)="PMX")),$C$179,$C$178))) -> ARTICLE COND | E116: =Tableau4[[#This Row],[CODE]]&Tableau4[[#This Row],[DÉSIGNATION]]&Tableau4[[#This Row],[N° Lot]] -> AMPAC008070NOTICE ARBOSE 50 mg "COMP".08/07/2018 | F116: NOTICE ARBOSE 50 mg "COMP". | G116: 08/07/2018 | H116: 76685 | I116: 0.72 | J116: 55213.2 | K116: =Tableau4[[#This Row],[QTÉ + 2019]]-Tableau4[[#This Row],[SOMME]] -> 76685 | L116: =Tableau4[[#This Row],[QTÉ-SOMME]]*Tableau4[[#This Row],[PU. HT]] -> 55213.2 | M116: =IF(Tableau4[[#This Row],[QTÉ-SOMME]]>0,"Reste","Modifié") -> Reste | N116: =SUM(O116:NB116) -> 0
A117: RI20-002666 | B117: 24 | C117: BMPAC008046 | D117: =IF(RIGHT(LEFT(Tableau4[[#This Row],[CODE]],5),3)="PAC",$C$176,IF(RIGHT(LEFT(Tableau4[[#This Row],[CODE]],5),3)="PEX",$C$177,IF(OR(RIGHT(LEFT(Tableau4[[#This Row],[CODE]],5),3)="PPA",(RIGHT(LEFT(Tableau4[[#This Row],[CODE]],5),3)="PMX")),$C$179,$C$178))) -> ARTICLE COND | E117: =Tableau4[[#This Row],[CODE]]&Tableau4[[#This Row],[DÉSIGNATION]]&Tableau4[[#This Row],[N° Lot]] -> BMPAC008046NOTICE BIOCLAVE 100 MG/12,5 MG/1 ML.miss 11/02/2019 | F117: NOTICE BIOCLAVE 100 MG/12,5 MG/1 ML. | G117: miss 11/02/2019 | H117: 1068716.06 | I117: 0.72 | J117: 769475.5632 | K117: =Tableau4[[#This Row],[QTÉ + 2019]]-Tableau4[[#This Row],[SOMME]] -> 744716.06 | L117: =Tableau4[[#This Row],[QTÉ-SOMME]]*Tableau4[[#This Row],[PU. HT]] -> 536195.5632 | M117: =IF(Tableau4[[#This Row],[QTÉ-SOMME]]>0,"Reste","Modifié") -> Reste | N117: =SUM(O117:NB117) -> 324000 | O117: 219000 | P117: 35000 | Q117: 35000 | R117: 35000
A118: RI20-002666 | B118: 25 | C118: BMPAC008048 | D118: =IF(RIGHT(LEFT(Tableau4[[#This Row],[CODE]],5),3)="PAC",$C$176,IF(RIGHT(LEFT(Tableau4[[#This Row],[CODE]],5),3)="PEX",$C$177,IF(OR(RIGHT(LEFT(Tableau4[[#This Row],[CODE]],5),3)="PPA",(RIGHT(LEFT(Tableau4[[#This Row],[CODE]],5),3)="PMX")),$C$179,$C$178))) -> ARTICLE COND | E118: =Tableau4[[#This Row],[CODE]]&Tableau4[[#This Row],[DÉSIGNATION]]&Tableau4[[#This Row],[N° Lot]] -> BMPAC008048NOTICE BIOCLAVE 500 MG/62,5 MG AD "COMP".059/19/A/02 | F118: NOTICE BIOCLAVE 500 MG/62,5 MG AD "COMP". | G118: 059/19/A/02 | H118: 96864 | I118: 0.96 | J118: 92989.44 | K118: =Tableau4[[#This Row],[QTÉ + 2019]]-Tableau4[[#This Row],[SOMME]] -> 0 | L118: =Tableau4[[#This Row],[QTÉ-SOMME]]*Tableau4[[#This Row],[PU. HT]] -> 0 | M118: =IF(Tableau4[[#This Row],[QTÉ-SOMME]]>0,"Reste","Modifié") -> Modifié | N118: 96864
A119: RI20-002666 | B119: 26 | C119: BMPAC008045 | D119: =IF(RIGHT(LEFT(Tableau4[[#This Row],[CODE]],5),3)="PAC",$C$176,IF(RIGHT(LEFT(Tableau4[[#This Row],[CODE]],5),3)="PEX",$C$177,IF(OR(RIGHT(LEFT(Tableau4[[#This Row],[CODE]],5),3)="PPA",(RIGHT(LEFT(Tableau4[[#This Row],[CODE]],5),3)="PMX")),$C$179,$C$178))) -> ARTICLE COND | E119: =Tableau4[[#This Row],[CODE]]&Tableau4[[#This Row],[DÉSIGNATION]]&Tableau4[[#This Row],[N° Lot]] -> BMPAC008045NOTICE BIOCLAVE AD+ENF "SACH".MISS 08/09/2019 | F119: NOTICE BIOCLAVE AD+ENF "SACH". | G119: MISS 08/09/2019 | H119: 2490814 | I119: 0.72 | J119: 1793386.08 | K119: =Tableau4[[#This Row],[QTÉ + 2019]]-Tableau4[[#This Row],[SOMME]] -> 1615816 | L119: =Tableau4[[#This Row],[QTÉ-SOMME]]*Tableau4[[#This Row],[PU. HT]] -> 1163387.52 | M119: =IF(Tableau4[[#This Row],[QTÉ-SOMME]]>0,"Reste","Modifié") -> Reste | N119: =SUM(O119:NB119) -> 874998 | O119: 325000 | P119: 26000 | Q119: 13000 | R119: 26000 | S119: 28000 | T119: 13000 | U119: 25000 | V119: 25000 | W119: 14000 | X119: 14000 | Y119: 12000 | Z119: 14000 | AA119: 14000 | AB119: 14000 | AC119: 29000 | AD119: 28000 | AE119: 28000 | AF119: 28000 | AG119: 28000 | AH119: 28000 | AI119: 27998 | AJ119: 28000 | AK119: 24000 | AL119: 25000 | AM119: 14000 | AN119: 24000
A120: RI20-002665 | B120: 37 | C120: BMPAC008008 | D120: =IF(RIGHT(LEFT(Tableau4[[#This Row],[CODE]],5),3)="PAC",$C$176,IF(RIGHT(LEFT(Tableau4[[#This Row],[CODE]],5),3)="PEX",$C$177,IF(OR(RIGHT(LEFT(Tableau4[[#This Row],[CODE]],5),3)="PPA",(RIGHT(LEFT(Tableau4[[#This Row],[CODE]],5),3)="PMX")),$C$179,$C$178))) -> ARTICLE COND | E120: =Tableau4[[#This Row],[CODE]]&Tableau4[[#This Row],[DÉSIGNATION]]&Tableau4[[#This Row],[N° Lot]] -> BMPAC008008NOTICE BIOPAMOX 250 MG SIROPMIS29/07/2019 | F120: NOTICE BIOPAMOX 250 MG SIROP | G120: MIS29/07/2019 | H120: 431405 | I120: 0.72 | J120: 310611.6 | K120: =Tableau4[[#This Row],[QTÉ + 2019]]-Tableau4[[#This Row],[SOMME]] -> 70405 | L120: =Tableau4[[#This Row],[QTÉ-SOMME]]*Tableau4[[#This Row],[PU. HT]] -> 50691.6 | M120: =IF(Tableau4[[#This Row],[QTÉ-SOMME]]>0,"Reste","Modifié") -> Reste | N120: 361000 | O120: 237000 | P120: 50000 | Q120: 50000 | R120: 24000
A121: RI20-002666 | B121: 27 | C121: BMPAC008050 | D121: =IF(RIGHT(LEFT(Tableau4[[#This Row],[CODE]],5),3)="PAC",$C$176,IF(RIGHT(LEFT(Tableau4[[#This Row],[CODE]],5),3)="PEX",$C$177,IF(OR(RIGHT(LEFT(Tableau4[[#This Row],[CODE]],5),3)="PPA",(RIGHT(LEFT(Tableau4[[#This Row],[CODE]],5),3)="PMX")),$C$179,$C$178))) -> ARTICLE COND | E121: =Tableau4[[#This Row],[CODE]]&Tableau4[[#This Row],[DÉSIGNATION]]&Tableau4[[#This Row],[N° Lot]] -> BMPAC008050NOTICE BIOPAMOX 500 MG/5 ML.miss 09/10/2019 | F121: NOTICE BIOPAMOX 500 MG/5 ML. | G121: miss 09/10/2019 | H121: 813676 | I121: 0.72 | J121: 585846.72 | K121: =Tableau4[[#This Row],[QTÉ + 2019]]-Tableau4[[#This Row],[SOMME]] -> 813676 | L121: =Tableau4[[#This Row],[QTÉ-SOMME]]*Tableau4[[#This Row],[PU. HT]] -> 585846.72 | M121: =IF(Tableau4[[#This Row],[QTÉ-SOMME]]>0,"Reste","Modifié") -> Reste | N121: 0
A122: RI20-002665 | B122: 38 | C122: AMPAC008035 | D122: =IF(RIGHT(LEFT(Tableau4[[#This Row],[CODE]],5),3)="PAC",$C$176,IF(RIGHT(LEFT(Tableau4[[#This Row],[CODE]],5),3)="PEX",$C$177,IF(OR(RIGHT(LEFT(Tableau4[[#This Row],[CODE]],5),3)="PPA",(RIGHT(LEFT(Tableau4[[#This Row],[CODE]],5),3)="PMX")),$C$179,$C$178))) -> ARTICLE COND | E122: =Tableau4[[#This Row],[CODE]]&Tableau4[[#This Row],[DÉSIGNATION]]&Tableau4[[#This Row],[N° Lot]] -> AMPAC008035NOTICE BUTAFEN 200 MG GELULESMISS 2019 | F122: NOTICE BUTAFEN 200 MG GELULES | G122: MISS 2019 | H122: 106157 | I122: 0.72 | J122: 76433.04 | K122: =Tableau4[[#This Row],[QTÉ + 2019]]-Tableau4[[#This Row],[SOMME]] -> 106157 | L122: =Tableau4[[#This Row],[QTÉ-SOMME]]*Tableau4[[#This Row],[PU. HT]] -> 76433.04 | M122: =IF(Tableau4[[#This Row],[QTÉ-SOMME]]>0,"Reste","Modifié") -> Reste | N122: 0
A123: RI20-002665 | B123: 39 | C123: AMPAC008043 | D123: =IF(RIGHT(LEFT(Tableau4[[#This Row],[CODE]],5),3)="PAC",$C$176,IF(RIGHT(LEFT(Tableau4[[#This Row],[CODE]],5),3)="PEX",$C$177,IF(OR(RIGHT(LEFT(Tableau4[[#This Row],[CODE]],5),3)="PPA",(RIGHT(LEFT(Tableau4[[#This Row],[CODE]],5),3)="PMX")),$C$179,$C$178))) -> ARTICLE COND | E123: =Tableau4[[#This Row],[CODE]]&Tableau4[[#This Row],[DÉSIGNATION]]&Tableau4[[#This Row],[N° Lot]] -> AMPAC008043NOTICE BUTAFEN 600 MG COMPMISS 2019 | F123: NOTICE BUTAFEN 600 MG COMP | G123: MISS 2019 | H123: 72867 | I123: 0.72 | J123: 52464.24 | K123: =Tableau4[[#This Row],[QTÉ + 2019]]-Tableau4[[#This Row],[SOMME]] -> 0 | L123: =Tableau4[[#This Row],[QTÉ-SOMME]]*Tableau4[[#This Row],[PU. HT]] -> 0 | M123: =IF(Tableau4[[#This Row],[QTÉ-SOMME]]>0,"Reste","Modifié") -> Modifié | N123: 72867 | O123: 72867
A124: RI20-002665 | B124: 40 | C124: AMPAC008072 | D124: =IF(RIGHT(LEFT(Tableau4[[#This Row],[CODE]],5),3)="PAC",$C$176,IF(RIGHT(LEFT(Tableau4[[#This Row],[CODE]],5),3)="PEX",$C$177,IF(OR(RIGHT(LEFT(Tableau4[[#This Row],[CODE]],5),3)="PPA",(RIGHT(LEFT(Tableau4[[#This Row],[CODE]],5),3)="PMX")),$C$179,$C$178))) -> ARTICLE COND | E124: =Tableau4[[#This Row],[CODE]]&Tableau4[[#This Row],[DÉSIGNATION]]&Tableau4[[#This Row],[N° Lot]] -> AMPAC008072NOTICE CABERNEX 0.5 mg "BT 08 COMP"miss 04/09/2019 | F124: NOTICE CABERNEX 0.5 mg "BT 08 COMP" | G124: miss 04/09/2019 | H124: 42365 | I124: 0.72 | J124: 30502.8 | K124: =Tableau4[[#This Row],[QTÉ + 2019]]-Tableau4[[#This Row],[SOMME]] -> 42365 | L124: =Tableau4[[#This Row],[QTÉ-SOMME]]*Tableau4[[#This Row],[PU. HT]] -> 30502.8 | M124: =IF(Tableau4[[#This Row],[QTÉ-SOMME]]>0,"Reste","Modifié") -> Reste | N124: 0
A125: RI20-002665 | B125: 41 | C125: AMPAC008061 | D125: =IF(RIGHT(LEFT(Tableau4[[#This Row],[CODE]],5),3)="PAC",$C$176,IF(RIGHT(LEFT(Tableau4[[#This Row],[CODE]],5),3)="PEX",$C$177,IF(OR(RIGHT(LEFT(Tableau4[[#This Row],[CODE]],5),3)="PPA",(RIGHT(LEFT(Tableau4[[#This Row],[CODE]],5),3)="PMX")),$C$179,$C$178))) -> ARTICLE COND | E125: =Tableau4[[#This Row],[CODE]]&Tableau4[[#This Row],[DÉSIGNATION]]&Tableau4[[#This Row],[N° Lot]] -> AMPAC008061NOTICE CIPROTEKREF 24/09/2019 | F125: NOTICE CIPROTEK | G125: REF 24/09/2019 | H125: 27008 | I125: 0.98 | J125: 26467.84 | K125: =Tableau4[[#This Row],[QTÉ + 2019]]-Tableau4[[#This Row],[SOMME]] -> 0 | L125: =Tableau4[[#This Row],[QTÉ-SOMME]]*Tableau4[[#This Row],[PU. HT]] -> 0 | M125: =IF(Tableau4[[#This Row],[QTÉ-SOMME]]>0,"Reste","Modifié") -> Modifié | N125: 27008 | O125: 27008
A126: RI20-002665 | B126: 42 | C126: AMPAC008055 | D126: =IF(RIGHT(LEFT(Tableau4[[#This Row],[CODE]],5),3)="PAC",$C$176,IF(RIGHT(LEFT(Tableau4[[#This Row],[CODE]],5),3)="PEX",$C$177,IF(OR(RIGHT(LEFT(Tableau4[[#This Row],[CODE]],5),3)="PPA",(RIGHT(LEFT(Tableau4[[#This Row],[CODE]],5),3)="PMX")),$C$179,$C$178))) -> ARTICLE COND | E126: =Tableau4[[#This Row],[CODE]]&Tableau4[[#This Row],[DÉSIGNATION]]&Tableau4[[#This Row],[N° Lot]] -> AMPAC008055NOTICE DIAGLINIDEmiss 21/09/2019 | F126: NOTICE DIAGLINIDE | G126: miss 21/09/2019 | H126: 589074 | I126: 0.72 | J126: 424133.28 | K126: =Tableau4[[#This Row],[QTÉ + 2019]]-Tableau4[[#This Row],[SOMME]] -> 0 | L126: =Tableau4[[#This Row],[QTÉ-SOMME]]*Tableau4[[#This Row],[PU. HT]] -> 0 | M126: =IF(Tableau4[[#This Row],[QTÉ-SOMME]]>0,"Reste","Modifié") -> Modifié | N126: 589074
A127: RI20-002665 | B127: 43 | C127: AMPAC008015 | D127: =IF(RIGHT(LEFT(Tableau4[[#This Row],[CODE]],5),3)="PAC",$C$176,IF(RIGHT(LEFT(Tableau4[[#This Row],[CODE]],5),3)="PEX",$C$177,IF(OR(RIGHT(LEFT(Tableau4[[#This Row],[CODE]],5),3)="PPA",(RIGHT(LEFT(Tableau4[[#This Row],[CODE]],5),3)="PMX")),$C$179,$C$178))) -> ARTICLE COND | E127: =Tableau4[[#This Row],[CODE]]&Tableau4[[#This Row],[DÉSIGNATION]]&Tableau4[[#This Row],[N° Lot]] -> AMPAC008015NOTICE FLOVENAC L.P 75 MG+ NOTICE FLOVENAC 50 MG (FABRICATION).mis 15/08/19 | F127: NOTICE FLOVENAC L.P 75 MG+ NOTICE FLOVENAC 50 MG (FABRICATION). | G127: mis 15/08/19 | H127: 1127483 | I127: 0.72 | J127: 811787.76 | K127: =Tableau4[[#This Row],[QTÉ + 2019]]-Tableau4[[#This Row],[SOMME]] -> 646483 | L127: =Tableau4[[#This Row],[QTÉ-SOMME]]*Tableau4[[#This Row],[PU. HT]] -> 465467.76 | M127: =IF(Tableau4[[#This Row],[QTÉ-SOMME]]>0,"Reste","Modifié") -> Reste | N127: =SUM(O127:NB127) -> 481000 | O127: 150000 | P127: 100000 | Q127: 100000 | R127: 50000 | S127: 66000 | T127: 15000
A128: RI20-002665 | B128: 44 | C128: AMPAC008019 | D128: =IF(RIGHT(LEFT(Tableau4[[#This Row],[CODE]],5),3)="PAC",$C$176,IF(RIGHT(LEFT(Tableau4[[#This Row],[CODE]],5),3)="PEX",$C$177,IF(OR(RIGHT(LEFT(Tableau4[[#This Row],[CODE]],5),3)="PPA",(RIGHT(LEFT(Tableau4[[#This Row],[CODE]],5),3)="PMX")),$C$179,$C$178))) -> ARTICLE COND | E128: =Tableau4[[#This Row],[CODE]]&Tableau4[[#This Row],[DÉSIGNATION]]&Tableau4[[#This Row],[N° Lot]] -> AMPAC008019NOTICE FORMENTIN BT 100MISS 2019 | F128: NOTICE FORMENTIN BT 100 | G128: MISS 2019 | H128: 50839 | I128: 0.72 | J128: 36604.08 | K128: =Tableau4[[#This Row],[QTÉ + 2019]]-Tableau4[[#This Row],[SOMME]] -> 50839 | L128: =Tableau4[[#This Row],[QTÉ-SOMME]]*Tableau4[[#This Row],[PU. HT]] -> 36604.08 | M128: =IF(Tableau4[[#This Row],[QTÉ-SOMME]]>0,"Reste","Modifié") -> Reste | N128: =SUM(O128:NB128) -> 0
A129: RI20-002665 | B129: 45 | C129: AMPAC008022 | D129: =IF(RIGHT(LEFT(Tableau4[[#This Row],[CODE]],5),3)="PAC",$C$176,IF(RIGHT(LEFT(Tableau4[[#This Row],[CODE]],5),3)="PEX",$C$177,IF(OR(RIGHT(LEFT(Tableau4[[#This Row],[CODE]],5),3)="PPA",(RIGHT(LEFT(Tableau4[[#This Row],[CODE]],5),3)="PMX")),$C$179,$C$178))) -> ARTICLE COND | E129: =Tableau4[[#This Row],[CODE]]&Tableau4[[#This Row],[DÉSIGNATION]]&Tableau4[[#This Row],[N° Lot]] -> AMPAC008022NOTICE NICARDIPINEMISS 24/06/2018 | F129: NOTICE NICARDIPINE | G129: MISS 24/06/2018 | H129: 39605 | I129: 0.72 | J129: 28515.6 | K129: =Tableau4[[#This Row],[QTÉ + 2019]]-Tableau4[[#This Row],[SOMME]] -> 0 | L129: =Tableau4[[#This Row],[QTÉ-SOMME]]*Tableau4[[#This Row],[PU. HT]] -> 0 | M129: =IF(Tableau4[[#This Row],[QTÉ-SOMME]]>0,"Reste","Modifié") -> Modifié | N129: 39605
A130: RI20-002665 | B130: 46 | C130: AMPAC008023 | D130: =IF(RIGHT(LEFT(Tableau4[[#This Row],[CODE]],5),3)="PAC",$C$176,IF(RIGHT(LEFT(Tableau4[[#This Row],[CODE]],5),3)="PEX",$C$177,IF(OR(RIGHT(LEFT(Tableau4[[#This Row],[CODE]],5),3)="PPA",(RIGHT(LEFT(Tableau4[[#This Row],[CODE]],5),3)="PMX")),$C$179,$C$178))) -> ARTICLE COND | E130: =Tableau4[[#This Row],[CODE]]&Tableau4[[#This Row],[DÉSIGNATION]]&Tableau4[[#This Row],[N° Lot]] -> AMPAC008023NOTICE OROGYLREF 26/04/2019 | F130: NOTICE OROGYL | G130: REF 26/04/2019 | H130: 51689 | I130: 0.53 | J130: 27395.17 | K130: =Tableau4[[#This Row],[QTÉ + 2019]]-Tableau4[[#This Row],[SOMME]] -> 0 | L130: =Tableau4[[#This Row],[QTÉ-SOMME]]*Tableau4[[#This Row],[PU. HT]] -> 0 | M130: =IF(Tableau4[[#This Row],[QTÉ-SOMME]]>0,"Reste","Modifié") -> Modifié | N130: =SUM(O130:NB130) -> 51689 | O130: 10000 | P130: 10000 | Q130: 10000 | R130: 21689
A131: RI20-002667 | B131: 12 | C131: AMPAC008027 | D131: =IF(RIGHT(LEFT(Tableau4[[#This Row],[CODE]],5),3)="PAC",$C$176,IF(RIGHT(LEFT(Tableau4[[#This Row],[CODE]],5),3)="PEX",$C$177,IF(OR(RIGHT(LEFT(Tableau4[[#This Row],[CODE]],5),3)="PPA",(RIGHT(LEFT(Tableau4[[#This Row],[CODE]],5),3)="PMX")),$C$179,$C$178))) -> ARTICLE COND | E131: =Tableau4[[#This Row],[CODE]]&Tableau4[[#This Row],[DÉSIGNATION]]&Tableau4[[#This Row],[N° Lot]] -> AMPAC008027NOTICE PARACETAMOLmiss 19/07/2018 | F131: NOTICE PARACETAMOL | G131: miss 19/07/2018 | H131: 567927 | I131: 0.72 | J131: 408907.44 | K131: =Tableau4[[#This Row],[QTÉ + 2019]]-Tableau4[[#This Row],[SOMME]] -> 512927 | L131: =Tableau4[[#This Row],[QTÉ-SOMME]]*Tableau4[[#This Row],[PU. HT]] -> 369307.44 | M131: =IF(Tableau4[[#This Row],[QTÉ-SOMME]]>0,"Reste","Modifié") -> Reste | N131: =SUM(O131:NB131) -> 55000 | O131: 55000
A132: RI20-002665 | B132: 47 | C132: AMPAC008030 | D132: =IF(RIGHT(LEFT(Tableau4[[#This Row],[CODE]],5),3)="PAC",$C$176,IF(RIGHT(LEFT(Tableau4[[#This Row],[CODE]],5),3)="PEX",$C$177,IF(OR(RIGHT(LEFT(Tableau4[[#This Row],[CODE]],5),3)="PPA",(RIGHT(LEFT(Tableau4[[#This Row],[CODE]],5),3)="PMX")),$C$179,$C$178))) -> ARTICLE COND | E132: =Tableau4[[#This Row],[CODE]]&Tableau4[[#This Row],[DÉSIGNATION]]&Tableau4[[#This Row],[N° Lot]] -> AMPAC008030NOTICE RANICAREMISS 2019 | F132: NOTICE RANICARE | G132: MISS 2019 | H132: 39971 | I132: 0.72 | J132: 28779.12 | K132: =Tableau4[[#This Row],[QTÉ + 2019]]-Tableau4[[#This Row],[SOMME]] -> 39971 | L132: =Tableau4[[#This Row],[QTÉ-SOMME]]*Tableau4[[#This Row],[PU. HT]] -> 28779.12 | M132: =IF(Tableau4[[#This Row],[QTÉ-SOMME]]>0,"Reste","Modifié") -> Reste | N132: =SUM(O132:NB132) -> 0
A133: RI20-002665 | B133: 48 | C133: AMPAC008032 | D133: =IF(RIGHT(LEFT(Tableau4[[#This Row],[CODE]],5),3)="PAC",$C$176,IF(RIGHT(LEFT(Tableau4[[#This Row],[CODE]],5),3)="PEX",$C$177,IF(OR(RIGHT(LEFT(Tableau4[[#This Row],[CODE]],5),3)="PPA",(RIGHT(LEFT(Tableau4[[#This Row],[CODE]],5),3)="PMX")),$C$179,$C$178))) -> ARTICLE COND | E133: =Tableau4[[#This Row],[CODE]]&Tableau4[[#This Row],[DÉSIGNATION]]&Tableau4[[#This Row],[N° Lot]] -> AMPAC008032NOTICE SPIRACAREMIS 29/07/2019 | F133: NOTICE SPIRACARE | G133: MIS 29/07/2019 | H133: 294281 | I133: 0.72 | J133: 211882.32 | K133: =Tableau4[[#This Row],[QTÉ + 2019]]-Tableau4[[#This Row],[SOMME]] -> 291281 | L133: =Tableau4[[#This Row],[QTÉ-SOMME]]*Tableau4[[#This Row],[PU. HT]] -> 209722.32 | M133: =IF(Tableau4[[#This Row],[QTÉ-SOMME]]>0,"Reste","Modifié") -> Reste | N133: =SUM(O133:NB133) -> 3000 | O133: 3000
A134: RI20-002665 | B134: 49 | C134: AMPAC008053 | D134: =IF(RIGHT(LEFT(Tableau4[[#This Row],[CODE]],5),3)="PAC",$C$176,IF(RIGHT(LEFT(Tableau4[[#This Row],[CODE]],5),3)="PEX",$C$177,IF(OR(RIGHT(LEFT(Tableau4[[#This Row],[CODE]],5),3)="PPA",(RIGHT(LEFT(Tableau4[[#This Row],[CODE]],5),3)="PMX")),$C$179,$C$178))) -> ARTICLE COND | E134: =Tableau4[[#This Row],[CODE]]&Tableau4[[#This Row],[DÉSIGNATION]]&Tableau4[[#This Row],[N° Lot]] -> AMPAC008053NOTICE TRIMEBUTINE BIOCAREmiss 21/09/2019 | F134: NOTICE TRIMEBUTINE BIOCARE | G134: miss 21/09/2019 | H134: 238319 | I134: 0.72 | J134: 171589.68 | K134: =Tableau4[[#This Row],[QTÉ + 2019]]-Tableau4[[#This Row],[SOMME]] -> 0 | L134: =Tableau4[[#This Row],[QTÉ-SOMME]]*Tableau4[[#This Row],[PU. HT]] -> 0 | M134: =IF(Tableau4[[#This Row],[QTÉ-SOMME]]>0,"Reste","Modifié") -> Modifié | N134: 238319
A135: RI20-002665 | B135: 50 | C135: AMPAC008034 | D135: =IF(RIGHT(LEFT(Tableau4[[#This Row],[CODE]],5),3)="PAC",$C$176,IF(RIGHT(LEFT(Tableau4[[#This Row],[CODE]],5),3)="PEX",$C$177,IF(OR(RIGHT(LEFT(Tableau4[[#This Row],[CODE]],5),3)="PPA",(RIGHT(LEFT(Tableau4[[#This Row],[CODE]],5),3)="PMX")),$C$179,$C$178))) -> ARTICLE COND | E135: =Tableau4[[#This Row],[CODE]]&Tableau4[[#This Row],[DÉSIGNATION]]&Tableau4[[#This Row],[N° Lot]] -> AMPAC008034NOTICE TROIS BMISS 06/05/2019 | F135: NOTICE TROIS B | G135: MISS 06/05/2019 | H135: 130435 | I135: 0.72 | J135: 93913.2 | K135: =Tableau4[[#This Row],[QTÉ + 2019]]-Tableau4[[#This Row],[SOMME]] -> 130435 | L135: =Tableau4[[#This Row],[QTÉ-SOMME]]*Tableau4[[#This Row],[PU. HT]] -> 93913.2 | M135: =IF(Tableau4[[#This Row],[QTÉ-SOMME]]>0,"Reste","Modifié") -> Reste | N135: =SUM(O135:NB135) -> 0
A136: RI20-002665 | B136: 51 | C136: AMPAC008073 | D136: =IF(RIGHT(LEFT(Tableau4[[#This Row],[CODE]],5),3)="PAC",$C$176,IF(RIGHT(LEFT(Tableau4[[#This Row],[CODE]],5),3)="PEX",$C$177,IF(OR(RIGHT(LEFT(Tableau4[[#This Row],[CODE]],5),3)="PPA",(RIGHT(LEFT(Tableau4[[#This Row],[CODE]],5),3)="PMX")),$C$179,$C$178))) -> ARTICLE COND | E136: =Tableau4[[#This Row],[CODE]]&Tableau4[[#This Row],[DÉSIGNATION]]&Tableau4[[#This Row],[N° Lot]] -> AMPAC008073NOTICE UDINE 5 mgMISS2019 | F136: NOTICE UDINE 5 mg | G136: MISS2019 | H136: 22669 | I136: 0.72 | J136: 16321.68 | K136: =Tableau4[[#This Row],[QTÉ + 2019]]-Tableau4[[#This Row],[SOMME]] -> 0 | L136: =Tableau4[[#This Row],[QTÉ-SOMME]]*Tableau4[[#This Row],[PU. HT]] -> 0 | M136: =IF(Tableau4[[#This Row],[QTÉ-SOMME]]>0,"Reste","Modifié") -> Modifié | N136: 22669
A137: RI20-002665 | B137: 52 | C137: AMPAC008054 | D137: =IF(RIGHT(LEFT(Tableau4[[#This Row],[CODE]],5),3)="PAC",$C$176,IF(RIGHT(LEFT(Tableau4[[#This Row],[CODE]],5),3)="PEX",$C$177,IF(OR(RIGHT(LEFT(Tableau4[[#This Row],[CODE]],5),3)="PPA",(RIGHT(LEFT(Tableau4[[#This Row],[CODE]],5),3)="PMX")),$C$179,$C$178))) -> ARTICLE COND | E137: =Tableau4[[#This Row],[CODE]]&Tableau4[[#This Row],[DÉSIGNATION]]&Tableau4[[#This Row],[N° Lot]] -> AMPAC008054NOTICE URICARE 3 g "1 SACH".ref 25/12/2019 | F137: NOTICE URICARE 3 g "1 SACH". | G137: ref 25/12/2019 | H137: 31569 | I137: 0.55 | J137: 17362.95 | K137: =Tableau4[[#This Row],[QTÉ + 2019]]-Tableau4[[#This Row],[SOMME]] -> 0 | L137: =Tableau4[[#This Row],[QTÉ-SOMME]]*Tableau4[[#This Row],[PU. HT]] -> 0 | M137: =IF(Tableau4[[#This Row],[QTÉ-SOMME]]>0,"Reste","Modifié") -> Modifié | N137: =SUM(O137:NB137) -> 31569 | O137: 31569
A138: RI20-002665 | B138: 53 | C138: AMPAC008060 | D138: =IF(RIGHT(LEFT(Tableau4[[#This Row],[CODE]],5),3)="PAC",$C$176,IF(RIGHT(LEFT(Tableau4[[#This Row],[CODE]],5),3)="PEX",$C$177,IF(OR(RIGHT(LEFT(Tableau4[[#This Row],[CODE]],5),3)="PPA",(RIGHT(LEFT(Tableau4[[#This Row],[CODE]],5),3)="PMX")),$C$179,$C$178))) -> ARTICLE COND | E138: =Tableau4[[#This Row],[CODE]]&Tableau4[[#This Row],[DÉSIGNATION]]&Tableau4[[#This Row],[N° Lot]] -> AMPAC008060NOTICE XYCARE 5 mgmis15/08/19 | F138: NOTICE XYCARE 5 mg | G138: mis15/08/19 | H138: 488120 | I138: 0.72 | J138: 351446.4 | K138: =Tableau4[[#This Row],[QTÉ + 2019]]-Tableau4[[#This Row],[SOMME]] -> 418120 | L138: =Tableau4[[#This Row],[QTÉ-SOMME]]*Tableau4[[#This Row],[PU. HT]] -> 301046.4 | M138: =IF(Tableau4[[#This Row],[QTÉ-SOMME]]>0,"Reste","Modifié") -> Reste | N138: 70000 | O138: 70000
A139: RI20-002673 | B139: 1 | C139: AMPMX10A002 | D139: =IF(RIGHT(LEFT(Tableau4[[#This Row],[CODE]],5),3)="PAC",$C$176,IF(RIGHT(LEFT(Tableau4[[#This Row],[CODE]],5),3)="PEX",$C$177,IF(OR(RIGHT(LEFT(Tableau4[[#This Row],[CODE]],5),3)="PPA",(RIGHT(LEFT(Tableau4[[#This Row],[CODE]],5),3)="PMX")),$C$179,$C$178))) -> PRINCIP ACTIF | E139: =Tableau4[[#This Row],[CODE]]&Tableau4[[#This Row],[DÉSIGNATION]]&Tableau4[[#This Row],[N° Lot]] -> AMPMX10A002OMEPRAZOLE PELLETS 8.5%FBG2F912 | F139: OMEPRAZOLE PELLETS 8.5% | G139: FBG2F912 | H139: 16582.71 | I139: 7868.97 | J139: 80641440.63 | K139: =Tableau4[[#This Row],[QTÉ + 2019]]-Tableau4[[#This Row],[SOMME]] -> 16582.71 | L139: =Tableau4[[#This Row],[QTÉ-SOMME]]*Tableau4[[#This Row],[PU. HT]] -> 130488847.5 | M139: =IF(Tableau4[[#This Row],[QTÉ-SOMME]]>0,"Reste","Modifié") -> Reste | N139: 0
A140: RI20-002665 | B140: 29 | C140: KMPEX003010 | D140: =IF(RIGHT(LEFT(Tableau4[[#This Row],[CODE]],5),3)="PAC",$C$176,IF(RIGHT(LEFT(Tableau4[[#This Row],[CODE]],5),3)="PEX",$C$177,IF(OR(RIGHT(LEFT(Tableau4[[#This Row],[CODE]],5),3)="PPA",(RIGHT(LEFT(Tableau4[[#This Row],[CODE]],5),3)="PMX")),$C$179,$C$178))) -> EXCIPIENTS | E140: =Tableau4[[#This Row],[CODE]]&Tableau4[[#This Row],[DÉSIGNATION]]&Tableau4[[#This Row],[N° Lot]] -> KMPEX003010OPADRY II BLUEDT669670 REF 85F20694 | F140: OPADRY II BLUE | G140: DT669670 REF 85F20694 | H140: 1.31 | I140: 7716.62 | J140: 10108.7722 | K140: =Tableau4[[#This Row],[QTÉ + 2019]]-Tableau4[[#This Row],[SOMME]] -> 1.31 | L140: =Tableau4[[#This Row],[QTÉ-SOMME]]*Tableau4[[#This Row],[PU. HT]] -> 10108.7722 | M140: =IF(Tableau4[[#This Row],[QTÉ-SOMME]]>0,"Reste","Modifié") -> Reste | N140: 0
A141: RI20-002665 | B141: 30 | C141: KMPEX003006 | D141: =IF(RIGHT(LEFT(Tableau4[[#This Row],[CODE]],5),3)="PAC",$C$176,IF(RIGHT(LEFT(Tableau4[[#This Row],[CODE]],5),3)="PEX",$C$177,IF(OR(RIGHT(LEFT(Tableau4[[#This Row],[CODE]],5),3)="PPA",(RIGHT(LEFT(Tableau4[[#This Row],[CODE]],5),3)="PMX")),$C$179,$C$178))) -> EXCIPIENTS | E141: =Tableau4[[#This Row],[CODE]]&Tableau4[[#This Row],[DÉSIGNATION]]&Tableau4[[#This Row],[N° Lot]] -> KMPEX003006OPADRY II PINK OY-1350DT629564 | F141: OPADRY II PINK OY-1350 | G141: DT629564 | H141: 60.54 | I141: 6077.2 | J141: 367913.688 | K141: =Tableau4[[#This Row],[QTÉ + 2019]]-Tableau4[[#This Row],[SOMME]] -> 60.54 | L141: =Tableau4[[#This Row],[QTÉ-SOMME]]*Tableau4[[#This Row],[PU. HT]] -> 367913.688 | M141: =IF(Tableau4[[#This Row],[QTÉ-SOMME]]>0,"Reste","Modifié") -> Reste | N141: 0
A142: RI20-002665 | B142: 31 | C142: KMPEX003007 | D142: =IF(RIGHT(LEFT(Tableau4[[#This Row],[CODE]],5),3)="PAC",$C$176,IF(RIGHT(LEFT(Tableau4[[#This Row],[CODE]],5),3)="PEX",$C$177,IF(OR(RIGHT(LEFT(Tableau4[[#This Row],[CODE]],5),3)="PPA",(RIGHT(LEFT(Tableau4[[#This Row],[CODE]],5),3)="PMX")),$C$179,$C$178))) -> EXCIPIENTS | E142: =Tableau4[[#This Row],[CODE]]&Tableau4[[#This Row],[DÉSIGNATION]]&Tableau4[[#This Row],[N° Lot]] -> KMPEX003007OPADRY WHITE OY-7300DT686328 | F142: OPADRY WHITE OY-7300 | G142: DT686328 | H142: 14.77 | I142: 10862.64 | J142: 160441.1928 | K142: =Tableau4[[#This Row],[QTÉ + 2019]]-Tableau4[[#This Row],[SOMME]] -> 14.77 | L142: =Tableau4[[#This Row],[QTÉ-SOMME]]*Tableau4[[#This Row],[PU. HT]] -> 160441.1928 | M142: =IF(Tableau4[[#This Row],[QTÉ-SOMME]]>0,"Reste","Modifié") -> Reste | N142: 0
A143: RI20-002667 | B143: 4 | C143: AMPMX03B001 | D143: =IF(RIGHT(LEFT(Tableau4[[#This Row],[CODE]],5),3)="PAC",$C$176,IF(RIGHT(LEFT(Tableau4[[#This Row],[CODE]],5),3)="PEX",$C$177,IF(OR(RIGHT(LEFT(Tableau4[[#This Row],[CODE]],5),3)="PPA",(RIGHT(LEFT(Tableau4[[#This Row],[CODE]],5),3)="PMX")),$C$179,$C$178))) -> PRINCIP ACTIF | E143: =Tableau4[[#This Row],[CODE]]&Tableau4[[#This Row],[DÉSIGNATION]]&Tableau4[[#This Row],[N° Lot]] -> AMPMX03B001PARACETAMOL GRANULES READY FOR SACHETFO09B916 | F143: PARACETAMOL GRANULES READY FOR SACHET | G143: FO09B916 | H143: 21856.32 | I143: 1539.46 | J143: 33646930.39 | K143: =Tableau4[[#This Row],[QTÉ + 2019]]-Tableau4[[#This Row],[SOMME]] -> 20856.32 | L143: =Tableau4[[#This Row],[QTÉ-SOMME]]*Tableau4[[#This Row],[PU. HT]] -> 32107470.39 | M143: =IF(Tableau4[[#This Row],[QTÉ-SOMME]]>0,"Reste","Modifié") -> Reste | N143: 1000 | O143: 1000
A144: RI20-002666 | B144: 17 | C144: KMPEX001020 | D144: =IF(RIGHT(LEFT(Tableau4[[#This Row],[CODE]],5),3)="PAC",$C$176,IF(RIGHT(LEFT(Tableau4[[#This Row],[CODE]],5),3)="PEX",$C$177,IF(OR(RIGHT(LEFT(Tableau4[[#This Row],[CODE]],5),3)="PPA",(RIGHT(LEFT(Tableau4[[#This Row],[CODE]],5),3)="PMX")),$C$179,$C$178))) -> EXCIPIENTS | E144: =Tableau4[[#This Row],[CODE]]&Tableau4[[#This Row],[DÉSIGNATION]]&Tableau4[[#This Row],[N° Lot]] -> KMPEX001020PARAHYDROXYL BENZOATE DE METHYLBM17113011 | F144: PARAHYDROXYL BENZOATE DE METHYL | G144: BM17113011 | H144: 10.64 | I144: 4897.21 | J144: 52106.3144 | K144: =Tableau4[[#This Row],[QTÉ + 2019]]-Tableau4[[#This Row],[SOMME]] -> 10.64 | L144: =Tableau4[[#This Row],[QTÉ-SOMME]]*Tableau4[[#This Row],[PU. HT]] -> 52106.3144 | M144: =IF(Tableau4[[#This Row],[QTÉ-SOMME]]>0,"Reste","Modifié") -> Reste | N144: 0
A145: RI20-002666 | B145: 18 | C145: KMPEX001021 | D145: =IF(RIGHT(LEFT(Tableau4[[#This Row],[CODE]],5),3)="PAC",$C$176,IF(RIGHT(LEFT(Tableau4[[#This Row],[CODE]],5),3)="PEX",$C$177,IF(OR(RIGHT(LEFT(Tableau4[[#This Row],[CODE]],5),3)="PPA",(RIGHT(LEFT(Tableau4[[#This Row],[CODE]],5),3)="PMX")),$C$179,$C$178))) -> EXCIPIENTS | E145: =Tableau4[[#This Row],[CODE]]&Tableau4[[#This Row],[DÉSIGNATION]]&Tableau4[[#This Row],[N° Lot]] -> KMPEX001021PARAHYDROXYL BENZOATE DE PROPYLBP15032611 | F145: PARAHYDROXYL BENZOATE DE PROPYL | G145: BP15032611 | H145: 2.58 | I145: 4231.76 | J145: 10917.9408 | K145: =Tableau4[[#This Row],[QTÉ + 2019]]-Tableau4[[#This Row],[SOMME]] -> 2.58 | L145: =Tableau4[[#This Row],[QTÉ-SOMME]]*Tableau4[[#This Row],[PU. HT]] -> 10917.9408 | M145: =IF(Tableau4[[#This Row],[QTÉ-SOMME]]>0,"Reste","Modifié") -> Reste | N145: 0
A146: RI20-002665 | B146: 32 | C146: KMPEX001022 | D146: =IF(RIGHT(LEFT(Tableau4[[#This Row],[CODE]],5),3)="PAC",$C$176,IF(RIGHT(LEFT(Tableau4[[#This Row],[CODE]],5),3)="PEX",$C$177,IF(OR(RIGHT(LEFT(Tableau4[[#This Row],[CODE]],5),3)="PPA",(RIGHT(LEFT(Tableau4[[#This Row],[CODE]],5),3)="PMX")),$C$179,$C$178))) -> EXCIPIENTS | E146: =Tableau4[[#This Row],[CODE]]&Tableau4[[#This Row],[DÉSIGNATION]]&Tableau4[[#This Row],[N° Lot]] -> KMPEX001022PEG 6000 PdreDEA4006120 | F146: PEG 6000 Pdre | G146: DEA4006120 | H146: 19.51 | I146: 2316.74 | J146: 45199.5974 | K146: =Tableau4[[#This Row],[QTÉ + 2019]]-Tableau4[[#This Row],[SOMME]] -> 0 | L146: =Tableau4[[#This Row],[QTÉ-SOMME]]*Tableau4[[#This Row],[PU. HT]] -> 0 | M146: =IF(Tableau4[[#This Row],[QTÉ-SOMME]]>0,"Reste","Modifié") -> Modifié | N146: 19.51 | O146: 19.51
A147: RI20-002670 | B147: 2 | C147: KMPAC011011 | D147: =IF(RIGHT(LEFT(Tableau4[[#This Row],[CODE]],5),3)="PAC",$C$176,IF(RIGHT(LEFT(Tableau4[[#This Row],[CODE]],5),3)="PEX",$C$177,IF(OR(RIGHT(LEFT(Tableau4[[#This Row],[CODE]],5),3)="PPA",(RIGHT(LEFT(Tableau4[[#This Row],[CODE]],5),3)="PMX")),$C$179,$C$178))) -> ARTICLE COND | E147: =Tableau4[[#This Row],[CODE]]&Tableau4[[#This Row],[DÉSIGNATION]]&Tableau4[[#This Row],[N° Lot]] -> KMPAC011011PIPETTE SIROPROV 07/05/2019 | F147: PIPETTE SIROP | G147: ROV 07/05/2019 | H147: 1087859 | I147: 13.11 | J147: 14261831.49 | K147: =Tableau4[[#This Row],[QTÉ + 2019]]-Tableau4[[#This Row],[SOMME]] -> 802859 | L147: =Tableau4[[#This Row],[QTÉ-SOMME]]*Tableau4[[#This Row],[PU. HT]] -> 10525481.49 | M147: =IF(Tableau4[[#This Row],[QTÉ-SOMME]]>0,"Reste","Modifié") -> Reste | N147: 285000 | O147: 179400 | P147: 36000 | Q147: 34800 | R147: 34800
A148: RI19-002664 | B148: 41 | C148: KMPEX001052 | D148: =IF(RIGHT(LEFT(Tableau4[[#This Row],[CODE]],5),3)="PAC",$C$176,IF(RIGHT(LEFT(Tableau4[[#This Row],[CODE]],5),3)="PEX",$C$177,IF(OR(RIGHT(LEFT(Tableau4[[#This Row],[CODE]],5),3)="PPA",(RIGHT(LEFT(Tableau4[[#This Row],[CODE]],5),3)="PMX")),$C$179,$C$178))) -> EXCIPIENTS | E148: =Tableau4[[#This Row],[CODE]]&Tableau4[[#This Row],[DÉSIGNATION]]&Tableau4[[#This Row],[N° Lot]] -> KMPEX001052POLACRILIN POTASSIUM3001Z/15/5 | F148: POLACRILIN POTASSIUM | G148: 3001Z/15/5 | H148: 240.19 | I148: 12915.99 | J148: 3102291.638 | K148: =Tableau4[[#This Row],[QTÉ + 2019]]-Tableau4[[#This Row],[SOMME]] -> 0 | L148: =Tableau4[[#This Row],[QTÉ-SOMME]]*Tableau4[[#This Row],[PU. HT]] -> 0 | M148: =IF(Tableau4[[#This Row],[QTÉ-SOMME]]>0,"Reste","Modifié") -> Modifié | N148: 240.19
A149: RI19-002664 | B149: 42 | C149: KMPEX001025 | D149: =IF(RIGHT(LEFT(Tableau4[[#This Row],[CODE]],5),3)="PAC",$C$176,IF(RIGHT(LEFT(Tableau4[[#This Row],[CODE]],5),3)="PEX",$C$177,IF(OR(RIGHT(LEFT(Tableau4[[#This Row],[CODE]],5),3)="PPA",(RIGHT(LEFT(Tableau4[[#This Row],[CODE]],5),3)="PMX")),$C$179,$C$178))) -> EXCIPIENTS | E149: =Tableau4[[#This Row],[CODE]]&Tableau4[[#This Row],[DÉSIGNATION]]&Tableau4[[#This Row],[N° Lot]] -> KMPEX001025Polyvidone pyrolidone- PVP ( K 30EP/USP)PK30-171023F32 | F149: Polyvidone pyrolidone- PVP ( K 30EP/USP) | G149: PK30-171023F32 | H149: 647.57 | I149: 3697.63 | J149: 2394474.259 | K149: =Tableau4[[#This Row],[QTÉ + 2019]]-Tableau4[[#This Row],[SOMME]] -> 0 | L149: =Tableau4[[#This Row],[QTÉ-SOMME]]*Tableau4[[#This Row],[PU. HT]] -> 0 | M149: =IF(Tableau4[[#This Row],[QTÉ-SOMME]]>0,"Reste","Modifié") -> Modifié | N149: 647.57
A150: RI20-002666 | B150: 19 | C150: KMPEX001026 | D150: =IF(RIGHT(LEFT(Tableau4[[#This Row],[CODE]],5),3)="PAC",$C$176,IF(RIGHT(LEFT(Tableau4[[#This Row],[CODE]],5),3)="PEX",$C$177,IF(OR(RIGHT(LEFT(Tableau4[[#This Row],[CODE]],5),3)="PPA",(RIGHT(LEFT(Tableau4[[#This Row],[CODE]],5),3)="PMX")),$C$179,$C$178))) -> EXCIPIENTS | E150: =Tableau4[[#This Row],[CODE]]&Tableau4[[#This Row],[DÉSIGNATION]]&Tableau4[[#This Row],[N° Lot]] -> KMPEX001026Polyvidone pyrolidone- PVP (CL)2018PP1212 | F150: Polyvidone pyrolidone- PVP (CL) | G150: 2018PP1212 | H150: 7863.67 | I150: 2905.63 | J150: 22848915.46 | K150: =Tableau4[[#This Row],[QTÉ + 2019]]-Tableau4[[#This Row],[SOMME]] -> 3643 | L150: =Tableau4[[#This Row],[QTÉ-SOMME]]*Tableau4[[#This Row],[PU. HT]] -> 10585210.09 | M150: =IF(Tableau4[[#This Row],[QTÉ-SOMME]]>0,"Reste","Modifié") -> Reste | N150: =SUM(O150:NB150) -> 4220.67 | O150: 1580.67 | P150: 100 | Q150: 140 | R150: 120 | S150: 40 | T150: 160 | U150: 140 | V150: 160 | W150: 200 | X150: 200 | Y150: 200 | Z150: 140 | AA150: 120 | AB150: 100 | AC150: 40 | AD150: 60 | AE150: 200 | AF150: 120 | AG150: 100 | AH150: 100 | AI150: 100 | AJ150: 100
A151: RI20-002665 | B151: 33 | C151: KMPEX001027 | D151: =IF(RIGHT(LEFT(Tableau4[[#This Row],[CODE]],5),3)="PAC",$C$176,IF(RIGHT(LEFT(Tableau4[[#This Row],[CODE]],5),3)="PEX",$C$177,IF(OR(RIGHT(LEFT(Tableau4[[#This Row],[CODE]],5),3)="PPA",(RIGHT(LEFT(Tableau4[[#This Row],[CODE]],5),3)="PMX")),$C$179,$C$178))) -> EXCIPIENTS | E151: =Tableau4[[#This Row],[CODE]]&Tableau4[[#This Row],[DÉSIGNATION]]&Tableau4[[#This Row],[N° Lot]] -> KMPEX001027Polyvidone pyrolidone- PVP (K 25 )PK25-170224F32 | F151: Polyvidone pyrolidone- PVP (K 25 ) | G151: PK25-170224F32 | H151: 19.43 | I151: 3901.97 | J151: 75815.2771 | K151: =Tableau4[[#This Row],[QTÉ + 2019]]-Tableau4[[#This Row],[SOMME]] -> 0 | L151: =Tableau4[[#This Row],[QTÉ-SOMME]]*Tableau4[[#This Row],[PU. HT]] -> 0 | M151: =IF(Tableau4[[#This Row],[QTÉ-SOMME]]>0,"Reste","Modifié") -> Modifié | N151: 19.43
A152: RI20-002667 | B152: 8 | C152: AMPPA10A031 | D152: =IF(RIGHT(LEFT(Tableau4[[#This Row],[CODE]],5),3)="PAC",$C$176,IF(RIGHT(LEFT(Tableau4[[#This Row],[CODE]],5),3)="PEX",$C$177,IF(OR(RIGHT(LEFT(Tableau4[[#This Row],[CODE]],5),3)="PPA",(RIGHT(LEFT(Tableau4[[#This Row],[CODE]],5),3)="PMX")),$C$179,$C$178))) -> PRINCIP ACTIF | E152: =Tableau4[[#This Row],[CODE]]&Tableau4[[#This Row],[DÉSIGNATION]]&Tableau4[[#This Row],[N° Lot]] -> AMPPA10A031RANITIDINE HCL DC GRADER-083DC0815 | F152: RANITIDINE HCL DC GRADE | G152: R-083DC0815 | H152: 314.37 | I152: 9328.17 | J152: 2932496.803 | K152: =Tableau4[[#This Row],[QTÉ + 2019]]-Tableau4[[#This Row],[SOMME]] -> 314.37 | L152: =Tableau4[[#This Row],[QTÉ-SOMME]]*Tableau4[[#This Row],[PU. HT]] -> 2932496.803 | M152: =IF(Tableau4[[#This Row],[QTÉ-SOMME]]>0,"Reste","Modifié") -> Reste | N152: =SUM(O152:NB152) -> 0
A153: RI20-002667 | B153: 9 | C153: AMPPA14A007 | D153: =IF(RIGHT(LEFT(Tableau4[[#This Row],[CODE]],5),3)="PAC",$C$176,IF(RIGHT(LEFT(Tableau4[[#This Row],[CODE]],5),3)="PEX",$C$177,IF(OR(RIGHT(LEFT(Tableau4[[#This Row],[CODE]],5),3)="PPA",(RIGHT(LEFT(Tableau4[[#This Row],[CODE]],5),3)="PMX")),$C$179,$C$178))) -> PRINCIP ACTIF | E153: =Tableau4[[#This Row],[CODE]]&Tableau4[[#This Row],[DÉSIGNATION]]&Tableau4[[#This Row],[N° Lot]] -> AMPPA14A007REPAGLINIDEP-502-CN20190601 | F153: REPAGLINIDE | G153: P-502-CN20190601 | H153: 27.85 | I153: 375217.11 | J153: 10449796.51 | K153: =Tableau4[[#This Row],[QTÉ + 2019]]-Tableau4[[#This Row],[SOMME]] -> 0 | L153: =Tableau4[[#This Row],[QTÉ-SOMME]]*Tableau4[[#This Row],[PU. HT]] -> 0 | M153: =IF(Tableau4[[#This Row],[QTÉ-SOMME]]>0,"Reste","Modifié") -> Modifié | N153: 27.85
A154: RI20-002668 | B154: 2 | C154: KMPEX001030 | D154: =IF(RIGHT(LEFT(Tableau4[[#This Row],[CODE]],5),3)="PAC",$C$176,IF(RIGHT(LEFT(Tableau4[[#This Row],[CODE]],5),3)="PEX",$C$177,IF(OR(RIGHT(LEFT(Tableau4[[#This Row],[CODE]],5),3)="PPA",(RIGHT(LEFT(Tableau4[[#This Row],[CODE]],5),3)="PMX")),$C$179,$C$178))) -> EXCIPIENTS | E154: =Tableau4[[#This Row],[CODE]]&Tableau4[[#This Row],[DÉSIGNATION]]&Tableau4[[#This Row],[N° Lot]] -> KMPEX001030SACCHAROSE MICRONISE EP/USP17/2019 | F154: SACCHAROSE MICRONISE EP/USP | G154: 17/2019 | H154: 48059 | I154: 125 | J154: 6007375 | K154: =Tableau4[[#This Row],[QTÉ + 2019]]-Tableau4[[#This Row],[SOMME]] -> 7779 | L154: =Tableau4[[#This Row],[QTÉ-SOMME]]*Tableau4[[#This Row],[PU. HT]] -> 972375 | M154: =IF(Tableau4[[#This Row],[QTÉ-SOMME]]>0,"Reste","Modifié") -> Reste | N154: =SUM(O154:NB154) -> 40280 | O154: 20000 | P154: 140 | Q154: 100 | R154: 270 | S154: 140 | T154: 500 | U154: 900 | V154: 1530 | W154: 440 | X154: 440 | Y154: 500 | Z154: 340 | AA154: 440 | AB154: 340 | AC154: 500 | AD154: 920 | AE154: 870 | AF154: 2180 | AG154: 510 | AH154: 70 | AI154: 340 | AJ154: 860 | AK154: 40 | AL154: 1800 | AM154: 320 | AN154: 430 | AO154: 1000 | AP154: 440 | AQ154: 860 | AR154: 1000 | AS154: 90 | AT154: 170 | AU154: 170 | AV154: 430 | AW154: 340 | AX154: 860
A155: RI19-002664 | B155: 43 | C155: KMPEX001031 | D155: =IF(RIGHT(LEFT(Tableau4[[#This Row],[CODE]],5),3)="PAC",$C$176,IF(RIGHT(LEFT(Tableau4[[#This Row],[CODE]],5),3)="PEX",$C$177,IF(OR(RIGHT(LEFT(Tableau4[[#This Row],[CODE]],5),3)="PPA",(RIGHT(LEFT(Tableau4[[#This Row],[CODE]],5),3)="PMX")),$C$179,$C$178))) -> EXCIPIENTS | E155: =Tableau4[[#This Row],[CODE]]&Tableau4[[#This Row],[DÉSIGNATION]]&Tableau4[[#This Row],[N° Lot]] -> KMPEX001031SACHARINATE DE SODIUM 20-40 mesh EP/USP19051502 | F155: SACHARINATE DE SODIUM 20-40 mesh EP/USP | G155: 19051502 | H155: 649.85 | I155: 3895 | J155: 2531165.75 | K155: =Tableau4[[#This Row],[QTÉ + 2019]]-Tableau4[[#This Row],[SOMME]] -> 0 | L155: =Tableau4[[#This Row],[QTÉ-SOMME]]*Tableau4[[#This Row],[PU. HT]] -> 0 | M155: =IF(Tableau4[[#This Row],[QTÉ-SOMME]]>0,"Reste","Modifié") -> Modifié | N155: =SUM(O155:NB155) -> 649.85 | O155: 400.85 | P155: 50 | Q155: 25 | R155: 25 | S155: 25 | T155: 25 | U155: 25 | V155: 25 | W155: 25 | X155: 24
A156: RI20-002665 | B156: 34 | C156: KMPEX001032 | D156: =IF(RIGHT(LEFT(Tableau4[[#This Row],[CODE]],5),3)="PAC",$C$176,IF(RIGHT(LEFT(Tableau4[[#This Row],[CODE]],5),3)="PEX",$C$177,IF(OR(RIGHT(LEFT(Tableau4[[#This Row],[CODE]],5),3)="PPA",(RIGHT(LEFT(Tableau4[[#This Row],[CODE]],5),3)="PMX")),$C$179,$C$178))) -> EXCIPIENTS | E156: =Tableau4[[#This Row],[CODE]]&Tableau4[[#This Row],[DÉSIGNATION]]&Tableau4[[#This Row],[N° Lot]] -> KMPEX001032SEPIFILM LP 014190124018031 | F156: SEPIFILM LP 014 | G156: 190124018031 | H156: 14.68 | I156: 11167.46 | J156: 163938.3128 | K156: =Tableau4[[#This Row],[QTÉ + 2019]]-Tableau4[[#This Row],[SOMME]] -> 0 | L156: =Tableau4[[#This Row],[QTÉ-SOMME]]*Tableau4[[#This Row],[PU. HT]] -> 0 | M156: =IF(Tableau4[[#This Row],[QTÉ-SOMME]]>0,"Reste","Modifié") -> Modifié | N156: 14.68
A157: RI20-002666 | B157: 20 | C157: KMPEX001034 | D157: =IF(RIGHT(LEFT(Tableau4[[#This Row],[CODE]],5),3)="PAC",$C$176,IF(RIGHT(LEFT(Tableau4[[#This Row],[CODE]],5),3)="PEX",$C$177,IF(OR(RIGHT(LEFT(Tableau4[[#This Row],[CODE]],5),3)="PPA",(RIGHT(LEFT(Tableau4[[#This Row],[CODE]],5),3)="PMX")),$C$179,$C$178))) -> EXCIPIENTS | E157: =Tableau4[[#This Row],[CODE]]&Tableau4[[#This Row],[DÉSIGNATION]]&Tableau4[[#This Row],[N° Lot]] -> KMPEX001034SILICE COLLOIDAL ANHYDRE158120414 | F157: SILICE COLLOIDAL ANHYDRE | G157: 158120414 | H157: 978.49 | I157: 3008.85 | J157: 2944129.637 | K157: =Tableau4[[#This Row],[QTÉ + 2019]]-Tableau4[[#This Row],[SOMME]] -> 138 | L157: =Tableau4[[#This Row],[QTÉ-SOMME]]*Tableau4[[#This Row],[PU. HT]] -> 415221.3 | M157: =IF(Tableau4[[#This Row],[QTÉ-SOMME]]>0,"Reste","Modifié") -> Reste | N157: =SUM(O157:NB157) -> 840.49 | O157: 320.49 | P157: 20 | Q157: 210 | R157: 30 | S157: 30 | T157: 20 | U157: 30 | V157: 30 | W157: 20 | X157: 20 | Y157: 20 | Z157: 20 | AA157: 40 | AB157: 30
A158: RI20-002666 | B158: 21 | C158: KMPEX001058 | D158: =IF(RIGHT(LEFT(Tableau4[[#This Row],[CODE]],5),3)="PAC",$C$176,IF(RIGHT(LEFT(Tableau4[[#This Row],[CODE]],5),3)="PEX",$C$177,IF(OR(RIGHT(LEFT(Tableau4[[#This Row],[CODE]],5),3)="PPA",(RIGHT(LEFT(Tableau4[[#This Row],[CODE]],5),3)="PMX")),$C$179,$C$178))) -> EXCIPIENTS | E158: =Tableau4[[#This Row],[CODE]]&Tableau4[[#This Row],[DÉSIGNATION]]&Tableau4[[#This Row],[N° Lot]] -> KMPEX001058SILICE COLLOIDAL ANHYDRE 38015904615 | F158: SILICE COLLOIDAL ANHYDRE 380 | G158: 15904615 | H158: 12.55 | I158: 3332.74 | J158: 41825.887 | K158: =Tableau4[[#This Row],[QTÉ + 2019]]-Tableau4[[#This Row],[SOMME]] -> 0 | L158: =Tableau4[[#This Row],[QTÉ-SOMME]]*Tableau4[[#This Row],[PU. HT]] -> 0 | M158: =IF(Tableau4[[#This Row],[QTÉ-SOMME]]>0,"Reste","Modifié") -> Modifié | N158: =SUM(O158:NB158) -> 12.55 | O158: 12.55
A159: RI20-002668 | B159: 5 | C159: AMPPA13E006 | D159: =IF(RIGHT(LEFT(Tableau4[[#This Row],[CODE]],5),3)="PAC",$C$176,IF(RIGHT(LEFT(Tableau4[[#This Row],[CODE]],5),3)="PEX",$C$177,IF(OR(RIGHT(LEFT(Tableau4[[#This Row],[CODE]],5),3)="PPA",(RIGHT(LEFT(Tableau4[[#This Row],[CODE]],5),3)="PMX")),$C$179,$C$178))) -> PRINCIP ACTIF | E159: =Tableau4[[#This Row],[CODE]]&Tableau4[[#This Row],[DÉSIGNATION]]&Tableau4[[#This Row],[N° Lot]] -> AMPPA13E006SPIRAMYCINE BASE COMPACTE190317019M | F159: SPIRAMYCINE BASE COMPACTE | G159: 190317019M | H159: 2956.06 | I159: 21300.53 | J159: 40985840.81 | K159: =Tableau4[[#This Row],[QTÉ + 2019]]-Tableau4[[#This Row],[SOMME]] -> 0 | L159: =Tableau4[[#This Row],[QTÉ-SOMME]]*Tableau4[[#This Row],[PU. HT]] -> 0 | M159: =IF(Tableau4[[#This Row],[QTÉ-SOMME]]>0,"Reste","Modifié") -> Modifié | N159: =SUM(O159:NB159) -> 2956.06 | O159: 1382.06 | P159: 300 | Q159: 242.11 | R159: 57.89 | S159: 320 | T159: 300 | U159: 34 | V159: 320
A160: RI20-002668 | B160: 6 | C160: AMPPA13E047 | D160: =IF(RIGHT(LEFT(Tableau4[[#This Row],[CODE]],5),3)="PAC",$C$176,IF(RIGHT(LEFT(Tableau4[[#This Row],[CODE]],5),3)="PEX",$C$177,IF(OR(RIGHT(LEFT(Tableau4[[#This Row],[CODE]],5),3)="PPA",(RIGHT(LEFT(Tableau4[[#This Row],[CODE]],5),3)="PMX")),$C$179,$C$178))) -> PRINCIP ACTIF | E160: =Tableau4[[#This Row],[CODE]]&Tableau4[[#This Row],[DÉSIGNATION]]&Tableau4[[#This Row],[N° Lot]] -> AMPPA13E047SPIRAMYCINE BASE POUDRE20190310A | F160: SPIRAMYCINE BASE POUDRE | G160: 20190310A | H160: 133.17 | I160: 23082.71 | J160: 3073924.491 | K160: =Tableau4[[#This Row],[QTÉ + 2019]]-Tableau4[[#This Row],[SOMME]] -> 0 | L160: =Tableau4[[#This Row],[QTÉ-SOMME]]*Tableau4[[#This Row],[PU. HT]] -> 0 | M160: =IF(Tableau4[[#This Row],[QTÉ-SOMME]]>0,"Reste","Modifié") -> Modifié | N160: 133.17
A161: RI19-002664 | B161: 44 | C161: KMPEX001036 | D161: =IF(RIGHT(LEFT(Tableau4[[#This Row],[CODE]],5),3)="PAC",$C$176,IF(RIGHT(LEFT(Tableau4[[#This Row],[CODE]],5),3)="PEX",$C$177,IF(OR(RIGHT(LEFT(Tableau4[[#This Row],[CODE]],5),3)="PPA",(RIGHT(LEFT(Tableau4[[#This Row],[CODE]],5),3)="PMX")),$C$179,$C$178))) -> EXCIPIENTS | E161: =Tableau4[[#This Row],[CODE]]&Tableau4[[#This Row],[DÉSIGNATION]]&Tableau4[[#This Row],[N° Lot]] -> KMPEX001036STEARATE DE MAGNESIUM20151 | F161: STEARATE DE MAGNESIUM | G161: 20151 | H161: 247.11 | I161: 1293.26 | J161: 319577.4786 | K161: =Tableau4[[#This Row],[QTÉ + 2019]]-Tableau4[[#This Row],[SOMME]] -> 0 | L161: =Tableau4[[#This Row],[QTÉ-SOMME]]*Tableau4[[#This Row],[PU. HT]] -> 0 | M161: =IF(Tableau4[[#This Row],[QTÉ-SOMME]]>0,"Reste","Modifié") -> Modifié | N161: 247.11
A162: RI19-002664 | B162: 45 | C162: KMPEX001039 | D162: =IF(RIGHT(LEFT(Tableau4[[#This Row],[CODE]],5),3)="PAC",$C$176,IF(RIGHT(LEFT(Tableau4[[#This Row],[CODE]],5),3)="PEX",$C$177,IF(OR(RIGHT(LEFT(Tableau4[[#This Row],[CODE]],5),3)="PPA",(RIGHT(LEFT(Tableau4[[#This Row],[CODE]],5),3)="PMX")),$C$179,$C$178))) -> EXCIPIENTS | E162: =Tableau4[[#This Row],[CODE]]&Tableau4[[#This Row],[DÉSIGNATION]]&Tableau4[[#This Row],[N° Lot]] -> KMPEX001039TALC TYPE PHARMAL619705 | F162: TALC TYPE PHARMA | G162: L619705 | H162: 109.15 | I162: 790.1 | J162: 86239.415 | K162: =Tableau4[[#This Row],[QTÉ + 2019]]-Tableau4[[#This Row],[SOMME]] -> 0 | L162: =Tableau4[[#This Row],[QTÉ-SOMME]]*Tableau4[[#This Row],[PU. HT]] -> 0 | M162: =IF(Tableau4[[#This Row],[QTÉ-SOMME]]>0,"Reste","Modifié") -> Modifié | N162: 109.15
A163: RI19-002664 | B163: 46 | C163: KMPEX001040 | D163: =IF(RIGHT(LEFT(Tableau4[[#This Row],[CODE]],5),3)="PAC",$C$176,IF(RIGHT(LEFT(Tableau4[[#This Row],[CODE]],5),3)="PEX",$C$177,IF(OR(RIGHT(LEFT(Tableau4[[#This Row],[CODE]],5),3)="PPA",(RIGHT(LEFT(Tableau4[[#This Row],[CODE]],5),3)="PMX")),$C$179,$C$178))) -> EXCIPIENTS | E163: =Tableau4[[#This Row],[CODE]]&Tableau4[[#This Row],[DÉSIGNATION]]&Tableau4[[#This Row],[N° Lot]] -> KMPEX001040TITANE DIOXIDE (E171)1082654 | F163: TITANE DIOXIDE (E171) | G163: 1082654 | H163: 121.05 | I163: 950 | J163: 114997.5 | K163: =Tableau4[[#This Row],[QTÉ + 2019]]-Tableau4[[#This Row],[SOMME]] -> 0 | L163: =Tableau4[[#This Row],[QTÉ-SOMME]]*Tableau4[[#This Row],[PU. HT]] -> 0 | M163: =IF(Tableau4[[#This Row],[QTÉ-SOMME]]>0,"Reste","Modifié") -> Modifié | N163: =SUM(O163:NB163) -> 121.05 | O163: 121.05
A164: RI20-002668 | B164: 7 | C164: AMPPA10F001 | D164: =IF(RIGHT(LEFT(Tableau4[[#This Row],[CODE]],5),3)="PAC",$C$176,IF(RIGHT(LEFT(Tableau4[[#This Row],[CODE]],5),3)="PEX",$C$177,IF(OR(RIGHT(LEFT(Tableau4[[#This Row],[CODE]],5),3)="PPA",(RIGHT(LEFT(Tableau4[[#This Row],[CODE]],5),3)="PMX")),$C$179,$C$178))) -> PRINCIP ACTIF | E164: =Tableau4[[#This Row],[CODE]]&Tableau4[[#This Row],[DÉSIGNATION]]&Tableau4[[#This Row],[N° Lot]] -> AMPPA10F001TRIMEBUTINE MALEATE302 | F164: TRIMEBUTINE MALEATE | G164: 302 | H164: 837.87 | I164: 16703.5 | J164: 13995361.54 | K164: =Tableau4[[#This Row],[QTÉ + 2019]]-Tableau4[[#This Row],[SOMME]] -> 0 | L164: =Tableau4[[#This Row],[QTÉ-SOMME]]*Tableau4[[#This Row],[PU. HT]] -> 0 | M164: =IF(Tableau4[[#This Row],[QTÉ-SOMME]]>0,"Reste","Modifié") -> Modifié | N164: 837.87
A165: RI20-002668 | B165: 9 | C165: KMPAC010002 | D165: =IF(RIGHT(LEFT(Tableau4[[#This Row],[CODE]],5),3)="PAC",$C$176,IF(RIGHT(LEFT(Tableau4[[#This Row],[CODE]],5),3)="PEX",$C$177,IF(OR(RIGHT(LEFT(Tableau4[[#This Row],[CODE]],5),3)="PPA",(RIGHT(LEFT(Tableau4[[#This Row],[CODE]],5),3)="PMX")),$C$179,$C$178))) -> ARTICLE COND | E165: =Tableau4[[#This Row],[CODE]]&Tableau4[[#This Row],[DÉSIGNATION]]&Tableau4[[#This Row],[N° Lot]] -> KMPAC010002VIGNETTE B/VERTEETI 16/09/2019 | F165: VIGNETTE B/VERTE | G165: ETI 16/09/2019 | H165: 14570511 | I165: 0.13 | J165: 1894166.43 | K165: =Tableau4[[#This Row],[QTÉ + 2019]]-Tableau4[[#This Row],[SOMME]] -> 379343 | L165: =Tableau4[[#This Row],[QTÉ-SOMME]]*Tableau4[[#This Row],[PU. HT]] -> 49314.59 | M165: =IF(Tableau4[[#This Row],[QTÉ-SOMME]]>0,"Reste","Modifié") -> Reste | N165: =SUM(O165:NB165) -> 14191168 | O165: 6794000 | P165: 28000 | Q165: 56000 | R165: 14000 | S165: 42000 | T165: 14000 | U165: 42000 | V165: 28000 | W165: 28000 | X165: 42000 | Y165: 28000 | Z165: 28000 | AA165: 98000 | AB165: 3130168 | AC165: 28000 | AD165: 14000 | AE165: 112000 | AF165: 14000 | AG165: 28000 | AH165: 14000 | AI165: 28000 | AJ165: 40000 | AK165: 28000 | AL165: 14000 | AM165: 112000 | AN165: 14000 | AO165: 14000 | AP165: 448000 | AQ165: 14000 | AR165: 14000 | AS165: 14000 | AT165: 28000 | AU165: 14000 | AV165: 28000 | AW165: 40000 | AX165: 28000 | AY165: 40000 | AZ165: 98000 | BA165: 14000 | BB165: 20000 | BC165: 28000 | BD165: 28000 | BE165: 20000 | BF165: 14000 | BG165: 28000 | BH165: 28000 | BI165: 14000 | BJ165: 28000 | BK165: 40000 | BL165: 28000 | BM165: 28000 | BN165: 28000 | BO165: 154000 | BP165: 42000 | BQ165: 70000 | BR165: 28000 | BS165: 98000 | BT165: 28000 | BU165: 28000 | BV165: 28000 | BW165: 40000 | BX165: 42000 | BY165: 112000 | BZ165: 70000 | CA165: 14000 | CB165: 14000 | CC165: 28000 | CD165: 28000 | CE165: 14000 | CF165: 14000 | CG165: 28000 | CH165: 70000 | CI165: 196000 | CJ165: 14000 | CK165: 14000 | CL165: 42000 | CM165: 28000 | CN165: 28000 | CO165: 28000 | CP165: 14000 | CQ165: 28000 | CR165: 56000 | CS165: 28000 | CT165: 42000 | CU165: 20000 | CV165: 28000 | CW165: 28000 | CX165: 42000 | CY165: 28000 | CZ165: 20000 | DA165: 28000 | DB165: 210000 | DC165: 28000 | DD165: 14000 | DE165: 20000 | DF165: 28000 | DG165: 112000 | DH165: 28000 | DI165: 100000 | DJ165: 30000 | DK165: 15000
A166: RI20-002668 | B166: 4 | C166: KMPAC010003 | D166: =IF(RIGHT(LEFT(Tableau4[[#This Row],[CODE]],5),3)="PAC",$C$176,IF(RIGHT(LEFT(Tableau4[[#This Row],[CODE]],5),3)="PEX",$C$177,IF(OR(RIGHT(LEFT(Tableau4[[#This Row],[CODE]],5),3)="PPA",(RIGHT(LEFT(Tableau4[[#This Row],[CODE]],5),3)="PMX")),$C$179,$C$178))) -> ARTICLE COND | E166: =Tableau4[[#This Row],[CODE]]&Tableau4[[#This Row],[DÉSIGNATION]]&Tableau4[[#This Row],[N° Lot]] -> KMPAC010003VIGNETTE BLANCHE21/09/2013 | F166: VIGNETTE BLANCHE | G166: 21/09/2013 | H166: 167701 | I166: 0.09 | J166: 15093.09 | K166: =Tableau4[[#This Row],[QTÉ + 2019]]-Tableau4[[#This Row],[SOMME]] -> 0 | L166: =Tableau4[[#This Row],[QTÉ-SOMME]]*Tableau4[[#This Row],[PU. HT]] -> 0 | M166: =IF(Tableau4[[#This Row],[QTÉ-SOMME]]>0,"Reste","Modifié") -> Modifié | N166: 167701
A167: RI20-002667 | B167: 10 | C167: AMPPA14H032 | D167: =IF(RIGHT(LEFT(Tableau4[[#This Row],[CODE]],5),3)="PAC",$C$176,IF(RIGHT(LEFT(Tableau4[[#This Row],[CODE]],5),3)="PEX",$C$177,IF(OR(RIGHT(LEFT(Tableau4[[#This Row],[CODE]],5),3)="PPA",(RIGHT(LEFT(Tableau4[[#This Row],[CODE]],5),3)="PMX")),$C$179,$C$178))) -> PRINCIP ACTIF | E167: =Tableau4[[#This Row],[CODE]]&Tableau4[[#This Row],[DÉSIGNATION]]&Tableau4[[#This Row],[N° Lot]] -> AMPPA14H032VITAMINE B1TH17113034C | F167: VITAMINE B1 | G167: TH17113034C | H167: 633.91 | I167: 10680.61 | J167: 6770545.485 | K167: =Tableau4[[#This Row],[QTÉ + 2019]]-Tableau4[[#This Row],[SOMME]] -> 633.91 | L167: =Tableau4[[#This Row],[QTÉ-SOMME]]*Tableau4[[#This Row],[PU. HT]] -> 6770545.485 | M167: =IF(Tableau4[[#This Row],[QTÉ-SOMME]]>0,"Reste","Modifié") -> Reste | N167: =SUM(O167:NB167) -> 0
A168: RI20-002667 | B168: 11 | C168: AMPPA14H033 | D168: =IF(RIGHT(LEFT(Tableau4[[#This Row],[CODE]],5),3)="PAC",$C$176,IF(RIGHT(LEFT(Tableau4[[#This Row],[CODE]],5),3)="PEX",$C$177,IF(OR(RIGHT(LEFT(Tableau4[[#This Row],[CODE]],5),3)="PPA",(RIGHT(LEFT(Tableau4[[#This Row],[CODE]],5),3)="PMX")),$C$179,$C$178))) -> PRINCIP ACTIF | E168: =Tableau4[[#This Row],[CODE]]&Tableau4[[#This Row],[DÉSIGNATION]]&Tableau4[[#This Row],[N° Lot]] -> AMPPA14H033VITAMINE B6PH17124019C | F168: VITAMINE B6 | G168: PH17124019C | H168: 23.57 | I168: 10680.61 | J168: 251741.9777 | K168: =Tableau4[[#This Row],[QTÉ + 2019]]-Tableau4[[#This Row],[SOMME]] -> 23.57 | L168: =Tableau4[[#This Row],[QTÉ-SOMME]]*Tableau4[[#This Row],[PU. HT]] -> 251741.9777 | M168: =IF(Tableau4[[#This Row],[QTÉ-SOMME]]>0,"Reste","Modifié") -> Reste | N168: =SUM(O168:NB168) -> 0
A169: RI19-002664 | B169: 47 | C169: KMPEX001041 | D169: =IF(RIGHT(LEFT(Tableau4[[#This Row],[CODE]],5),3)="PAC",$C$176,IF(RIGHT(LEFT(Tableau4[[#This Row],[CODE]],5),3)="PEX",$C$177,IF(OR(RIGHT(LEFT(Tableau4[[#This Row],[CODE]],5),3)="PPA",(RIGHT(LEFT(Tableau4[[#This Row],[CODE]],5),3)="PMX")),$C$179,$C$178))) -> EXCIPIENTS | E169: =Tableau4[[#This Row],[CODE]]&Tableau4[[#This Row],[DÉSIGNATION]]&Tableau4[[#This Row],[N° Lot]] -> KMPEX001041VIVAPHARM® HPMC E157028082 | F169: VIVAPHARM® HPMC E15 | G169: 7028082 | H169: 21.85 | I169: 5405.52 | J169: 118110.612 | K169: =Tableau4[[#This Row],[QTÉ + 2019]]-Tableau4[[#This Row],[SOMME]] -> 0 | L169: =Tableau4[[#This Row],[QTÉ-SOMME]]*Tableau4[[#This Row],[PU. HT]] -> 0 | M169: =IF(Tableau4[[#This Row],[QTÉ-SOMME]]>0,"Reste","Modifié") -> Modifié | N169: 21.85
A170: RI19-002664 | B170: 48 | C170: KMPEX001043 | D170: =IF(RIGHT(LEFT(Tableau4[[#This Row],[CODE]],5),3)="PAC",$C$176,IF(RIGHT(LEFT(Tableau4[[#This Row],[CODE]],5),3)="PEX",$C$177,IF(OR(RIGHT(LEFT(Tableau4[[#This Row],[CODE]],5),3)="PPA",(RIGHT(LEFT(Tableau4[[#This Row],[CODE]],5),3)="PMX")),$C$179,$C$178))) -> EXCIPIENTS | E170: =Tableau4[[#This Row],[CODE]]&Tableau4[[#This Row],[DÉSIGNATION]]&Tableau4[[#This Row],[N° Lot]] -> KMPEX001043VIVAPUR® 101D112180870-1 | F170: VIVAPUR® 101 | G170: D112180870-1 | H170: 117.49 | I170: 1367.06 | J170: 160615.8794 | K170: =Tableau4[[#This Row],[QTÉ + 2019]]-Tableau4[[#This Row],[SOMME]] -> 0 | L170: =Tableau4[[#This Row],[QTÉ-SOMME]]*Tableau4[[#This Row],[PU. HT]] -> 0 | M170: =IF(Tableau4[[#This Row],[QTÉ-SOMME]]>0,"Reste","Modifié") -> Modifié | N170: 117.49
A171: RI20-002666 | B171: 22 | C171: KMPEX001044 | D171: =IF(RIGHT(LEFT(Tableau4[[#This Row],[CODE]],5),3)="PAC",$C$176,IF(RIGHT(LEFT(Tableau4[[#This Row],[CODE]],5),3)="PEX",$C$177,IF(OR(RIGHT(LEFT(Tableau4[[#This Row],[CODE]],5),3)="PPA",(RIGHT(LEFT(Tableau4[[#This Row],[CODE]],5),3)="PMX")),$C$179,$C$178))) -> EXCIPIENTS | E171: =Tableau4[[#This Row],[CODE]]&Tableau4[[#This Row],[DÉSIGNATION]]&Tableau4[[#This Row],[N° Lot]] -> KMPEX001044VIVAPUR® MCG 611 P38611180906-2 | F171: VIVAPUR® MCG 611 P | G171: 38611180906-2 | H171: 770.38 | I171: 2723.07 | J171: 2097798.667 | K171: =Tableau4[[#This Row],[QTÉ + 2019]]-Tableau4[[#This Row],[SOMME]] -> 770.38 | L171: =Tableau4[[#This Row],[QTÉ-SOMME]]*Tableau4[[#This Row],[PU. HT]] -> 2097798.667 | M171: =IF(Tableau4[[#This Row],[QTÉ-SOMME]]>0,"Reste","Modifié") -> Reste | N171: =SUM(O171:NB171) -> 0
A172: RI19-002664 | B172: 49 | C172: KMPEX001045 | D172: =IF(RIGHT(LEFT(Tableau4[[#This Row],[CODE]],5),3)="PAC",$C$176,IF(RIGHT(LEFT(Tableau4[[#This Row],[CODE]],5),3)="PEX",$C$177,IF(OR(RIGHT(LEFT(Tableau4[[#This Row],[CODE]],5),3)="PPA",(RIGHT(LEFT(Tableau4[[#This Row],[CODE]],5),3)="PMX")),$C$179,$C$178))) -> EXCIPIENTS | E172: =Tableau4[[#This Row],[CODE]]&Tableau4[[#This Row],[DÉSIGNATION]]&Tableau4[[#This Row],[N° Lot]] -> KMPEX001045VIVASTAR® P21110184158 | F172: VIVASTAR® P | G172: 21110184158 | H172: 15.32 | I172: 2903.38 | J172: 44479.7816 | K172: =Tableau4[[#This Row],[QTÉ + 2019]]-Tableau4[[#This Row],[SOMME]] -> 0 | L172: =Tableau4[[#This Row],[QTÉ-SOMME]]*Tableau4[[#This Row],[PU. HT]] -> 0 | M172: =IF(Tableau4[[#This Row],[QTÉ-SOMME]]>0,"Reste","Modifié") -> Modifié | N172: 15.32
A176: RI19-002664 | C176: ARTICLE COND
A177: RI20-002665 | C177: EXCIPIENTS
A178: RI20-002666 | C178: CAPSULES
A179: RI20-002667 | C179: PRINCIP ACTIF | D179: Reste
A180: RI20-002668 | D180: Modifié
A181: RI20-002669
A182: RI20-002670
A183: RI20-002671
A184: RI20-002673
A185: RI20-002674
A186: RI20-002675
A187: RI19-001793

Sheet Sheet1 (hidden)
A1: RI19-002664
A2: RI20-002665
A3: RI20-002666
A4: RI20-002667
A5: RI20-002668
A6: RI20-002669
A7: RI20-002670
A8: RI20-002671
A9: RI20-002673
A10: RI20-002674
A11: RI20-002675
A12: RI19-001793

Sheet Feuil2 (hidden)
C1: CODE | D1: DÉSIGNATION | E1: N° Lot | F1: QTÉ | G1: PU. HT | H1: MONTANT HT
A2: ="RI19-002664 / "&B2 -> RI19-002664 / 1 | B2: 1 | C2: AMPAC001003 | D2: ALU 20 DM ANTAG | E2: 7126-1 | F2: 408872.35 | G2: 32.73 | H2: 13382392.02
A3: ="RI19-002664 / "&B3 -> RI19-002664 / 2 | B3: 2 | C3: AMPAC001075 | D3: ALU 20 DM ANTIUM 20 mg | E3: 8023 | F3: 4697.62 | G3: 41.29 | H3: 193964.7298
A4: RI19-002664 / 3 | B4: 3 | C4: BMPAC001047 | D4: ALU 20 DM BIOCLAV 500 MG/62,5 MG AD. | E4: 6724 | F4: 3213.7 | G4: 45.88 | H4: 147444.556
A5: RI19-002664 / 4 | B5: 4 | C5: BMPAC001005 | D5: ALU 20 DM BIOPAMOX 500MG | E5: 7131 | F5: 2650.6 | G5: 43.76 | H5: 115990.256
A6: RI19-002664 / 5 | B6: 5 | C6: AMPAC001033 | D6: ALU 20 DM BUTAFEN 200 MG GELULES | E6: 46071 | F6: 3271.97 | G6: 33.47 | H6: 109512.8359
A7: RI19-002664 / 6 | B7: 6 | C7: AMPAC001041 | D7: ALU 20 DM BUTAFEN 600 MG COMP | E7: 125 | F7: 5649.95 | G7: 30.04 | H7: 169724.498
A8: RI19-002664 / 7 | B8: 7 | C8: AMPAC001063 | D8: ALU 20 DM CIPROTEK 500 mg | E8: 3695 25/05 | F8: 514.64 | G8: 40.21 | H8: 20693.6744
A9: RI19-002664 / 8 | B9: 8 | C9: AMPAC001048 | D9: ALU 20 DM DIAGLINIDE 0.5 MG | E9: 28/01/2016 | F9: 10897.81 | G9: 47.15 | H9: 513831.7415
A10: RI19-002664 / 9 | B10: 9 | C10: AMPAC001049 | D10: ALU 20 DM DIAGLINIDE 1 MG | E10: REBUT M12/2019 | F10: 7256.58 | G10: 36.68 | H10: 266171.3544
A11: RI19-002664 / 10 | B11: 10 | C11: AMPAC001050 | D11: ALU 20 DM DIAGLINIDE 2 MG | E11: 4620 | F11: 28938.12 | G11: 36.68 | H11: 1061450.242
A12: RI19-002664 / 11 | B12: 11 | C12: AMPAC005011 | D12: ETUIS ANTAG 20 mg "BT 14 GEL" | E12: 1902584 | F12: 2962372 | G12: 2.74 | H12: 8116899.28
A13: RI19-002664 / 12 | B13: 12 | C13: AMPAC005137 | D13: ETUIS ANTAG 20 mg "BT 28 GEL" | E13: 1902246 | F13: 1032017 | G13: 3.88 | H13: 4004225.96
A14: RI19-002664 / 13 | B14: 13 | C14: AMPAC005129 | D14: ETUIS ARBOSE 50 mg "BT 30 COMP" | E14: 1902699 | F14: 42713.99 | G14: 5.48 | H14: 234072.6652
A15: RI19-002664 / 14 | B15: 14 | C15: BMPAC005065 | D15: ETUIS BIOCLAV 1 G/125 MG AD "12 SACH". | E15: 1902671 | F15: 1251763 | G15: 3.49 | H15: 4368652.87
A16: RI19-002664 / 15 | B16: 15 | C16: BMPAC005067 | D16: ETUIS BIOCLAV 500 MG/62,5 MG AD "16 COMP". | E16: 057/19/A/01-1 | F16: 94740 | G16: 4.56 | H16: 432014.4
A17: RI19-002664 / 16 | B17: 16 | C17: BMPAC005014 | D17: ETUIS BIOPAMOX 500 MG (FABRICATION) | E17: sipa 2479 | F17: 87321 | G17: 2.19 | H17: 191232.99
A18: RI19-002664 / 17 | B18: 17 | C18: AMPAC005049 | D18: ETUIS BUTAFEN 200 MG GELULES | E18: bou 599/18 | F18: 87642 | G18: 2 | H18: 175284
A19: RI19-002664 / 18 | B19: 18 | C19: AMPAC005050 | D19: ETUIS BUTAFEN 400 MG GELULES | E19: BOU 11/02/2019 | F19: 59344 | G19: 1.89 | H19: 112160.16
A20: RI19-002664 / 19 | B20: 19 | C20: AMPAC005058 | D20: ETUIS BUTAFEN 600 MG COMP | E20: SIPA 1901485 | F20: 94644.1 | G20: 4.36 | H20: 412648.276
A21: RI19-002664 / 20 | B21: 20 | C21: AMPAC005132 | D21: ETUIS CABERNEX 0.5 mg "BT 08 COMP" | E21: 014/18/C/01 | F21: 16716 | G21: 4.32 | H21: 72213.12
A22: RI19-002664 / 21 | B22: 21 | C22: AMPAC005112 | D22: ETUIS CIPROTEKE 500 mg | E22: SIPA 632-1 | F22: 27570 | G22: 2.96 | H22: 81607.2
A23: RI19-002664 / 22 | B23: 22 | C23: AMPAC005082 | D23: ETUIS DIAGLINIDE 0.5 mg | E23: SIPA 2974 | F23: 226184 | G23: 2.74 | H23: 619744.16
A24: RI19-002664 / 23 | B24: 23 | C24: AMPAC005083 | D24: ETUIS DIAGLINIDE 1 mg | E24: SIPA1901458-1 | F24: 114828 | G24: 2.74 | H24: 314628.72
A25: RI19-002664 / 24 | B25: 24 | C25: AMPAC005084 | D25: ETUIS DIAGLINIDE 2 mg | E25: SIPA1901853 | F25: 428952 | G25: 2.74 | H25: 1175328.48
A26: RI19-002664 / 25 | B26: 25 | C26: AMPAC005022 | D26: ETUIS FLOVENAC 50 MG (GELULES) | E26: SIPA1901826 | F26: 273414 | G26: 3.66 | H26: 1000695.24
A27: RI19-002664 / 26 | B27: 26 | C27: AMPAC005023 | D27: ETUIS FLOVENAC L.P 75 MG FABRICATION | E27: sipa1901511 | F27: 757326 | G27: 2.41 | H27: 1825155.66
A28: RI19-002664 / 27 | B28: 27 | C28: KMPEX001001 | D28: ACESULFAME POTASSIUM | E28: 201906182 | F28: 44.34 | G28: 3900.58 | H28: 172951.7172
A29: RI19-002664 / 28 | B29: 28 | C29: KMPEX001003 | D29: ACIDE CITRIQUE ANHYDR POUDRE | E29: UJ804 | F29: 134.5 | G29: 210 | H29: 28245
A30: RI19-002664 / 29 | B30: 29 | C30: KMPEX001004 | D30: AMIDON DE BLE TB | E30: E1653-1 | F30: 327.05 | G30: 790.1 | H30: 258402.205
A31: RI19-002664 / 30 | B31: 30 | C31: KMPEX001005 | D31: AMIDON DE MAÏS B | E31: e1779 | F31: 441.88 | G31: 525.57 | H31: 232238.8716
A32: RI19-002664 / 31 | B32: 31 | C32: KMPEX001006 | D32: AMIDON PREGELATINISE | E32: E8676 | F32: 0.81 | G32: 450 | H32: 364.5
A33: RI19-002664 / 32 | B33: 32 | C33: KMPEX001013 | D33: EUDRAGIT E12.5 | E33: A180221513 | F33: 40.8 | G33: 8002.38 | H33: 326497.104
A34: RI19-002664 / 33 | B34: 33 | C34: KMPEX001062 | D34: EMCOMPRESS PREMIUM | E34: 19C/039-P2 | F34: 17.29 | G34: 1628.7 | H34: 28160.223
A35: RI19-002664 / 34 | B35: 34 | C35: KMPEX001070 | D35: ETHYLCELLULOSE | E35: 43976 | F35: 0.72 | G35: 13393.6 | H35: 9643.392
A36: RI19-002664 / 35 | B36: 35 | C36: KMPEX001008 | D36: CELLULOSE MICROCRISTALLINE PH102 | E36: D104190268 | F36: 196.76 | G36: 1092 | H36: 214861.92
A37: RI19-002664 / 36 | B37: 36 | C37: KMPEX003003 | D37: COLORANT JAUNE QUINOLINE LAKE | E37: 165560674-1 | F37: 0.43 | G37: 15357.22 | H37: 6603.6046
A38: RI19-002664 / 37 | B38: 37 | C38: KMPEX001011 | D38: CROSCARMELLOSE SODIQUE | E38: 32010181068 | F38: 235.18 | G38: 3019.6 | H38: 710149.528
A39: RI19-002664 / 38 | B39: 38 | C39: KMPEX001016 | D39: GOMME XANTHANE | E39: 2540361 | F39: 368.42 | G39: 3628.88 | H39: 1336951.97
A40: RI19-002664 / 39 | B40: 39 | C40: KMPEX001053 | D40: LACTOSE ANHYDRE | E40: 8515082500 | F40: 619.78 | G40: 1825.4 | H40: 1131346.412
A41: RI19-002664 / 40 | B41: 40 | C41: KMPEX001072 | D41: MACROGOL 20000 P | E41: DEA4006428 | F41: 2.13 | G41: 3793.96 | H41: 8081.1348
A42: RI19-002664 / 41 | B42: 41 | C42: KMPEX001052 | D42: POLACRILIN POTASSIUM | E42: 3001Z/15/5 | F42: 240.19 | G42: 12915.99 | H42: 3102291.638
A43: RI19-002664 / 42 | B43: 42 | C43: KMPEX001025 | D43: Polyvidone pyrolidone- PVP ( K 30EP/USP) | E43: PK30-171023F32 | F43: 647.57 | G43: 3697.63 | H43: 2394474.259
A44: RI19-002664 / 43 | B44: 43 | C44: KMPEX001031 | D44: SACHARINATE DE SODIUM 20-40 mesh EP/USP | E44: 19051502 | F44: 649.85 | G44: 3895 | H44: 2531165.75
A45: RI19-002664 / 44 | B45: 44 | C45: KMPEX001036 | D45: STEARATE DE MAGNESIUM | E45: 20151 | F45: 247.11 | G45: 1293.26 | H45: 319577.4786
A46: RI19-002664 / 45 | B46: 45 | C46: KMPEX001039 | D46: TALC TYPE PHARMA | E46: L619705 | F46: 109.15 | G46: 790.1 | H46: 86239.415
A47: RI19-002664 / 46 | B47: 46 | C47: KMPEX001040 | D47: TITANE DIOXIDE (E171) | E47: 1082654 | F47: 121.05 | G47: 950 | H47: 114997.5
A48: RI19-002664 / 47 | B48: 47 | C48: KMPEX001041 | D48: VIVAPHARM® HPMC E15 | E48: 7028082 | F48: 21.85 | G48: 5405.52 | H48: 118110.612
A49: RI19-002664 / 48 | B49: 48 | C49: KMPEX001043 | D49: VIVAPUR® 101 | E49: D112180870-1 | F49: 117.49 | G49: 1367.06 | H49: 160615.8794
A50: RI19-002664 / 49 | B50: 49 | C50: KMPEX001045 | D50: VIVASTAR® P | E50: 21110184158 | F50: 15.32 | G50: 2903.38 | H50: 44479.7816
A51: RI19-002664 / 50 | B51: 50 | C51: BMPGL002023 | D51: GELULES MARRON/JAUNE TAILLE 0 EL (TETE 33.056/CORP : 42.335) | E51: CAP :53634161 | F51: 1074427 | G51: 0.52 | H51: 558702.04
A52: RI19-002664 / 51 | B52: 51 | C52: AMPGL004283 | D52: GELULES PINK/ LIGHT GREEN TAILLE 2 (Corps:24.103/Tete:17.421) | E52: 1150029623 | F52: 3450570 | G52: 0.35 | H52: 1207699.5
A53: RI19-002664 / 52 | B53: 52 | C53: AMPGL001078 | D53: GELULES PINK/PINK TAILLE 0 (TETE L780/CORPS L780) | E53: 1150028234 | F53: 1186880 | G53: 0.37 | H53: 439145.6
A54: RI19-002664 / 53 | B54: 53 | C54: AMPAC008005 | D54: NOTICE ANTAG | E54: MISS 30/04/2019 | F54: 3440709 | G54: 0.72 | H54: 2477310.48
B55: N° | C55: CODE | D55: DÉSIGNATION | E55: N° Lot | F55: NB COL | G55: PU. HT | H55: MONTANT HT
A56: RI20 002665 | B56: 1 | C56: AMPAC001011 | D56: ALU 20 DM FLOVENAC 50 MG (GELULES) | E56: 7129 | F56: 9052.25 | G56: 43.82 | H56: 396669.595
B57: 2 | C57: AMPAC001012 | D57: ALU 20 DM FLOVENAC LP 75 | E57: 6802 | F57: 44935.26 | G57: 36.84 | H57: 1655414.978
B58: 3 | C58: AMPAC001015 | D58: ALU 20 DM FORMENTIN 850 mg. | E58: 2734 | F58: 14853.81 | G58: 32.97 | H58: 489730.1157
B59: 4 | C59: AMPAC001022 | D59: ALU 20 DM NICARDIPINE | E59: 5015 | F59: 11406.05 | G59: 36.64 | H59: 417917.672
B60: 5 | C60: AMPAC001025 | D60: ALU 20 DM OROGYL | E60: 4137 | F60: 1585.38 | G60: 44.44 | H60: 70454.2872
B61: 6 | C61: AMPAC001027 | D61: ALU 20 DM RANICARE 150 mg | E61: 49229 | F61: 4378.25 | G61: 44.76 | H61: 195970.47
B62: 7 | C62: AMPAC001029 | D62: ALU 20 DM SPIRACARE 1.5 M | E62: 4140 | F62: 5351.85 | G62: 44.44 | H62: 237836.214
B63: 8 | C63: AMPAC001030 | D63: ALU 20 DM SPIRACARE 3 M | E63: 902 | F63: 3793.67 | G63: 37.65 | H63: 142831.6755
B64: 9 | C64: AMPAC001042 | D64: ALU 20 DM TRIMEBUTINE BIOCARE 100 mg | E64: 5868 | F64: 5002.97 | G64: 36.45 | H64: 182358.2565
B65: 10 | C65: AMPAC001051 | D65: ALU 20 DM TRIMEBUTINE BIOCARE 200 mg | E65: 5415 | F65: 5151.14 | G65: 36.5 | H65: 188016.61
B66: 11 | C66: AMPAC001032 | D66: ALU 20 DM TROIS B | E66: 4493 | F66: 7777.1 | G66: 43.81 | H66: 340714.751
B67: 12 | C67: AMPAC001074 | D67: ALU 20 DM UDINE 5 mg | E67: 3781 | F67: 1125.6 | G67: 37.86 | H67: 42615.216
B68: 13 | C68: AMPAC001061 | D68: ALU 20 DM XYCARE 5 mg "COMP". | E68: 5738 | F68: 41273.8 | G68: 36.47 | H68: 1505255.486
B69: 14 | C69: AMPAC005034 | D69: ETUIS NICARDIPINE BIOCARE L.P 50 MG FABRICATION | E69: SIPA 1901493 | F69: 55912 | G69: 5.23 | H69: 292419.76
B70: 15 | C70: AMPAC005035 | D70: ETUIS OROGYL | E70: SIPA244 | F70: 46276 | G70: 2.96 | H70: 136976.96
B71: 16 | C71: AMPAC005039 | D71: ETUIS RANICARE 30 COMP | E71: 138/19/A/01 | F71: 22999 | G71: 9.14 | H71: 210210.86
B72: 17 | C72: AMPAC005045 | D72: ETUIS SPIRACARE 1.5 M | E72: SIPA1901501 | F72: 143353 | G72: 3.7 | H72: 530406.1
B73: 18 | C73: AMPAC005046 | D73: ETUIS SPIRACARE 3M | E73: 1900900 | F73: 207111.69 | G73: 2.86 | H73: 592339.4334
B74: 19 | C74: AMPAC005073 | D74: ETUIS TRIMEBUTINE BIOCARE 100 MG | E74: 1902646 | F74: 179733.7 | G74: 2.96 | H74: 532011.752
B75: 20 | C75: AMPAC005085 | D75: ETUIS TRIMEBUTINE BIOCARE 200 mg | E75: SIPA 192744 | F75: 169346.56 | G75: 2.41 | H75: 408125.2096
B76: 21 | C76: AMPAC005048 | D76: ETUIS TROIS B | E76: SIPA 1900491 | F76: 167701 | G76: 2.41 | H76: 404159.41
B77: 22 | C77: AMPAC005134 | D77: ETUIS UDINE 5 mg "BT 15 COMP" | E77: 018/18/E/01 | F77: 28140 | G77: 4.32 | H77: 121564.8
B78: 23 | C78: AMPAC005086 | D78: ETUIS URICARE 3 g "1 SACH". | E78: sipa 1902472 | F78: 21451 | G78: 5.33 | H78: 114333.83
B79: 24 | C79: AMPAC005101 | D79: ETUIS XYCARE 5 mg "14 COMP" | E79: DIW 090/19/A/01 | F79: 274323.04 | G79: 3.58 | H79: 982076.4832
B80: 25 | C80: AMPAC005102 | D80: ETUIS XYCARE 5 mg "28 COMP" | E80: DIW 089/19/A/01 | F80: 204874.89 | G80: 3.94 | H80: 807207.0666
B81: 26 | C81: KMPEX001071 | D81: GELATINE | E81: 18010039 | F81: 40.25 | G81: 3188.33 | H81: 128330.2825
B82: 27 | C82: KMPEX001018 | D82: LACTOSE MONOHYDRATE TYPE PHARMA EP 200 Mesh | E82: L101851419 | F82: 718.18 | G82: 915.5 | H82: 657493.79
B83: 28 | C83: KMPEX001077 | D83: MANNITOL | E83: EF27G | F83: 181.03 | G83: 2223.26 | H83: 402476.7578
B84: 29 | C84: KMPEX003010 | D84: OPADRY II BLUE | E84: DT669670 REF 85F20694 | F84: 1.31 | G84: 7716.62 | H84: 10108.7722
B85: 30 | C85: KMPEX003006 | D85: OPADRY II PINK OY-1350 | E85: DT629564 | F85: 60.54 | G85: 6077.2 | H85: 367913.688
B86: 31 | C86: KMPEX003007 | D86: OPADRY WHITE OY-7300 | E86: DT686328 | F86: 14.77 | G86: 10862.64 | H86: 160441.1928
B87: 32 | C87: KMPEX001022 | D87: PEG 6000 Pdre | E87: DEA4006120 | F87: 19.51 | G87: 2316.74 | H87: 45199.5974
B88: 33 | C88: KMPEX001027 | D88: Polyvidone pyrolidone- PVP (K 25 ) | E88: PK25-170224F32 | F88: 19.43 | G88: 3901.97 | H88: 75815.2771
B89: 34 | C89: KMPEX001032 | D89: SEPIFILM LP 014 | E89: 190124018031 | F89: 14.68 | G89: 11167.46 | H89: 163938.3128
B90: 35 | C90: AMPAC009014 | D90: EMBALLAGE URICARE 3 g | E90: 4142 | F90: 2227.59 | G90: 45.79 | H90: 102001.3461
B91: 36 | C91: AMPAC008070 | D91: NOTICE ARBOSE 50 mg "COMP". | E91: 08/07/2018 | F91: 76685 | G91: 0.72 | H91: 55213.2
B92: 37 | C92: BMPAC008008 | D92: NOTICE BIOPAMOX 250 MG SIROP | E92: MIS29/07/2019 | F92: 431405 | G92: 0.72 | H92: 310611.6
B93: 38 | C93: AMPAC008035 | D93: NOTICE BUTAFEN 200 MG GELULES | E93: MISS 2019 | F93: 106157 | G93: 0.72 | H93: 76433.04
B94: 39 | C94: AMPAC008043 | D94: NOTICE BUTAFEN 600 MG COMP | E94: MISS 2019 | F94: 72867 | G94: 0.72 | H94: 52464.24
B95: 40 | C95: AMPAC008072 | D95: NOTICE CABERNEX 0.5 mg "BT 08 COMP" | E95: miss 04/09/2019 | F95: 42365 | G95: 0.72 | H95: 30502.8
B96: 41 | C96: AMPAC008061 | D96: NOTICE CIPROTEK | E96: REF 24/09/2019 | F96: 27008 | G96: 0.98 | H96: 26467.84
B97: 42 | C97: AMPAC008055 | D97: NOTICE DIAGLINIDE | E97: miss 21/09/2019 | F97: 589074 | G97: 0.72 | H97: 424133.28
B98: 43 | C98: AMPAC008015 | D98: NOTICE FLOVENAC L.P 75 MG+ NOTICE FLOVENAC 50 MG (FABRICATION). | E98: mis 15/08/19 | F98: 1127483 | G98: 0.72 | H98: 811787.76
B99: 44 | C99: AMPAC008019 | D99: NOTICE FORMENTIN BT 100 | E99: MISS 2019 | F99: 50839 | G99: 0.72 | H99: 36604.08
B100: 45 | C100: AMPAC008022 | D100: NOTICE NICARDIPINE | E100: MISS 24/06/2018 | F100: 39605 | G100: 0.72 | H100: 28515.6
B101: 46 | C101: AMPAC008023 | D101: NOTICE OROGYL | E101: REF 26/04/2019 | F101: 51689 | G101: 0.53 | H101: 27395.17
B102: 47 | C102: AMPAC008030 | D102: NOTICE RANICARE | E102: MISS 2019 | F102: 39971 | G102: 0.72 | H102: 28779.12
B103: 48 | C103: AMPAC008032 | D103: NOTICE SPIRACARE | E103: MIS 29/07/2019 | F103: 294281 | G103: 0.72 | H103: 211882.32
B104: 49 | C104: AMPAC008053 | D104: NOTICE TRIMEBUTINE BIOCARE | E104: miss 21/09/2019 | F104: 238319 | G104: 0.72 | H104: 171589.68
B105: 50 | C105: AMPAC008034 | D105: NOTICE TROIS B | E105: MISS 06/05/2019 | F105: 130435 | G105: 0.72 | H105: 93913.2
B106: 51 | C106: AMPAC008073 | D106: NOTICE UDINE 5 mg | E106: MISS2019 | F106: 22669 | G106: 0.72 | H106: 16321.68
B107: 52 | C107: AMPAC008054 | D107: NOTICE URICARE 3 g "1 SACH". | E107: ref 25/12/2019 | F107: 31569 | G107: 0.55 | H107: 17362.95
B108: 53 | C108: AMPAC008060 | D108: NOTICE XYCARE 5 mg | E108: mis15/08/19 | F108: 488120 | G108: 0.72 | H108: 351446.4
B109: 54 | C109: AMPPA14A050 | D109: ACARBOSE | E109: CAC039A | F109: 120.69 | G109: 68827.42 | H109: 8306781.32
B110: 55 | C110: BMPPA13G004 | D110: AMOXICILLINE T/H COMPACTED | E110: 171214028 | F110: 560.21 | G110: 4717.93 | H110: 2643031.565
B111: 56 | C111: AMPMX13K002 | D111: CIPROFLOXACIN GRANULES 500 mg | E111: SVAA01 | F111: 181.81 | G111: 35074.69 | H111: 6376929.389
B112: 57 | C112: AMPPA01A049 | D112: DESLORATADINE | E112: DCS8091 | F112: 1.92 | G112: 241786.24 | H112: 464229.5808
B113: 58 | C113: AMPMX04B004 | D113: DICLOFENAC SODIUM EC PELLETS 50MG | E113: FG38H902 | F113: 787.2 | G113: 5596.16 | H113: 4405297.152
B114: 59 | C114: AMPPA25E026 | D114: FOSFOMYCIN TROMETAMOL | E114: FOS-291906 | F114: 184.15 | G114: 27141.61 | H114: 4998127.482
B115: 60 | C115: AMPMX04B006 | D115: IBUPROFEN DC GRANULES 600 MG | E115: FC40M810 | F115: 2799.75 | G115: 7066.14 | H115: 19783425.46
A116: RI20 002666 | B116: N° | C116: CODE | D116: DÉSIGNATION | E116: N° Lot | F116: NB COL | G116: PU. HT | H116: MONTANT HT
B117: 1 | C117: BMPAC002002 | D117: CAPSULE ALUMINIUM UT 28 | E117: 8N3724 | F117: 2680892 | G117: 2.25 | H117: 6032007
B118: 2 | C118: BMPAC002010 | D118: GOBELET DOSEUR | E118: 19/11/2019 | F118: 1382243 | G118: 1.78 | H118: 2460392.54
B119: 3 | C119: BMPAC004010 | D119: ETIQUETTES SIROP AMPINAX | E119: 398000 | F119: 50460 | G119: 0.59 | H119: 29771.4
B120: 4 | C120: BMPAC004015 | D120: ETIQUETTES SIROP BIOCLAVE 100 MG/12,5 MG/1 ML. | E120: alp 04/02/2019 | F120: 1117206 | G120: 0.79 | H120: 882592.74
B121: 5 | C121: BMPAC004014 | D121: ETIQUETTES SIROP BIOPAMOX 500 MG/5 ML. | E121: alp 04/02/2019 | F121: 960404 | G121: 0.79 | H121: 758719.16
B122: 6 | C122: BMPAC004011 | D122: ETIQUETTES SIROP BIOPAMOX | E122: alp 04/02/2019 | F122: 361977 | G122: 0.79 | H122: 285961.83
B123: 7 | C123: BMPAC005010 | D123: ETUIS AMPINAX SIROP | E123: SIPA 474/18 | F123: 49395.44 | G123: 4.74 | H123: 234134.3856
B124: 8 | C124: BMPAC005069 | D124: ETUIS BIOCLAV 100 MG/12,5 MG/1 ML. | E124: 1902985 | F124: 1601603 | G124: 5.26 | H124: 8424431.78
B125: 9 | C125: BMPAC005016 | D125: ETUIS BIOPAMOX 250 MG/5 ML | E125: SIPA 3163 NB | F125: 371379 | G125: 4.74 | H125: 1760336.46
B126: 10 | C126: BMPAC005070 | D126: ETUIS BIOPAMOX 500 MG/5 ML. | E126: nb 1902473 | F126: 960404 | G126: 4.74 | H126: 4552314.96
B127: 11 | C127: BMPAC005066 | D127: ETUIS BIOCLAV 500 MG/62,5 MG ENF "12 SACH". | E127: SIPA1902500 | F127: 923936 | G127: 3.49 | H127: 3224536.64
B128: 12 | C128: KMPEX002002 | D128: AROME CITRON PECHE FRAISE POUDRE | E128: 9451358 | F128: 214.31 | G128: 6121.96 | H128: 1311997.248
B129: 13 | C129: KMPEX002003 | D129: AROME MELANGE TROPICAL PERMASEAL | E129: DU00643109 | F129: 517.95 | G129: 7855.76 | H129: 4068890.892
B130: 14 | C130: KMPEX002050 | D130: AROME ORANGE SN680262 | E130: 0007759814 | F130: 809.59 | G130: 7164.73 | H130: 5800493.761
B131: 15 | C131: KMPEX001010 | D131: CITRATE DE SODIUM TRISODIQUE DIHYDRATE | E131: uj821-1 | F131: 30.1 | G131: 1991.7 | H131: 59950.17
B132: 16 | C132: KMPEX001014 | D132: GESWEET | E132: D000367417 | F132: 398.01 | G132: 13425.23 | H132: 5343375.792
B133: 17 | C133: KMPEX001020 | D133: PARAHYDROXYL BENZOATE DE METHYL | E133: BM17113011 | F133: 10.64 | G133: 4897.21 | H133: 52106.3144
B134: 18 | C134: KMPEX001021 | D134: PARAHYDROXYL BENZOATE DE PROPYL | E134: BP15032611 | F134: 2.58 | G134: 4231.76 | H134: 10917.9408
B135: 19 | C135: KMPEX001026 | D135: Polyvidone pyrolidone- PVP (CL) | E135: 2018PP1212 | F135: 7863.67 | G135: 2905.63 | H135: 22848915.46
B136: 20 | C136: KMPEX001034 | D136: SILICE COLLOIDAL ANHYDRE | E136: 158120414 | F136: 978.49 | G136: 3008.85 | H136: 2944129.637
B137: 21 | C137: KMPEX001058 | D137: SILICE COLLOIDAL ANHYDRE 380 | E137: 15904615 | F137: 12.55 | G137: 3332.74 | H137: 41825.887
B138: 22 | C138: KMPEX001044 | D138: VIVAPUR® MCG 611 P | E138: 38611180906-2 | F138: 770.38 | G138: 2723.07 | H138: 2097798.667
B139: 23 | C139: BMPAC008003 | D139: NOTICE AMPINAX 250 MP SIROP | E139: 08/07/2018 | F139: 45555 | G139: 0.72 | H139: 32799.6
B140: 24 | C140: BMPAC008046 | D140: NOTICE BIOCLAVE 100 MG/12,5 MG/1 ML. | E140: miss 11/02/2019 | F140: 1068716.06 | G140: 0.72 | H140: 769475.5632
B141: 25 | C141: BMPAC008048 | D141: NOTICE BIOCLAVE 500 MG/62,5 MG AD "COMP". | E141: 059/19/A/02 | F141: 96864 | G141: 0.96 | H141: 92989.44
B142: 26 | C142: BMPAC008045 | D142: NOTICE BIOCLAVE AD+ENF "SACH". | E142: MISS 08/09/2019 | F142: 2490814 | G142: 0.72 | H142: 1793386.08
B143: 27 | C143: BMPAC008050 | D143: NOTICE BIOPAMOX 500 MG/5 ML. | E143: miss 09/10/2019 | F143: 813676 | G143: 0.72 | H143: 585846.72
A144: RI20 002667 | B144: N° | C144: CODE | D144: DÉSIGNATION | E144: N° Lot | F144: NB COL | G144: PU. HT | H144: MONTANT HT
B145: 1 | C145: AMPAC005042 | D145: ETUIS SACHET PARACETAMOL 300 MG | E145: 1901087 | F145: 204582 | G145: 3.49 | H145: 713991.18
B146: 2 | C146: AMPAC005043 | D146: ETUIS SACHET PARACETAMOL 500 MG | E146: SIPA 1901444 | F146: 450591 | G146: 3.49 | H146: 1572562.59
B147: 3 | C147: AMPAC009019 | D147: EMBALLAGE PARACETAMOL 500 MG LAIZE 960 MM | E147: 5880 | F147: 49831.55 | G147: 143.36 | H147: 7143851.008
B148: 4 | C148: AMPMX03B001 | D148: PARACETAMOL GRANULES READY FOR SACHET | E148: FO09B916 | F148: 21856.32 | G148: 1539.46 | H148: 33646930.39
B149: 5 | C149: AMPPA01A030 | D149: LEVOCETIRIZINE HCL | E149: W201808J03 | F149: 48.8 | G149: 174399.25 | H149: 8510683.4
B150: 6 | C150: AMPPA14A006 | D150: METFORMINE | E150: A-22611611056 | F150: 6797.61 | G150: 1062.15 | H150: 7220081.462
B151: 7 | C151: AMPMX06B001 | D151: NICARDIPINE 50mg SR PELLET | E151: FBZ4H903 | F151: 26.1 | G151: 12284.2 | H151: 320617.62
B152: 8 | C152: AMPPA10A031 | D152: RANITIDINE HCL DC GRADE | E152: R-083DC0815 | F152: 314.37 | G152: 9328.17 | H152: 2932496.803
B153: 9 | C153: AMPPA14A007 | D153: REPAGLINIDE | E153: P-502-CN20190601 | F153: 27.85 | G153: 375217.11 | H153: 10449796.51
B154: 10 | C154: AMPPA14H032 | D154: VITAMINE B1 | E154: TH17113034C | F154: 633.91 | G154: 10680.61 | H154: 6770545.485
B155: 11 | C155: AMPPA14H033 | D155: VITAMINE B6 | E155: PH17124019C | F155: 23.57 | G155: 10680.61 | H155: 251741.9777
B156: 12 | C156: AMPAC008027 | D156: NOTICE PARACETAMOL | E156: miss 19/07/2018 | F156: 567927 | G156: 0.72 | H156: 408907.44
A157: RI20 002668 | B157: N° | C157: CODE | D157: DÉSIGNATION | E157: N° Lot | F157: NB COL | G157: PU. HT | H157: MONTANT HT
B158: 1 | C158: KMPEX002001 | D158: AROME ANTILLAIS POUDRE | E158: N009402520 | F158: 338.16 | G158: 7402.33 | H158: 2503171.913
B159: 2 | C159: KMPEX001030 | D159: SACCHAROSE MICRONISE EP/USP | E159: 17/2019 | F159: 48059 | G159: 125 | H159: 6007375
B160: 3 | C160: AMPPA22A028 | D160: MALEATE DE PHENIRAMINE | E160: SLL/P/1018037 | F160: 54.62 | G160: 12926.74 | H160: 706058.5388
B161: 4 | C161: KMPAC010003 | D161: VIGNETTE BLANCHE | E161: 21/09/2013 | F161: 167701 | G161: 0.09 | H161: 15093.09
B162: 5 | C162: AMPPA13E006 | D162: SPIRAMYCINE BASE COMPACTE | E162: 190317019M | F162: 1924.17 | G162: 21300.53 | H162: 40985840.81
B163: 6 | C163: AMPPA13E047 | D163: SPIRAMYCINE BASE POUDRE | E163: 20190310A | F163: 133.17 | G163: 23082.71 | H163: 3073924.491
B164: 7 | C164: AMPPA10F001 | D164: TRIMEBUTINE MALEATE | E164: 302 | F164: 837.87 | G164: 16703.5 | H164: 13995361.54
B165: 8 | C165: AMPPA13E002 | D165: METRONIDAZOLE BP2007/USP30 | E165: 0121806133 | F165: 283.18 | G165: 3427.55 | H165: 970613.609
B166: 9 | C166: KMPAC010002 | D166: VIGNETTE B/VERTE | E166: ETI 16/09/2019 | F166: 14570511 | G166: 0.13 | H166: 1894166.43
A167: RI20 002669 | B167: N° | C167: CODE | D167: DÉSIGNATION | E167: N° Lot | F167: NB COL | G167: PU. HT | H167: MONTANT HT
B168: 1 | C168: BMPAC009008 | D168: EMBALLAGE BIOCLAVE 1 G/125 MG AD. | E168: 6133 | F168: 900044.55 | G168: 42.65 | H168: 38386900.06
B169: 2 | C169: BMPAC009009 | D169: EMBALLAGE BIOCLAVE 500 MG/62,5 MG ENF. | E169: 5882 | F169: 778155.07 | G169: 42.34 | H169: 32947085.66
B170: 3 | C170: BMPPA13G005 | D170: AMOXICILLINE T/H POWDER | E170: 181215020 | F170: 5000 | G170: 4956.69 | H170: 24783450
A171: RI20 002670 | B171: N° | C171: CODE | D171: DÉSIGNATION | E171: N° Lot | F171: NB COL | G171: PU. HT | H171: MONTANT HT
B172: 1 | C172: BMPAC007001 | D172: FLACON 90 ML ROND VERRE BLANC TYPE III JAUGE A 60ML | E172: g.gd 27/02/2019 | F172: 2673946 | G172: 11.4 | H172: 30482984.4
B173: 2 | C173: KMPAC011011 | D173: PIPETTE SIROP | E173: ROV 07/05/2019 | F173: 1087859 | G173: 13.11 | H173: 14261831.49
B174: 3 | C174: BMPPA13G005 | D174: AMOXICILLINE T/H POWDER | E174: 181215020 | F174: 5000 | G174: 4956.69 | H174: 24783450
A175: RI20 002671 | B175: N° | C175: CODE | D175: DÉSIGNATION | E175: N° Lot | F175: NB COL | G175: PU. HT | H175: MONTANT HT
B176: 1 | C176: BMPPA13G005 | D176: AMOXICILLINE T/H POWDER | E176: 181215020 | F176: 6290.76 | G176: 4956.69 | H176: 31181347.18
A177: RI20 002673 | B177: N° | C177: CODE | D177: DÉSIGNATION | E177: N° Lot | F177: NB COL | G177: PU. HT | H177: MONTANT HT
B178: 1 | C178: AMPMX10A002 | D178: OMEPRAZOLE PELLETS 8.5% | E178: FBG2F912 | F178: 10248.03 | G178: 7868.97 | H178: 80641440.63
A179: RI20 002674 | B179: N° | C179: CODE | D179: DÉSIGNATION | E179: N° Lot | F179: NB COL | G179: PU. HT | H179: MONTANT HT
B180: 1 | C180: AMPMX04B005 | D180: DICLOFENAC SODIUM SR PELLETS 75 MG | E180: F011B902 | F180: 6111.01 | G180: 5925.97 | H180: 36213661.93
B181: 2 | C181: AMPMX10A002 | D181: OMEPRAZOLE PELLETS 8.5% | E181: FBG2F912 | F181: 6334.68 | G181: 7868.97 | H181: 49847406.88
A182: RI20 002675 | B182: N° | C182: CODE | D182: DÉSIGNATION | E182: N° Lot | F182: NB COL | G182: PU. HT | H182: MONTANT HT
B183: 1 | C183: AMPAC009007 | D183: ALUMINIUM NEUTRE | E183: 5025-1 | F183: 377797.34 | G183: 107.28 | H183: 40530098.64
B184: 2 | C184: AMPGL004047 | D184: GELULES TRANS/ROSE TAILLE 2 (TETE 23.014/CORPS 43.000 ) | E184: 1150046875 | F184: 82308126 | G184: 0.36 | H184: 29630925.36
B185: 3 | C185: AMPMX04B004 | D185: DICLOFENAC SODIUM EC PELLETS 50MG | E185: FG38H902 | F185: 513.24 | G185: 5596.16 | H185: 2872173.158
B186: 4 | C186: AMPMX04B005 | D186: DICLOFENAC SODIUM SR PELLETS 75 MG | E186: F011B902 | F186: 2552.14 | G186: 5925.97 | H186: 15123905.08
C189: RI19/001793
A190: 1 | B190: KMPEX001071 | C190: GELATINE | D190: 12 | E190: 3188.33 | F190: 0 | G190: 0 | H190: 38259.96 | I190: 0 | J190: 38259.96 | K190: 18010039 | L190: 2021-12-12 | M190: 0 | N190: 0 | O190: 0 | P190: 0 | Q190: 7096
A191: 2 | B191: KMPEX001005 | C191: AMIDON DE MAÏS B | D191: 10 | E191: 321.42 | F191: 0 | G191: 0 | H191: 3214.2 | I191: 0 | J191: 3214.2 | K191: E4933 | L191: 2022-12-01 | M191: 0 | N191: 0 | O191: 0 | P191: 0 | Q191: 7389
A192: 3 | B192: KMPEX001009 | C192: CELLULOSE MICROCRISTALLINE PH112 | D192: 10 | E192: 1050 | F192: 0 | G192: 0 | H192: 10500 | I192: 0 | J192: 10500 | K192: 5611273427 | L192: 2019-06-01 | M192: 0 | N192: 0 | O192: 0 | P192: 0 | Q192: 7714
A193: 4 | B193: KMPEX001004 | C193: AMIDON DE BLE TB | D193: 15 | E193: 474.65 | F193: 0 | G193: 0 | H193: 7119.75 | I193: 0 | J193: 7119.75 | K193: E1435 | L193: 2023-08-01 | M193: 0 | N193: 0 | O193: 0 | P193: 0 | Q193: 9107
A194: 5 | B194: KMPEX001006 | C194: AMIDON PREGELATINISE | D194: 3 | E194: 450 | F194: 0 | G194: 0 | H194: 1350 | I194: 0 | J194: 1350 | K194: E7414 | L194: 2023-01-01 | M194: 0 | N194: 0 | O194: 0 | P194: 0 | Q194: 10315
A195: 6 | B195: KMPEX001011 | C195: CROSCARMELLOSE SODIQUE | D195: 14 | E195: 1779.95 | F195: 0 | G195: 0 | H195: 24919.3 | I195: 0 | J195: 24919.3 | K195: D210180056 | L195: 2023-09-01 | M195: 0 | N195: 0 | O195: 0 | P195: 0 | Q195: 9579
A196: 7 | B196: KMPEX001027 | C196: Polyvidone pyrolidone- PVP (K 25 ) | D196: 3 | E196: 2964.84 | F196: 0 | G196: 0 | H196: 8894.52 | I196: 0 | J196: 8894.52 | K196: PK25-180126F31 | L196: 2021-01-01 | M196: 0 | N196: 0 | O196: 0 | P196: 0 | Q196: 8202
A197: 8 | B197: AMPPA13E006 | C197: SPIRAMYCINE BASE COMPACTE | D197: 1031.89 | E197: 21300.53 | F197: 0 | G197: 0 | H197: 21979803.9 | I197: 0 | J197: 21979803.9 | K197: 190317019M | L197: 2022-03-01 | M197: 0 | N197: 0 | O197: 0 | P197: 0 | Q197: 10324
A198: 9 | B198: AMPPA01A030 | C198: LEVOCETIRIZINE HCL | D198: 2 | E198: 174399.25 | F198: 0 | G198: 0 | H198: 348798.5 | I198: 0 | J198: 348798.5 | K198: W201808J03 | L198: 2020-08-01 | M198: 0 | N198: 0 | O198: 0 | P198: 0 | Q198: 9482

Sheet tabl (hidden)
A2: Code | B2: DÉSIGNATION | C2: QTÉ
B3: ACARBOSE | C3: =SUMIF(Tableau4[[DÉSIGNATION]:[QTÉ-SOMME]],tabl!$B$3:$B$172,Tableau4[QTÉ-SOMME]) -> 120.69
B4: ACESULFAME POTASSIUM | C4: =SUMIF(Tableau4[[DÉSIGNATION]:[QTÉ-SOMME]],tabl!$B$3:$B$172,Tableau4[QTÉ-SOMME]) -> 26.34
B5: ACIDE CITRIQUE ANHYDR POUDRE | C5: =SUMIF(Tableau4[[DÉSIGNATION]:[QTÉ-SOMME]],tabl!$B$3:$B$172,Tableau4[QTÉ-SOMME]) -> 0
B6: ALU 20 DM ANTAG | C6: =SUMIF(Tableau4[[DÉSIGNATION]:[QTÉ-SOMME]],tabl!$B$3:$B$172,Tableau4[QTÉ-SOMME]) -> 296412.35
B7: ALU 20 DM ANTIUM 20 mg | C7: =SUMIF(Tableau4[[DÉSIGNATION]:[QTÉ-SOMME]],tabl!$B$3:$B$172,Tableau4[QTÉ-SOMME]) -> 0
B8: ALU 20 DM BIOCLAV 500 MG/62,5 MG AD. | C8: =SUMIF(Tableau4[[DÉSIGNATION]:[QTÉ-SOMME]],tabl!$B$3:$B$172,Tableau4[QTÉ-SOMME]) -> 0
B9: ALU 20 DM BIOPAMOX 500MG | C9: =SUMIF(Tableau4[[DÉSIGNATION]:[QTÉ-SOMME]],tabl!$B$3:$B$172,Tableau4[QTÉ-SOMME]) -> 0
B10: ALU 20 DM BUTAFEN 200 MG GELULES | C10: =SUMIF(Tableau4[[DÉSIGNATION]:[QTÉ-SOMME]],tabl!$B$3:$B$172,Tableau4[QTÉ-SOMME]) -> 3271.97
B11: ALU 20 DM BUTAFEN 600 MG COMP | C11: =SUMIF(Tableau4[[DÉSIGNATION]:[QTÉ-SOMME]],tabl!$B$3:$B$172,Tableau4[QTÉ-SOMME]) -> 5649.95
B12: ALU 20 DM CIPROTEK 500 mg | C12: =SUMIF(Tableau4[[DÉSIGNATION]:[QTÉ-SOMME]],tabl!$B$3:$B$172,Tableau4[QTÉ-SOMME]) -> 0
B13: ALU 20 DM DIAGLINIDE 0.5 MG | C13: =SUMIF(Tableau4[[DÉSIGNATION]:[QTÉ-SOMME]],tabl!$B$3:$B$172,Tableau4[QTÉ-SOMME]) -> 0
B14: ALU 20 DM DIAGLINIDE 1 MG | C14: =SUMIF(Tableau4[[DÉSIGNATION]:[QTÉ-SOMME]],tabl!$B$3:$B$172,Tableau4[QTÉ-SOMME]) -> 0
B15: ALU 20 DM DIAGLINIDE 2 MG | C15: =SUMIF(Tableau4[[DÉSIGNATION]:[QTÉ-SOMME]],tabl!$B$3:$B$172,Tableau4[QTÉ-SOMME]) -> 0
B16: ALU 20 DM FLOVENAC 50 MG (GELULES) | C16: =SUMIF(Tableau4[[DÉSIGNATION]:[QTÉ-SOMME]],tabl!$B$3:$B$172,Tableau4[QTÉ-SOMME]) -> 0
B17: ALU 20 DM FLOVENAC LP 75 | C17: =SUMIF(Tableau4[[DÉSIGNATION]:[QTÉ-SOMME]],tabl!$B$3:$B$172,Tableau4[QTÉ-SOMME]) -> 30935.26
B18: ALU 20 DM FORMENTIN 850 mg. | C18: =SUMIF(Tableau4[[DÉSIGNATION]:[QTÉ-SOMME]],tabl!$B$3:$B$172,Tableau4[QTÉ-SOMME]) -> 14853.81
B19: ALU 20 DM NICARDIPINE | C19: =SUMIF(Tableau4[[DÉSIGNATION]:[QTÉ-SOMME]],tabl!$B$3:$B$172,Tableau4[QTÉ-SOMME]) -> 0
B20: ALU 20 DM OROGYL | C20: =SUMIF(Tableau4[[DÉSIGNATION]:[QTÉ-SOMME]],tabl!$B$3:$B$172,Tableau4[QTÉ-SOMME]) -> 0
B21: ALU 20 DM RANICARE 150 mg | C21: =SUMIF(Tableau4[[DÉSIGNATION]:[QTÉ-SOMME]],tabl!$B$3:$B$172,Tableau4[QTÉ-SOMME]) -> 4378.25
B22: ALU 20 DM SPIRACARE 1.5 M | C22: =SUMIF(Tableau4[[DÉSIGNATION]:[QTÉ-SOMME]],tabl!$B$3:$B$172,Tableau4[QTÉ-SOMME]) -> 5351.85
B23: ALU 20 DM SPIRACARE 3 M | C23: =SUMIF(Tableau4[[DÉSIGNATION]:[QTÉ-SOMME]],tabl!$B$3:$B$172,Tableau4[QTÉ-SOMME]) -> 3793.67
B24: ALU 20 DM TRIMEBUTINE BIOCARE 100 mg | C24: =SUMIF(Tableau4[[DÉSIGNATION]:[QTÉ-SOMME]],tabl!$B$3:$B$172,Tableau4[QTÉ-SOMME]) -> 0
B25: ALU 20 DM TRIMEBUTINE BIOCARE 200 mg | C25: =SUMIF(Tableau4[[DÉSIGNATION]:[QTÉ-SOMME]],tabl!$B$3:$B$172,Tableau4[QTÉ-SOMME]) -> 0
B26: ALU 20 DM TROIS B | C26: =SUMIF(Tableau4[[DÉSIGNATION]:[QTÉ-SOMME]],tabl!$B$3:$B$172,Tableau4[QTÉ-SOMME]) -> 7777.1
B27: ALU 20 DM UDINE 5 mg | C27: =SUMIF(Tableau4[[DÉSIGNATION]:[QTÉ-SOMME]],tabl!$B$3:$B$172,Tableau4[QTÉ-SOMME]) -> 0
B28: ALU 20 DM XYCARE 5 mg "COMP". | C28: =SUMIF(Tableau4[[DÉSIGNATION]:[QTÉ-SOMME]],tabl!$B$3:$B$172,Tableau4[QTÉ-SOMME]) -> 34773.8
B29: ALUMINIUM NEUTRE | C29: =SUMIF(Tableau4[[DÉSIGNATION]:[QTÉ-SOMME]],tabl!$B$3:$B$172,Tableau4[QTÉ-SOMME]) -> 0
B30: AMIDON DE BLE TB | C30: =SUMIF(Tableau4[[DÉSIGNATION]:[QTÉ-SOMME]],tabl!$B$3:$B$172,Tableau4[QTÉ-SOMME]) -> 152
B31: AMIDON DE MAÏS B | C31: =SUMIF(Tableau4[[DÉSIGNATION]:[QTÉ-SOMME]],tabl!$B$3:$B$172,Tableau4[QTÉ-SOMME]) -> 0
B32: AMIDON PREGELATINISE | C32: =SUMIF(Tableau4[[DÉSIGNATION]:[QTÉ-SOMME]],tabl!$B$3:$B$172,Tableau4[QTÉ-SOMME]) -> 0
B33: AMOXICILLINE T/H COMPACTED | C33: =SUMIF(Tableau4[[DÉSIGNATION]:[QTÉ-SOMME]],tabl!$B$3:$B$172,Tableau4[QTÉ-SOMME]) -> 0
B34: AMOXICILLINE T/H POWDER | C34: =SUMIF(Tableau4[[DÉSIGNATION]:[QTÉ-SOMME]],tabl!$B$3:$B$172,Tableau4[QTÉ-SOMME]) -> 5190.76
B35: AROME ANTILLAIS POUDRE | C35: =SUMIF(Tableau4[[DÉSIGNATION]:[QTÉ-SOMME]],tabl!$B$3:$B$172,Tableau4[QTÉ-SOMME]) -> 0
B36: AROME CITRON PECHE FRAISE POUDRE | C36: =SUMIF(Tableau4[[DÉSIGNATION]:[QTÉ-SOMME]],tabl!$B$3:$B$172,Tableau4[QTÉ-SOMME]) -> 214.31
B37: AROME MELANGE TROPICAL PERMASEAL | C37: =SUMIF(Tableau4[[DÉSIGNATION]:[QTÉ-SOMME]],tabl!$B$3:$B$172,Tableau4[QTÉ-SOMME]) -> 377.95
B38: AROME ORANGE SN680262 | C38: =SUMIF(Tableau4[[DÉSIGNATION]:[QTÉ-SOMME]],tabl!$B$3:$B$172,Tableau4[QTÉ-SOMME]) -> 0
B39: CAPSULE ALUMINIUM UT 28 | C39: =SUMIF(Tableau4[[DÉSIGNATION]:[QTÉ-SOMME]],tabl!$B$3:$B$172,Tableau4[QTÉ-SOMME]) -> 2328892
B40: CELLULOSE MICROCRISTALLINE PH102 | C40: =SUMIF(Tableau4[[DÉSIGNATION]:[QTÉ-SOMME]],tabl!$B$3:$B$172,Tableau4[QTÉ-SOMME]) -> 0
B41: CIPROFLOXACIN GRANULES 500 mg | C41: =SUMIF(Tableau4[[DÉSIGNATION]:[QTÉ-SOMME]],tabl!$B$3:$B$172,Tableau4[QTÉ-SOMME]) -> 0
B42: CITRATE DE SODIUM TRISODIQUE DIHYDRATE | C42: =SUMIF(Tableau4[[DÉSIGNATION]:[QTÉ-SOMME]],tabl!$B$3:$B$172,Tableau4[QTÉ-SOMME]) -> 30.1
B43: COLORANT JAUNE QUINOLINE LAKE | C43: =SUMIF(Tableau4[[DÉSIGNATION]:[QTÉ-SOMME]],tabl!$B$3:$B$172,Tableau4[QTÉ-SOMME]) -> 0
B44: CROSCARMELLOSE SODIQUE | C44: =SUMIF(Tableau4[[DÉSIGNATION]:[QTÉ-SOMME]],tabl!$B$3:$B$172,Tableau4[QTÉ-SOMME]) -> 0
B45: DESLORATADINE | C45: =SUMIF(Tableau4[[DÉSIGNATION]:[QTÉ-SOMME]],tabl!$B$3:$B$172,Tableau4[QTÉ-SOMME]) -> 1.92
B46: DICLOFENAC SODIUM EC PELLETS 50MG | C46: =SUMIF(Tableau4[[DÉSIGNATION]:[QTÉ-SOMME]],tabl!$B$3:$B$172,Tableau4[QTÉ-SOMME]) -> 1300.44
B47: DICLOFENAC SODIUM SR PELLETS 75 MG | C47: =SUMIF(Tableau4[[DÉSIGNATION]:[QTÉ-SOMME]],tabl!$B$3:$B$172,Tableau4[QTÉ-SOMME]) -> 6663.15
B48: EMBALLAGE BIOCLAVE 1 G/125 MG AD. | C48: =SUMIF(Tableau4[[DÉSIGNATION]:[QTÉ-SOMME]],tabl!$B$3:$B$172,Tableau4[QTÉ-SOMME]) -> 387604
B49: EMBALLAGE BIOCLAVE 500 MG/62,5 MG ENF. | C49: =SUMIF(Tableau4[[DÉSIGNATION]:[QTÉ-SOMME]],tabl!$B$3:$B$172,Tableau4[QTÉ-SOMME]) -> 631115.07
B50: EMBALLAGE PARACETAMOL 500 MG LAIZE 960 MM | C50: =SUMIF(Tableau4[[DÉSIGNATION]:[QTÉ-SOMME]],tabl!$B$3:$B$172,Tableau4[QTÉ-SOMME]) -> 44231.55
B51: EMBALLAGE URICARE 3 g | C51: =SUMIF(Tableau4[[DÉSIGNATION]:[QTÉ-SOMME]],tabl!$B$3:$B$172,Tableau4[QTÉ-SOMME]) -> 0
B52: EMCOMPRESS PREMIUM | C52: =SUMIF(Tableau4[[DÉSIGNATION]:[QTÉ-SOMME]],tabl!$B$3:$B$172,Tableau4[QTÉ-SOMME]) -> 0
B53: ETHYLCELLULOSE | C53: =SUMIF(Tableau4[[DÉSIGNATION]:[QTÉ-SOMME]],tabl!$B$3:$B$172,Tableau4[QTÉ-SOMME]) -> 0.72
B54: ETIQUETTES SIROP AMPINAX | C54: =SUMIF(Tableau4[[DÉSIGNATION]:[QTÉ-SOMME]],tabl!$B$3:$B$172,Tableau4[QTÉ-SOMME]) -> 50460
B55: ETIQUETTES SIROP BIOCLAVE 100 MG/12,5 MG/1 ML. | C55: =SUMIF(Tableau4[[DÉSIGNATION]:[QTÉ-SOMME]],tabl!$B$3:$B$172,Tableau4[QTÉ-SOMME]) -> 822206
B56: ETIQUETTES SIROP BIOPAMOX | C56: =SUMIF(Tableau4[[DÉSIGNATION]:[QTÉ-SOMME]],tabl!$B$3:$B$172,Tableau4[QTÉ-SOMME]) -> 361977
B57: ETIQUETTES SIROP BIOPAMOX 500 MG/5 ML. | C57: =SUMIF(Tableau4[[DÉSIGNATION]:[QTÉ-SOMME]],tabl!$B$3:$B$172,Tableau4[QTÉ-SOMME]) -> 960404
B58: ETUIS AMPINAX SIROP | C58: =SUMIF(Tableau4[[DÉSIGNATION]:[QTÉ-SOMME]],tabl!$B$3:$B$172,Tableau4[QTÉ-SOMME]) -> 0
B59: ETUIS ANTAG 20 mg "BT 14 GEL" | C59: =SUMIF(Tableau4[[DÉSIGNATION]:[QTÉ-SOMME]],tabl!$B$3:$B$172,Tableau4[QTÉ-SOMME]) -> 2047172
B60: ETUIS ANTAG 20 mg "BT 28 GEL" | C60: =SUMIF(Tableau4[[DÉSIGNATION]:[QTÉ-SOMME]],tabl!$B$3:$B$172,Tableau4[QTÉ-SOMME]) -> 658117
B61: ETUIS ARBOSE 50 mg "BT 30 COMP" | C61: =SUMIF(Tableau4[[DÉSIGNATION]:[QTÉ-SOMME]],tabl!$B$3:$B$172,Tableau4[QTÉ-SOMME]) -> 42713.99
B62: ETUIS BIOCLAV 1 G/125 MG AD "12 SACH". | C62: =SUMIF(Tableau4[[DÉSIGNATION]:[QTÉ-SOMME]],tabl!$B$3:$B$172,Tableau4[QTÉ-SOMME]) -> 457663
B63: ETUIS BIOCLAV 100 MG/12,5 MG/1 ML. | C63: =SUMIF(Tableau4[[DÉSIGNATION]:[QTÉ-SOMME]],tabl!$B$3:$B$172,Tableau4[QTÉ-SOMME]) -> 1315933
B64: ETUIS BIOCLAV 500 MG/62,5 MG AD "16 COMP". | C64: =SUMIF(Tableau4[[DÉSIGNATION]:[QTÉ-SOMME]],tabl!$B$3:$B$172,Tableau4[QTÉ-SOMME]) -> 0
B65: ETUIS BIOCLAV 500 MG/62,5 MG ENF "12 SACH". | C65: =SUMIF(Tableau4[[DÉSIGNATION]:[QTÉ-SOMME]],tabl!$B$3:$B$172,Tableau4[QTÉ-SOMME]) -> 665186
B66: ETUIS BIOPAMOX 250 MG/5 ML | C66: =SUMIF(Tableau4[[DÉSIGNATION]:[QTÉ-SOMME]],tabl!$B$3:$B$172,Tableau4[QTÉ-SOMME]) -> 371379
B67: ETUIS BIOPAMOX 500 MG (FABRICATION) | C67: =SUMIF(Tableau4[[DÉSIGNATION]:[QTÉ-SOMME]],tabl!$B$3:$B$172,Tableau4[QTÉ-SOMME]) -> 0
B68: ETUIS BIOPAMOX 500 MG/5 ML. | C68: =SUMIF(Tableau4[[DÉSIGNATION]:[QTÉ-SOMME]],tabl!$B$3:$B$172,Tableau4[QTÉ-SOMME]) -> 960404
B69: ETUIS BUTAFEN 200 MG GELULES | C69: =SUMIF(Tableau4[[DÉSIGNATION]:[QTÉ-SOMME]],tabl!$B$3:$B$172,Tableau4[QTÉ-SOMME]) -> 87642
B70: ETUIS BUTAFEN 400 MG GELULES | C70: =SUMIF(Tableau4[[DÉSIGNATION]:[QTÉ-SOMME]],tabl!$B$3:$B$172,Tableau4[QTÉ-SOMME]) -> 59344
B71: ETUIS BUTAFEN 600 MG COMP | C71: =SUMIF(Tableau4[[DÉSIGNATION]:[QTÉ-SOMME]],tabl!$B$3:$B$172,Tableau4[QTÉ-SOMME]) -> 0
B72: ETUIS CABERNEX 0.5 mg "BT 08 COMP" | C72: =SUMIF(Tableau4[[DÉSIGNATION]:[QTÉ-SOMME]],tabl!$B$3:$B$172,Tableau4[QTÉ-SOMME]) -> 16716
B73: ETUIS CIPROTEKE 500 mg | C73: =SUMIF(Tableau4[[DÉSIGNATION]:[QTÉ-SOMME]],tabl!$B$3:$B$172,Tableau4[QTÉ-SOMME]) -> 0
B74: ETUIS DIAGLINIDE 0.5 mg | C74: =SUMIF(Tableau4[[DÉSIGNATION]:[QTÉ-SOMME]],tabl!$B$3:$B$172,Tableau4[QTÉ-SOMME]) -> 0
B75: ETUIS DIAGLINIDE 1 mg | C75: =SUMIF(Tableau4[[DÉSIGNATION]:[QTÉ-SOMME]],tabl!$B$3:$B$172,Tableau4[QTÉ-SOMME]) -> 0
B76: ETUIS DIAGLINIDE 2 mg | C76: =SUMIF(Tableau4[[DÉSIGNATION]:[QTÉ-SOMME]],tabl!$B$3:$B$172,Tableau4[QTÉ-SOMME]) -> 0
B77: ETUIS FLOVENAC 50 MG (GELULES) | C77: =SUMIF(Tableau4[[DÉSIGNATION]:[QTÉ-SOMME]],tabl!$B$3:$B$172,Tableau4[QTÉ-SOMME]) -> 122214
B78: ETUIS FLOVENAC L.P 75 MG FABRICATION | C78: =SUMIF(Tableau4[[DÉSIGNATION]:[QTÉ-SOMME]],tabl!$B$3:$B$172,Tableau4[QTÉ-SOMME]) -> 487626
B79: ETUIS NICARDIPINE BIOCARE L.P 50 MG FABRICATION | C79: =SUMIF(Tableau4[[DÉSIGNATION]:[QTÉ-SOMME]],tabl!$B$3:$B$172,Tableau4[QTÉ-SOMME]) -> 0
B80: ETUIS OROGYL | C80: =SUMIF(Tableau4[[DÉSIGNATION]:[QTÉ-SOMME]],tabl!$B$3:$B$172,Tableau4[QTÉ-SOMME]) -> 0
B81: ETUIS RANICARE 30 COMP | C81: =SUMIF(Tableau4[[DÉSIGNATION]:[QTÉ-SOMME]],tabl!$B$3:$B$172,Tableau4[QTÉ-SOMME]) -> 0
B82: ETUIS SACHET PARACETAMOL 300 MG | C82: =SUMIF(Tableau4[[DÉSIGNATION]:[QTÉ-SOMME]],tabl!$B$3:$B$172,Tableau4[QTÉ-SOMME]) -> 204582
B83: ETUIS SACHET PARACETAMOL 500 MG | C83: =SUMIF(Tableau4[[DÉSIGNATION]:[QTÉ-SOMME]],tabl!$B$3:$B$172,Tableau4[QTÉ-SOMME]) -> 386591
B84: ETUIS SPIRACARE 1.5 M | C84: =SUMIF(Tableau4[[DÉSIGNATION]:[QTÉ-SOMME]],tabl!$B$3:$B$172,Tableau4[QTÉ-SOMME]) -> 143353
B85: ETUIS SPIRACARE 3M | C85: =SUMIF(Tableau4[[DÉSIGNATION]:[QTÉ-SOMME]],tabl!$B$3:$B$172,Tableau4[QTÉ-SOMME]) -> 202311.69
B86: ETUIS TRIMEBUTINE BIOCARE 100 MG | C86: =SUMIF(Tableau4[[DÉSIGNATION]:[QTÉ-SOMME]],tabl!$B$3:$B$172,Tableau4[QTÉ-SOMME]) -> 0
B87: ETUIS TRIMEBUTINE BIOCARE 200 mg | C87: =SUMIF(Tableau4[[DÉSIGNATION]:[QTÉ-SOMME]],tabl!$B$3:$B$172,Tableau4[QTÉ-SOMME]) -> 0
B88: ETUIS TROIS B | C88: =SUMIF(Tableau4[[DÉSIGNATION]:[QTÉ-SOMME]],tabl!$B$3:$B$172,Tableau4[QTÉ-SOMME]) -> 167701
B89: ETUIS UDINE 5 mg "BT 15 COMP" | C89: =SUMIF(Tableau4[[DÉSIGNATION]:[QTÉ-SOMME]],tabl!$B$3:$B$172,Tableau4[QTÉ-SOMME]) -> 0
B90: ETUIS URICARE 3 g "1 SACH". | C90: =SUMIF(Tableau4[[DÉSIGNATION]:[QTÉ-SOMME]],tabl!$B$3:$B$172,Tableau4[QTÉ-SOMME]) -> 0
B91: ETUIS XYCARE 5 mg "14 COMP" | C91: =SUMIF(Tableau4[[DÉSIGNATION]:[QTÉ-SOMME]],tabl!$B$3:$B$172,Tableau4[QTÉ-SOMME]) -> 274323.04
B92: ETUIS XYCARE 5 mg "28 COMP" | C92: =SUMIF(Tableau4[[DÉSIGNATION]:[QTÉ-SOMME]],tabl!$B$3:$B$172,Tableau4[QTÉ-SOMME]) -> 134874.89
B93: EUDRAGIT E12.5 | C93: =SUMIF(Tableau4[[DÉSIGNATION]:[QTÉ-SOMME]],tabl!$B$3:$B$172,Tableau4[QTÉ-SOMME]) -> 0
B94: FLACON 90 ML ROND VERRE BLANC TYPE III JAUGE A 60ML | C94: =SUMIF(Tableau4[[DÉSIGNATION]:[QTÉ-SOMME]],tabl!$B$3:$B$172,Tableau4[QTÉ-SOMME]) -> 2217898
B95: FOSFOMYCIN TROMETAMOL | C95: =SUMIF(Tableau4[[DÉSIGNATION]:[QTÉ-SOMME]],tabl!$B$3:$B$172,Tableau4[QTÉ-SOMME]) -> 0
B96: GELATINE | C96: =SUMIF(Tableau4[[DÉSIGNATION]:[QTÉ-SOMME]],tabl!$B$3:$B$172,Tableau4[QTÉ-SOMME]) -> 40.25
B97: GELULES MARRON/JAUNE TAILLE 0 EL (TETE 33.056/CORP : 42.335) | C97: =SUMIF(Tableau4[[DÉSIGNATION]:[QTÉ-SOMME]],tabl!$B$3:$B$172,Tableau4[QTÉ-SOMME]) -> 0
B98: GELULES PINK/ LIGHT GREEN TAILLE 2 (Corps:24.103/Tete:17.421) | C98: =SUMIF(Tableau4[[DÉSIGNATION]:[QTÉ-SOMME]],tabl!$B$3:$B$172,Tableau4[QTÉ-SOMME]) -> 0
B99: GELULES PINK/PINK TAILLE 0 (TETE L780/CORPS L780) | C99: =SUMIF(Tableau4[[DÉSIGNATION]:[QTÉ-SOMME]],tabl!$B$3:$B$172,Tableau4[QTÉ-SOMME]) -> 1186880
B100: GELULES TRANS/ROSE TAILLE 2 (TETE 23.014/CORPS 43.000 ) | C100: =SUMIF(Tableau4[[DÉSIGNATION]:[QTÉ-SOMME]],tabl!$B$3:$B$172,Tableau4[QTÉ-SOMME]) -> 82308126
B101: GESWEET | C101: =SUMIF(Tableau4[[DÉSIGNATION]:[QTÉ-SOMME]],tabl!$B$3:$B$172,Tableau4[QTÉ-SOMME]) -> 273
B102: GOBELET DOSEUR | C102: =SUMIF(Tableau4[[DÉSIGNATION]:[QTÉ-SOMME]],tabl!$B$3:$B$172,Tableau4[QTÉ-SOMME]) -> 1382243
B103: GOMME XANTHANE | C103: =SUMIF(Tableau4[[DÉSIGNATION]:[QTÉ-SOMME]],tabl!$B$3:$B$172,Tableau4[QTÉ-SOMME]) -> 135
B104: IBUPROFEN DC GRANULES 600 MG | C104: =SUMIF(Tableau4[[DÉSIGNATION]:[QTÉ-SOMME]],tabl!$B$3:$B$172,Tableau4[QTÉ-SOMME]) -> 2799.75
B105: LACTOSE ANHYDRE | C105: =SUMIF(Tableau4[[DÉSIGNATION]:[QTÉ-SOMME]],tabl!$B$3:$B$172,Tableau4[QTÉ-SOMME]) -> 0
B106: LACTOSE MONOHYDRATE TYPE PHARMA EP 200 Mesh | C106: =SUMIF(Tableau4[[DÉSIGNATION]:[QTÉ-SOMME]],tabl!$B$3:$B$172,Tableau4[QTÉ-SOMME]) -> 0
B107: LEVOCETIRIZINE HCL | C107: =SUMIF(Tableau4[[DÉSIGNATION]:[QTÉ-SOMME]],tabl!$B$3:$B$172,Tableau4[QTÉ-SOMME]) -> 48.8
B108: MACROGOL 20000 P | C108: =SUMIF(Tableau4[[DÉSIGNATION]:[QTÉ-SOMME]],tabl!$B$3:$B$172,Tableau4[QTÉ-SOMME]) -> 2.13
B109: MALEATE DE PHENIRAMINE | C109: =SUMIF(Tableau4[[DÉSIGNATION]:[QTÉ-SOMME]],tabl!$B$3:$B$172,Tableau4[QTÉ-SOMME]) -> 0
B110: MANNITOL | C110: =SUMIF(Tableau4[[DÉSIGNATION]:[QTÉ-SOMME]],tabl!$B$3:$B$172,Tableau4[QTÉ-SOMME]) -> 181.03
B111: METFORMINE | C111: =SUMIF(Tableau4[[DÉSIGNATION]:[QTÉ-SOMME]],tabl!$B$3:$B$172,Tableau4[QTÉ-SOMME]) -> 6797.61
B112: METRONIDAZOLE BP2007/USP30 | C112: =SUMIF(Tableau4[[DÉSIGNATION]:[QTÉ-SOMME]],tabl!$B$3:$B$172,Tableau4[QTÉ-SOMME]) -> 0
B113: NICARDIPINE 50mg SR PELLET | C113: =SUMIF(Tableau4[[DÉSIGNATION]:[QTÉ-SOMME]],tabl!$B$3:$B$172,Tableau4[QTÉ-SOMME]) -> 0
B114: NOTICE AMPINAX 250 MP SIROP | C114: =SUMIF(Tableau4[[DÉSIGNATION]:[QTÉ-SOMME]],tabl!$B$3:$B$172,Tableau4[QTÉ-SOMME]) -> 0
B115: NOTICE ANTAG | C115: =SUMIF(Tableau4[[DÉSIGNATION]:[QTÉ-SOMME]],tabl!$B$3:$B$172,Tableau4[QTÉ-SOMME]) -> 0
B116: NOTICE ARBOSE 50 mg "COMP". | C116: =SUMIF(Tableau4[[DÉSIGNATION]:[QTÉ-SOMME]],tabl!$B$3:$B$172,Tableau4[QTÉ-SOMME]) -> 76685
B117: NOTICE BIOCLAVE 100 MG/12,5 MG/1 ML. | C117: =SUMIF(Tableau4[[DÉSIGNATION]:[QTÉ-SOMME]],tabl!$B$3:$B$172,Tableau4[QTÉ-SOMME]) -> 744716.06
B118: NOTICE BIOCLAVE 500 MG/62,5 MG AD "COMP". | C118: =SUMIF(Tableau4[[DÉSIGNATION]:[QTÉ-SOMME]],tabl!$B$3:$B$172,Tableau4[QTÉ-SOMME]) -> 0
B119: NOTICE BIOCLAVE AD+ENF "SACH". | C119: =SUMIF(Tableau4[[DÉSIGNATION]:[QTÉ-SOMME]],tabl!$B$3:$B$172,Tableau4[QTÉ-SOMME]) -> 1615816
B120: NOTICE BIOPAMOX 250 MG SIROP | C120: =SUMIF(Tableau4[[DÉSIGNATION]:[QTÉ-SOMME]],tabl!$B$3:$B$172,Tableau4[QTÉ-SOMME]) -> 70405
B121: NOTICE BIOPAMOX 500 MG/5 ML. | C121: =SUMIF(Tableau4[[DÉSIGNATION]:[QTÉ-SOMME]],tabl!$B$3:$B$172,Tableau4[QTÉ-SOMME]) -> 813676
B122: NOTICE BUTAFEN 200 MG GELULES | C122: =SUMIF(Tableau4[[DÉSIGNATION]:[QTÉ-SOMME]],tabl!$B$3:$B$172,Tableau4[QTÉ-SOMME]) -> 106157
B123: NOTICE BUTAFEN 600 MG COMP | C123: =SUMIF(Tableau4[[DÉSIGNATION]:[QTÉ-SOMME]],tabl!$B$3:$B$172,Tableau4[QTÉ-SOMME]) -> 0
B124: NOTICE CABERNEX 0.5 mg "BT 08 COMP" | C124: =SUMIF(Tableau4[[DÉSIGNATION]:[QTÉ-SOMME]],tabl!$B$3:$B$172,Tableau4[QTÉ-SOMME]) -> 42365
B125: NOTICE CIPROTEK | C125: =SUMIF(Tableau4[[DÉSIGNATION]:[QTÉ-SOMME]],tabl!$B$3:$B$172,Tableau4[QTÉ-SOMME]) -> 0
B126: NOTICE DIAGLINIDE | C126: =SUMIF(Tableau4[[DÉSIGNATION]:[QTÉ-SOMME]],tabl!$B$3:$B$172,Tableau4[QTÉ-SOMME]) -> 0
B127: NOTICE FLOVENAC L.P 75 MG+ NOTICE FLOVENAC 50 MG (FABRICATION). | C127: =SUMIF(Tableau4[[DÉSIGNATION]:[QTÉ-SOMME]],tabl!$B$3:$B$172,Tableau4[QTÉ-SOMME]) -> 646483
B128: NOTICE FORMENTIN BT 100 | C128: =SUMIF(Tableau4[[DÉSIGNATION]:[QTÉ-SOMME]],tabl!$B$3:$B$172,Tableau4[QTÉ-SOMME]) -> 50839
B129: NOTICE NICARDIPINE | C129: =SUMIF(Tableau4[[DÉSIGNATION]:[QTÉ-SOMME]],tabl!$B$3:$B$172,Tableau4[QTÉ-SOMME]) -> 0
B130: NOTICE OROGYL | C130: =SUMIF(Tableau4[[DÉSIGNATION]:[QTÉ-SOMME]],tabl!$B$3:$B$172,Tableau4[QTÉ-SOMME]) -> 0
B131: NOTICE PARACETAMOL | C131: =SUMIF(Tableau4[[DÉSIGNATION]:[QTÉ-SOMME]],tabl!$B$3:$B$172,Tableau4[QTÉ-SOMME]) -> 512927
B132: NOTICE RANICARE | C132: =SUMIF(Tableau4[[DÉSIGNATION]:[QTÉ-SOMME]],tabl!$B$3:$B$172,Tableau4[QTÉ-SOMME]) -> 39971
B133: NOTICE SPIRACARE | C133: =SUMIF(Tableau4[[DÉSIGNATION]:[QTÉ-SOMME]],tabl!$B$3:$B$172,Tableau4[QTÉ-SOMME]) -> 291281
B134: NOTICE TRIMEBUTINE BIOCARE | C134: =SUMIF(Tableau4[[DÉSIGNATION]:[QTÉ-SOMME]],tabl!$B$3:$B$172,Tableau4[QTÉ-SOMME]) -> 0
B135: NOTICE TROIS B | C135: =SUMIF(Tableau4[[DÉSIGNATION]:[QTÉ-SOMME]],tabl!$B$3:$B$172,Tableau4[QTÉ-SOMME]) -> 130435
B136: NOTICE UDINE 5 mg | C136: =SUMIF(Tableau4[[DÉSIGNATION]:[QTÉ-SOMME]],tabl!$B$3:$B$172,Tableau4[QTÉ-SOMME]) -> 0
B137: NOTICE URICARE 3 g "1 SACH". | C137: =SUMIF(Tableau4[[DÉSIGNATION]:[QTÉ-SOMME]],tabl!$B$3:$B$172,Tableau4[QTÉ-SOMME]) -> 0
B138: NOTICE XYCARE 5 mg | C138: =SUMIF(Tableau4[[DÉSIGNATION]:[QTÉ-SOMME]],tabl!$B$3:$B$172,Tableau4[QTÉ-SOMME]) -> 418120
B139: OMEPRAZOLE PELLETS 8.5% | C139: =SUMIF(Tableau4[[DÉSIGNATION]:[QTÉ-SOMME]],tabl!$B$3:$B$172,Tableau4[QTÉ-SOMME]) -> 16582.71
B140: OPADRY II BLUE | C140: =SUMIF(Tableau4[[DÉSIGNATION]:[QTÉ-SOMME]],tabl!$B$3:$B$172,Tableau4[QTÉ-SOMME]) -> 1.31
B141: OPADRY II PINK OY-1350 | C141: =SUMIF(Tableau4[[DÉSIGNATION]:[QTÉ-SOMME]],tabl!$B$3:$B$172,Tableau4[QTÉ-SOMME]) -> 60.54
B142: OPADRY WHITE OY-7300 | C142: =SUMIF(Tableau4[[DÉSIGNATION]:[QTÉ-SOMME]],tabl!$B$3:$B$172,Tableau4[QTÉ-SOMME]) -> 14.77
B143: PARACETAMOL GRANULES READY FOR SACHET | C143: =SUMIF(Tableau4[[DÉSIGNATION]:[QTÉ-SOMME]],tabl!$B$3:$B$172,Tableau4[QTÉ-SOMME]) -> 20856.32
B144: PARAHYDROXYL BENZOATE DE METHYL | C144: =SUMIF(Tableau4[[DÉSIGNATION]:[QTÉ-SOMME]],tabl!$B$3:$B$172,Tableau4[QTÉ-SOMME]) -> 10.64
B145: PARAHYDROXYL BENZOATE DE PROPYL | C145: =SUMIF(Tableau4[[DÉSIGNATION]:[QTÉ-SOMME]],tabl!$B$3:$B$172,Tableau4[QTÉ-SOMME]) -> 2.58
B146: PEG 6000 Pdre | C146: =SUMIF(Tableau4[[DÉSIGNATION]:[QTÉ-SOMME]],tabl!$B$3:$B$172,Tableau4[QTÉ-SOMME]) -> 0
B147: PIPETTE SIROP | C147: =SUMIF(Tableau4[[DÉSIGNATION]:[QTÉ-SOMME]],tabl!$B$3:$B$172,Tableau4[QTÉ-SOMME]) -> 802859
B148: POLACRILIN POTASSIUM | C148: =SUMIF(Tableau4[[DÉSIGNATION]:[QTÉ-SOMME]],tabl!$B$3:$B$172,Tableau4[QTÉ-SOMME]) -> 0
B149: Polyvidone pyrolidone- PVP ( K 30EP/USP) | C149: =SUMIF(Tableau4[[DÉSIGNATION]:[QTÉ-SOMME]],tabl!$B$3:$B$172,Tableau4[QTÉ-SOMME]) -> 0
B150: Polyvidone pyrolidone- PVP (CL) | C150: =SUMIF(Tableau4[[DÉSIGNATION]:[QTÉ-SOMME]],tabl!$B$3:$B$172,Tableau4[QTÉ-SOMME]) -> 3643
B151: Polyvidone pyrolidone- PVP (K 25 ) | C151: =SUMIF(Tableau4[[DÉSIGNATION]:[QTÉ-SOMME]],tabl!$B$3:$B$172,Tableau4[QTÉ-SOMME]) -> 0
B152: RANITIDINE HCL DC GRADE | C152: =SUMIF(Tableau4[[DÉSIGNATION]:[QTÉ-SOMME]],tabl!$B$3:$B$172,Tableau4[QTÉ-SOMME]) -> 314.37
B153: REPAGLINIDE | C153: =SUMIF(Tableau4[[DÉSIGNATION]:[QTÉ-SOMME]],tabl!$B$3:$B$172,Tableau4[QTÉ-SOMME]) -> 0
B154: SACCHAROSE MICRONISE EP/USP | C154: =SUMIF(Tableau4[[DÉSIGNATION]:[QTÉ-SOMME]],tabl!$B$3:$B$172,Tableau4[QTÉ-SOMME]) -> 7779
B155: SACHARINATE DE SODIUM 20-40 mesh EP/USP | C155: =SUMIF(Tableau4[[DÉSIGNATION]:[QTÉ-SOMME]],tabl!$B$3:$B$172,Tableau4[QTÉ-SOMME]) -> 0
B156: SEPIFILM LP 014 | C156: =SUMIF(Tableau4[[DÉSIGNATION]:[QTÉ-SOMME]],tabl!$B$3:$B$172,Tableau4[QTÉ-SOMME]) -> 0
B157: SILICE COLLOIDAL ANHYDRE | C157: =SUMIF(Tableau4[[DÉSIGNATION]:[QTÉ-SOMME]],tabl!$B$3:$B$172,Tableau4[QTÉ-SOMME]) -> 138
B158: SILICE COLLOIDAL ANHYDRE 380 | C158: =SUMIF(Tableau4[[DÉSIGNATION]:[QTÉ-SOMME]],tabl!$B$3:$B$172,Tableau4[QTÉ-SOMME]) -> 0
B159: SPIRAMYCINE BASE COMPACTE | C159: =SUMIF(Tableau4[[DÉSIGNATION]:[QTÉ-SOMME]],tabl!$B$3:$B$172,Tableau4[QTÉ-SOMME]) -> 0
B160: SPIRAMYCINE BASE POUDRE | C160: =SUMIF(Tableau4[[DÉSIGNATION]:[QTÉ-SOMME]],tabl!$B$3:$B$172,Tableau4[QTÉ-SOMME]) -> 0
B161: STEARATE DE MAGNESIUM | C161: =SUMIF(Tableau4[[DÉSIGNATION]:[QTÉ-SOMME]],tabl!$B$3:$B$172,Tableau4[QTÉ-SOMME]) -> 0
B162: TALC TYPE PHARMA | C162: =SUMIF(Tableau4[[DÉSIGNATION]:[QTÉ-SOMME]],tabl!$B$3:$B$172,Tableau4[QTÉ-SOMME]) -> 0
B163: TITANE DIOXIDE (E171) | C163: =SUMIF(Tableau4[[DÉSIGNATION]:[QTÉ-SOMME]],tabl!$B$3:$B$172,Tableau4[QTÉ-SOMME]) -> 0
B164: TRIMEBUTINE MALEATE | C164: =SUMIF(Tableau4[[DÉSIGNATION]:[QTÉ-SOMME]],tabl!$B$3:$B$172,Tableau4[QTÉ-SOMME]) -> 0
B165: VIGNETTE B/VERTE | C165: =SUMIF(Tableau4[[DÉSIGNATION]:[QTÉ-SOMME]],tabl!$B$3:$B$172,Tableau4[QTÉ-SOMME]) -> 379343
B166: VIGNETTE BLANCHE | C166: =SUMIF(Tableau4[[DÉSIGNATION]:[QTÉ-SOMME]],tabl!$B$3:$B$172,Tableau4[QTÉ-SOMME]) -> 0
B167: VITAMINE B1 | C167: =SUMIF(Tableau4[[DÉSIGNATION]:[QTÉ-SOMME]],tabl!$B$3:$B$172,Tableau4[QTÉ-SOMME]) -> 633.91
B168: VITAMINE B6 | C168: =SUMIF(Tableau4[[DÉSIGNATION]:[QTÉ-SOMME]],tabl!$B$3:$B$172,Tableau4[QTÉ-SOMME]) -> 23.57
B169: VIVAPHARM® HPMC E15 | C169: =SUMIF(Tableau4[[DÉSIGNATION]:[QTÉ-SOMME]],tabl!$B$3:$B$172,Tableau4[QTÉ-SOMME]) -> 0
B170: VIVAPUR® 101 | C170: =SUMIF(Tableau4[[DÉSIGNATION]:[QTÉ-SOMME]],tabl!$B$3:$B$172,Tableau4[QTÉ-SOMME]) -> 0
B171: VIVAPUR® MCG 611 P | C171: =SUMIF(Tableau4[[DÉSIGNATION]:[QTÉ-SOMME]],tabl!$B$3:$B$172,Tableau4[QTÉ-SOMME]) -> 770.38
B172: VIVASTAR® P | C172: =SUMIF(Tableau4[[DÉSIGNATION]:[QTÉ-SOMME]],tabl!$B$3:$B$172,Tableau4[QTÉ-SOMME]) -> 0

Sheet intellix- PAR LOT (hidden)
A2: Filtrer par Articie desponible | C2: Rechercher par Article / N Lot : | E2: Filtrer par Depot | I2: Stock (par Lot)
A5: Filtrer par Statut Conforme / Péremé | E5: Filtrer par Famille | I5: SUBTOTAL
I6: =SUBTOTAL(9,intellix.par.lot87[Qte Stock Réelle]) -> 281849.21
A7: code | B7: Qté inellix 2020 | C7: DÉSIGNATION | D7: N°Lot | E7: Exp. | F7: Prix Achat | G7: Rechercher par Article / N Lot : | H7: Qté(+2019) | I7: Qte Stock Réelle | J7: Column2 | K7: Filtrer par Famille | L7: Statut Conforme / Péremé | M7: Filtrer par Articie desponible | N7: Column1 | O7: Filtrer par DEPOT
A8: =IFERROR(VLOOKUP(C8,code.article,2,FALSE),"") -> AMPPA14A050 | B8: 120.69 | C8: ACARBOSE | D8: CAC039A | E8: 2020-09-01 | F8: 68827.42 | G8: =intellix.par.lot87[[#This Row],[code]]&intellix.par.lot87[[#This Row],[ DÉSIGNATION]]&intellix.par.lot87[[#This Row],[N°Lot]] -> AMPPA14A050ACARBOSECAC039A | H8: =IFERROR(VLOOKUP(intellix.par.lot87[[#This Row],[Rechercher par Article / N Lot :]],Tableau4[[Colonne3]:[QTÉ-SOMME]],7,FALSE),0) -> 120.69 | I8: =intellix.par.lot87[[#This Row],[Qté inellix 2020]]-intellix.par.lot87[[#This Row],[Qté(+2019)]] -> 0 | J8: =IF(intellix.par.lot87[[#This Row],[Statut Conforme / Péremé]]="péremé",0,intellix.par.lot87[[#This Row],[Qte Stock Réelle]]) -> 0 | K8: =IFERROR(VLOOKUP(intellix.par.lot87[[#This Row],[code]],Tableau5[],3,FALSE),"") -> PA : PRINCIP ACTIF | L8: =IF(intellix.par.lot87[[#This Row],[Column1]]="AR","Conforme",IF(AND(intellix.par.lot87[[#This Row],[Column1]]="MP",intellix.par.lot87[[#This Row],[Exp.]]=""),"Quarantaine",IF(AND(intellix.par.lot87[[#This Row],[Column1]]="MP",intellix.par.lot87[[#This Row],[Exp.]]<TODAY()),"Péremé","Conforme"))) -> Péremé | M8: =IF(intellix.par.lot87[[#This Row],[Qte Stock Réelle]]>0,"Disponible","") ->  | N8: =IF(OR(intellix.par.lot87[[#This Row],[Filtrer par Famille]]="PA : PRINCIP ACTIF",intellix.par.lot87[[#This Row],[Filtrer par Famille]]="EX : EXCIPIENTS",intellix.par.lot87[[#This Row],[Filtrer par Famille]]="GV : CAPSULES",intellix.par.lot87[[#This Row],[Filtrer par Famille]]="SO : SOLVANTS"),"MP","AR") -> MP | O8: =IFERROR(IF(OR(intellix.par.lot87[[#This Row],[Statut Conforme / Péremé]]="conforme",intellix.par.lot87[[#This Row],[Statut Conforme / Péremé]]="péremé"),Sheet2!$C$3,""),"") -> DEPOT BIOCARE
A9: KMPEX001001 | B9: 0 | C9: ACESULFAME POTASSIUM | D9: 20141111 | E9: 2016-11-01 | F9: 1883.78 | G9: =intellix.par.lot87[[#This Row],[code]]&intellix.par.lot87[[#This Row],[ DÉSIGNATION]]&intellix.par.lot87[[#This Row],[N°Lot]] -> KMPEX001001ACESULFAME POTASSIUM20141111 | H9: =IFERROR(VLOOKUP(intellix.par.lot87[[#This Row],[Rechercher par Article / N Lot :]],Tableau4[[Colonne3]:[QTÉ-SOMME]],7,FALSE),0) -> 0 | I9: =intellix.par.lot87[[#This Row],[Qté inellix 2020]]-intellix.par.lot87[[#This Row],[Qté(+2019)]] -> 0 | J9: =IF(intellix.par.lot87[[#This Row],[Statut Conforme / Péremé]]="péremé",0,intellix.par.lot87[[#This Row],[Qte Stock Réelle]]) -> 0 | K9: =IFERROR(VLOOKUP(intellix.par.lot87[[#This Row],[code]],Tableau5[],3,FALSE),"") -> EX : EXCIPIENTS | L9: =IF(intellix.par.lot87[[#This Row],[Column1]]="AR","Conforme",IF(AND(intellix.par.lot87[[#This Row],[Column1]]="MP",intellix.par.lot87[[#This Row],[Exp.]]=""),"Quarantaine",IF(AND(intellix.par.lot87[[#This Row],[Column1]]="MP",intellix.par.lot87[[#This Row],[Exp.]]<TODAY()),"Péremé","Conforme"))) -> Péremé | M9: =IF(intellix.par.lot87[[#This Row],[Qte Stock Réelle]]>0,"Disponible","") ->  | N9: =IF(OR(intellix.par.lot87[[#This Row],[Filtrer par Famille]]="PA : PRINCIP ACTIF",intellix.par.lot87[[#This Row],[Filtrer par Famille]]="EX : EXCIPIENTS",intellix.par.lot87[[#This Row],[Filtrer par Famille]]="GV : CAPSULES",intellix.par.lot87[[#This Row],[Filtrer par Famille]]="SO : SOLVANTS"),"MP","AR") -> MP | O9: =IFERROR(IF(OR(intellix.par.lot87[[#This Row],[Statut Conforme / Péremé]]="conforme",intellix.par.lot87[[#This Row],[Statut Conforme / Péremé]]="péremé"),Sheet2!$C$3,""),"") -> DEPOT BIOCARE
A10: KMPEX001001 | B10: 0 | C10: ACESULFAME POTASSIUM | D10: 20151215 | E10: 2017-12-01 | F10: 2514.05 | G10: =intellix.par.lot87[[#This Row],[code]]&intellix.par.lot87[[#This Row],[ DÉSIGNATION]]&intellix.par.lot87[[#This Row],[N°Lot]] -> KMPEX001001ACESULFAME POTASSIUM20151215 | H10: =IFERROR(VLOOKUP(intellix.par.lot87[[#This Row],[Rechercher par Article / N Lot :]],Tableau4[[Colonne3]:[QTÉ-SOMME]],7,FALSE),0) -> 0 | I10: =intellix.par.lot87[[#This Row],[Qté inellix 2020]]-intellix.par.lot87[[#This Row],[Qté(+2019)]] -> 0 | J10: =IF(intellix.par.lot87[[#This Row],[Statut Conforme / Péremé]]="péremé",0,intellix.par.lot87[[#This Row],[Qte Stock Réelle]]) -> 0 | K10: =IFERROR(VLOOKUP(intellix.par.lot87[[#This Row],[code]],Tableau5[],3,FALSE),"") -> EX : EXCIPIENTS | L10: =IF(intellix.par.lot87[[#This Row],[Column1]]="AR","Conforme",IF(AND(intellix.par.lot87[[#This Row],[Column1]]="MP",intellix.par.lot87[[#This Row],[Exp.]]=""),"Quarantaine",IF(AND(intellix.par.lot87[[#This Row],[Column1]]="MP",intellix.par.lot87[[#This Row],[Exp.]]<TODAY()),"Péremé","Conforme"))) -> Péremé | M10: =IF(intellix.par.lot87[[#This Row],[Qte Stock Réelle]]>0,"Disponible","") ->  | N10: =IF(OR(intellix.par.lot87[[#This Row],[Filtrer par Famille]]="PA : PRINCIP ACTIF",intellix.par.lot87[[#This Row],[Filtrer par Famille]]="EX : EXCIPIENTS",intellix.par.lot87[[#This Row],[Filtrer par Famille]]="GV : CAPSULES",intellix.par.lot87[[#This Row],[Filtrer par Famille]]="SO : SOLVANTS"),"MP","AR") -> MP | O10: =IFERROR(IF(OR(intellix.par.lot87[[#This Row],[Statut Conforme / Péremé]]="conforme",intellix.par.lot87[[#This Row],[Statut Conforme / Péremé]]="péremé"),Sheet2!$C$3,""),"") -> DEPOT BIOCARE
A11: KMPEX001001 | B11: 66.34 | C11: ACESULFAME POTASSIUM | D11: 201906182 | E11: 2021-06-01 | F11: 3900.58 | G11: =intellix.par.lot87[[#This Row],[code]]&intellix.par.lot87[[#This Row],[ DÉSIGNATION]]&intellix.par.lot87[[#This Row],[N°Lot]] -> KMPEX001001ACESULFAME POTASSIUM201906182 | H11: =IFERROR(VLOOKUP(intellix.par.lot87[[#This Row],[Rechercher par Article / N Lot :]],Tableau4[[Colonne3]:[QTÉ-SOMME]],7,FALSE),0) -> 26.34 | I11: =intellix.par.lot87[[#This Row],[Qté inellix 2020]]-intellix.par.lot87[[#This Row],[Qté(+2019)]] -> 40 | J11: =IF(intellix.par.lot87[[#This Row],[Statut Conforme / Péremé]]="péremé",0,intellix.par.lot87[[#This Row],[Qte Stock Réelle]]) -> 40 | K11: =IFERROR(VLOOKUP(intellix.par.lot87[[#This Row],[code]],Tableau5[],3,FALSE),"") -> EX : EXCIPIENTS | L11: =IF(intellix.par.lot87[[#This Row],[Column1]]="AR","Conforme",IF(AND(intellix.par.lot87[[#This Row],[Column1]]="MP",intellix.par.lot87[[#This Row],[Exp.]]=""),"Quarantaine",IF(AND(intellix.par.lot87[[#This Row],[Column1]]="MP",intellix.par.lot87[[#This Row],[Exp.]]<TODAY()),"Péremé","Conforme"))) -> Conforme | M11: =IF(intellix.par.lot87[[#This Row],[Qte Stock Réelle]]>0,"Disponible","") -> Disponible | N11: =IF(OR(intellix.par.lot87[[#This Row],[Filtrer par Famille]]="PA : PRINCIP ACTIF",intellix.par.lot87[[#This Row],[Filtrer par Famille]]="EX : EXCIPIENTS",intellix.par.lot87[[#This Row],[Filtrer par Famille]]="GV : CAPSULES",intellix.par.lot87[[#This Row],[Filtrer par Famille]]="SO : SOLVANTS"),"MP","AR") -> MP | O11: =IFERROR(IF(OR(intellix.par.lot87[[#This Row],[Statut Conforme / Péremé]]="conforme",intellix.par.lot87[[#This Row],[Statut Conforme / Péremé]]="péremé"),Sheet2!$C$3,""),"") -> DEPOT BIOCARE
A12: KMPEX001001 | B12: 50 | C12: ACESULFAME POTASSIUM | D12: 1903033-1 | E12: 2022-03-01 | F12: 2702.48 | G12: =intellix.par.lot87[[#This Row],[code]]&intellix.par.lot87[[#This Row],[ DÉSIGNATION]]&intellix.par.lot87[[#This Row],[N°Lot]] -> KMPEX001001ACESULFAME POTASSIUM1903033-1 | H12: =IFERROR(VLOOKUP(intellix.par.lot87[[#This Row],[Rechercher par Article / N Lot :]],Tableau4[[Colonne3]:[QTÉ-SOMME]],7,FALSE),0) -> 0 | I12: =intellix.par.lot87[[#This Row],[Qté inellix 2020]]-intellix.par.lot87[[#This Row],[Qté(+2019)]] -> 50 | J12: =IF(intellix.par.lot87[[#This Row],[Statut Conforme / Péremé]]="péremé",0,intellix.par.lot87[[#This Row],[Qte Stock Réelle]]) -> 50 | K12: =IFERROR(VLOOKUP(intellix.par.lot87[[#This Row],[code]],Tableau5[],3,FALSE),"") -> EX : EXCIPIENTS | L12: =IF(intellix.par.lot87[[#This Row],[Column1]]="AR","Conforme",IF(AND(intellix.par.lot87[[#This Row],[Column1]]="MP",intellix.par.lot87[[#This Row],[Exp.]]=""),"Quarantaine",IF(AND(intellix.par.lot87[[#This Row],[Column1]]="MP",intellix.par.lot87[[#This Row],[Exp.]]<TODAY()),"Péremé","Conforme"))) -> Conforme | M12: =IF(intellix.par.lot87[[#This Row],[Qte Stock Réelle]]>0,"Disponible","") -> Disponible | N12: =IF(OR(intellix.par.lot87[[#This Row],[Filtrer par Famille]]="PA : PRINCIP ACTIF",intellix.par.lot87[[#This Row],[Filtrer par Famille]]="EX : EXCIPIENTS",intellix.par.lot87[[#This Row],[Filtrer par Famille]]="GV : CAPSULES",intellix.par.lot87[[#This Row],[Filtrer par Famille]]="SO : SOLVANTS"),"MP","AR") -> MP | O12: =IFERROR(IF(OR(intellix.par.lot87[[#This Row],[Statut Conforme / Péremé]]="conforme",intellix.par.lot87[[#This Row],[Statut Conforme / Péremé]]="péremé"),Sheet2!$C$3,""),"") -> DEPOT BIOCARE
A13: KMPEX001001 | B13: 50 | C13: ACESULFAME POTASSIUM | D13: 1903033 | E13: 2022-03-01 | F13: 2769.2 | G13: =intellix.par.lot87[[#This Row],[code]]&intellix.par.lot87[[#This Row],[ DÉSIGNATION]]&intellix.par.lot87[[#This Row],[N°Lot]] -> KMPEX001001ACESULFAME POTASSIUM1903033 | H13: =IFERROR(VLOOKUP(intellix.par.lot87[[#This Row],[Rechercher par Article / N Lot :]],Tableau4[[Colonne3]:[QTÉ-SOMME]],7,FALSE),0) -> 0 | I13: =intellix.par.lot87[[#This Row],[Qté inellix 2020]]-intellix.par.lot87[[#This Row],[Qté(+2019)]] -> 50 | J13: =IF(intellix.par.lot87[[#This Row],[Statut Conforme / Péremé]]="péremé",0,intellix.par.lot87[[#This Row],[Qte Stock Réelle]]) -> 50 | K13: =IFERROR(VLOOKUP(intellix.par.lot87[[#This Row],[code]],Tableau5[],3,FALSE),"") -> EX : EXCIPIENTS | L13: =IF(intellix.par.lot87[[#This Row],[Column1]]="AR","Conforme",IF(AND(intellix.par.lot87[[#This Row],[Column1]]="MP",intellix.par.lot87[[#This Row],[Exp.]]=""),"Quarantaine",IF(AND(intellix.par.lot87[[#This Row],[Column1]]="MP",intellix.par.lot87[[#This Row],[Exp.]]<TODAY()),"Péremé","Conforme"))) -> Conforme | M13: =IF(intellix.par.lot87[[#This Row],[Qte Stock Réelle]]>0,"Disponible","") -> Disponible | N13: =IF(OR(intellix.par.lot87[[#This Row],[Filtrer par Famille]]="PA : PRINCIP ACTIF",intellix.par.lot87[[#This Row],[Filtrer par Famille]]="EX : EXCIPIENTS",intellix.par.lot87[[#This Row],[Filtrer par Famille]]="GV : CAPSULES",intellix.par.lot87[[#This Row],[Filtrer par Famille]]="SO : SOLVANTS"),"MP","AR") -> MP | O13: =IFERROR(IF(OR(intellix.par.lot87[[#This Row],[Statut Conforme / Péremé]]="conforme",intellix.par.lot87[[#This Row],[Statut Conforme / Péremé]]="péremé"),Sheet2!$C$3,""),"") -> DEPOT BIOCARE
A14: AMPPA22A029 | B14: 0 | C14: ACIDE ASCORBIQUE POUDRE | D14: 1112812502 | E14: 2014-12-25 | F14: 1996.2 | G14: =intellix.par.lot87[[#This Row],[code]]&intellix.par.lot87[[#This Row],[ DÉSIGNATION]]&intellix.par.lot87[[#This Row],[N°Lot]] -> AMPPA22A029ACIDE ASCORBIQUE POUDRE1112812502 | H14: =IFERROR(VLOOKUP(intellix.par.lot87[[#This Row],[Rechercher par Article / N Lot :]],Tableau4[[Colonne3]:[QTÉ-SOMME]],7,FALSE),0) -> 0 | I14: =intellix.par.lot87[[#This Row],[Qté inellix 2020]]-intellix.par.lot87[[#This Row],[Qté(+2019)]] -> 0 | J14: =IF(intellix.par.lot87[[#This Row],[Statut Conforme / Péremé]]="péremé",0,intellix.par.lot87[[#This Row],[Qte Stock Réelle]]) -> 0 | K14: =IFERROR(VLOOKUP(intellix.par.lot87[[#This Row],[code]],Tableau5[],3,FALSE),"") -> PA : PRINCIP ACTIF | L14: =IF(intellix.par.lot87[[#This Row],[Column1]]="AR","Conforme",IF(AND(intellix.par.lot87[[#This Row],[Column1]]="MP",intellix.par.lot87[[#This Row],[Exp.]]=""),"Quarantaine",IF(AND(intellix.par.lot87[[#This Row],[Column1]]="MP",intellix.par.lot87[[#This Row],[Exp.]]<TODAY()),"Péremé","Conforme"))) -> Péremé | M14: =IF(intellix.par.lot87[[#This Row],[Qte Stock Réelle]]>0,"Disponible","") ->  | N14: =IF(OR(intellix.par.lot87[[#This Row],[Filtrer par Famille]]="PA : PRINCIP ACTIF",intellix.par.lot87[[#This Row],[Filtrer par Famille]]="EX : EXCIPIENTS",intellix.par.lot87[[#This Row],[Filtrer par Famille]]="GV : CAPSULES",intellix.par.lot87[[#This Row],[Filtrer par Famille]]="SO : SOLVANTS"),"MP","AR") -> MP | O14: =IFERROR(IF(OR(intellix.par.lot87[[#This Row],[Statut Conforme / Péremé]]="conforme",intellix.par.lot87[[#This Row],[Statut Conforme / Péremé]]="péremé"),Sheet2!$C$3,""),"") -> DEPOT BIOCARE
A15: AMPPA22A029 | B15: 0 | C15: ACIDE ASCORBIQUE POUDRE | D15: 180122033 | E15: 2021-04-01 | F15: 4202.75 | G15: =intellix.par.lot87[[#This Row],[code]]&intellix.par.lot87[[#This Row],[ DÉSIGNATION]]&intellix.par.lot87[[#This Row],[N°Lot]] -> AMPPA22A029ACIDE ASCORBIQUE POUDRE180122033 | H15: =IFERROR(VLOOKUP(intellix.par.lot87[[#This Row],[Rechercher par Article / N Lot :]],Tableau4[[Colonne3]:[QTÉ-SOMME]],7,FALSE),0) -> 0 | I15: =intellix.par.lot87[[#This Row],[Qté inellix 2020]]-intellix.par.lot87[[#This Row],[Qté(+2019)]] -> 0 | J15: =IF(intellix.par.lot87[[#This Row],[Statut Conforme / Péremé]]="péremé",0,intellix.par.lot87[[#This Row],[Qte Stock Réelle]]) -> 0 | K15: =IFERROR(VLOOKUP(intellix.par.lot87[[#This Row],[code]],Tableau5[],3,FALSE),"") -> PA : PRINCIP ACTIF | L15: =IF(intellix.par.lot87[[#This Row],[Qte Stock Réelle]]>0,"conforme",IF(OR(intellix.par.lot87[[#This Row],[Filtrer par Famille]]="PA : PRINCIP ACTIF",intellix.par.lot87[[#This Row],[Filtrer par Famille]]="EX : EXCIPIENTS",intellix.par.lot87[[#This Row],[Filtrer par Famille]]="GV : CAPSULES",intellix.par.lot87[[#This Row],[Filtrer par Famille]]="SO : SOLVANTS"),IF(intellix.par.lot87[[#This Row],[Exp.]]="","Carontene",IF(intellix.par.lot87[[#This Row],[Exp.]]>=TODAY(),"Conforme","Péremé")),"")) -> Conforme | M15: =IF(intellix.par.lot87[[#This Row],[Qte Stock Réelle]]>0,"Disponible","") ->  | N15: =IF(intellix.par.lot87[[#This Row],[ DÉSIGNATION]]="","",IF(OR(RIGHT(LEFT(intellix.par.lot87[[#This Row],[code]],5),2)="pa",RIGHT(LEFT(intellix.par.lot87[[#This Row],[code]],5),2)="mx"),"PRINCIP ACTIF",IF(RIGHT(LEFT(intellix.par.lot87[[#This Row],[code]],5),2)="ex","EXCIPIENTS",IF(OR(RIGHT(LEFT(intellix.par.lot87[[#This Row],[code]],5),2)="GL",RIGHT(LEFT(intellix.par.lot87[[#This Row],[code]],5),2)="GV"),"GELULES","ARTICLE COND")))) -> PRINCIP ACTIF | O15: =IFERROR(IF(OR(intellix.par.lot87[[#This Row],[Statut Conforme / Péremé]]="conforme",intellix.par.lot87[[#This Row],[Statut Conforme / Péremé]]="péremé"),$R$2,""),"") -> 0
A16: AMPPA22A029 | B16: 275 | C16: ACIDE ASCORBIQUE POUDRE | D16: 180123136 | E16: 2021-05-01 | F16: 3890.3 | G16: =intellix.par.lot87[[#This Row],[code]]&intellix.par.lot87[[#This Row],[ DÉSIGNATION]]&intellix.par.lot87[[#This Row],[N°Lot]] -> AMPPA22A029ACIDE ASCORBIQUE POUDRE180123136 | H16: =IFERROR(VLOOKUP(intellix.par.lot87[[#This Row],[Rechercher par Article / N Lot :]],Tableau4[[Colonne3]:[QTÉ-SOMME]],7,FALSE),0) -> 0 | I16: =intellix.par.lot87[[#This Row],[Qté inellix 2020]]-intellix.par.lot87[[#This Row],[Qté(+2019)]] -> 275 | J16: =IF(intellix.par.lot87[[#This Row],[Statut Conforme / Péremé]]="péremé",0,intellix.par.lot87[[#This Row],[Qte Stock Réelle]]) -> 275 | K16: =IFERROR(VLOOKUP(intellix.par.lot87[[#This Row],[code]],Tableau5[],3,FALSE),"") -> PA : PRINCIP ACTIF | L16: =IF(intellix.par.lot87[[#This Row],[Column1]]="AR","Conforme",IF(AND(intellix.par.lot87[[#This Row],[Column1]]="MP",intellix.par.lot87[[#This Row],[Exp.]]=""),"Quarantaine",IF(AND(intellix.par.lot87[[#This Row],[Column1]]="MP",intellix.par.lot87[[#This Row],[Exp.]]<TODAY()),"Péremé","Conforme"))) -> Conforme | M16: =IF(intellix.par.lot87[[#This Row],[Qte Stock Réelle]]>0,"Disponible","") -> Disponible | N16: =IF(OR(intellix.par.lot87[[#This Row],[Filtrer par Famille]]="PA : PRINCIP ACTIF",intellix.par.lot87[[#This Row],[Filtrer par Famille]]="EX : EXCIPIENTS",intellix.par.lot87[[#This Row],[Filtrer par Famille]]="GV : CAPSULES",intellix.par.lot87[[#This Row],[Filtrer par Famille]]="SO : SOLVANTS"),"MP","AR") -> MP | O16: =IFERROR(IF(OR(intellix.par.lot87[[#This Row],[Statut Conforme / Péremé]]="conforme",intellix.par.lot87[[#This Row],[Statut Conforme / Péremé]]="péremé"),Sheet2!$C$3,""),"") -> DEPOT BIOCARE
A17: AMPPA22A029 | B17: 3000 | C17: ACIDE ASCORBIQUE POUDRE | D17: 190111076 | E17: 2021-12-01 | F17: 3916.46 | G17: =intellix.par.lot87[[#This Row],[code]]&intellix.par.lot87[[#This Row],[ DÉSIGNATION]]&intellix.par.lot87[[#This Row],[N°Lot]] -> AMPPA22A029ACIDE ASCORBIQUE POUDRE190111076 | H17: =IFERROR(VLOOKUP(intellix.par.lot87[[#This Row],[Rechercher par Article / N Lot :]],Tableau4[[Colonne3]:[QTÉ-SOMME]],7,FALSE),0) -> 0 | I17: =intellix.par.lot87[[#This Row],[Qté inellix 2020]]-intellix.par.lot87[[#This Row],[Qté(+2019)]] -> 3000 | J17: =IF(intellix.par.lot87[[#This Row],[Statut Conforme / Péremé]]="péremé",0,intellix.par.lot87[[#This Row],[Qte Stock Réelle]]) -> 3000 | K17: =IFERROR(VLOOKUP(intellix.par.lot87[[#This Row],[code]],Tableau5[],3,FALSE),"") -> PA : PRINCIP ACTIF | L17: =IF(intellix.par.lot87[[#This Row],[Column1]]="AR","Conforme",IF(AND(intellix.par.lot87[[#This Row],[Column1]]="MP",intellix.par.lot87[[#This Row],[Exp.]]=""),"Quarantaine",IF(AND(intellix.par.lot87[[#This Row],[Column1]]="MP",intellix.par.lot87[[#This Row],[Exp.]]<TODAY()),"Péremé","Conforme"))) -> Conforme | M17: =IF(intellix.par.lot87[[#This Row],[Qte Stock Réelle]]>0,"Disponible","") -> Disponible | N17: =IF(OR(intellix.par.lot87[[#This Row],[Filtrer par Famille]]="PA : PRINCIP ACTIF",intellix.par.lot87[[#This Row],[Filtrer par Famille]]="EX : EXCIPIENTS",intellix.par.lot87[[#This Row],[Filtrer par Famille]]="GV : CAPSULES",intellix.par.lot87[[#This Row],[Filtrer par Famille]]="SO : SOLVANTS"),"MP","AR") -> MP | O17: =IFERROR(IF(OR(intellix.par.lot87[[#This Row],[Statut Conforme / Péremé]]="conforme",intellix.par.lot87[[#This Row],[Statut Conforme / Péremé]]="péremé"),Sheet2!$C$3,""),"") -> DEPOT BIOCARE
A18: KMPEX001106 | B18: 4 | C18: ACIDE BENZOIQUE | D18: 13060193/B | E18: 2017-06-01 | F18: 4828.34 | G18: =intellix.par.lot87[[#This Row],[code]]&intellix.par.lot87[[#This Row],[ DÉSIGNATION]]&intellix.par.lot87[[#This Row],[N°Lot]] -> KMPEX001106ACIDE BENZOIQUE13060193/B | H18: =IFERROR(VLOOKUP(intellix.par.lot87[[#This Row],[Rechercher par Article / N Lot :]],Tableau4[[Colonne3]:[QTÉ-SOMME]],7,FALSE),0) -> 0 | I18: =intellix.par.lot87[[#This Row],[Qté inellix 2020]]-intellix.par.lot87[[#This Row],[Qté(+2019)]] -> 4 | J18: =IF(intellix.par.lot87[[#This Row],[Statut Conforme / Péremé]]="péremé",0,intellix.par.lot87[[#This Row],[Qte Stock Réelle]]) -> 0 | K18: =IFERROR(VLOOKUP(intellix.par.lot87[[#This Row],[code]],Tableau5[],3,FALSE),"") -> EX : EXCIPIENTS | L18: =IF(intellix.par.lot87[[#This Row],[Column1]]="AR","Conforme",IF(AND(intellix.par.lot87[[#This Row],[Column1]]="MP",intellix.par.lot87[[#This Row],[Exp.]]=""),"Quarantaine",IF(AND(intellix.par.lot87[[#This Row],[Column1]]="MP",intellix.par.lot87[[#This Row],[Exp.]]<TODAY()),"Péremé","Conforme"))) -> Péremé | M18: =IF(intellix.par.lot87[[#This Row],[Qte Stock Réelle]]>0,"Disponible","") -> Disponible | N18: =IF(OR(intellix.par.lot87[[#This Row],[Filtrer par Famille]]="PA : PRINCIP ACTIF",intellix.par.lot87[[#This Row],[Filtrer par Famille]]="EX : EXCIPIENTS",intellix.par.lot87[[#This Row],[Filtrer par Famille]]="GV : CAPSULES",intellix.par.lot87[[#This Row],[Filtrer par Famille]]="SO : SOLVANTS"),"MP","AR") -> MP | O18: =IFERROR(IF(OR(intellix.par.lot87[[#This Row],[Statut Conforme / Péremé]]="conforme",intellix.par.lot87[[#This Row],[Statut Conforme / Péremé]]="péremé"),Sheet2!$C$3,""),"") -> DEPOT BIOCARE
A19: KMPEX001091 | B19: 50 | C19: ACIDE CITRIQUE MONOHYDRATE | D19: 40201020 | E19: 2016-02-01 | F19: 115 | G19: =intellix.par.lot87[[#This Row],[code]]&intellix.par.lot87[[#This Row],[ DÉSIGNATION]]&intellix.par.lot87[[#This Row],[N°Lot]] -> KMPEX001091ACIDE CITRIQUE MONOHYDRATE40201020 | H19: =IFERROR(VLOOKUP(intellix.par.lot87[[#This Row],[Rechercher par Article / N Lot :]],Tableau4[[Colonne3]:[QTÉ-SOMME]],7,FALSE),0) -> 0 | I19: =intellix.par.lot87[[#This Row],[Qté inellix 2020]]-intellix.par.lot87[[#This Row],[Qté(+2019)]] -> 50 | J19: =IF(intellix.par.lot87[[#This Row],[Statut Conforme / Péremé]]="péremé",0,intellix.par.lot87[[#This Row],[Qte Stock Réelle]]) -> 0 | K19: =IFERROR(VLOOKUP(intellix.par.lot87[[#This Row],[code]],Tableau5[],3,FALSE),"") -> EX : EXCIPIENTS | L19: =IF(intellix.par.lot87[[#This Row],[Column1]]="AR","Conforme",IF(AND(intellix.par.lot87[[#This Row],[Column1]]="MP",intellix.par.lot87[[#This Row],[Exp.]]=""),"Quarantaine",IF(AND(intellix.par.lot87[[#This Row],[Column1]]="MP",intellix.par.lot87[[#This Row],[Exp.]]<TODAY()),"Péremé","Conforme"))) -> Péremé | M19: =IF(intellix.par.lot87[[#This Row],[Qte Stock Réelle]]>0,"Disponible","") -> Disponible | N19: =IF(OR(intellix.par.lot87[[#This Row],[Filtrer par Famille]]="PA : PRINCIP ACTIF",intellix.par.lot87[[#This Row],[Filtrer par Famille]]="EX : EXCIPIENTS",intellix.par.lot87[[#This Row],[Filtrer par Famille]]="GV : CAPSULES",intellix.par.lot87[[#This Row],[Filtrer par Famille]]="SO : SOLVANTS"),"MP","AR") -> MP | O19: =IFERROR(IF(OR(intellix.par.lot87[[#This Row],[Statut Conforme / Péremé]]="conforme",intellix.par.lot87[[#This Row],[Statut Conforme / Péremé]]="péremé"),Sheet2!$C$3,""),"") -> DEPOT BIOCARE
A20: KMPEX001003 | B20: 0 | C20: ACIDE CITRIQUE ANHYDR POUDRE | D20: SHZCY-A14006 | E20: 2016-01-01 | F20: 135 | G20: =intellix.par.lot87[[#This Row],[code]]&intellix.par.lot87[[#This Row],[ DÉSIGNATION]]&intellix.par.lot87[[#This Row],[N°Lot]] -> KMPEX001003ACIDE CITRIQUE ANHYDR POUDRESHZCY-A14006 | H20: =IFERROR(VLOOKUP(intellix.par.lot87[[#This Row],[Rechercher par Article / N Lot :]],Tableau4[[Colonne3]:[QTÉ-SOMME]],7,FALSE),0) -> 0 | I20: =intellix.par.lot87[[#This Row],[Qté inellix 2020]]-intellix.par.lot87[[#This Row],[Qté(+2019)]] -> 0 | J20: =IF(intellix.par.lot87[[#This Row],[Statut Conforme / Péremé]]="péremé",0,intellix.par.lot87[[#This Row],[Qte Stock Réelle]]) -> 0 | K20: =IFERROR(VLOOKUP(intellix.par.lot87[[#This Row],[code]],Tableau5[],3,FALSE),"") -> EX : EXCIPIENTS | L20: =IF(intellix.par.lot87[[#This Row],[Column1]]="AR","Conforme",IF(AND(intellix.par.lot87[[#This Row],[Column1]]="MP",intellix.par.lot87[[#This Row],[Exp.]]=""),"Quarantaine",IF(AND(intellix.par.lot87[[#This Row],[Column1]]="MP",intellix.par.lot87[[#This Row],[Exp.]]<TODAY()),"Péremé","Conforme"))) -> Péremé | M20: =IF(intellix.par.lot87[[#This Row],[Qte Stock Réelle]]>0,"Disponible","") ->  | N20: =IF(OR(intellix.par.lot87[[#This Row],[Filtrer par Famille]]="PA : PRINCIP ACTIF",intellix.par.lot87[[#This Row],[Filtrer par Famille]]="EX : EXCIPIENTS",intellix.par.lot87[[#This Row],[Filtrer par Famille]]="GV : CAPSULES",intellix.par.lot87[[#This Row],[Filtrer par Famille]]="SO : SOLVANTS"),"MP","AR") -> MP | O20: =IFERROR(IF(OR(intellix.par.lot87[[#This Row],[Statut Conforme / Péremé]]="conforme",intellix.par.lot87[[#This Row],[Statut Conforme / Péremé]]="péremé"),Sheet2!$C$3,""),"") -> DEPOT BIOCARE
A21: KMPEX001003 | B21: 0 | C21: ACIDE CITRIQUE ANHYDR POUDRE | D21: UJ 548/7- 07-20 | E21: 2018-11-01 | F21: 185 | G21: =intellix.par.lot87[[#This Row],[code]]&intellix.par.lot87[[#This Row],[ DÉSIGNATION]]&intellix.par.lot87[[#This Row],[N°Lot]] -> KMPEX001003ACIDE CITRIQUE ANHYDR POUDREUJ 548/7- 07-20 | H21: =IFERROR(VLOOKUP(intellix.par.lot87[[#This Row],[Rechercher par Article / N Lot :]],Tableau4[[Colonne3]:[QTÉ-SOMME]],7,FALSE),0) -> 0 | I21: =intellix.par.lot87[[#This Row],[Qté inellix 2020]]-intellix.par.lot87[[#This Row],[Qté(+2019)]] -> 0 | J21: =IF(intellix.par.lot87[[#This Row],[Statut Conforme / Péremé]]="péremé",0,intellix.par.lot87[[#This Row],[Qte Stock Réelle]]) -> 0 | K21: =IFERROR(VLOOKUP(intellix.par.lot87[[#This Row],[code]],Tableau5[],3,FALSE),"") -> EX : EXCIPIENTS | L21: =IF(intellix.par.lot87[[#This Row],[Column1]]="AR","Conforme",IF(AND(intellix.par.lot87[[#This Row],[Column1]]="MP",intellix.par.lot87[[#This Row],[Exp.]]=""),"Quarantaine",IF(AND(intellix.par.lot87[[#This Row],[Column1]]="MP",intellix.par.lot87[[#This Row],[Exp.]]<TODAY()),"Péremé","Conforme"))) -> Péremé | M21: =IF(intellix.par.lot87[[#This Row],[Qte Stock Réelle]]>0,"Disponible","") ->  | N21: =IF(OR(intellix.par.lot87[[#This Row],[Filtrer par Famille]]="PA : PRINCIP ACTIF",intellix.par.lot87[[#This Row],[Filtrer par Famille]]="EX : EXCIPIENTS",intellix.par.lot87[[#This Row],[Filtrer par Famille]]="GV : CAPSULES",intellix.par.lot87[[#This Row],[Filtrer par Famille]]="SO : SOLVANTS"),"MP","AR") -> MP | O21: =IFERROR(IF(OR(intellix.par.lot87[[#This Row],[Statut Conforme / Péremé]]="conforme",intellix.par.lot87[[#This Row],[Statut Conforme / Péremé]]="péremé"),Sheet2!$C$3,""),"") -> DEPOT BIOCARE
A22: KMPEX001003 | B22: 0 | C22: ACIDE CITRIQUE ANHYDR POUDRE | D22: 1201669 | E22: 2019-01-01 | F22: 749.06 | G22: =intellix.par.lot87[[#This Row],[code]]&intellix.par.lot87[[#This Row],[ DÉSIGNATION]]&intellix.par.lot87[[#This Row],[N°Lot]] -> KMPEX001003ACIDE CITRIQUE ANHYDR POUDRE1201669 | H22: =IFERROR(VLOOKUP(intellix.par.lot87[[#This Row],[Rechercher par Article / N Lot :]],Tableau4[[Colonne3]:[QTÉ-SOMME]],7,FALSE),0) -> 0 | I22: =intellix.par.lot87[[#This Row],[Qté inellix 2020]]-intellix.par.lot87[[#This Row],[Qté(+2019)]] -> 0 | J22: =IF(intellix.par.lot87[[#This Row],[Statut Conforme / Péremé]]="péremé",0,intellix.par.lot87[[#This Row],[Qte Stock Réelle]]) -> 0 | K22: =IFERROR(VLOOKUP(intellix.par.lot87[[#This Row],[code]],Tableau5[],3,FALSE),"") -> EX : EXCIPIENTS | L22: =IF(intellix.par.lot87[[#This Row],[Column1]]="AR","Conforme",IF(AND(intellix.par.lot87[[#This Row],[Column1]]="MP",intellix.par.lot87[[#This Row],[Exp.]]=""),"Quarantaine",IF(AND(intellix.par.lot87[[#This Row],[Column1]]="MP",intellix.par.lot87[[#This Row],[Exp.]]<TODAY()),"Péremé","Conforme"))) -> Péremé | M22: =IF(intellix.par.lot87[[#This Row],[Qte Stock Réelle]]>0,"Disponible","") ->  | N22: =IF(OR(intellix.par.lot87[[#This Row],[Filtrer par Famille]]="PA : PRINCIP ACTIF",intellix.par.lot87[[#This Row],[Filtrer par Famille]]="EX : EXCIPIENTS",intellix.par.lot87[[#This Row],[Filtrer par Famille]]="GV : CAPSULES",intellix.par.lot87[[#This Row],[Filtrer par Famille]]="SO : SOLVANTS"),"MP","AR") -> MP | O22: =IFERROR(IF(OR(intellix.par.lot87[[#This Row],[Statut Conforme / Péremé]]="conforme",intellix.par.lot87[[#This Row],[Statut Conforme / Péremé]]="péremé"),Sheet2!$C$3,""),"") -> DEPOT BIOCARE
A23: KMPEX001003 | B23: 3827.5 | C23: ACIDE CITRIQUE ANHYDR POUDRE | D23: UJ804 | E23: 2021-01-01 | F23: 210 | G23: =intellix.par.lot87[[#This Row],[code]]&intellix.par.lot87[[#This Row],[ DÉSIGNATION]]&intellix.par.lot87[[#This Row],[N°Lot]] -> KMPEX001003ACIDE CITRIQUE ANHYDR POUDREUJ804 | H23: =IFERROR(VLOOKUP(intellix.par.lot87[[#This Row],[Rechercher par Article / N Lot :]],Tableau4[[Colonne3]:[QTÉ-SOMME]],7,FALSE),0) -> 0 | I23: =intellix.par.lot87[[#This Row],[Qté inellix 2020]]-intellix.par.lot87[[#This Row],[Qté(+2019)]] -> 3827.5 | J23: =IF(intellix.par.lot87[[#This Row],[Statut Conforme / Péremé]]="péremé",0,intellix.par.lot87[[#This Row],[Qte Stock Réelle]]) -> 3827.5 | K23: =IFERROR(VLOOKUP(intellix.par.lot87[[#This Row],[code]],Tableau5[],3,FALSE),"") -> EX : EXCIPIENTS | L23: =IF(intellix.par.lot87[[#This Row],[Column1]]="AR","Conforme",IF(AND(intellix.par.lot87[[#This Row],[Column1]]="MP",intellix.par.lot87[[#This Row],[Exp.]]=""),"Quarantaine",IF(AND(intellix.par.lot87[[#This Row],[Column1]]="MP",intellix.par.lot87[[#This Row],[Exp.]]<TODAY()),"Péremé","Conforme"))) -> Conforme | M23: =IF(intellix.par.lot87[[#This Row],[Qte Stock Réelle]]>0,"Disponible","") -> Disponible | N23: =IF(OR(intellix.par.lot87[[#This Row],[Filtrer par Famille]]="PA : PRINCIP ACTIF",intellix.par.lot87[[#This Row],[Filtrer par Famille]]="EX : EXCIPIENTS",intellix.par.lot87[[#This Row],[Filtrer par Famille]]="GV : CAPSULES",intellix.par.lot87[[#This Row],[Filtrer par Famille]]="SO : SOLVANTS"),"MP","AR") -> MP | O23: =IFERROR(IF(OR(intellix.par.lot87[[#This Row],[Statut Conforme / Péremé]]="conforme",intellix.par.lot87[[#This Row],[Statut Conforme / Péremé]]="péremé"),Sheet2!$C$3,""),"") -> DEPOT BIOCARE
A24: AMPPACAL006 | B24: 1 | C24: ACIDE FOLIQUE (VITAMINE B9) | D24: 181068 | E24: 2019-09-01 | F24: 37187.8 | G24: =intellix.par.lot87[[#This Row],[code]]&intellix.par.lot87[[#This Row],[ DÉSIGNATION]]&intellix.par.lot87[[#This Row],[N°Lot]] -> AMPPACAL006ACIDE FOLIQUE (VITAMINE B9)181068 | H24: =IFERROR(VLOOKUP(intellix.par.lot87[[#This Row],[Rechercher par Article / N Lot :]],Tableau4[[Colonne3]:[QTÉ-SOMME]],7,FALSE),0) -> 0 | I24: =intellix.par.lot87[[#This Row],[Qté inellix 2020]]-intellix.par.lot87[[#This Row],[Qté(+2019)]] -> 1 | J24: =IF(intellix.par.lot87[[#This Row],[Statut Conforme / Péremé]]="péremé",0,intellix.par.lot87[[#This Row],[Qte Stock Réelle]]) -> 0 | K24: =IFERROR(VLOOKUP(intellix.par.lot87[[#This Row],[code]],Tableau5[],3,FALSE),"") -> PA : PRINCIP ACTIF | L24: =IF(intellix.par.lot87[[#This Row],[Column1]]="AR","Conforme",IF(AND(intellix.par.lot87[[#This Row],[Column1]]="MP",intellix.par.lot87[[#This Row],[Exp.]]=""),"Quarantaine",IF(AND(intellix.par.lot87[[#This Row],[Column1]]="MP",intellix.par.lot87[[#This Row],[Exp.]]<TODAY()),"Péremé","Conforme"))) -> Péremé | M24: =IF(intellix.par.lot87[[#This Row],[Qte Stock Réelle]]>0,"Disponible","") -> Disponible | N24: =IF(OR(intellix.par.lot87[[#This Row],[Filtrer par Famille]]="PA : PRINCIP ACTIF",intellix.par.lot87[[#This Row],[Filtrer par Famille]]="EX : EXCIPIENTS",intellix.par.lot87[[#This Row],[Filtrer par Famille]]="GV : CAPSULES",intellix.par.lot87[[#This Row],[Filtrer par Famille]]="SO : SOLVANTS"),"MP","AR") -> MP | O24: =IFERROR(IF(OR(intellix.par.lot87[[#This Row],[Statut Conforme / Péremé]]="conforme",intellix.par.lot87[[#This Row],[Statut Conforme / Péremé]]="péremé"),Sheet2!$C$3,""),"") -> DEPOT BIOCARE
A25: AMPPACAL006 | B25: 2 | C25: ACIDE FOLIQUE (VITAMINE B9) | D25: Y1-1710032 | E25: 2019-10-01 | F25: 35300.21 | G25: =intellix.par.lot87[[#This Row],[code]]&intellix.par.lot87[[#This Row],[ DÉSIGNATION]]&intellix.par.lot87[[#This Row],[N°Lot]] -> AMPPACAL006ACIDE FOLIQUE (VITAMINE B9)Y1-1710032 | H25: =IFERROR(VLOOKUP(intellix.par.lot87[[#This Row],[Rechercher par Article / N Lot :]],Tableau4[[Colonne3]:[QTÉ-SOMME]],7,FALSE),0) -> 0 | I25: =intellix.par.lot87[[#This Row],[Qté inellix 2020]]-intellix.par.lot87[[#This Row],[Qté(+2019)]] -> 2 | J25: =IF(intellix.par.lot87[[#This Row],[Statut Conforme / Péremé]]="péremé",0,intellix.par.lot87[[#This Row],[Qte Stock Réelle]]) -> 0 | K25: =IFERROR(VLOOKUP(intellix.par.lot87[[#This Row],[code]],Tableau5[],3,FALSE),"") -> PA : PRINCIP ACTIF | L25: =IF(intellix.par.lot87[[#This Row],[Column1]]="AR","Conforme",IF(AND(intellix.par.lot87[[#This Row],[Column1]]="MP",intellix.par.lot87[[#This Row],[Exp.]]=""),"Quarantaine",IF(AND(intellix.par.lot87[[#This Row],[Column1]]="MP",intellix.par.lot87[[#This Row],[Exp.]]<TODAY()),"Péremé","Conforme"))) -> Péremé | M25: =IF(intellix.par.lot87[[#This Row],[Qte Stock Réelle]]>0,"Disponible","") -> Disponible | N25: =IF(OR(intellix.par.lot87[[#This Row],[Filtrer par Famille]]="PA : PRINCIP ACTIF",intellix.par.lot87[[#This Row],[Filtrer par Famille]]="EX : EXCIPIENTS",intellix.par.lot87[[#This Row],[Filtrer par Famille]]="GV : CAPSULES",intellix.par.lot87[[#This Row],[Filtrer par Famille]]="SO : SOLVANTS"),"MP","AR") -> MP | O25: =IFERROR(IF(OR(intellix.par.lot87[[#This Row],[Statut Conforme / Péremé]]="conforme",intellix.par.lot87[[#This Row],[Statut Conforme / Péremé]]="péremé"),Sheet2!$C$3,""),"") -> DEPOT BIOCARE
A26: AMPPACAL006 | B26: 1 | C26: ACIDE FOLIQUE (VITAMINE B9) | D26: 17110336 | E26: 2020-11-01 | F26: 107250.77 | G26: =intellix.par.lot87[[#This Row],[code]]&intellix.par.lot87[[#This Row],[ DÉSIGNATION]]&intellix.par.lot87[[#This Row],[N°Lot]] -> AMPPACAL006ACIDE FOLIQUE (VITAMINE B9)17110336 | H26: =IFERROR(VLOOKUP(intellix.par.lot87[[#This Row],[Rechercher par Article / N Lot :]],Tableau4[[Colonne3]:[QTÉ-SOMME]],7,FALSE),0) -> 0 | I26: =intellix.par.lot87[[#This Row],[Qté inellix 2020]]-intellix.par.lot87[[#This Row],[Qté(+2019)]] -> 1 | J26: =IF(intellix.par.lot87[[#This Row],[Statut Conforme / Péremé]]="péremé",0,intellix.par.lot87[[#This Row],[Qte Stock Réelle]]) -> 1 | K26: =IFERROR(VLOOKUP(intellix.par.lot87[[#This Row],[code]],Tableau5[],3,FALSE),"") -> PA : PRINCIP ACTIF | L26: =IF(intellix.par.lot87[[#This Row],[Column1]]="AR","Conforme",IF(AND(intellix.par.lot87[[#This Row],[Column1]]="MP",intellix.par.lot87[[#This Row],[Exp.]]=""),"Quarantaine",IF(AND(intellix.par.lot87[[#This Row],[Column1]]="MP",intellix.par.lot87[[#This Row],[Exp.]]<TODAY()),"Péremé","Conforme"))) -> Conforme | M26: =IF(intellix.par.lot87[[#This Row],[Qte Stock Réelle]]>0,"Disponible","") -> Disponible | N26: =IF(OR(intellix.par.lot87[[#This Row],[Filtrer par Famille]]="PA : PRINCIP ACTIF",intellix.par.lot87[[#This Row],[Filtrer par Famille]]="EX : EXCIPIENTS",intellix.par.lot87[[#This Row],[Filtrer par Famille]]="GV : CAPSULES",intellix.par.lot87[[#This Row],[Filtrer par Famille]]="SO : SOLVANTS"),"MP","AR") -> MP | O26: =IFERROR(IF(OR(intellix.par.lot87[[#This Row],[Statut Conforme / Péremé]]="conforme",intellix.par.lot87[[#This Row],[Statut Conforme / Péremé]]="péremé"),Sheet2!$C$3,""),"") -> DEPOT BIOCARE
A27: AMPPA13N058 | B27: 0 | C27: ACIDE FUSIDIQUE | D27: 190510FB | E27: 2021-05-18 | F27: 89786.94 | G27: =intellix.par.lot87[[#This Row],[code]]&intellix.par.lot87[[#This Row],[ DÉSIGNATION]]&intellix.par.lot87[[#This Row],[N°Lot]] -> AMPPA13N058ACIDE FUSIDIQUE190510FB | H27: =IFERROR(VLOOKUP(intellix.par.lot87[[#This Row],[Rechercher par Article / N Lot :]],Tableau4[[Colonne3]:[QTÉ-SOMME]],7,FALSE),0) -> 0 | I27: =intellix.par.lot87[[#This Row],[Qté inellix 2020]]-intellix.par.lot87[[#This Row],[Qté(+2019)]] -> 0 | J27: =IF(intellix.par.lot87[[#This Row],[Statut Conforme / Péremé]]="péremé",0,intellix.par.lot87[[#This Row],[Qte Stock Réelle]]) -> 0 | K27: =IFERROR(VLOOKUP(intellix.par.lot87[[#This Row],[code]],Tableau5[],3,FALSE),"") -> PA : PRINCIP ACTIF | L27: =IF(intellix.par.lot87[[#This Row],[Column1]]="AR","Conforme",IF(AND(intellix.par.lot87[[#This Row],[Column1]]="MP",intellix.par.lot87[[#This Row],[Exp.]]=""),"Quarantaine",IF(AND(intellix.par.lot87[[#This Row],[Column1]]="MP",intellix.par.lot87[[#This Row],[Exp.]]<TODAY()),"Péremé","Conforme"))) -> Conforme | M27: =IF(intellix.par.lot87[[#This Row],[Qte Stock Réelle]]>0,"Disponible","") ->  | N27: =IF(OR(intellix.par.lot87[[#This Row],[Filtrer par Famille]]="PA : PRINCIP ACTIF",intellix.par.lot87[[#This Row],[Filtrer par Famille]]="EX : EXCIPIENTS",intellix.par.lot87[[#This Row],[Filtrer par Famille]]="GV : CAPSULES",intellix.par.lot87[[#This Row],[Filtrer par Famille]]="SO : SOLVANTS"),"MP","AR") -> MP | O27: =IFERROR(IF(OR(intellix.par.lot87[[#This Row],[Statut Conforme / Péremé]]="conforme",intellix.par.lot87[[#This Row],[Statut Conforme / Péremé]]="péremé"),Sheet2!$C$3,""),"") -> DEPOT BIOCARE
A28: AMPPA13N058 | B28: 0 | C28: ACIDE FUSIDIQUE | D28: 190509FB | E28: 2021-05-17 | F28: 89786.94 | G28: =intellix.par.lot87[[#This Row],[code]]&intellix.par.lot87[[#This Row],[ DÉSIGNATION]]&intellix.par.lot87[[#This Row],[N°Lot]] -> AMPPA13N058ACIDE FUSIDIQUE190509FB | H28: =IFERROR(VLOOKUP(intellix.par.lot87[[#This Row],[Rechercher par Article / N Lot :]],Tableau4[[Colonne3]:[QTÉ-SOMME]],7,FALSE),0) -> 0 | I28: =intellix.par.lot87[[#This Row],[Qté inellix 2020]]-intellix.par.lot87[[#This Row],[Qté(+2019)]] -> 0 | J28: =IF(intellix.par.lot87[[#This Row],[Statut Conforme / Péremé]]="péremé",0,intellix.par.lot87[[#This Row],[Qte Stock Réelle]]) -> 0 | K28: =IFERROR(VLOOKUP(intellix.par.lot87[[#This Row],[code]],Tableau5[],3,FALSE),"") -> PA : PRINCIP ACTIF | L28: =IF(intellix.par.lot87[[#This Row],[Column1]]="AR","Conforme",IF(AND(intellix.par.lot87[[#This Row],[Column1]]="MP",intellix.par.lot87[[#This Row],[Exp.]]=""),"Quarantaine",IF(AND(intellix.par.lot87[[#This Row],[Column1]]="MP",intellix.par.lot87[[#This Row],[Exp.]]<TODAY()),"Péremé","Conforme"))) -> Conforme | M28: =IF(intellix.par.lot87[[#This Row],[Qte Stock Réelle]]>0,"Disponible","") ->  | N28: =IF(OR(intellix.par.lot87[[#This Row],[Filtrer par Famille]]="PA : PRINCIP ACTIF",intellix.par.lot87[[#This Row],[Filtrer par Famille]]="EX : EXCIPIENTS",intellix.par.lot87[[#This Row],[Filtrer par Famille]]="GV : CAPSULES",intellix.par.lot87[[#This Row],[Filtrer par Famille]]="SO : SOLVANTS"),"MP","AR") -> MP | O28: =IFERROR(IF(OR(intellix.par.lot87[[#This Row],[Statut Conforme / Péremé]]="conforme",intellix.par.lot87[[#This Row],[Statut Conforme / Péremé]]="péremé"),Sheet2!$C$3,""),"") -> DEPOT BIOCARE
A29: AMPPA13N058 | B29: 0 | C29: ACIDE FUSIDIQUE | D29: 200407A | E29: 2023-04-15 | F29: 99942.75 | G29: =intellix.par.lot87[[#This Row],[code]]&intellix.par.lot87[[#This Row],[ DÉSIGNATION]]&intellix.par.lot87[[#This Row],[N°Lot]] -> AMPPA13N058ACIDE FUSIDIQUE200407A | H29: =IFERROR(VLOOKUP(intellix.par.lot87[[#This Row],[Rechercher par Article / N Lot :]],Tableau4[[Colonne3]:[QTÉ-SOMME]],7,FALSE),0) -> 0 | I29: =intellix.par.lot87[[#This Row],[Qté inellix 2020]]-intellix.par.lot87[[#This Row],[Qté(+2019)]] -> 0 | J29: =IF(intellix.par.lot87[[#This Row],[Statut Conforme / Péremé]]="péremé",0,intellix.par.lot87[[#This Row],[Qte Stock Réelle]]) -> 0 | K29: =IFERROR(VLOOKUP(intellix.par.lot87[[#This Row],[code]],Tableau5[],3,FALSE),"") -> PA : PRINCIP ACTIF | L29: =IF(intellix.par.lot87[[#This Row],[Qte Stock Réelle]]>0,"conforme",IF(OR(intellix.par.lot87[[#This Row],[Filtrer par Famille]]="PA : PRINCIP ACTIF",intellix.par.lot87[[#This Row],[Filtrer par Famille]]="EX : EXCIPIENTS",intellix.par.lot87[[#This Row],[Filtrer par Famille]]="GV : CAPSULES",intellix.par.lot87[[#This Row],[Filtrer par Famille]]="SO : SOLVANTS"),IF(intellix.par.lot87[[#This Row],[Exp.]]="","Carontene",IF(intellix.par.lot87[[#This Row],[Exp.]]>=TODAY(),"Conforme","Péremé")),"")) -> Conforme | M29: =IF(intellix.par.lot87[[#This Row],[Qte Stock Réelle]]>0,"Disponible","") ->  | N29: =IF(intellix.par.lot87[[#This Row],[ DÉSIGNATION]]="","",IF(OR(RIGHT(LEFT(intellix.par.lot87[[#This Row],[code]],5),2)="pa",RIGHT(LEFT(intellix.par.lot87[[#This Row],[code]],5),2)="mx"),"PRINCIP ACTIF",IF(RIGHT(LEFT(intellix.par.lot87[[#This Row],[code]],5),2)="ex","EXCIPIENTS",IF(OR(RIGHT(LEFT(intellix.par.lot87[[#This Row],[code]],5),2)="GL",RIGHT(LEFT(intellix.par.lot87[[#This Row],[code]],5),2)="GV"),"GELULES","ARTICLE COND")))) -> PRINCIP ACTIF | O29: =IFERROR(IF(OR(intellix.par.lot87[[#This Row],[Statut Conforme / Péremé]]="conforme",intellix.par.lot87[[#This Row],[Statut Conforme / Péremé]]="péremé"),$R$2,""),"") -> 0
A30: AMPPA13N058 | B30: 0 | C30: ACIDE FUSIDIQUE | D30: 200408A | E30: 2023-04-16 | F30: 99942.75 | G30: =intellix.par.lot87[[#This Row],[code]]&intellix.par.lot87[[#This Row],[ DÉSIGNATION]]&intellix.par.lot87[[#This Row],[N°Lot]] -> AMPPA13N058ACIDE FUSIDIQUE200408A | H30: =IFERROR(VLOOKUP(intellix.par.lot87[[#This Row],[Rechercher par Article / N Lot :]],Tableau4[[Colonne3]:[QTÉ-SOMME]],7,FALSE),0) -> 0 | I30: =intellix.par.lot87[[#This Row],[Qté inellix 2020]]-intellix.par.lot87[[#This Row],[Qté(+2019)]] -> 0 | J30: =IF(intellix.par.lot87[[#This Row],[Statut Conforme / Péremé]]="péremé",0,intellix.par.lot87[[#This Row],[Qte Stock Réelle]]) -> 0 | K30: =IFERROR(VLOOKUP(intellix.par.lot87[[#This Row],[code]],Tableau5[],3,FALSE),"") -> PA : PRINCIP ACTIF | L30: =IF(intellix.par.lot87[[#This Row],[Qte Stock Réelle]]>0,"conforme",IF(OR(intellix.par.lot87[[#This Row],[Filtrer par Famille]]="PA : PRINCIP ACTIF",intellix.par.lot87[[#This Row],[Filtrer par Famille]]="EX : EXCIPIENTS",intellix.par.lot87[[#This Row],[Filtrer par Famille]]="GV : CAPSULES",intellix.par.lot87[[#This Row],[Filtrer par Famille]]="SO : SOLVANTS"),IF(intellix.par.lot87[[#This Row],[Exp.]]="","Carontene",IF(intellix.par.lot87[[#This Row],[Exp.]]>=TODAY(),"Conforme","Péremé")),"")) -> Conforme | M30: =IF(intellix.par.lot87[[#This Row],[Qte Stock Réelle]]>0,"Disponible","") ->  | N30: =IF(intellix.par.lot87[[#This Row],[ DÉSIGNATION]]="","",IF(OR(RIGHT(LEFT(intellix.par.lot87[[#This Row],[code]],5),2)="pa",RIGHT(LEFT(intellix.par.lot87[[#This Row],[code]],5),2)="mx"),"PRINCIP ACTIF",IF(RIGHT(LEFT(intellix.par.lot87[[#This Row],[code]],5),2)="ex","EXCIPIENTS",IF(OR(RIGHT(LEFT(intellix.par.lot87[[#This Row],[code]],5),2)="GL",RIGHT(LEFT(intellix.par.lot87[[#This Row],[code]],5),2)="GV"),"GELULES","ARTICLE COND")))) -> PRINCIP ACTIF | O30: =IFERROR(IF(OR(intellix.par.lot87[[#This Row],[Statut Conforme / Péremé]]="conforme",intellix.par.lot87[[#This Row],[Statut Conforme / Péremé]]="péremé"),$R$2,""),"") -> 0
A31: AMPPA13N058 | B31: 53 | C31: ACIDE FUSIDIQUE | D31: 200409A | E31: 2023-04-17 | F31: 99942.75 | G31: =intellix.par.lot87[[#This Row],[code]]&intellix.par.lot87[[#This Row],[ DÉSIGNATION]]&intellix.par.lot87[[#This Row],[N°Lot]] -> AMPPA13N058ACIDE FUSIDIQUE200409A | H31: =IFERROR(VLOOKUP(intellix.par.lot87[[#This Row],[Rechercher par Article / N Lot :]],Tableau4[[Colonne3]:[QTÉ-SOMME]],7,FALSE),0) -> 0 | I31: =intellix.par.lot87[[#This Row],[Qté inellix 2020]]-intellix.par.lot87[[#This Row],[Qté(+2019)]] -> 53 | J31: =IF(intellix.par.lot87[[#This Row],[Statut Conforme / Péremé]]="péremé",0,intellix.par.lot87[[#This Row],[Qte Stock Réelle]]) -> 53 | K31: =IFERROR(VLOOKUP(intellix.par.lot87[[#This Row],[code]],Tableau5[],3,FALSE),"") -> PA : PRINCIP ACTIF | L31: =IF(intellix.par.lot87[[#This Row],[Column1]]="AR","Conforme",IF(AND(intellix.par.lot87[[#This Row],[Column1]]="MP",intellix.par.lot87[[#This Row],[Exp.]]=""),"Quarantaine",IF(AND(intellix.par.lot87[[#This Row],[Column1]]="MP",intellix.par.lot87[[#This Row],[Exp.]]<TODAY()),"Péremé","Conforme"))) -> Conforme | M31: =IF(intellix.par.lot87[[#This Row],[Qte Stock Réelle]]>0,"Disponible","") -> Disponible | N31: =IF(OR(intellix.par.lot87[[#This Row],[Filtrer par Famille]]="PA : PRINCIP ACTIF",intellix.par.lot87[[#This Row],[Filtrer par Famille]]="EX : EXCIPIENTS",intellix.par.lot87[[#This Row],[Filtrer par Famille]]="GV : CAPSULES",intellix.par.lot87[[#This Row],[Filtrer par Famille]]="SO : SOLVANTS"),"MP","AR") -> MP | O31: =IFERROR(IF(OR(intellix.par.lot87[[#This Row],[Statut Conforme / Péremé]]="conforme",intellix.par.lot87[[#This Row],[Statut Conforme / Péremé]]="péremé"),Sheet2!$C$3,""),"") -> DEPOT BIOCARE
A32: AMPPA13N058 | B32: 60 | C32: ACIDE FUSIDIQUE | D32: 200410A | E32: 2023-04-19 | F32: 99942.75 | G32: =intellix.par.lot87[[#This Row],[code]]&intellix.par.lot87[[#This Row],[ DÉSIGNATION]]&intellix.par.lot87[[#This Row],[N°Lot]] -> AMPPA13N058ACIDE FUSIDIQUE200410A | H32: =IFERROR(VLOOKUP(intellix.par.lot87[[#This Row],[Rechercher par Article / N Lot :]],Tableau4[[Colonne3]:[QTÉ-SOMME]],7,FALSE),0) -> 0 | I32: =intellix.par.lot87[[#This Row],[Qté inellix 2020]]-intellix.par.lot87[[#This Row],[Qté(+2019)]] -> 60 | J32: =IF(intellix.par.lot87[[#This Row],[Statut Conforme / Péremé]]="péremé",0,intellix.par.lot87[[#This Row],[Qte Stock Réelle]]) -> 60 | K32: =IFERROR(VLOOKUP(intellix.par.lot87[[#This Row],[code]],Tableau5[],3,FALSE),"") -> PA : PRINCIP ACTIF | L32: =IF(intellix.par.lot87[[#This Row],[Column1]]="AR","Conforme",IF(AND(intellix.par.lot87[[#This Row],[Column1]]="MP",intellix.par.lot87[[#This Row],[Exp.]]=""),"Quarantaine",IF(AND(intellix.par.lot87[[#This Row],[Column1]]="MP",intellix.par.lot87[[#This Row],[Exp.]]<TODAY()),"Péremé","Conforme"))) -> Conforme | M32: =IF(intellix.par.lot87[[#This Row],[Qte Stock Réelle]]>0,"Disponible","") -> Disponible | N32: =IF(OR(intellix.par.lot87[[#This Row],[Filtrer par Famille]]="PA : PRINCIP ACTIF",intellix.par.lot87[[#This Row],[Filtrer par Famille]]="EX : EXCIPIENTS",intellix.par.lot87[[#This Row],[Filtrer par Famille]]="GV : CAPSULES",intellix.par.lot87[[#This Row],[Filtrer par Famille]]="SO : SOLVANTS"),"MP","AR") -> MP | O32: =IFERROR(IF(OR(intellix.par.lot87[[#This Row],[Statut Conforme / Péremé]]="conforme",intellix.par.lot87[[#This Row],[Statut Conforme / Péremé]]="péremé"),Sheet2!$C$3,""),"") -> DEPOT BIOCARE
A33: AMPPA13N058 | B33: 60 | C33: ACIDE FUSIDIQUE | D33: 200411A | E33: 2023-04-21 | F33: 99942.75 | G33: =intellix.par.lot87[[#This Row],[code]]&intellix.par.lot87[[#This Row],[ DÉSIGNATION]]&intellix.par.lot87[[#This Row],[N°Lot]] -> AMPPA13N058ACIDE FUSIDIQUE200411A | H33: =IFERROR(VLOOKUP(intellix.par.lot87[[#This Row],[Rechercher par Article / N Lot :]],Tableau4[[Colonne3]:[QTÉ-SOMME]],7,FALSE),0) -> 0 | I33: =intellix.par.lot87[[#This Row],[Qté inellix 2020]]-intellix.par.lot87[[#This Row],[Qté(+2019)]] -> 60 | J33: =IF(intellix.par.lot87[[#This Row],[Statut Conforme / Péremé]]="péremé",0,intellix.par.lot87[[#This Row],[Qte Stock Réelle]]) -> 60 | K33: =IFERROR(VLOOKUP(intellix.par.lot87[[#This Row],[code]],Tableau5[],3,FALSE),"") -> PA : PRINCIP ACTIF | L33: =IF(intellix.par.lot87[[#This Row],[Column1]]="AR","Conforme",IF(AND(intellix.par.lot87[[#This Row],[Column1]]="MP",intellix.par.lot87[[#This Row],[Exp.]]=""),"Quarantaine",IF(AND(intellix.par.lot87[[#This Row],[Column1]]="MP",intellix.par.lot87[[#This Row],[Exp.]]<TODAY()),"Péremé","Conforme"))) -> Conforme | M33: =IF(intellix.par.lot87[[#This Row],[Qte Stock Réelle]]>0,"Disponible","") -> Disponible | N33: =IF(OR(intellix.par.lot87[[#This Row],[Filtrer par Famille]]="PA : PRINCIP ACTIF",intellix.par.lot87[[#This Row],[Filtrer par Famille]]="EX : EXCIPIENTS",intellix.par.lot87[[#This Row],[Filtrer par Famille]]="GV : CAPSULES",intellix.par.lot87[[#This Row],[Filtrer par Famille]]="SO : SOLVANTS"),"MP","AR") -> MP | O33: =IFERROR(IF(OR(intellix.par.lot87[[#This Row],[Statut Conforme / Péremé]]="conforme",intellix.par.lot87[[#This Row],[Statut Conforme / Péremé]]="péremé"),Sheet2!$C$3,""),"") -> DEPOT BIOCARE
A34: AMPPA13N058 | B34: 60 | C34: ACIDE FUSIDIQUE | D34: 200412A | E34: 2023-04-23 | F34: 99942.75 | G34: =intellix.par.lot87[[#This Row],[code]]&intellix.par.lot87[[#This Row],[ DÉSIGNATION]]&intellix.par.lot87[[#This Row],[N°Lot]] -> AMPPA13N058ACIDE FUSIDIQUE200412A | H34: =IFERROR(VLOOKUP(intellix.par.lot87[[#This Row],[Rechercher par Article / N Lot :]],Tableau4[[Colonne3]:[QTÉ-SOMME]],7,FALSE),0) -> 0 | I34: =intellix.par.lot87[[#This Row],[Qté inellix 2020]]-intellix.par.lot87[[#This Row],[Qté(+2019)]] -> 60 | J34: =IF(intellix.par.lot87[[#This Row],[Statut Conforme / Péremé]]="péremé",0,intellix.par.lot87[[#This Row],[Qte Stock Réelle]]) -> 60 | K34: =IFERROR(VLOOKUP(intellix.par.lot87[[#This Row],[code]],Tableau5[],3,FALSE),"") -> PA : PRINCIP ACTIF | L34: =IF(intellix.par.lot87[[#This Row],[Column1]]="AR","Conforme",IF(AND(intellix.par.lot87[[#This Row],[Column1]]="MP",intellix.par.lot87[[#This Row],[Exp.]]=""),"Quarantaine",IF(AND(intellix.par.lot87[[#This Row],[Column1]]="MP",intellix.par.lot87[[#This Row],[Exp.]]<TODAY()),"Péremé","Conforme"))) -> Conforme | M34: =IF(intellix.par.lot87[[#This Row],[Qte Stock Réelle]]>0,"Disponible","") -> Disponible | N34: =IF(OR(intellix.par.lot87[[#This Row],[Filtrer par Famille]]="PA : PRINCIP ACTIF",intellix.par.lot87[[#This Row],[Filtrer par Famille]]="EX : EXCIPIENTS",intellix.par.lot87[[#This Row],[Filtrer par Famille]]="GV : CAPSULES",intellix.par.lot87[[#This Row],[Filtrer par Famille]]="SO : SOLVANTS"),"MP","AR") -> MP | O34: =IFERROR(IF(OR(intellix.par.lot87[[#This Row],[Statut Conforme / Péremé]]="conforme",intellix.par.lot87[[#This Row],[Statut Conforme / Péremé]]="péremé"),Sheet2!$C$3,""),"") -> DEPOT BIOCARE
A35: AMPPA13N058 | B35: 40 | C35: ACIDE FUSIDIQUE | D35: 200414A | E35: 2023-04-25 | F35: 99942.75 | G35: =intellix.par.lot87[[#This Row],[code]]&intellix.par.lot87[[#This Row],[ DÉSIGNATION]]&intellix.par.lot87[[#This Row],[N°Lot]] -> AMPPA13N058ACIDE FUSIDIQUE200414A | H35: =IFERROR(VLOOKUP(intellix.par.lot87[[#This Row],[Rechercher par Article / N Lot :]],Tableau4[[Colonne3]:[QTÉ-SOMME]],7,FALSE),0) -> 0 | I35: =intellix.par.lot87[[#This Row],[Qté inellix 2020]]-intellix.par.lot87[[#This Row],[Qté(+2019)]] -> 40 | J35: =IF(intellix.par.lot87[[#This Row],[Statut Conforme / Péremé]]="péremé",0,intellix.par.lot87[[#This Row],[Qte Stock Réelle]]) -> 40 | K35: =IFERROR(VLOOKUP(intellix.par.lot87[[#This Row],[code]],Tableau5[],3,FALSE),"") -> PA : PRINCIP ACTIF | L35: =IF(intellix.par.lot87[[#This Row],[Column1]]="AR","Conforme",IF(AND(intellix.par.lot87[[#This Row],[Column1]]="MP",intellix.par.lot87[[#This Row],[Exp.]]=""),"Quarantaine",IF(AND(intellix.par.lot87[[#This Row],[Column1]]="MP",intellix.par.lot87[[#This Row],[Exp.]]<TODAY()),"Péremé","Conforme"))) -> Conforme | M35: =IF(intellix.par.lot87[[#This Row],[Qte Stock Réelle]]>0,"Disponible","") -> Disponible | N35: =IF(OR(intellix.par.lot87[[#This Row],[Filtrer par Famille]]="PA : PRINCIP ACTIF",intellix.par.lot87[[#This Row],[Filtrer par Famille]]="EX : EXCIPIENTS",intellix.par.lot87[[#This Row],[Filtrer par Famille]]="GV : CAPSULES",intellix.par.lot87[[#This Row],[Filtrer par Famille]]="SO : SOLVANTS"),"MP","AR") -> MP | O35: =IFERROR(IF(OR(intellix.par.lot87[[#This Row],[Statut Conforme / Péremé]]="conforme",intellix.par.lot87[[#This Row],[Statut Conforme / Péremé]]="péremé"),Sheet2!$C$3,""),"") -> DEPOT BIOCARE
A36: KMPEX001122 | B36: 20.7 | C36: ACIDE MALIQUE | D36: 43481993 | E36: 2017-03-01 | F36: 1 | G36: =intellix.par.lot87[[#This Row],[code]]&intellix.par.lot87[[#This Row],[ DÉSIGNATION]]&intellix.par.lot87[[#This Row],[N°Lot]] -> KMPEX001122ACIDE MALIQUE43481993 | H36: =IFERROR(VLOOKUP(intellix.par.lot87[[#This Row],[Rechercher par Article / N Lot :]],Tableau4[[Colonne3]:[QTÉ-SOMME]],7,FALSE),0) -> 0 | I36: =intellix.par.lot87[[#This Row],[Qté inellix 2020]]-intellix.par.lot87[[#This Row],[Qté(+2019)]] -> 20.7 | J36: =IF(intellix.par.lot87[[#This Row],[Statut Conforme / Péremé]]="péremé",0,intellix.par.lot87[[#This Row],[Qte Stock Réelle]]) -> 0 | K36: =IFERROR(VLOOKUP(intellix.par.lot87[[#This Row],[code]],Tableau5[],3,FALSE),"") -> EX : EXCIPIENTS | L36: =IF(intellix.par.lot87[[#This Row],[Column1]]="AR","Conforme",IF(AND(intellix.par.lot87[[#This Row],[Column1]]="MP",intellix.par.lot87[[#This Row],[Exp.]]=""),"Quarantaine",IF(AND(intellix.par.lot87[[#This Row],[Column1]]="MP",intellix.par.lot87[[#This Row],[Exp.]]<TODAY()),"Péremé","Conforme"))) -> Péremé | M36: =IF(intellix.par.lot87[[#This Row],[Qte Stock Réelle]]>0,"Disponible","") -> Disponible | N36: =IF(OR(intellix.par.lot87[[#This Row],[Filtrer par Famille]]="PA : PRINCIP ACTIF",intellix.par.lot87[[#This Row],[Filtrer par Famille]]="EX : EXCIPIENTS",intellix.par.lot87[[#This Row],[Filtrer par Famille]]="GV : CAPSULES",intellix.par.lot87[[#This Row],[Filtrer par Famille]]="SO : SOLVANTS"),"MP","AR") -> MP | O36: =IFERROR(IF(OR(intellix.par.lot87[[#This Row],[Statut Conforme / Péremé]]="conforme",intellix.par.lot87[[#This Row],[Statut Conforme / Péremé]]="péremé"),Sheet2!$C$3,""),"") -> DEPOT BIOCARE
A37: KMPEX001122 | B37: 200 | C37: ACIDE MALIQUE | D37: K50140483 | E37: 2023-03-01 | F37: 2454.23 | G37: =intellix.par.lot87[[#This Row],[code]]&intellix.par.lot87[[#This Row],[ DÉSIGNATION]]&intellix.par.lot87[[#This Row],[N°Lot]] -> KMPEX001122ACIDE MALIQUEK50140483 | H37: =IFERROR(VLOOKUP(intellix.par.lot87[[#This Row],[Rechercher par Article / N Lot :]],Tableau4[[Colonne3]:[QTÉ-SOMME]],7,FALSE),0) -> 0 | I37: =intellix.par.lot87[[#This Row],[Qté inellix 2020]]-intellix.par.lot87[[#This Row],[Qté(+2019)]] -> 200 | J37: =IF(intellix.par.lot87[[#This Row],[Statut Conforme / Péremé]]="péremé",0,intellix.par.lot87[[#This Row],[Qte Stock Réelle]]) -> 200 | K37: =IFERROR(VLOOKUP(intellix.par.lot87[[#This Row],[code]],Tableau5[],3,FALSE),"") -> EX : EXCIPIENTS | L37: =IF(intellix.par.lot87[[#This Row],[Column1]]="AR","Conforme",IF(AND(intellix.par.lot87[[#This Row],[Column1]]="MP",intellix.par.lot87[[#This Row],[Exp.]]=""),"Quarantaine",IF(AND(intellix.par.lot87[[#This Row],[Column1]]="MP",intellix.par.lot87[[#This Row],[Exp.]]<TODAY()),"Péremé","Conforme"))) -> Conforme | M37: =IF(intellix.par.lot87[[#This Row],[Qte Stock Réelle]]>0,"Disponible","") -> Disponible | N37: =IF(OR(intellix.par.lot87[[#This Row],[Filtrer par Famille]]="PA : PRINCIP ACTIF",intellix.par.lot87[[#This Row],[Filtrer par Famille]]="EX : EXCIPIENTS",intellix.par.lot87[[#This Row],[Filtrer par Famille]]="GV : CAPSULES",intellix.par.lot87[[#This Row],[Filtrer par Famille]]="SO : SOLVANTS"),"MP","AR") -> MP | O37: =IFERROR(IF(OR(intellix.par.lot87[[#This Row],[Statut Conforme / Péremé]]="conforme",intellix.par.lot87[[#This Row],[Statut Conforme / Péremé]]="péremé"),Sheet2!$C$3,""),"") -> DEPOT BIOCARE
A38: AMPPACAL018 | B38: 5 | C38: ALGUE LITHOTHAMNIUM POUDRE | D38: 457058 | E38: 2020-11-01 | F38: 11765.56 | G38: =intellix.par.lot87[[#This Row],[code]]&intellix.par.lot87[[#This Row],[ DÉSIGNATION]]&intellix.par.lot87[[#This Row],[N°Lot]] -> AMPPACAL018ALGUE LITHOTHAMNIUM POUDRE457058 | H38: =IFERROR(VLOOKUP(intellix.par.lot87[[#This Row],[Rechercher par Article / N Lot :]],Tableau4[[Colonne3]:[QTÉ-SOMME]],7,FALSE),0) -> 0 | I38: =intellix.par.lot87[[#This Row],[Qté inellix 2020]]-intellix.par.lot87[[#This Row],[Qté(+2019)]] -> 5 | J38: =IF(intellix.par.lot87[[#This Row],[Statut Conforme / Péremé]]="péremé",0,intellix.par.lot87[[#This Row],[Qte Stock Réelle]]) -> 5 | K38: =IFERROR(VLOOKUP(intellix.par.lot87[[#This Row],[code]],Tableau5[],3,FALSE),"") -> PA : PRINCIP ACTIF | L38: =IF(intellix.par.lot87[[#This Row],[Column1]]="AR","Conforme",IF(AND(intellix.par.lot87[[#This Row],[Column1]]="MP",intellix.par.lot87[[#This Row],[Exp.]]=""),"Quarantaine",IF(AND(intellix.par.lot87[[#This Row],[Column1]]="MP",intellix.par.lot87[[#This Row],[Exp.]]<TODAY()),"Péremé","Conforme"))) -> Conforme | M38: =IF(intellix.par.lot87[[#This Row],[Qte Stock Réelle]]>0,"Disponible","") -> Disponible | N38: =IF(OR(intellix.par.lot87[[#This Row],[Filtrer par Famille]]="PA : PRINCIP ACTIF",intellix.par.lot87[[#This Row],[Filtrer par Famille]]="EX : EXCIPIENTS",intellix.par.lot87[[#This Row],[Filtrer par Famille]]="GV : CAPSULES",intellix.par.lot87[[#This Row],[Filtrer par Famille]]="SO : SOLVANTS"),"MP","AR") -> MP | O38: =IFERROR(IF(OR(intellix.par.lot87[[#This Row],[Statut Conforme / Péremé]]="conforme",intellix.par.lot87[[#This Row],[Statut Conforme / Péremé]]="péremé"),Sheet2!$C$3,""),"") -> DEPOT BIOCARE
A39: AMPAC001001 | B39: 0.01 | C39: ALU 20 DM ACTIGRIP | D39: 33087 | F39: 0.01 | G39: =intellix.par.lot87[[#This Row],[code]]&intellix.par.lot87[[#This Row],[ DÉSIGNATION]]&intellix.par.lot87[[#This Row],[N°Lot]] -> AMPAC001001ALU 20 DM ACTIGRIP33087 | H39: =IFERROR(VLOOKUP(intellix.par.lot87[[#This Row],[Rechercher par Article / N Lot :]],Tableau4[[Colonne3]:[QTÉ-SOMME]],7,FALSE),0) -> 0 | I39: =intellix.par.lot87[[#This Row],[Qté inellix 2020]]-intellix.par.lot87[[#This Row],[Qté(+2019)]] -> 0.01 | J39: =IF(intellix.par.lot87[[#This Row],[Statut Conforme / Péremé]]="péremé",0,intellix.par.lot87[[#This Row],[Qte Stock Réelle]]) -> 0.01 | K39: =IFERROR(VLOOKUP(intellix.par.lot87[[#This Row],[code]],Tableau5[],3,FALSE),"") -> AL : ALUMINIUM 20 µ DM | L39: =IF(intellix.par.lot87[[#This Row],[Column1]]="AR","Conforme",IF(AND(intellix.par.lot87[[#This Row],[Column1]]="MP",intellix.par.lot87[[#This Row],[Exp.]]=""),"Quarantaine",IF(AND(intellix.par.lot87[[#This Row],[Column1]]="MP",intellix.par.lot87[[#This Row],[Exp.]]<TODAY()),"Péremé","Conforme"))) -> Conforme | M39: =IF(intellix.par.lot87[[#This Row],[Qte Stock Réelle]]>0,"Disponible","") -> Disponible | N39: =IF(OR(intellix.par.lot87[[#This Row],[Filtrer par Famille]]="PA : PRINCIP ACTIF",intellix.par.lot87[[#This Row],[Filtrer par Famille]]="EX : EXCIPIENTS",intellix.par.lot87[[#This Row],[Filtrer par Famille]]="GV : CAPSULES",intellix.par.lot87[[#This Row],[Filtrer par Famille]]="SO : SOLVANTS"),"MP","AR") -> AR | O39: =IFERROR(IF(OR(intellix.par.lot87[[#This Row],[Statut Conforme / Péremé]]="conforme",intellix.par.lot87[[#This Row],[Statut Conforme / Péremé]]="péremé"),Sheet2!$C$3,""),"") -> DEPOT BIOCARE
A40: BMPAC001002 | B40: 15890 | C40: ALU 20 DM AMPINAX 500MG | D40: 5029 | F40: 36.66 | G40: =intellix.par.lot87[[#This Row],[code]]&intellix.par.lot87[[#This Row],[ DÉSIGNATION]]&intellix.par.lot87[[#This Row],[N°Lot]] -> BMPAC001002ALU 20 DM AMPINAX 500MG5029 | H40: =IFERROR(VLOOKUP(intellix.par.lot87[[#This Row],[Rechercher par Article / N Lot :]],Tableau4[[Colonne3]:[QTÉ-SOMME]],7,FALSE),0) -> 0 | I40: =intellix.par.lot87[[#This Row],[Qté inellix 2020]]-intellix.par.lot87[[#This Row],[Qté(+2019)]] -> 15890 | J40: =IF(intellix.par.lot87[[#This Row],[Statut Conforme / Péremé]]="péremé",0,intellix.par.lot87[[#This Row],[Qte Stock Réelle]]) -> 15890 | K40: =IFERROR(VLOOKUP(intellix.par.lot87[[#This Row],[code]],Tableau5[],3,FALSE),"") -> AL : ALUMINIUM 20 µ DM | L40: =IF(intellix.par.lot87[[#This Row],[Column1]]="AR","Conforme",IF(AND(intellix.par.lot87[[#This Row],[Column1]]="MP",intellix.par.lot87[[#This Row],[Exp.]]=""),"Quarantaine",IF(AND(intellix.par.lot87[[#This Row],[Column1]]="MP",intellix.par.lot87[[#This Row],[Exp.]]<TODAY()),"Péremé","Conforme"))) -> Conforme | M40: =IF(intellix.par.lot87[[#This Row],[Qte Stock Réelle]]>0,"Disponible","") -> Disponible | N40: =IF(OR(intellix.par.lot87[[#This Row],[Filtrer par Famille]]="PA : PRINCIP ACTIF",intellix.par.lot87[[#This Row],[Filtrer par Famille]]="EX : EXCIPIENTS",intellix.par.lot87[[#This Row],[Filtrer par Famille]]="GV : CAPSULES",intellix.par.lot87[[#This Row],[Filtrer par Famille]]="SO : SOLVANTS"),"MP","AR") -> AR | O40: =IFERROR(IF(OR(intellix.par.lot87[[#This Row],[Statut Conforme / Péremé]]="conforme",intellix.par.lot87[[#This Row],[Statut Conforme / Péremé]]="péremé"),Sheet2!$C$3,""),"") -> DEPOT BIOCARE
A41: BMPAC001002 | B41: 0 | C41: ALU 20 DM AMPINAX 500MG | D41: 2008 | F41: 26.43 | G41: =intellix.par.lot87[[#This Row],[code]]&intellix.par.lot87[[#This Row],[ DÉSIGNATION]]&intellix.par.lot87[[#This Row],[N°Lot]] -> BMPAC001002ALU 20 DM AMPINAX 500MG2008 | H41: =IFERROR(VLOOKUP(intellix.par.lot87[[#This Row],[Rechercher par Article / N Lot :]],Tableau4[[Colonne3]:[QTÉ-SOMME]],7,FALSE),0) -> 0 | I41: =intellix.par.lot87[[#This Row],[Qté inellix 2020]]-intellix.par.lot87[[#This Row],[Qté(+2019)]] -> 0 | J41: =IF(intellix.par.lot87[[#This Row],[Statut Conforme / Péremé]]="péremé",0,intellix.par.lot87[[#This Row],[Qte Stock Réelle]]) -> 0 | K41: =IFERROR(VLOOKUP(intellix.par.lot87[[#This Row],[code]],Tableau5[],3,FALSE),"") -> AL : ALUMINIUM 20 µ DM | L41: =IF(intellix.par.lot87[[#This Row],[Column1]]="AR","Conforme",IF(AND(intellix.par.lot87[[#This Row],[Column1]]="MP",intellix.par.lot87[[#This Row],[Exp.]]=""),"Quarantaine",IF(AND(intellix.par.lot87[[#This Row],[Column1]]="MP",intellix.par.lot87[[#This Row],[Exp.]]<TODAY()),"Péremé","Conforme"))) -> Conforme | M41: =IF(intellix.par.lot87[[#This Row],[Qte Stock Réelle]]>0,"Disponible","") ->  | N41: =IF(OR(intellix.par.lot87[[#This Row],[Filtrer par Famille]]="PA : PRINCIP ACTIF",intellix.par.lot87[[#This Row],[Filtrer par Famille]]="EX : EXCIPIENTS",intellix.par.lot87[[#This Row],[Filtrer par Famille]]="GV : CAPSULES",intellix.par.lot87[[#This Row],[Filtrer par Famille]]="SO : SOLVANTS"),"MP","AR") -> AR | O41: =IFERROR(IF(OR(intellix.par.lot87[[#This Row],[Statut Conforme / Péremé]]="conforme",intellix.par.lot87[[#This Row],[Statut Conforme / Péremé]]="péremé"),Sheet2!$C$3,""),"") -> DEPOT BIOCARE
A42: BMPAC001002 | B42: 7010 | C42: ALU 20 DM AMPINAX 500MG | D42: 3839 10/07 | F42: 40.45 | G42: =intellix.par.lot87[[#This Row],[code]]&intellix.par.lot87[[#This Row],[ DÉSIGNATION]]&intellix.par.lot87[[#This Row],[N°Lot]] -> BMPAC001002ALU 20 DM AMPINAX 500MG3839 10/07 | H42: =IFERROR(VLOOKUP(intellix.par.lot87[[#This Row],[Rechercher par Article / N Lot :]],Tableau4[[Colonne3]:[QTÉ-SOMME]],7,FALSE),0) -> 0 | I42: =intellix.par.lot87[[#This Row],[Qté inellix 2020]]-intellix.par.lot87[[#This Row],[Qté(+2019)]] -> 7010 | J42: =IF(intellix.par.lot87[[#This Row],[Statut Conforme / Péremé]]="péremé",0,intellix.par.lot87[[#This Row],[Qte Stock Réelle]]) -> 7010 | K42: =IFERROR(VLOOKUP(intellix.par.lot87[[#This Row],[code]],Tableau5[],3,FALSE),"") -> AL : ALUMINIUM 20 µ DM | L42: =IF(intellix.par.lot87[[#This Row],[Column1]]="AR","Conforme",IF(AND(intellix.par.lot87[[#This Row],[Column1]]="MP",intellix.par.lot87[[#This Row],[Exp.]]=""),"Quarantaine",IF(AND(intellix.par.lot87[[#This Row],[Column1]]="MP",intellix.par.lot87[[#This Row],[Exp.]]<TODAY()),"Péremé","Conforme"))) -> Conforme | M42: =IF(intellix.par.lot87[[#This Row],[Qte Stock Réelle]]>0,"Disponible","") -> Disponible | N42: =IF(OR(intellix.par.lot87[[#This Row],[Filtrer par Famille]]="PA : PRINCIP ACTIF",intellix.par.lot87[[#This Row],[Filtrer par Famille]]="EX : EXCIPIENTS",intellix.par.lot87[[#This Row],[Filtrer par Famille]]="GV : CAPSULES",intellix.par.lot87[[#This Row],[Filtrer par Famille]]="SO : SOLVANTS"),"MP","AR") -> AR | O42: =IFERROR(IF(OR(intellix.par.lot87[[#This Row],[Statut Conforme / Péremé]]="conforme",intellix.par.lot87[[#This Row],[Statut Conforme / Péremé]]="péremé"),Sheet2!$C$3,""),"") -> DEPOT BIOCARE
A43: AMPAC001003 | B43: 457642.35 | C43: ALU 20 DM ANTAG | D43: 7126-1 | F43: 32.73 | G43: =intellix.par.lot87[[#This Row],[code]]&intellix.par.lot87[[#This Row],[ DÉSIGNATION]]&intellix.par.lot87[[#This Row],[N°Lot]] -> AMPAC001003ALU 20 DM ANTAG7126-1 | H43: =IFERROR(VLOOKUP(intellix.par.lot87[[#This Row],[Rechercher par Article / N Lot :]],Tableau4[[Colonne3]:[QTÉ-SOMME]],7,FALSE),0) -> 296412.35 | I43: =intellix.par.lot87[[#This Row],[Qté inellix 2020]]-intellix.par.lot87[[#This Row],[Qté(+2019)]] -> 161230 | J43: =IF(intellix.par.lot87[[#This Row],[Statut Conforme / Péremé]]="péremé",0,intellix.par.lot87[[#This Row],[Qte Stock Réelle]]) -> 161230 | K43: =IFERROR(VLOOKUP(intellix.par.lot87[[#This Row],[code]],Tableau5[],3,FALSE),"") -> AL : ALUMINIUM 20 µ DM | L43: =IF(intellix.par.lot87[[#This Row],[Column1]]="AR","Conforme",IF(AND(intellix.par.lot87[[#This Row],[Column1]]="MP",intellix.par.lot87[[#This Row],[Exp.]]=""),"Quarantaine",IF(AND(intellix.par.lot87[[#This Row],[Column1]]="MP",intellix.par.lot87[[#This Row],[Exp.]]<TODAY()),"Péremé","Conforme"))) -> Conforme | M43: =IF(intellix.par.lot87[[#This Row],[Qte Stock Réelle]]>0,"Disponible","") -> Disponible | N43: =IF(OR(intellix.par.lot87[[#This Row],[Filtrer par Famille]]="PA : PRINCIP ACTIF",intellix.par.lot87[[#This Row],[Filtrer par Famille]]="EX : EXCIPIENTS",intellix.par.lot87[[#This Row],[Filtrer par Famille]]="GV : CAPSULES",intellix.par.lot87[[#This Row],[Filtrer par Famille]]="SO : SOLVANTS"),"MP","AR") -> AR | O43: =IFERROR(IF(OR(intellix.par.lot87[[#This Row],[Statut Conforme / Péremé]]="conforme",intellix.par.lot87[[#This Row],[Statut Conforme / Péremé]]="péremé"),Sheet2!$C$3,""),"") -> DEPOT BIOCARE
A44: AMPAC001003 | B44: 0 | C44: ALU 20 DM ANTAG | D44: 2460 | F44: 28.73 | G44: =intellix.par.lot87[[#This Row],[code]]&intellix.par.lot87[[#This Row],[ DÉSIGNATION]]&intellix.par.lot87[[#This Row],[N°Lot]] -> AMPAC001003ALU 20 DM ANTAG2460 | H44: =IFERROR(VLOOKUP(intellix.par.lot87[[#This Row],[Rechercher par Article / N Lot :]],Tableau4[[Colonne3]:[QTÉ-SOMME]],7,FALSE),0) -> 0 | I44: =intellix.par.lot87[[#This Row],[Qté inellix 2020]]-intellix.par.lot87[[#This Row],[Qté(+2019)]] -> 0 | J44: =IF(intellix.par.lot87[[#This Row],[Statut Conforme / Péremé]]="péremé",0,intellix.par.lot87[[#This Row],[Qte Stock Réelle]]) -> 0 | K44: =IFERROR(VLOOKUP(intellix.par.lot87[[#This Row],[code]],Tableau5[],3,FALSE),"") -> AL : ALUMINIUM 20 µ DM | L44: =IF(intellix.par.lot87[[#This Row],[Column1]]="AR","Conforme",IF(AND(intellix.par.lot87[[#This Row],[Column1]]="MP",intellix.par.lot87[[#This Row],[Exp.]]=""),"Quarantaine",IF(AND(intellix.par.lot87[[#This Row],[Column1]]="MP",intellix.par.lot87[[#This Row],[Exp.]]<TODAY()),"Péremé","Conforme"))) -> Conforme | M44: =IF(intellix.par.lot87[[#This Row],[Qte Stock Réelle]]>0,"Disponible","") ->  | N44: =IF(OR(intellix.par.lot87[[#This Row],[Filtrer par Famille]]="PA : PRINCIP ACTIF",intellix.par.lot87[[#This Row],[Filtrer par Famille]]="EX : EXCIPIENTS",intellix.par.lot87[[#This Row],[Filtrer par Famille]]="GV : CAPSULES",intellix.par.lot87[[#This Row],[Filtrer par Famille]]="SO : SOLVANTS"),"MP","AR") -> AR | O44: =IFERROR(IF(OR(intellix.par.lot87[[#This Row],[Statut Conforme / Péremé]]="conforme",intellix.par.lot87[[#This Row],[Statut Conforme / Péremé]]="péremé"),Sheet2!$C$3,""),"") -> DEPOT BIOCARE
A45: AMPAC001003 | B45: 0 | C45: ALU 20 DM ANTAG | D45: 7126 | F45: 32.88 | G45: =intellix.par.lot87[[#This Row],[code]]&intellix.par.lot87[[#This Row],[ DÉSIGNATION]]&intellix.par.lot87[[#This Row],[N°Lot]] -> AMPAC001003ALU 20 DM ANTAG7126 | H45: =IFERROR(VLOOKUP(intellix.par.lot87[[#This Row],[Rechercher par Article / N Lot :]],Tableau4[[Colonne3]:[QTÉ-SOMME]],7,FALSE),0) -> 0 | I45: =intellix.par.lot87[[#This Row],[Qté inellix 2020]]-intellix.par.lot87[[#This Row],[Qté(+2019)]] -> 0 | J45: =IF(intellix.par.lot87[[#This Row],[Statut Conforme / Péremé]]="péremé",0,intellix.par.lot87[[#This Row],[Qte Stock Réelle]]) -> 0 | K45: =IFERROR(VLOOKUP(intellix.par.lot87[[#This Row],[code]],Tableau5[],3,FALSE),"") -> AL : ALUMINIUM 20 µ DM | L45: =IF(intellix.par.lot87[[#This Row],[Column1]]="AR","Conforme",IF(AND(intellix.par.lot87[[#This Row],[Column1]]="MP",intellix.par.lot87[[#This Row],[Exp.]]=""),"Quarantaine",IF(AND(intellix.par.lot87[[#This Row],[Column1]]="MP",intellix.par.lot87[[#This Row],[Exp.]]<TODAY()),"Péremé","Conforme"))) -> Conforme | M45: =IF(intellix.par.lot87[[#This Row],[Qte Stock Réelle]]>0,"Disponible","") ->  | N45: =IF(OR(intellix.par.lot87[[#This Row],[Filtrer par Famille]]="PA : PRINCIP ACTIF",intellix.par.lot87[[#This Row],[Filtrer par Famille]]="EX : EXCIPIENTS",intellix.par.lot87[[#This Row],[Filtrer par Famille]]="GV : CAPSULES",intellix.par.lot87[[#This Row],[Filtrer par Famille]]="SO : SOLVANTS"),"MP","AR") -> AR | O45: =IFERROR(IF(OR(intellix.par.lot87[[#This Row],[Statut Conforme / Péremé]]="conforme",intellix.par.lot87[[#This Row],[Statut Conforme / Péremé]]="péremé"),Sheet2!$C$3,""),"") -> DEPOT BIOCARE
A46: AMPAC001075 | B46: 3140 | C46: ALU 20 DM ANTIUM 20 mg | D46: 8023 | F46: 41.29 | G46: =intellix.par.lot87[[#This Row],[code]]&intellix.par.lot87[[#This Row],[ DÉSIGNATION]]&intellix.par.lot87[[#This Row],[N°Lot]] -> AMPAC001075ALU 20 DM ANTIUM 20 mg8023 | H46: =IFERROR(VLOOKUP(intellix.par.lot87[[#This Row],[Rechercher par Article / N Lot :]],Tableau4[[Colonne3]:[QTÉ-SOMME]],7,FALSE),0) -> 0 | I46: =intellix.par.lot87[[#This Row],[Qté inellix 2020]]-intellix.par.lot87[[#This Row],[Qté(+2019)]] -> 3140 | J46: =IF(intellix.par.lot87[[#This Row],[Statut Conforme / Péremé]]="péremé",0,intellix.par.lot87[[#This Row],[Qte Stock Réelle]]) -> 3140 | K46: =IFERROR(VLOOKUP(intellix.par.lot87[[#This Row],[code]],Tableau5[],3,FALSE),"") -> AL : ALUMINIUM 20 µ DM | L46: =IF(intellix.par.lot87[[#This Row],[Column1]]="AR","Conforme",IF(AND(intellix.par.lot87[[#This Row],[Column1]]="MP",intellix.par.lot87[[#This Row],[Exp.]]=""),"Quarantaine",IF(AND(intellix.par.lot87[[#This Row],[Column1]]="MP",intellix.par.lot87[[#This Row],[Exp.]]<TODAY()),"Péremé","Conforme"))) -> Conforme | M46: =IF(intellix.par.lot87[[#This Row],[Qte Stock Réelle]]>0,"Disponible","") -> Disponible | N46: =IF(OR(intellix.par.lot87[[#This Row],[Filtrer par Famille]]="PA : PRINCIP ACTIF",intellix.par.lot87[[#This Row],[Filtrer par Famille]]="EX : EXCIPIENTS",intellix.par.lot87[[#This Row],[Filtrer par Famille]]="GV : CAPSULES",intellix.par.lot87[[#This Row],[Filtrer par Famille]]="SO : SOLVANTS"),"MP","AR") -> AR | O46: =IFERROR(IF(OR(intellix.par.lot87[[#This Row],[Statut Conforme / Péremé]]="conforme",intellix.par.lot87[[#This Row],[Statut Conforme / Péremé]]="péremé"),Sheet2!$C$3,""),"") -> DEPOT BIOCARE
A47: AMPAC001076 | B47: 18370 | C47: ALU 20 DM ANTIUM 40 mg | D47: 8022 | F47: 40.27 | G47: =intellix.par.lot87[[#This Row],[code]]&intellix.par.lot87[[#This Row],[ DÉSIGNATION]]&intellix.par.lot87[[#This Row],[N°Lot]] -> AMPAC001076ALU 20 DM ANTIUM 40 mg8022 | H47: =IFERROR(VLOOKUP(intellix.par.lot87[[#This Row],[Rechercher par Article / N Lot :]],Tableau4[[Colonne3]:[QTÉ-SOMME]],7,FALSE),0) -> 0 | I47: =intellix.par.lot87[[#This Row],[Qté inellix 2020]]-intellix.par.lot87[[#This Row],[Qté(+2019)]] -> 18370 | J47: =IF(intellix.par.lot87[[#This Row],[Statut Conforme / Péremé]]="péremé",0,intellix.par.lot87[[#This Row],[Qte Stock Réelle]]) -> 18370 | K47: =IFERROR(VLOOKUP(intellix.par.lot87[[#This Row],[code]],Tableau5[],3,FALSE),"") -> AL : ALUMINIUM 20 µ DM | L47: =IF(intellix.par.lot87[[#This Row],[Column1]]="AR","Conforme",IF(AND(intellix.par.lot87[[#This Row],[Column1]]="MP",intellix.par.lot87[[#This Row],[Exp.]]=""),"Quarantaine",IF(AND(intellix.par.lot87[[#This Row],[Column1]]="MP",intellix.par.lot87[[#This Row],[Exp.]]<TODAY()),"Péremé","Conforme"))) -> Conforme | M47: =IF(intellix.par.lot87[[#This Row],[Qte Stock Réelle]]>0,"Disponible","") -> Disponible | N47: =IF(OR(intellix.par.lot87[[#This Row],[Filtrer par Famille]]="PA : PRINCIP ACTIF",intellix.par.lot87[[#This Row],[Filtrer par Famille]]="EX : EXCIPIENTS",intellix.par.lot87[[#This Row],[Filtrer par Famille]]="GV : CAPSULES",intellix.par.lot87[[#This Row],[Filtrer par Famille]]="SO : SOLVANTS"),"MP","AR") -> AR | O47: =IFERROR(IF(OR(intellix.par.lot87[[#This Row],[Statut Conforme / Péremé]]="conforme",intellix.par.lot87[[#This Row],[Statut Conforme / Péremé]]="péremé"),Sheet2!$C$3,""),"") -> DEPOT BIOCARE
A48: AMPAC001071 | B48: 7580 | C48: ALU 20 DM ARBOSE 50 mg "COMP" | D48: 4621 | F48: 36.68 | G48: =intellix.par.lot87[[#This Row],[code]]&intellix.par.lot87[[#This Row],[ DÉSIGNATION]]&intellix.par.lot87[[#This Row],[N°Lot]] -> AMPAC001071ALU 20 DM ARBOSE 50 mg "COMP"4621 | H48: =IFERROR(VLOOKUP(intellix.par.lot87[[#This Row],[Rechercher par Article / N Lot :]],Tableau4[[Colonne3]:[QTÉ-SOMME]],7,FALSE),0) -> 0 | I48: =intellix.par.lot87[[#This Row],[Qté inellix 2020]]-intellix.par.lot87[[#This Row],[Qté(+2019)]] -> 7580 | J48: =IF(intellix.par.lot87[[#This Row],[Statut Conforme / Péremé]]="péremé",0,intellix.par.lot87[[#This Row],[Qte Stock Réelle]]) -> 7580 | K48: =IFERROR(VLOOKUP(intellix.par.lot87[[#This Row],[code]],Tableau5[],3,FALSE),"") -> AL : ALUMINIUM 20 µ DM | L48: =IF(intellix.par.lot87[[#This Row],[Column1]]="AR","Conforme",IF(AND(intellix.par.lot87[[#This Row],[Column1]]="MP",intellix.par.lot87[[#This Row],[Exp.]]=""),"Quarantaine",IF(AND(intellix.par.lot87[[#This Row],[Column1]]="MP",intellix.par.lot87[[#This Row],[Exp.]]<TODAY()),"Péremé","Conforme"))) -> Conforme | M48: =IF(intellix.par.lot87[[#This Row],[Qte Stock Réelle]]>0,"Disponible","") -> Disponible | N48: =IF(OR(intellix.par.lot87[[#This Row],[Filtrer par Famille]]="PA : PRINCIP ACTIF",intellix.par.lot87[[#This Row],[Filtrer par Famille]]="EX : EXCIPIENTS",intellix.par.lot87[[#This Row],[Filtrer par Famille]]="GV : CAPSULES",intellix.par.lot87[[#This Row],[Filtrer par Famille]]="SO : SOLVANTS"),"MP","AR") -> AR | O48: =IFERROR(IF(OR(intellix.par.lot87[[#This Row],[Statut Conforme / Péremé]]="conforme",intellix.par.lot87[[#This Row],[Statut Conforme / Péremé]]="péremé"),Sheet2!$C$3,""),"") -> DEPOT BIOCARE
A49: AMPAC001071 | B49: 32270 | C49: ALU 20 DM ARBOSE 50 mg "COMP" | D49: 5416 | F49: 36.52 | G49: =intellix.par.lot87[[#This Row],[code]]&intellix.par.lot87[[#This Row],[ DÉSIGNATION]]&intellix.par.lot87[[#This Row],[N°Lot]] -> AMPAC001071ALU 20 DM ARBOSE 50 mg "COMP"5416 | H49: =IFERROR(VLOOKUP(intellix.par.lot87[[#This Row],[Rechercher par Article / N Lot :]],Tableau4[[Colonne3]:[QTÉ-SOMME]],7,FALSE),0) -> 0 | I49: =intellix.par.lot87[[#This Row],[Qté inellix 2020]]-intellix.par.lot87[[#This Row],[Qté(+2019)]] -> 32270 | J49: =IF(intellix.par.lot87[[#This Row],[Statut Conforme / Péremé]]="péremé",0,intellix.par.lot87[[#This Row],[Qte Stock Réelle]]) -> 32270 | K49: =IFERROR(VLOOKUP(intellix.par.lot87[[#This Row],[code]],Tableau5[],3,FALSE),"") -> AL : ALUMINIUM 20 µ DM | L49: =IF(intellix.par.lot87[[#This Row],[Column1]]="AR","Conforme",IF(AND(intellix.par.lot87[[#This Row],[Column1]]="MP",intellix.par.lot87[[#This Row],[Exp.]]=""),"Quarantaine",IF(AND(intellix.par.lot87[[#This Row],[Column1]]="MP",intellix.par.lot87[[#This Row],[Exp.]]<TODAY()),"Péremé","Conforme"))) -> Conforme | M49: =IF(intellix.par.lot87[[#This Row],[Qte Stock Réelle]]>0,"Disponible","") -> Disponible | N49: =IF(OR(intellix.par.lot87[[#This Row],[Filtrer par Famille]]="PA : PRINCIP ACTIF",intellix.par.lot87[[#This Row],[Filtrer par Famille]]="EX : EXCIPIENTS",intellix.par.lot87[[#This Row],[Filtrer par Famille]]="GV : CAPSULES",intellix.par.lot87[[#This Row],[Filtrer par Famille]]="SO : SOLVANTS"),"MP","AR") -> AR | O49: =IFERROR(IF(OR(intellix.par.lot87[[#This Row],[Statut Conforme / Péremé]]="conforme",intellix.par.lot87[[#This Row],[Statut Conforme / Péremé]]="péremé"),Sheet2!$C$3,""),"") -> DEPOT BIOCARE
A50: AMPAC001056 | B50: 21640 | C50: ALU 20 DM BIOCETAM 1000 mg "60 COMP". | D50: 5021 | F50: 36.64 | G50: =intellix.par.lot87[[#This Row],[code]]&intellix.par.lot87[[#This Row],[ DÉSIGNATION]]&intellix.par.lot87[[#This Row],[N°Lot]] -> AMPAC001056ALU 20 DM BIOCETAM 1000 mg "60 COMP".5021 | H50: =IFERROR(VLOOKUP(intellix.par.lot87[[#This Row],[Rechercher par Article / N Lot :]],Tableau4[[Colonne3]:[QTÉ-SOMME]],7,FALSE),0) -> 0 | I50: =intellix.par.lot87[[#This Row],[Qté inellix 2020]]-intellix.par.lot87[[#This Row],[Qté(+2019)]] -> 21640 | J50: =IF(intellix.par.lot87[[#This Row],[Statut Conforme / Péremé]]="péremé",0,intellix.par.lot87[[#This Row],[Qte Stock Réelle]]) -> 21640 | K50: =IFERROR(VLOOKUP(intellix.par.lot87[[#This Row],[code]],Tableau5[],3,FALSE),"") -> AL : ALUMINIUM 20 µ DM | L50: =IF(intellix.par.lot87[[#This Row],[Column1]]="AR","Conforme",IF(AND(intellix.par.lot87[[#This Row],[Column1]]="MP",intellix.par.lot87[[#This Row],[Exp.]]=""),"Quarantaine",IF(AND(intellix.par.lot87[[#This Row],[Column1]]="MP",intellix.par.lot87[[#This Row],[Exp.]]<TODAY()),"Péremé","Conforme"))) -> Conforme | M50: =IF(intellix.par.lot87[[#This Row],[Qte Stock Réelle]]>0,"Disponible","") -> Disponible | N50: =IF(OR(intellix.par.lot87[[#This Row],[Filtrer par Famille]]="PA : PRINCIP ACTIF",intellix.par.lot87[[#This Row],[Filtrer par Famille]]="EX : EXCIPIENTS",intellix.par.lot87[[#This Row],[Filtrer par Famille]]="GV : CAPSULES",intellix.par.lot87[[#This Row],[Filtrer par Famille]]="SO : SOLVANTS"),"MP","AR") -> AR | O50: =IFERROR(IF(OR(intellix.par.lot87[[#This Row],[Statut Conforme / Péremé]]="conforme",intellix.par.lot87[[#This Row],[Statut Conforme / Péremé]]="péremé"),Sheet2!$C$3,""),"") -> DEPOT BIOCARE
A51: AMPAC001056 | B51: 6920 | C51: ALU 20 DM BIOCETAM 1000 mg "60 COMP". | D51: 4037 | F51: 62.05 | G51: =intellix.par.lot87[[#This Row],[code]]&intellix.par.lot87[[#This Row],[ DÉSIGNATION]]&intellix.par.lot87[[#This Row],[N°Lot]] -> AMPAC001056ALU 20 DM BIOCETAM 1000 mg "60 COMP".4037 | H51: =IFERROR(VLOOKUP(intellix.par.lot87[[#This Row],[Rechercher par Article / N Lot :]],Tableau4[[Colonne3]:[QTÉ-SOMME]],7,FALSE),0) -> 0 | I51: =intellix.par.lot87[[#This Row],[Qté inellix 2020]]-intellix.par.lot87[[#This Row],[Qté(+2019)]] -> 6920 | J51: =IF(intellix.par.lot87[[#This Row],[Statut Conforme / Péremé]]="péremé",0,intellix.par.lot87[[#This Row],[Qte Stock Réelle]]) -> 6920 | K51: =IFERROR(VLOOKUP(intellix.par.lot87[[#This Row],[code]],Tableau5[],3,FALSE),"") -> AL : ALUMINIUM 20 µ DM | L51: =IF(intellix.par.lot87[[#This Row],[Column1]]="AR","Conforme",IF(AND(intellix.par.lot87[[#This Row],[Column1]]="MP",intellix.par.lot87[[#This Row],[Exp.]]=""),"Quarantaine",IF(AND(intellix.par.lot87[[#This Row],[Column1]]="MP",intellix.par.lot87[[#This Row],[Exp.]]<TODAY()),"Péremé","Conforme"))) -> Conforme | M51: =IF(intellix.par.lot87[[#This Row],[Qte Stock Réelle]]>0,"Disponible","") -> Disponible | N51: =IF(OR(intellix.par.lot87[[#This Row],[Filtrer par Famille]]="PA : PRINCIP ACTIF",intellix.par.lot87[[#This Row],[Filtrer par Famille]]="EX : EXCIPIENTS",intellix.par.lot87[[#This Row],[Filtrer par Famille]]="GV : CAPSULES",intellix.par.lot87[[#This Row],[Filtrer par Famille]]="SO : SOLVANTS"),"MP","AR") -> AR | O51: =IFERROR(IF(OR(intellix.par.lot87[[#This Row],[Statut Conforme / Péremé]]="conforme",intellix.par.lot87[[#This Row],[Statut Conforme / Péremé]]="péremé"),Sheet2!$C$3,""),"") -> DEPOT BIOCARE
G52: =intellix.par.lot87[[#This Row],[code]]&intellix.par.lot87[[#This Row],[ DÉSIGNATION]]&intellix.par.lot87[[#This Row],[N°Lot]] ->  | H52: =IFERROR(VLOOKUP(intellix.par.lot87[[#This Row],[Rechercher par Article / N Lot :]],Tableau4[[Colonne3]:[QTÉ-SOMME]],7,FALSE),0) -> 0 | I52: =intellix.par.lot87[[#This Row],[Qté inellix 2020]]-intellix.par.lot87[[#This Row],[Qté(+2019)]] -> 0 | J52: =IF(intellix.par.lot87[[#This Row],[Statut Conforme / Péremé]]="péremé",0,intellix.par.lot87[[#This Row],[Qte Stock Réelle]]) -> 0 | K52: =IFERROR(VLOOKUP(intellix.par.lot87[[#This Row],[code]],Tableau5[],3,FALSE),"") ->  | L52: =IF(intellix.par.lot87[[#This Row],[Column1]]="AR","Conforme",IF(AND(intellix.par.lot87[[#This Row],[Column1]]="MP",intellix.par.lot87[[#This Row],[Exp.]]=""),"Quarantaine",IF(AND(intellix.par.lot87[[#This Row],[Column1]]="MP",intellix.par.lot87[[#This Row],[Exp.]]<TODAY()),"Péremé","Conforme"))) -> Conforme | M52: =IF(intellix.par.lot87[[#This Row],[Qte Stock Réelle]]>0,"Disponible","") ->  | N52: =IF(OR(intellix.par.lot87[[#This Row],[Filtrer par Famille]]="PA : PRINCIP ACTIF",intellix.par.lot87[[#This Row],[Filtrer par Famille]]="EX : EXCIPIENTS",intellix.par.lot87[[#This Row],[Filtrer par Famille]]="GV : CAPSULES",intellix.par.lot87[[#This Row],[Filtrer par Famille]]="SO : SOLVANTS"),"MP","AR") -> AR | O52: =IFERROR(IF(OR(intellix.par.lot87[[#This Row],[Statut Conforme / Péremé]]="conforme",intellix.par.lot87[[#This Row],[Statut Conforme / Péremé]]="péremé"),Sheet2!$C$3,""),"") -> DEPOT BIOCARE
G53: =intellix.par.lot87[[#This Row],[code]]&intellix.par.lot87[[#This Row],[ DÉSIGNATION]]&intellix.par.lot87[[#This Row],[N°Lot]] ->  | H53: =IFERROR(VLOOKUP(intellix.par.lot87[[#This Row],[Rechercher par Article / N Lot :]],Tableau4[[Colonne3]:[QTÉ-SOMME]],7,FALSE),0) -> 0 | I53: =intellix.par.lot87[[#This Row],[Qté inellix 2020]]-intellix.par.lot87[[#This Row],[Qté(+2019)]] -> 0 | J53: =IF(intellix.par.lot87[[#This Row],[Statut Conforme / Péremé]]="péremé",0,intellix.par.lot87[[#This Row],[Qte Stock Réelle]]) -> 0 | K53: =IFERROR(VLOOKUP(intellix.par.lot87[[#This Row],[code]],Tableau5[],3,FALSE),"") ->  | L53: =IF(intellix.par.lot87[[#This Row],[Column1]]="AR","Conforme",IF(AND(intellix.par.lot87[[#This Row],[Column1]]="MP",intellix.par.lot87[[#This Row],[Exp.]]=""),"Quarantaine",IF(AND(intellix.par.lot87[[#This Row],[Column1]]="MP",intellix.par.lot87[[#This Row],[Exp.]]<TODAY()),"Péremé","Conforme"))) -> Conforme | M53: =IF(intellix.par.lot87[[#This Row],[Qte Stock Réelle]]>0,"Disponible","") ->  | N53: =IF(OR(intellix.par.lot87[[#This Row],[Filtrer par Famille]]="PA : PRINCIP ACTIF",intellix.par.lot87[[#This Row],[Filtrer par Famille]]="EX : EXCIPIENTS",intellix.par.lot87[[#This Row],[Filtrer par Famille]]="GV : CAPSULES",intellix.par.lot87[[#This Row],[Filtrer par Famille]]="SO : SOLVANTS"),"MP","AR") -> AR | O53: =IFERROR(IF(OR(intellix.par.lot87[[#This Row],[Statut Conforme / Péremé]]="conforme",intellix.par.lot87[[#This Row],[Statut Conforme / Péremé]]="péremé"),Sheet2!$C$3,""),"") -> DEPOT BIOCARE
G54: =intellix.par.lot87[[#This Row],[code]]&intellix.par.lot87[[#This Row],[ DÉSIGNATION]]&intellix.par.lot87[[#This Row],[N°Lot]] ->  | H54: =IFERROR(VLOOKUP(intellix.par.lot87[[#This Row],[Rechercher par Article / N Lot :]],Tableau4[[Colonne3]:[QTÉ-SOMME]],7,FALSE),0) -> 0 | I54: =intellix.par.lot87[[#This Row],[Qté inellix 2020]]-intellix.par.lot87[[#This Row],[Qté(+2019)]] -> 0 | J54: =IF(intellix.par.lot87[[#This Row],[Statut Conforme / Péremé]]="péremé",0,intellix.par.lot87[[#This Row],[Qte Stock Réelle]]) -> 0 | K54: =IFERROR(VLOOKUP(intellix.par.lot87[[#This Row],[code]],Tableau5[],3,FALSE),"") ->  | L54: =IF(intellix.par.lot87[[#This Row],[Column1]]="AR","Conforme",IF(AND(intellix.par.lot87[[#This Row],[Column1]]="MP",intellix.par.lot87[[#This Row],[Exp.]]=""),"Quarantaine",IF(AND(intellix.par.lot87[[#This Row],[Column1]]="MP",intellix.par.lot87[[#This Row],[Exp.]]<TODAY()),"Péremé","Conforme"))) -> Conforme | M54: =IF(intellix.par.lot87[[#This Row],[Qte Stock Réelle]]>0,"Disponible","") ->  | N54: =IF(OR(intellix.par.lot87[[#This Row],[Filtrer par Famille]]="PA : PRINCIP ACTIF",intellix.par.lot87[[#This Row],[Filtrer par Famille]]="EX : EXCIPIENTS",intellix.par.lot87[[#This Row],[Filtrer par Famille]]="GV : CAPSULES",intellix.par.lot87[[#This Row],[Filtrer par Famille]]="SO : SOLVANTS"),"MP","AR") -> AR | O54: =IFERROR(IF(OR(intellix.par.lot87[[#This Row],[Statut Conforme / Péremé]]="conforme",intellix.par.lot87[[#This Row],[Statut Conforme / Péremé]]="péremé"),Sheet2!$C$3,""),"") -> DEPOT BIOCARE
G55: =intellix.par.lot87[[#This Row],[code]]&intellix.par.lot87[[#This Row],[ DÉSIGNATION]]&intellix.par.lot87[[#This Row],[N°Lot]] ->  | H55: =IFERROR(VLOOKUP(intellix.par.lot87[[#This Row],[Rechercher par Article / N Lot :]],Tableau4[[Colonne3]:[QTÉ-SOMME]],7,FALSE),0) -> 0 | I55: =intellix.par.lot87[[#This Row],[Qté inellix 2020]]-intellix.par.lot87[[#This Row],[Qté(+2019)]] -> 0 | J55: =IF(intellix.par.lot87[[#This Row],[Statut Conforme / Péremé]]="péremé",0,intellix.par.lot87[[#This Row],[Qte Stock Réelle]]) -> 0 | K55: =IFERROR(VLOOKUP(intellix.par.lot87[[#This Row],[code]],Tableau5[],3,FALSE),"") ->  | L55: =IF(intellix.par.lot87[[#This Row],[Column1]]="AR","Conforme",IF(AND(intellix.par.lot87[[#This Row],[Column1]]="MP",intellix.par.lot87[[#This Row],[Exp.]]=""),"Quarantaine",IF(AND(intellix.par.lot87[[#This Row],[Column1]]="MP",intellix.par.lot87[[#This Row],[Exp.]]<TODAY()),"Péremé","Conforme"))) -> Conforme | M55: =IF(intellix.par.lot87[[#This Row],[Qte Stock Réelle]]>0,"Disponible","") ->  | N55: =IF(OR(intellix.par.lot87[[#This Row],[Filtrer par Famille]]="PA : PRINCIP ACTIF",intellix.par.lot87[[#This Row],[Filtrer par Famille]]="EX : EXCIPIENTS",intellix.par.lot87[[#This Row],[Filtrer par Famille]]="GV : CAPSULES",intellix.par.lot87[[#This Row],[Filtrer par Famille]]="SO : SOLVANTS"),"MP","AR") -> AR | O55: =IFERROR(IF(OR(intellix.par.lot87[[#This Row],[Statut Conforme / Péremé]]="conforme",intellix.par.lot87[[#This Row],[Statut Conforme / Péremé]]="péremé"),Sheet2!$C$3,""),"") -> DEPOT BIOCARE
G56: =intellix.par.lot87[[#This Row],[code]]&intellix.par.lot87[[#This Row],[ DÉSIGNATION]]&intellix.par.lot87[[#This Row],[N°Lot]] ->  | H56: =IFERROR(VLOOKUP(intellix.par.lot87[[#This Row],[Rechercher par Article / N Lot :]],Tableau4[[Colonne3]:[QTÉ-SOMME]],7,FALSE),0) -> 0 | I56: =intellix.par.lot87[[#This Row],[Qté inellix 2020]]-intellix.par.lot87[[#This Row],[Qté(+2019)]] -> 0 | J56: =IF(intellix.par.lot87[[#This Row],[Statut Conforme / Péremé]]="péremé",0,intellix.par.lot87[[#This Row],[Qte Stock Réelle]]) -> 0 | K56: =IFERROR(VLOOKUP(intellix.par.lot87[[#This Row],[code]],Tableau5[],3,FALSE),"") ->  | L56: =IF(intellix.par.lot87[[#This Row],[Column1]]="AR","Conforme",IF(AND(intellix.par.lot87[[#This Row],[Column1]]="MP",intellix.par.lot87[[#This Row],[Exp.]]=""),"Quarantaine",IF(AND(intellix.par.lot87[[#This Row],[Column1]]="MP",intellix.par.lot87[[#This Row],[Exp.]]<TODAY()),"Péremé","Conforme"))) -> Conforme | M56: =IF(intellix.par.lot87[[#This Row],[Qte Stock Réelle]]>0,"Disponible","") ->  | N56: =IF(OR(intellix.par.lot87[[#This Row],[Filtrer par Famille]]="PA : PRINCIP ACTIF",intellix.par.lot87[[#This Row],[Filtrer par Famille]]="EX : EXCIPIENTS",intellix.par.lot87[[#This Row],[Filtrer par Famille]]="GV : CAPSULES",intellix.par.lot87[[#This Row],[Filtrer par Famille]]="SO : SOLVANTS"),"MP","AR") -> AR | O56: =IFERROR(IF(OR(intellix.par.lot87[[#This Row],[Statut Conforme / Péremé]]="conforme",intellix.par.lot87[[#This Row],[Statut Conforme / Péremé]]="péremé"),Sheet2!$C$3,""),"") -> DEPOT BIOCARE
G57: =intellix.par.lot87[[#This Row],[code]]&intellix.par.lot87[[#This Row],[ DÉSIGNATION]]&intellix.par.lot87[[#This Row],[N°Lot]] ->  | H57: =IFERROR(VLOOKUP(intellix.par.lot87[[#This Row],[Rechercher par Article / N Lot :]],Tableau4[[Colonne3]:[QTÉ-SOMME]],7,FALSE),0) -> 0 | I57: =intellix.par.lot87[[#This Row],[Qté inellix 2020]]-intellix.par.lot87[[#This Row],[Qté(+2019)]] -> 0 | J57: =IF(intellix.par.lot87[[#This Row],[Statut Conforme / Péremé]]="péremé",0,intellix.par.lot87[[#This Row],[Qte Stock Réelle]]) -> 0 | K57: =IFERROR(VLOOKUP(intellix.par.lot87[[#This Row],[code]],Tableau5[],3,FALSE),"") ->  | L57: =IF(intellix.par.lot87[[#This Row],[Column1]]="AR","Conforme",IF(AND(intellix.par.lot87[[#This Row],[Column1]]="MP",intellix.par.lot87[[#This Row],[Exp.]]=""),"Quarantaine",IF(AND(intellix.par.lot87[[#This Row],[Column1]]="MP",intellix.par.lot87[[#This Row],[Exp.]]<TODAY()),"Péremé","Conforme"))) -> Conforme | M57: =IF(intellix.par.lot87[[#This Row],[Qte Stock Réelle]]>0,"Disponible","") ->  | N57: =IF(OR(intellix.par.lot87[[#This Row],[Filtrer par Famille]]="PA : PRINCIP ACTIF",intellix.par.lot87[[#This Row],[Filtrer par Famille]]="EX : EXCIPIENTS",intellix.par.lot87[[#This Row],[Filtrer par Famille]]="GV : CAPSULES",intellix.par.lot87[[#This Row],[Filtrer par Famille]]="SO : SOLVANTS"),"MP","AR") -> AR | O57: =IFERROR(IF(OR(intellix.par.lot87[[#This Row],[Statut Conforme / Péremé]]="conforme",intellix.par.lot87[[#This Row],[Statut Conforme / Péremé]]="péremé"),Sheet2!$C$3,""),"") -> DEPOT BIOCARE
G58: =intellix.par.lot87[[#This Row],[code]]&intellix.par.lot87[[#This Row],[ DÉSIGNATION]]&intellix.par.lot87[[#This Row],[N°Lot]] ->  | H58: =IFERROR(VLOOKUP(intellix.par.lot87[[#This Row],[Rechercher par Article / N Lot :]],Tableau4[[Colonne3]:[QTÉ-SOMME]],7,FALSE),0) -> 0 | I58: =intellix.par.lot87[[#This Row],[Qté inellix 2020]]-intellix.par.lot87[[#This Row],[Qté(+2019)]] -> 0 | J58: =IF(intellix.par.lot87[[#This Row],[Statut Conforme / Péremé]]="péremé",0,intellix.par.lot87[[#This Row],[Qte Stock Réelle]]) -> 0 | K58: =IFERROR(VLOOKUP(intellix.par.lot87[[#This Row],[code]],Tableau5[],3,FALSE),"") ->  | L58: =IF(intellix.par.lot87[[#This Row],[Column1]]="AR","Conforme",IF(AND(intellix.par.lot87[[#This Row],[Column1]]="MP",intellix.par.lot87[[#This Row],[Exp.]]=""),"Quarantaine",IF(AND(intellix.par.lot87[[#This Row],[Column1]]="MP",intellix.par.lot87[[#This Row],[Exp.]]<TODAY()),"Péremé","Conforme"))) -> Conforme | M58: =IF(intellix.par.lot87[[#This Row],[Qte Stock Réelle]]>0,"Disponible","") ->  | N58: =IF(OR(intellix.par.lot87[[#This Row],[Filtrer par Famille]]="PA : PRINCIP ACTIF",intellix.par.lot87[[#This Row],[Filtrer par Famille]]="EX : EXCIPIENTS",intellix.par.lot87[[#This Row],[Filtrer par Famille]]="GV : CAPSULES",intellix.par.lot87[[#This Row],[Filtrer par Famille]]="SO : SOLVANTS"),"MP","AR") -> AR | O58: =IFERROR(IF(OR(intellix.par.lot87[[#This Row],[Statut Conforme / Péremé]]="conforme",intellix.par.lot87[[#This Row],[Statut Conforme / Péremé]]="péremé"),Sheet2!$C$3,""),"") -> DEPOT BIOCARE
G59: =intellix.par.lot87[[#This Row],[code]]&intellix.par.lot87[[#This Row],[ DÉSIGNATION]]&intellix.par.lot87[[#This Row],[N°Lot]] ->  | H59: =IFERROR(VLOOKUP(intellix.par.lot87[[#This Row],[Rechercher par Article / N Lot :]],Tableau4[[Colonne3]:[QTÉ-SOMME]],7,FALSE),0) -> 0 | I59: =intellix.par.lot87[[#This Row],[Qté inellix 2020]]-intellix.par.lot87[[#This Row],[Qté(+2019)]] -> 0 | J59: =IF(intellix.par.lot87[[#This Row],[Statut Conforme / Péremé]]="péremé",0,intellix.par.lot87[[#This Row],[Qte Stock Réelle]]) -> 0 | K59: =IFERROR(VLOOKUP(intellix.par.lot87[[#This Row],[code]],Tableau5[],3,FALSE),"") ->  | L59: =IF(intellix.par.lot87[[#This Row],[Column1]]="AR","Conforme",IF(AND(intellix.par.lot87[[#This Row],[Column1]]="MP",intellix.par.lot87[[#This Row],[Exp.]]=""),"Quarantaine",IF(AND(intellix.par.lot87[[#This Row],[Column1]]="MP",intellix.par.lot87[[#This Row],[Exp.]]<TODAY()),"Péremé","Conforme"))) -> Conforme | M59: =IF(intellix.par.lot87[[#This Row],[Qte Stock Réelle]]>0,"Disponible","") ->  | N59: =IF(OR(intellix.par.lot87[[#This Row],[Filtrer par Famille]]="PA : PRINCIP ACTIF",intellix.par.lot87[[#This Row],[Filtrer par Famille]]="EX : EXCIPIENTS",intellix.par.lot87[[#This Row],[Filtrer par Famille]]="GV : CAPSULES",intellix.par.lot87[[#This Row],[Filtrer par Famille]]="SO : SOLVANTS"),"MP","AR") -> AR | O59: =IFERROR(IF(OR(intellix.par.lot87[[#This Row],[Statut Conforme / Péremé]]="conforme",intellix.par.lot87[[#This Row],[Statut Conforme / Péremé]]="péremé"),Sheet2!$C$3,""),"") -> DEPOT BIOCARE
G60: =intellix.par.lot87[[#This Row],[code]]&intellix.par.lot87[[#This Row],[ DÉSIGNATION]]&intellix.par.lot87[[#This Row],[N°Lot]] ->  | H60: =IFERROR(VLOOKUP(intellix.par.lot87[[#This Row],[Rechercher par Article / N Lot :]],Tableau4[[Colonne3]:[QTÉ-SOMME]],7,FALSE),0) -> 0 | I60: =intellix.par.lot87[[#This Row],[Qté inellix 2020]]-intellix.par.lot87[[#This Row],[Qté(+2019)]] -> 0 | J60: =IF(intellix.par.lot87[[#This Row],[Statut Conforme / Péremé]]="péremé",0,intellix.par.lot87[[#This Row],[Qte Stock Réelle]]) -> 0 | K60: =IFERROR(VLOOKUP(intellix.par.lot87[[#This Row],[code]],Tableau5[],3,FALSE),"") ->  | L60: =IF(intellix.par.lot87[[#This Row],[Column1]]="AR","Conforme",IF(AND(intellix.par.lot87[[#This Row],[Column1]]="MP",intellix.par.lot87[[#This Row],[Exp.]]=""),"Quarantaine",IF(AND(intellix.par.lot87[[#This Row],[Column1]]="MP",intellix.par.lot87[[#This Row],[Exp.]]<TODAY()),"Péremé","Conforme"))) -> Conforme | M60: =IF(intellix.par.lot87[[#This Row],[Qte Stock Réelle]]>0,"Disponible","") ->  | N60: =IF(OR(intellix.par.lot87[[#This Row],[Filtrer par Famille]]="PA : PRINCIP ACTIF",intellix.par.lot87[[#This Row],[Filtrer par Famille]]="EX : EXCIPIENTS",intellix.par.lot87[[#This Row],[Filtrer par Famille]]="GV : CAPSULES",intellix.par.lot87[[#This Row],[Filtrer par Famille]]="SO : SOLVANTS"),"MP","AR") -> AR | O60: =IFERROR(IF(OR(intellix.par.lot87[[#This Row],[Statut Conforme / Péremé]]="conforme",intellix.par.lot87[[#This Row],[Statut Conforme / Péremé]]="péremé"),Sheet2!$C$3,""),"") -> DEPOT BIOCARE
G61: =intellix.par.lot87[[#This Row],[code]]&intellix.par.lot87[[#This Row],[ DÉSIGNATION]]&intellix.par.lot87[[#This Row],[N°Lot]] ->  | H61: =IFERROR(VLOOKUP(intellix.par.lot87[[#This Row],[Rechercher par Article / N Lot :]],Tableau4[[Colonne3]:[QTÉ-SOMME]],7,FALSE),0) -> 0 | I61: =intellix.par.lot87[[#This Row],[Qté inellix 2020]]-intellix.par.lot87[[#This Row],[Qté(+2019)]] -> 0 | J61: =IF(intellix.par.lot87[[#This Row],[Statut Conforme / Péremé]]="péremé",0,intellix.par.lot87[[#This Row],[Qte Stock Réelle]]) -> 0 | K61: =IFERROR(VLOOKUP(intellix.par.lot87[[#This Row],[code]],Tableau5[],3,FALSE),"") ->  | L61: =IF(intellix.par.lot87[[#This Row],[Column1]]="AR","Conforme",IF(AND(intellix.par.lot87[[#This Row],[Column1]]="MP",intellix.par.lot87[[#This Row],[Exp.]]=""),"Quarantaine",IF(AND(intellix.par.lot87[[#This Row],[Column1]]="MP",intellix.par.lot87[[#This Row],[Exp.]]<TODAY()),"Péremé","Conforme"))) -> Conforme | M61: =IF(intellix.par.lot87[[#This Row],[Qte Stock Réelle]]>0,"Disponible","") ->  | N61: =IF(OR(intellix.par.lot87[[#This Row],[Filtrer par Famille]]="PA : PRINCIP ACTIF",intellix.par.lot87[[#This Row],[Filtrer par Famille]]="EX : EXCIPIENTS",intellix.par.lot87[[#This Row],[Filtrer par Famille]]="GV : CAPSULES",intellix.par.lot87[[#This Row],[Filtrer par Famille]]="SO : SOLVANTS"),"MP","AR") -> AR | O61: =IFERROR(IF(OR(intellix.par.lot87[[#This Row],[Statut Conforme / Péremé]]="conforme",intellix.par.lot87[[#This Row],[Statut Conforme / Péremé]]="péremé"),Sheet2!$C$3,""),"") -> DEPOT BIOCARE
G62: =intellix.par.lot87[[#This Row],[code]]&intellix.par.lot87[[#This Row],[ DÉSIGNATION]]&intellix.par.lot87[[#This Row],[N°Lot]] ->  | H62: =IFERROR(VLOOKUP(intellix.par.lot87[[#This Row],[Rechercher par Article / N Lot :]],Tableau4[[Colonne3]:[QTÉ-SOMME]],7,FALSE),0) -> 0 | I62: =intellix.par.lot87[[#This Row],[Qté inellix 2020]]-intellix.par.lot87[[#This Row],[Qté(+2019)]] -> 0 | J62: =IF(intellix.par.lot87[[#This Row],[Statut Conforme / Péremé]]="péremé",0,intellix.par.lot87[[#This Row],[Qte Stock Réelle]]) -> 0 | K62: =IFERROR(VLOOKUP(intellix.par.lot87[[#This Row],[code]],Tableau5[],3,FALSE),"") ->  | L62: =IF(intellix.par.lot87[[#This Row],[Column1]]="AR","Conforme",IF(AND(intellix.par.lot87[[#This Row],[Column1]]="MP",intellix.par.lot87[[#This Row],[Exp.]]=""),"Quarantaine",IF(AND(intellix.par.lot87[[#This Row],[Column1]]="MP",intellix.par.lot87[[#This Row],[Exp.]]<TODAY()),"Péremé","Conforme"))) -> Conforme | M62: =IF(intellix.par.lot87[[#This Row],[Qte Stock Réelle]]>0,"Disponible","") ->  | N62: =IF(OR(intellix.par.lot87[[#This Row],[Filtrer par Famille]]="PA : PRINCIP ACTIF",intellix.par.lot87[[#This Row],[Filtrer par Famille]]="EX : EXCIPIENTS",intellix.par.lot87[[#This Row],[Filtrer par Famille]]="GV : CAPSULES",intellix.par.lot87[[#This Row],[Filtrer par Famille]]="SO : SOLVANTS"),"MP","AR") -> AR | O62: =IFERROR(IF(OR(intellix.par.lot87[[#This Row],[Statut Conforme / Péremé]]="conforme",intellix.par.lot87[[#This Row],[Statut Conforme / Péremé]]="péremé"),Sheet2!$C$3,""),"") -> DEPOT BIOCARE
G63: =intellix.par.lot87[[#This Row],[code]]&intellix.par.lot87[[#This Row],[ DÉSIGNATION]]&intellix.par.lot87[[#This Row],[N°Lot]] ->  | H63: =IFERROR(VLOOKUP(intellix.par.lot87[[#This Row],[Rechercher par Article / N Lot :]],Tableau4[[Colonne3]:[QTÉ-SOMME]],7,FALSE),0) -> 0 | I63: =intellix.par.lot87[[#This Row],[Qté inellix 2020]]-intellix.par.lot87[[#This Row],[Qté(+2019)]] -> 0 | J63: =IF(intellix.par.lot87[[#This Row],[Statut Conforme / Péremé]]="péremé",0,intellix.par.lot87[[#This Row],[Qte Stock Réelle]]) -> 0 | K63: =IFERROR(VLOOKUP(intellix.par.lot87[[#This Row],[code]],Tableau5[],3,FALSE),"") ->  | L63: =IF(intellix.par.lot87[[#This Row],[Column1]]="AR","Conforme",IF(AND(intellix.par.lot87[[#This Row],[Column1]]="MP",intellix.par.lot87[[#This Row],[Exp.]]=""),"Quarantaine",IF(AND(intellix.par.lot87[[#This Row],[Column1]]="MP",intellix.par.lot87[[#This Row],[Exp.]]<TODAY()),"Péremé","Conforme"))) -> Conforme | M63: =IF(intellix.par.lot87[[#This Row],[Qte Stock Réelle]]>0,"Disponible","") ->  | N63: =IF(OR(intellix.par.lot87[[#This Row],[Filtrer par Famille]]="PA : PRINCIP ACTIF",intellix.par.lot87[[#This Row],[Filtrer par Famille]]="EX : EXCIPIENTS",intellix.par.lot87[[#This Row],[Filtrer par Famille]]="GV : CAPSULES",intellix.par.lot87[[#This Row],[Filtrer par Famille]]="SO : SOLVANTS"),"MP","AR") -> AR | O63: =IFERROR(IF(OR(intellix.par.lot87[[#This Row],[Statut Conforme / Péremé]]="conforme",intellix.par.lot87[[#This Row],[Statut Conforme / Péremé]]="péremé"),Sheet2!$C$3,""),"") -> DEPOT BIOCARE
G64: =intellix.par.lot87[[#This Row],[code]]&intellix.par.lot87[[#This Row],[ DÉSIGNATION]]&intellix.par.lot87[[#This Row],[N°Lot]] ->  | H64: =IFERROR(VLOOKUP(intellix.par.lot87[[#This Row],[Rechercher par Article / N Lot :]],Tableau4[[Colonne3]:[QTÉ-SOMME]],7,FALSE),0) -> 0 | I64: =intellix.par.lot87[[#This Row],[Qté inellix 2020]]-intellix.par.lot87[[#This Row],[Qté(+2019)]] -> 0 | J64: =IF(intellix.par.lot87[[#This Row],[Statut Conforme / Péremé]]="péremé",0,intellix.par.lot87[[#This Row],[Qte Stock Réelle]]) -> 0 | K64: =IFERROR(VLOOKUP(intellix.par.lot87[[#This Row],[code]],Tableau5[],3,FALSE),"") ->  | L64: =IF(intellix.par.lot87[[#This Row],[Column1]]="AR","Conforme",IF(AND(intellix.par.lot87[[#This Row],[Column1]]="MP",intellix.par.lot87[[#This Row],[Exp.]]=""),"Quarantaine",IF(AND(intellix.par.lot87[[#This Row],[Column1]]="MP",intellix.par.lot87[[#This Row],[Exp.]]<TODAY()),"Péremé","Conforme"))) -> Conforme | M64: =IF(intellix.par.lot87[[#This Row],[Qte Stock Réelle]]>0,"Disponible","") ->  | N64: =IF(OR(intellix.par.lot87[[#This Row],[Filtrer par Famille]]="PA : PRINCIP ACTIF",intellix.par.lot87[[#This Row],[Filtrer par Famille]]="EX : EXCIPIENTS",intellix.par.lot87[[#This Row],[Filtrer par Famille]]="GV : CAPSULES",intellix.par.lot87[[#This Row],[Filtrer par Famille]]="SO : SOLVANTS"),"MP","AR") -> AR | O64: =IFERROR(IF(OR(intellix.par.lot87[[#This Row],[Statut Conforme / Péremé]]="conforme",intellix.par.lot87[[#This Row],[Statut Conforme / Péremé]]="péremé"),Sheet2!$C$3,""),"") -> DEPOT BIOCARE
G65: =intellix.par.lot87[[#This Row],[code]]&intellix.par.lot87[[#This Row],[ DÉSIGNATION]]&intellix.par.lot87[[#This Row],[N°Lot]] ->  | H65: =IFERROR(VLOOKUP(intellix.par.lot87[[#This Row],[Rechercher par Article / N Lot :]],Tableau4[[Colonne3]:[QTÉ-SOMME]],7,FALSE),0) -> 0 | I65: =intellix.par.lot87[[#This Row],[Qté inellix 2020]]-intellix.par.lot87[[#This Row],[Qté(+2019)]] -> 0 | J65: =IF(intellix.par.lot87[[#This Row],[Statut Conforme / Péremé]]="péremé",0,intellix.par.lot87[[#This Row],[Qte Stock Réelle]]) -> 0 | K65: =IFERROR(VLOOKUP(intellix.par.lot87[[#This Row],[code]],Tableau5[],3,FALSE),"") ->  | L65: =IF(intellix.par.lot87[[#This Row],[Column1]]="AR","Conforme",IF(AND(intellix.par.lot87[[#This Row],[Column1]]="MP",intellix.par.lot87[[#This Row],[Exp.]]=""),"Quarantaine",IF(AND(intellix.par.lot87[[#This Row],[Column1]]="MP",intellix.par.lot87[[#This Row],[Exp.]]<TODAY()),"Péremé","Conforme"))) -> Conforme | M65: =IF(intellix.par.lot87[[#This Row],[Qte Stock Réelle]]>0,"Disponible","") ->  | N65: =IF(OR(intellix.par.lot87[[#This Row],[Filtrer par Famille]]="PA : PRINCIP ACTIF",intellix.par.lot87[[#This Row],[Filtrer par Famille]]="EX : EXCIPIENTS",intellix.par.lot87[[#This Row],[Filtrer par Famille]]="GV : CAPSULES",intellix.par.lot87[[#This Row],[Filtrer par Famille]]="SO : SOLVANTS"),"MP","AR") -> AR | O65: =IFERROR(IF(OR(intellix.par.lot87[[#This Row],[Statut Conforme / Péremé]]="conforme",intellix.par.lot87[[#This Row],[Statut Conforme / Péremé]]="péremé"),Sheet2!$C$3,""),"") -> DEPOT BIOCARE
G66: =intellix.par.lot87[[#This Row],[code]]&intellix.par.lot87[[#This Row],[ DÉSIGNATION]]&intellix.par.lot87[[#This Row],[N°Lot]] ->  | H66: =IFERROR(VLOOKUP(intellix.par.lot87[[#This Row],[Rechercher par Article / N Lot :]],Tableau4[[Colonne3]:[QTÉ-SOMME]],7,FALSE),0) -> 0 | I66: =intellix.par.lot87[[#This Row],[Qté inellix 2020]]-intellix.par.lot87[[#This Row],[Qté(+2019)]] -> 0 | J66: =IF(intellix.par.lot87[[#This Row],[Statut Conforme / Péremé]]="péremé",0,intellix.par.lot87[[#This Row],[Qte Stock Réelle]]) -> 0 | K66: =IFERROR(VLOOKUP(intellix.par.lot87[[#This Row],[code]],Tableau5[],3,FALSE),"") ->  | L66: =IF(intellix.par.lot87[[#This Row],[Column1]]="AR","Conforme",IF(AND(intellix.par.lot87[[#This Row],[Column1]]="MP",intellix.par.lot87[[#This Row],[Exp.]]=""),"Quarantaine",IF(AND(intellix.par.lot87[[#This Row],[Column1]]="MP",intellix.par.lot87[[#This Row],[Exp.]]<TODAY()),"Péremé","Conforme"))) -> Conforme | M66: =IF(intellix.par.lot87[[#This Row],[Qte Stock Réelle]]>0,"Disponible","") ->  | N66: =IF(OR(intellix.par.lot87[[#This Row],[Filtrer par Famille]]="PA : PRINCIP ACTIF",intellix.par.lot87[[#This Row],[Filtrer par Famille]]="EX : EXCIPIENTS",intellix.par.lot87[[#This Row],[Filtrer par Famille]]="GV : CAPSULES",intellix.par.lot87[[#This Row],[Filtrer par Famille]]="SO : SOLVANTS"),"MP","AR") -> AR | O66: =IFERROR(IF(OR(intellix.par.lot87[[#This Row],[Statut Conforme / Péremé]]="conforme",intellix.par.lot87[[#This Row],[Statut Conforme / Péremé]]="péremé"),Sheet2!$C$3,""),"") -> DEPOT BIOCARE
G67: =intellix.par.lot87[[#This Row],[code]]&intellix.par.lot87[[#This Row],[ DÉSIGNATION]]&intellix.par.lot87[[#This Row],[N°Lot]] ->  | H67: =IFERROR(VLOOKUP(intellix.par.lot87[[#This Row],[Rechercher par Article / N Lot :]],Tableau4[[Colonne3]:[QTÉ-SOMME]],7,FALSE),0) -> 0 | I67: =intellix.par.lot87[[#This Row],[Qté inellix 2020]]-intellix.par.lot87[[#This Row],[Qté(+2019)]] -> 0 | J67: =IF(intellix.par.lot87[[#This Row],[Statut Conforme / Péremé]]="péremé",0,intellix.par.lot87[[#This Row],[Qte Stock Réelle]]) -> 0 | K67: =IFERROR(VLOOKUP(intellix.par.lot87[[#This Row],[code]],Tableau5[],3,FALSE),"") ->  | L67: =IF(intellix.par.lot87[[#This Row],[Column1]]="AR","Conforme",IF(AND(intellix.par.lot87[[#This Row],[Column1]]="MP",intellix.par.lot87[[#This Row],[Exp.]]=""),"Quarantaine",IF(AND(intellix.par.lot87[[#This Row],[Column1]]="MP",intellix.par.lot87[[#This Row],[Exp.]]<TODAY()),"Péremé","Conforme"))) -> Conforme | M67: =IF(intellix.par.lot87[[#This Row],[Qte Stock Réelle]]>0,"Disponible","") ->  | N67: =IF(OR(intellix.par.lot87[[#This Row],[Filtrer par Famille]]="PA : PRINCIP ACTIF",intellix.par.lot87[[#This Row],[Filtrer par Famille]]="EX : EXCIPIENTS",intellix.par.lot87[[#This Row],[Filtrer par Famille]]="GV : CAPSULES",intellix.par.lot87[[#This Row],[Filtrer par Famille]]="SO : SOLVANTS"),"MP","AR") -> AR | O67: =IFERROR(IF(OR(intellix.par.lot87[[#This Row],[Statut Conforme / Péremé]]="conforme",intellix.par.lot87[[#This Row],[Statut Conforme / Péremé]]="péremé"),Sheet2!$C$3,""),"") -> DEPOT BIOCARE
